{"text_format":"1","workbook":"xlsx","n_sheets":14,"sheets":["PORTADA","INSTRUCTIVO","V_IMPRIMIBLE_NN","V_IMPRIMIBLE_MG","DATOS UDS","MODULO 1","MODULO 2","MODULO 3-NN","Listados","BD-M1","BD-M2","BD-M3","BD-M3 Integrantes","GRAFICOS"],"not_rendered":{"charts":13,"images":33,"macros":1,"external_links":0,"defined_names":111,"comments":0,"pivot_tables":0},"unopened":[],"bounds":{"document_bytes":16777216,"sheet_cells":100000,"rows_first":2000,"rows_last":500,"rows_between":2000,"halvings":0,"cell_chars":16384,"cell_head_chars":4096},"cells_cut":0,"cells_raw":0,"read":"whole","date_system":"1900"}

{"sheet":"PORTADA","index":0,"n_rows":17,"n_cols":12,"rows_kept":17,"cut":false,"hidden":false,"merged":[[16,0,16,11],[3,0,15,10],[2,10,2,11],[0,2,2,9]]}
[null,null,"PROCESO\nPROMOCIÓN Y PREVENCIÓN\n\nFORMATO FICHA DE CARACTERIZACIÓN PARA LOS SERVICIOS DE ATENCIÓN A LA PRIMERA INFANCIA",null,null,null,null,null,null,null,"F23.MO12.PP","2021-02-08"]
[null,null,null,null,null,null,null,null,null,null,"Versión 2","Página 1 de 1"]
[null,null,null,null,null,null,null,null,null,null,"Clasificación de la Información:\nPública"]
[]
[]
[]
[]
[]
[]
[]
[]
[]
[]
[]
[]
[]
["Antes de imprimir este documento… piense en el medio ambiente!\nCualquier copia impresa de este documento se considera como COPIA NO CONTROLADA\n LOS DATOS PROPORCIONADOS SERÁN TRATADOS DE ACUERDO A LA POLÍTICA DE TRATAMIENTO DE DATOS PERSONALES DEL ICBF Y A LA LEY 1581 DE 2012"]

{"sheet":"INSTRUCTIVO","index":1,"n_rows":695,"n_cols":7,"rows_kept":695,"cut":false,"hidden":false,"merged":[[329,2,331,4],[347,2,349,4],[412,2,414,4],[461,2,463,4],[471,2,473,4],[485,2,487,4],[630,2,632,4],[652,0,652,7],[653,2,653,7],[645,0,645,7],[646,0,646,7],[647,0,647,7],[648,0,650,1],[648,6,648,7],[649,6,649,7],[650,5,650,7],[648,2,650,4],[635,2,635,7],[636,2,636,7],[637,2,637,7],[638,0,638,7],[639,2,639,7],[640,2,640,7],[641,2,641,7],[654,2,654,7],[655,2,655,7],[692,0,692,7],[693,0,693,7],[694,0,694,7],[658,0,658,1],[658,3,658,7],[659,0,659,1],[659,3,659,7],[642,2,642,7],[643,2,643,7],[628,0,628,7],[629,0,629,7],[630,0,632,1],[630,6,630,7],[631,6,631,7],[632,5,632,7],[634,2,634,7],[619,2,619,7],[620,0,620,7],[622,0,622,7],[623,2,623,7],[624,2,624,7],[625,2,625,7],[626,2,626,7],[621,0,621,7],[627,0,627,7],[599,2,599,7],[600,2,600,7],[601,2,601,7],[602,2,602,7],[603,2,603,7],[604,2,604,7],[617,0,617,7],[618,2,618,7],[610,0,610,7],[611,0,611,7],[612,0,612,7],[613,0,615,1],[613,6,613,7],[614,6,614,7],[615,5,615,7],[613,2,615,4],[583,2,583,7],[585,2,585,7],[584,0,584,7],[586,2,586,7],[587,2,587,7],[592,0,592,7],[593,0,593,7],[594,0,594,7],[595,0,597,1],[595,6,595,7],[596,6,596,7],[597,5,597,7],[595,2,597,4],[576,0,576,7],[577,0,577,7],[578,0,578,7],[579,0,581,1],[579,6,579,7],[580,6,580,7],[581,5,581,7],[579,2,581,4],[553,0,553,7],[554,2,554,7],[555,0,555,7],[556,2,556,7],[567,0,567,7],[568,2,568,7],[569,2,569,7],[570,2,570,7],[571,2,571,7],[566,2,566,7],[559,0,559,7],[560,0,560,7],[561,0,561,7],[562,0,564,1],[562,6,562,7],[563,6,563,7],[564,5,564,7],[562,2,564,4],[530,0,530,7],[531,0,531,7],[532,0,532,7],[533,0,535,1],[533,6,533,7],[534,6,534,7],[535,5,535,7],[533,2,535,4],[537,0,537,7],[538,2,538,7],[540,2,540,7],[539,0,539,7],[541,0,541,7],[542,2,542,7],[552,2,552,7],[545,0,545,7],[546,0,546,7],[547,0,547,7],[548,0,550,1],[548,2,548,4],[548,6,548,7],[549,2,550,4],[549,6,549,7],[550,5,550,7],[522,2,522,7],[523,0,523,7],[524,0,524,7],[525,2,525,7],[526,2,526,7],[527,0,527,7],[528,2,528,7],[506,2,506,7],[507,2,507,7],[508,2,508,7],[509,2,509,7],[515,0,515,7],[516,0,516,7],[517,0,517,7],[518,0,520,1],[518,6,518,7],[519,6,519,7],[520,5,520,7],[518,2,520,4],[492,2,492,7],[493,0,493,7],[494,2,494,7],[505,2,505,7],[498,0,498,7],[499,0,499,7],[500,0,500,7],[501,0,503,1],[501,6,501,7],[502,6,502,7],[503,5,503,7],[501,2,503,4],[476,2,476,7],[477,2,477,7],[478,2,478,7],[490,2,490,7],[491,2,491,7],[479,2,479,7],[482,0,482,7],[483,0,483,7],[484,0,484,7],[485,0,487,1],[485,6,485,7],[486,6,486,7],[487,5,487,7],[489,2,489,7],[465,2,465,7],[466,2,466,7],[467,2,467,7],[475,2,475,7],[468,0,468,7],[469,0,469,7],[470,0,470,7],[471,0,473,1],[471,6,471,7],[472,6,472,7],[473,5,473,7],[458,0,458,7],[459,0,459,7],[460,0,460,7],[461,0,463,1],[461,6,461,7],[462,6,462,7],[463,5,463,7],[446,0,448,1],[446,6,446,7],[447,6,447,7],[448,5,448,7],[450,2,450,7],[451,2,451,7],[452,2,452,7],[446,2,448,4],[435,2,435,7],[436,2,436,7],[437,2,437,7],[438,2,438,7],[439,2,439,7],[440,2,440,7],[443,0,443,7],[444,0,444,7],[445,0,445,7],[418,0,418,7],[419,0,419,7],[420,2,420,7],[421,2,421,7],[422,2,422,7],[423,0,423,7],[434,2,434,7],[425,2,425,7],[427,0,427,7],[428,0,428,7],[429,0,429,7],[430,0,432,1],[430,6,430,7],[431,6,431,7],[432,5,432,7],[430,2,432,4],[402,2,402,7],[403,0,403,7],[404,2,404,7],[405,2,405,7],[406,2,406,7],[407,2,407,7],[416,2,416,7],[409,0,409,7],[410,0,410,7],[411,0,411,7],[412,0,414,1],[412,6,412,7],[413,6,413,7],[414,5,414,7],[392,2,392,7],[401,2,401,7],[394,0,394,7],[395,0,395,7],[396,0,396,7],[397,0,399,1],[397,6,397,7],[398,6,398,7],[399,5,399,7],[397,2,399,4],[384,2,384,7],[385,2,385,7],[386,2,386,7],[387,0,387,7],[388,2,388,7],[389,2,389,7],[390,0,390,7],[391,2,391,7],[321,2,321,7],[322,2,322,7],[323,2,323,7],[333,2,333,7],[327,0,327,7],[328,0,328,7],[330,6,330,7],[326,0,326,7],[329,0,331,1],[329,6,329,7],[331,5,331,7],[335,2,335,7],[334,0,334,7],[336,0,336,7],[337,2,337,7],[338,2,338,7],[310,0,310,7],[311,2,311,7],[312,2,312,7],[314,0,314,7],[315,0,315,7],[316,0,316,7],[317,0,319,1],[317,6,317,7],[318,6,318,7],[319,5,319,7],[317,2,319,4],[295,2,295,7],[296,2,296,7],[297,2,297,7],[308,2,308,7],[309,3,309,4],[301,0,301,7],[302,0,302,7],[303,0,303,7],[304,0,306,1],[304,6,304,7],[305,6,305,7],[306,5,306,7],[304,2,306,4],[289,0,289,7],[290,0,290,7],[288,0,288,7],[291,0,293,1],[291,6,291,7],[292,6,292,7],[293,5,293,7],[291,2,293,4],[278,2,278,7],[279,2,279,7],[280,2,280,7],[281,2,281,7],[282,2,282,7],[283,2,283,7],[284,2,284,7],[285,2,285,7],[286,2,286,7],[264,2,264,7],[265,2,265,7],[271,0,271,7],[272,0,272,7],[273,0,273,7],[274,0,276,1],[274,6,274,7],[275,6,275,7],[276,5,276,7],[274,2,276,4],[251,2,251,7],[252,2,252,7],[263,2,263,7],[256,0,256,7],[257,0,257,7],[258,0,258,7],[259,0,261,1],[259,6,259,7],[260,6,260,7],[261,5,261,7],[259,2,261,4],[241,2,241,7],[242,2,242,7],[244,0,244,7],[245,0,245,7],[246,2,246,7],[247,2,247,7],[248,2,248,7],[249,2,249,7],[250,2,250,7],[224,2,224,7],[225,2,225,7],[226,2,226,7],[227,2,227,7],[228,0,228,7],[230,2,230,7],[240,2,240,7],[231,2,231,7],[233,0,233,7],[234,0,234,7],[235,0,235,7],[236,0,238,1],[236,6,236,7],[237,6,237,7],[238,5,238,7],[236,2,238,4],[213,2,213,7],[217,0,217,7],[218,0,218,7],[219,0,219,7],[220,0,222,1],[220,6,220,7],[221,6,221,7],[222,5,222,7],[220,2,222,4],[208,2,208,7],[209,2,209,7],[210,0,210,7],[211,0,211,7],[188,2,188,7],[190,2,190,7],[191,2,191,7],[193,2,193,7],[192,2,192,7],[203,2,203,7],[195,0,195,7],[196,0,196,7],[197,0,197,7],[198,0,200,1],[198,6,198,7],[199,6,199,7],[200,5,200,7],[198,2,200,4],[179,2,179,7],[180,2,180,7],[182,0,182,7],[183,0,183,7],[181,0,181,7],[204,2,204,7],[205,2,205,7],[206,0,206,7],[207,2,207,7],[184,0,186,1],[184,6,184,7],[185,6,185,7],[186,5,186,7],[184,2,186,4],[173,2,173,7],[172,0,172,7],[161,2,161,7],[162,3,162,4],[165,0,165,7],[166,0,166,7],[167,0,167,7],[168,0,170,1],[168,6,168,7],[169,6,169,7],[170,5,170,7],[168,2,170,4],[174,2,174,7],[175,2,175,7],[176,0,176,7],[177,0,177,7],[178,2,178,7],[111,2,111,7],[112,2,112,7],[113,2,113,7],[105,2,105,7],[107,2,107,7],[108,2,108,7],[109,2,109,7],[110,2,110,7],[106,2,106,7],[120,0,120,7],[121,0,121,7],[122,0,122,7],[123,0,125,1],[123,2,123,4],[123,6,123,7],[124,2,125,4],[124,6,124,7],[125,5,125,7],[148,2,148,7],[98,0,98,7],[99,0,99,7],[100,0,100,7],[101,0,103,1],[101,6,101,7],[102,6,102,7],[103,5,103,7],[101,2,103,4],[95,2,95,7],[96,2,96,7],[90,0,90,7],[91,0,91,7],[97,0,97,7],[89,2,89,7],[92,2,92,7],[93,2,93,7],[94,2,94,7],[87,2,87,7],[88,2,88,7],[81,0,81,7],[83,2,83,7],[84,2,84,7],[85,2,85,7],[86,2,86,7],[76,2,76,4],[77,2,77,4],[60,2,60,4],[61,2,61,4],[62,2,62,4],[63,2,63,4],[64,2,64,4],[65,2,65,4],[79,0,79,7],[71,2,71,4],[72,2,72,4],[73,2,73,4],[74,2,74,4],[75,2,75,4],[66,2,66,4],[67,2,67,4],[68,2,68,4],[69,2,69,4],[70,2,70,4],[58,1,58,5],[59,2,59,4],[43,2,43,4],[54,2,54,4],[55,2,55,4],[56,2,56,4],[48,0,50,1],[52,1,52,5],[53,2,53,4],[48,2,50,4],[48,6,48,7],[49,6,49,7],[50,5,50,7],[33,2,33,4],[35,1,35,5],[36,2,36,4],[28,2,28,4],[29,2,29,4],[30,2,30,4],[31,2,31,4],[32,2,32,4],[38,2,38,4],[39,2,39,4],[40,2,40,4],[41,2,41,4],[42,2,42,4],[45,0,45,7],[46,0,46,7],[47,0,47,7],[37,2,37,4],[24,1,24,5],[25,2,25,4],[26,2,26,4],[27,2,27,4],[21,2,21,4],[22,2,22,4],[20,1,20,5],[14,0,14,7],[15,0,15,7],[16,0,16,7],[17,0,17,7],[18,0,18,7],[8,3,8,5],[9,3,9,5],[10,3,10,5],[11,3,11,5],[12,3,12,5],[0,0,2,1],[0,6,0,7],[1,6,1,7],[2,5,2,7],[4,0,4,7],[5,0,5,7],[6,0,6,7],[7,0,7,7],[3,0,3,7],[0,2,2,4],[149,2,149,7],[150,0,150,7],[151,2,151,7],[152,2,152,7],[133,2,133,7],[134,2,134,7],[135,2,135,7],[136,2,136,7],[137,2,137,7],[138,2,138,7],[143,2,145,4],[128,2,128,7],[129,2,129,7],[130,2,130,7],[131,2,131,7],[132,2,132,7],[140,0,140,7],[141,0,141,7],[142,0,142,7],[143,0,145,1],[143,6,143,7],[144,6,144,7],[145,5,145,7],[154,0,154,7],[155,0,155,7],[156,0,156,7],[157,0,159,1],[157,2,157,4],[157,6,157,7],[158,2,159,4],[158,6,158,7],[159,5,159,7],[351,2,351,7],[344,0,344,7],[345,0,345,7],[346,0,346,7],[347,0,349,1],[347,6,347,7],[348,6,348,7],[349,5,349,7],[352,2,352,7],[353,2,353,7],[354,0,354,7],[355,2,355,7],[356,2,356,7],[357,0,357,7],[358,2,358,7],[359,2,359,7],[360,2,360,7],[361,2,361,7],[363,0,363,7],[364,0,364,7],[365,0,365,7],[366,0,368,1],[366,6,366,7],[367,6,367,7],[368,5,368,7],[366,2,368,4],[378,0,380,1],[378,6,378,7],[379,6,379,7],[380,5,380,7],[382,2,382,7],[383,2,383,7],[370,2,370,7],[371,2,371,7],[372,0,372,7],[373,2,373,7],[374,2,374,7],[375,0,375,7],[376,0,376,7],[377,0,377,7],[378,2,380,4]]}
[null,null,"PROCESO\nPROMOCIÓN Y PREVENCIÓN\n\nFORMATO FICHA DE CARACTERIZACIÓN PARA LOS SERVICIOS DE ATENCIÓN A LA PRIMERA INFANCIA",null,null,{"$f":"PORTADA!K1","v":"F23.MO12.PP"},"2021-02-08"]
[null,null,null,null,null,"Versión 2","Página 1 de 37"]
[null,null,null,null,null,"Clasificación de la Información:\nPública"]
["INSTRUCTIVO"]
["1. OBJETIVO"]
["Orientar al talento humano vinculado a las Unidades de Servicios  y Entidades Administradoras del Servicio, en el diligenciamiento y recolección de información de la ficha de caracterización, correspondiente a las características individuales y grupales de los usuarios de los servicios de atención a la primera infancia en las modalidades Comunitaria, Familiar, Institucional y Propia e Intercultural."]
["2. DATOS DEL DOCUMENTO"]
["La ficha de caracterización corresponde a una herramienta del diagnóstico situacional que permiten identificar los aspectos claves de las características, particularidades, necesidades e intereses de las niñas, niños, mujeres gestantes y sus familias. Lo anterior se encuentra estipulado en el estándar No. 2 del componente de familia, comunidad y redes en los manuales operativos de los servicios de atención a la primera infancia:"]
[null,"Código","Versión","Nombre del documento"]
[null,"MO12.PP",5,"Manual Operativo Modalidad Institucional"]
[null,"MO13.PP",5,"Manual Operativo Modalidad Familiar"]
[null,"MO14.PP",4,"Manual Operativo Modalidad Propia e Intercultural"]
[null,"MO15.PP",5,"Manual Operativo Modalidad Comunitaria"]
[]
["2. DATOS DEL DOCUMENTO"]
["Diligenciamiento y recolección de información de la ficha de caracterización para los servicios de atención a la primera infancia."]
["4. DESARROLLO"]
["La ficha de caracterización es una herramienta que permite recolectar información sobre las particularidades de las familias y usuarios de las UDS/UCA, con el fin de identificar los aspectos a fortalecer o mejorar durante la atención de manera pertinente, oportuna y de calidad, contribuyendo al desarrollo integral de las niñas y niños."]
["4.1 Estructura de la ficha:"]
[]
[null,"INFORMACIÓN DE LA UNIDAD DE SERVICIO"]
[null,"SECCIÓN","NOMBRE DE LA SECCIÓN",null,null,"Nº DE PREGUNTAS"]
[null,null,"Información de la Unidad de Servicio",null,null,6]
[]
[null,"MÓDULO 1: NIÑA Y NIÑO"]
[null,"SECCIÓN","NOMBRE DE LA SECCIÓN",null,null,"Nº DE PREGUNTAS"]
[null,"A","Variables Básicas",null,null,16]
[null,"B","Condiciones Habitacionales",null,null,3]
[null,"C","Atenciones en Salud"]
[null,"C1","Validación servicios de salud",null,null,11]
[null,"C2","Valoración integral en salud",null,null,3]
[null,"D","Lactancia Materna y Alimentación Complementaria"]
[null,"D1","Niña/Niño menor de 6 meses",null,null,5]
[null,"D2","Niña/Niño entre 7 meses y 2 años",null,null,4]
[]
[null,"MÓDULO 2: MUJER GESTANTE"]
[null,"SECCIÓN","NOMBRE DE LA SECCIÓN",null,null,"Nº DE PREGUNTAS"]
[null,"E","Variables básicas de identificación de la mujer gestante",null,null,19]
[null,"F","Nivel educativo y actividad principal",null,null,6]
[null,"G","Condiciones de habitacionales",null,null,1]
[null,"H","Vulnerabilidad y vulneración de derechos",null,null,5]
[null,"I","Datos de contacto",null,null,2]
[null,"J","Gestación, Hijos e Hijas",null,null,5]
[null,"K","Consumo de sustancias durante la gestación",null,null,7]
[]
["Antes de imprimir este documento… piense en el medio ambiente!"]
["Cualquier copia impresa de este documento se considera como COPIA NO CONTROLADA"]
[" LOS DATOS PROPORCIONADOS SERÁN TRATADOS DE ACUERDO A LA POLÍTICA DE TRATAMIENTO DE DATOS PERSONALES DEL ICBF Y A LA LEY 1581 DE 2012"]
[null,null,"PROCESO\nPROMOCIÓN Y PREVENCIÓN\n\nFORMATO FICHA DE CARACTERIZACIÓN PARA LOS SERVICIOS DE ATENCIÓN A LA PRIMERA INFANCIA",null,null,"F23.MO12.PP","2021-02-08"]
[null,null,null,null,null,"Versión 2","Página 2 de 37"]
[null,null,null,null,null,"Clasificación de la Información:\nPública"]
[]
[null,"MÓDULO 2: MUJER GESTANTE"]
[null,"SECCIÓN","NOMBRE DE LA SECCIÓN",null,null,"Nº DE PREGUNTAS"]
[null,"L","Participación en cursos",null,null,2]
[null,"M","Participación asociaciones, grupos u organizaciones",null,null,3]
[null,"N","Validación servicios de salud",null,null,4]
[]
[null,"MÓDULO 3: FAMILIA"]
[null,"SECCIÓN","NOMBRE DE LA SECCIÓN",null,null,"Nº DE PREGUNTAS"]
[null,"O","Variables básicas ",null,null,3]
[null,"P","Variables básicas de composición del hogar y estructura familiar (Máximo 10 Integrantes)",null,null,18]
[null,"Q","Características de la vivienda",null,null,6]
[null,"R","Condiciones del entorno de la vivienda y habitabilidad"]
[null,"R1","Habitabilidad",null,null,2]
[null,"R2","Energía o combustible",null,null,1]
[null,"R3","Acceso a servicio sanitario",null,null,1]
[null,"R4","Servicios públicos",null,null,1]
[null,"R5","Eliminación de basura",null,null,1]
[null,"R6","Riesgos en el entorno de la vivienda",null,null,1]
[null,"R7","Riesgos de accidentes dentro del hogar",null,null,1]
[null,"S","Acceso y calidad del agua",null,null,4]
[null,"T","Dinámica Familiar",null,null,9]
[null,"U","Redes de apoyo",null,null,2]
[null,"V","Variables de familia específicas con el niño o la niña (Aplica solo para registro de niñas y niños)"]
[null,"V1","Cuidador-a y cuidado de la niña/niño- ",null,null,8]
[null,"V2","Recursos en familia",null,null,5]
[null,"V3","Interacciones con la niña y el niño",null,null,3]
[]
["4.2 Orientaciones de diligenciamiento ficha de caracterización:"]
[]
["INFORMACIÓN DE LA UNIDAD DE SERVICIO"]
[]
[1,"Fecha de diligenciamiento: ","Especifique la fecha en que está diligenciando la ficha de caracterización, coloque en números, el día, mes y año; siempre usando dos dígitos y el año con cuatro dígitos. (Ejemplo: 01/02/2020)"]
[2,"Regional: ","Seleccionar de la lista desplegable la regional del ICBF a la cual pertenece la unidad de servicio.  "]
[3,"Centro Zonal: ","Seleccionar de la lista desplegable el centro zonal que corresponda según la regional del ICBF."]
[4,"NIT Entidad: ","Escriba / Digite el número de documento de la Entidad Administradora del Servicio teniendo en cuenta que se deben ingresar nueve (9) dígitos. Sin puntos, guiones o comas."]
[5,"Código CUÉNTAME UDS: ","Escriba / Digite el número de código único de la UDS; UCA, dado por el sistema de información Cuéntame."]
[6,"Nombre de Agente educativo que diligencia la ficha: ","Escriba el nombre completo en MAYÚSCULAS del agente educativo que diligencia la ficha de la UDS/UCA.  "]
[]
["MÓDULO 1 NIÑO/NIÑA"]
["A. Variables básicas"]
[7,"Fecha de nacimiento : ","Indique la fecha de nacimiento de la o el usuario, coloque el número del día y mes, con dos dígitos cada uno (Ejemplo: el nueve de marzo se escribe 09-03), y el año en cuatro dígitos (Ejemplo: 2018). Esta información debe ser tomada del documento de identidad del niño o la niña."]
[8,"Edad:","Especificar la edad del usuario-a en años y meses (Ejemplo: 1 año y 2 meses)"]
[9,"País de nacimiento:","Escriba / Digite el país de nacimiento del usuario-a. La información debe ser tomada del documento de identidad."]
[10,"Nacionalidad:","Hace referencia al vínculo jurídico que liga a una persona con un Estado que le reconoce como su nacional; por lo tanto, escriba o digite la nacionalidad o nacionalidades de acuerdo con sus documentos de identidad"]
[11,"Departamento de residencia:","Mencione el departamento donde reside el niño o la niña."]
[]
["Antes de imprimir este documento… piense en el medio ambiente!"]
["Cualquier copia impresa de este documento se considera como COPIA NO CONTROLADA"]
[" LOS DATOS PROPORCIONADOS SERÁN TRATADOS DE ACUERDO A LA POLÍTICA DE TRATAMIENTO DE DATOS PERSONALES DEL ICBF Y A LA LEY 1581 DE 2012"]
[null,null,"PROCESO\nPROMOCIÓN Y PREVENCIÓN\n\nFORMATO FICHA DE CARACTERIZACIÓN PARA LOS SERVICIOS DE ATENCIÓN A LA PRIMERA INFANCIA",null,null,"F23.MO12.PP","2021-02-08"]
[null,null,null,null,null,"Versión 2","Página 3 de 37"]
[null,null,null,null,null,"Clasificación de la Información:\nPública"]
[]
[12,"Municipio de residencia:","Mencione el municipio donde reside el usuario-a."]
[13,"Número de Celular del Acudiente:","Escriba / Digite el número celular del acudiente del usuario-a. Este campo debe tener diez (10) dígitos. "]
[14,"Tipo de Documento de identidad: ","Seleccione el tipo documento de identidad del usuario-a. En caso de no contar con el documento de identidad,indicar la opción No tiene. Recuerde que, para el registro de esta pregunta, se debe solicitar el documento de identidad.\nRegistre una opción de respuesta entre las opciones planteadas, estas son:\n1. Registro Civil: Documento de identificación para hombres y mujeres menores de 7 años. \n2. Tarjeta de Identidad: Documento de identificación para hombres y mujeres mayores de 7 años y menores de 18 años.\n3. Pasaporte: Sólo para extranjeros sin cédula de ciudadanía.\n4. Permiso especial de permanencia (PEP): documento el cual se otorga únicamente a los nacionales venezolanos.\n5. No tiene: No posee ningún documento de identidad"]
[15,"Número de documento:","Escriba / Digite el número de documento de identidad de acuerdo con el tipo seleccionado anteriormente. Sin puntos, guiones o comas."]
[16,"Nombres: ","Escriba el o los nombres completos del usuario/a inscrito en la Unidad de Servicio, en MAYÚSCULAS."]
[17,"Apellidos:","Escriba los apellidos completos del usuario-a inscrito en la Unidad de Servicio, en MAYÚSCULAS."]
[18,"Sexo:","Registre el sexo según con lo manifestado por e/la entrevistado-a, de acuerdo con las opciones (Mujer, Hombre o Intersexual). Tenga en cuenta que la categoría Sexo hace se define como “las características genéticas, endocrinas y morfológicas del cuerpo. Las categorías utilizadas para clasificar estas características en los seres humanos son hombre, mujer e intersexual”, de acuerdo con lo establecido por el SIVIGE  (2016:71). Las opciones de respuesta son las siguientes:\n1. Mujer: “Personas cuyas características genéticas, morfológicas y endocrinas le identifican como hembra, según la clasificación biológica de la especie humana” (SIVIGE, 2016:71). \n2. Hombre: “Personas cuyas características genéticas, morfológicas y endocrinas le identifican como macho, según la clasificación biológica de la especie humana” (SIVIGE, 2016:71). \n3. Intersexual: De acuerdo con la oficina de las Naciones Unidas, la intersexualidad integra a las personas que poseen, de manera simultánea, características genéticas de hombres y mujeres y se ha definido como “todas aquellas situaciones en las que el cuerpo sexuado de un individuo varía respecto al estándar de corporalidad femenina o masculina culturalmente vigente”. El SIVIGE lo define como todas las “personas que presentan simultáneamente características genéticas, congénitas, endocrinas o morfológicas de hembra y macho” (SIVIGE, 2016:71). "]
[19,"Niño o niña con discapacidad:","Seleccione la opción que indique si el usuario-a presenta o no alguna de las categorías de discapacidad.\nTenga en cuenta que la Discapacidad es una condición del ser humano que hace parte de las formas en que se manifiesta la diversidad. Se caracteriza por presentar variaciones o alteraciones transitorias o permanentes en el desarrollo de las niñas, niños y mujeres gestantes, las cuales pueden ser físicas, mentales, intelectuales o sensoriales, que inciden en la participación de las actividades de la vida diaria.\nOpciones de respuesta:\n1. SI\n2. NO\n"]
[20,"Categoría Discapacidad: ","Si presenta discapacidad, seleccione la categoria de discapacidad que corresponda. Tenga en cuenta las siguientes definiciones. En caso que el usuario no tenga discapacidad, seleccionar la opción \"12. Ninguna\".\n"]
[]
[]
[]
[]
[]
[]
["Antes de imprimir este documento… piense en el medio ambiente!"]
["Cualquier copia impresa de este documento se considera como COPIA NO CONTROLADA"]
[" LOS DATOS PROPORCIONADOS SERÁN TRATADOS DE ACUERDO A LA POLÍTICA DE TRATAMIENTO DE DATOS PERSONALES DEL ICBF Y A LA LEY 1581 DE 2012"]
[null,null,"PROCESO\nPROMOCIÓN Y PREVENCIÓN",null,null,"F23.MO12.PP","2021-02-08"]
[null,null,"FORMATO FICHA DE CARACTERIZACIÓN PARA LOS SERVICIOS DE ATENCIÓN A LA PRIMERA INFANCIA",null,null,"Versión 2","Página 4 de 37"]
[null,null,null,null,null,"Clasificación de la Información:\nPública"]
[]
["TABLA 1. Categorías de Discapacidad"]
["Ítem","Categoría de discapacidad","Definición"]
[1,"Física ","En esta categoría se encuentran las personas que presentan en forma permanente deficiencias corporales funcionales a nivel musculo esquelético; neurológico; tegumentario de origen congénito o adquirido; pérdida o ausencia de alguna parte de su cuerpo; o, presencia de desórdenes del movimiento corporal. \nSe refiere a aquellas personas que podrían presentar en el desarrollo de sus actividades cotidianas, diferentes grados de dificultad funcional para el movimiento corporal y su relación en los diversos entornos al caminar, desplazarse, cambiar o mantener posiciones del cuerpo, llevar, manipular o transportar objetos y realizar actividades de cuidado personal, o del hogar, interactuar con otros sujetos, entre otras (Resolución 583 de 2018). "]
[2,"Intelectual ","Se refiere a aquellas personas que presentan deficiencias en las capacidades mentales generales, como el razonamiento, la resolución de problemas, la planificación, el pensamiento abstracto, el juicio, el aprendizaje académico y el aprendizaje de la experiencia. \nEstos producen deficiencias del funcionamiento adaptativo, de tal manera que el individuo no alcanza los estándares de independencia personal y de responsabilidad social en uno o más aspectos de la vida cotidiana, incluidos la comunicación, la participación social, el funcionamiento académico u ocupacional y la independencia personal en la casa o en la comunidad (American Psychiatric Association, 2014, citado por Resolución 583 de 2018). "]
[3,"Psicosocial (Mental) ","Resulta de la interacción entre las personas con deficiencias (alteraciones en el pensamiento, percepciones, emociones, sentimientos, comportamientos y relaciones, considerados como signos y síntomas atendiendo a su duración, coexistencia, intensidad y afectación funcional) y las barreras del entorno que evitan su participación plena y efectiva en la sociedad. \nEstas barreras surgen de los límites que las diferentes culturas y sociedades imponen a la conducta y comportamiento humanos, así como por el estigma social y las actitudes discriminatorias (Resolución 583 de 2018). "]
[4,"Auditiva ","En esta categoría se encuentran personas que presentan en forma permanente deficiencias en las funciones sensoriales relacionadas con la percepción de los sonidos y la discriminación de su localización, tono, volumen y calidad. Como consecuencia, presentan diferentes grados de dificultad en la recepción y producción de mensajes verbales y, por tanto, para la comunicación oral. \nSe incluye en esta categoría a las personas sordas y a las personas con hipoacusia, esto es, aquellas que debido a una deficiencia en la capacidad auditiva presentan dificultades en la discriminación de sonidos, palabras, frases, conversación e incluso sonidos con mayor intensidad que la voz conversacional, según el grado de pérdida auditiva (Resolución 583 de 2018)."]
[5,"Visual ","En esta categoría se incluye a aquellas personas que presentan deficiencias para percibir la luz, forma, tamaño o color de los objetos. Se incluye a las personas ciegas y a las personas con baja visión, es decir, quienes, a pesar de usar gafas o lentes de contacto, o haberse practicado cirugía, tienen dificultades para distinguir formas, colores, rostros, objetos en la calle, ver en la noche, ver de lejos o de cerca por ambos ojos. \nEstas personas presentan diferentes grados de dificultad en la ejecución de actividades de cuidado personal, del hogar o del trabajo, entre otras (Resolución 583 de 2018)."]
[6,"Sordoceguera","La sordoceguera es una discapacidad única que resulta de la combinación de una deficiencia visual y una deficiencia auditiva, que genera en las personas que la presentan, problemas de comunicación, orientación, movilidad y acceso a la información. \nAlgunas personas sordociegas son sordas y ciegas totales, mientras que otras conservan restos auditivos y/o restos visuales (Resolución 583 de 2018)."]
[7,"Múltiple","La discapacidad múltiple hace referencia a la presencia de dos o más deficiencias asociadas, de orden físico, sensorial, mental o intelectual, las cuales afectan significativamente el nivel de desarrollo, las posibilidades funcionales, la comunicación, la interacción social y el aprendizaje, por lo que requieren para su atención de apoyos generalizados y permanentes. \nLas particularidades de la discapacidad múltiple no están dadas por la sumatoria de los diferentes tipos de deficiencia, sino por la interacción que se presenta entre ellos. \nA través de dicha interacción se determina el nivel de desarrollo, las posibilidades funcionales de la comunicación y de la interacción social (Resolución 583 de 2018)."]
[8,"Sensorial gusto, olfato, tacto** ","En esta categoría se ubican aquellas personas que por las deficiencias en alguno de los sentidos del gusto, olfato o tacto, podrían de forma permanente presentar en el desarrollo de sus actividades cotidianas, diferentes grados de dificultad en el aprendizaje, el cuidado personal, del hogar o del trabajo. "]
[9,"Sistémica** ","En esta categoría se ubican aquellas personas que presentan en forma permanente alteraciones severas en los sistemas cardiovascular, hematológico, inmunológico, respiratorio, digestivo, metabólico, endocrino, genitourinario y reproductor, entre otros.  Estas personas presentan diferentes grados de dificultad en el desarrollo de sus AVD. "]
[10,"Voz y habla** ","En esta categoría se ubican aquellas personas que presentan en forma permanente alteraciones en el tono de la voz, la vocalización, la velocidad del habla, la producción de sonidos inadecuados para el hablante en términos de su edad o desarrollo físico; al igual que las que presentan dificultades graves o importantes para articular palabra (mudez, tartamudez). \nEn este grupo se encuentran personas que podrían presentar en el desarrollo de sus actividades cotidianas, diferentes grados de dificultad en la emisión de mensajes verbales."]
[]
["Antes de imprimir este documento… piense en el medio ambiente!"]
["Cualquier copia impresa de este documento se considera como COPIA NO CONTROLADA"]
[" LOS DATOS PROPORCIONADOS SERÁN TRATADOS DE ACUERDO A LA POLÍTICA DE TRATAMIENTO DE DATOS PERSONALES DEL ICBF Y A LA LEY 1581 DE 2012"]
[null,null,"PROCESO\nPROMOCIÓN Y PREVENCIÓN\n\nFORMATO FICHA DE CARACTERIZACIÓN PARA LOS SERVICIOS DE ATENCIÓN A LA PRIMERA INFANCIA",null,null,"F23.MO12.PP","2021-02-08"]
[null,null,null,null,null,"Versión 2","Página 5 de 37"]
[null,null,null,null,null,"Clasificación de la Información:\nPública"]
[]
["TABLA 1. Categorías de Discapacidad (continuación)"]
["Ítem","Categoría de discapacidad","Definición"]
[11,"Piel, pelo y uñas** ","En esta categoría se ubican aquellas personas que pueden presentar alteraciones en: \n- Funciones de protección de la piel, pigmentación, calidad de la piel, de aislamiento de la piel, formación de callosidades, endurecimiento. \n- Funciones reparadoras de la piel en referencia a formación de costras, cicatrización, magulladuras y formación de queloides. \n- Funciones relacionadas con el sudor, funciones glandulares de la piel y olor corporal. \n- Sensaciones relacionadas con la piel tales como picor, sensación de quemazón o de hormigueo, sensación de pinchazos y de algo que se arrastra sobre la piel. \n- Funciones de protección, pigmentación y la apariencia del pelo y las uñas. \nEn esta categoría se ubican personas que presentan algún grado de dificultad en el desarrollo de sus actividades cotidianas, o que experimentan en algunas ocasiones por su aspecto físico, restricción en la participación social. "]
["** Estas categorías de discapacidad no se encuentran contempladas en la Resolución 583 de 2018 del Ministerio de Salud y la Protección Social, pero continuaran en los sistemas de información del ICBF, toda vez que la resolución 246 de 2019 modificó el artículo 25 de la Resolución 583 de 2018, ampliando el periodo de transición para la expedición de la certificación de discapacidad cumpliendo los nuevos criterios a nivel nacional."]
[21,"Grupo étnico con el que se reconoce la familia de la niña o el niño: ","Seleccione una de las opciones si el padre, madre, cuidador o persona que realice la inscripción de la niña o niño, manifiesta que su familia  se auto reconoce como miembro de  algún grupo étnico definido como  “población indígena”, “población afrocolombiano”, “población negra” “población ROM/Gitano”, “población Raizal descendiente del Archipiélago de San Andrés, Providencia y Santa Catalina” “población palenquero”.\nNota: Debe marcar las opciones partiendo del libre auto reconocimiento y la pertenencia a una comunidad de origen del núcleo familiar, por tanto, debe preguntársele directamente al padre, madre cuidador o persona que realice la inscripción de la niña o niño , no depende en ningún caso del criterio de quien realiza el registro.\nDefiniciones Grupos étnicos:\n1. Población Indígena: Personas de origen amerindio, con características culturales que reconocen como propias del grupo y que le otorgan singularidad y revelan una identidad que la distingue de otros grupos, independientemente de que vivan en el campo o en la ciudad.\n2. Población Negra: Personas de ascendencia africana que se reconoce por sus rasgos físicos, que poseen una cultura propia, se identifica con una historia particular y tiene sus propias tradiciones y costumbres que revelan y conservan conciencia de identidad que las distinguen de otros grupos étnicos, independientemente de que vivan en el campo o en la ciudad.\n3. Población Afrocolombiana: Personas de raíces y descendencia histórica, étnica y cultural africana nacidos en Colombia; poseen algunos rasgos culturales que les da singularidad como grupo humano, comparten una tradición y conservan costumbres propias que revelan una identidad que la distinguen de otros grupos, independientemente de que vivan en el campo o en la ciudad.\n4. Población Raizal descendiente del Archipiélago de San Andrés, Providencia y Santa Catalina: Personas de rasgos culturales afro-angloantillanos, de fuerte identidad caribeña, que tiene características culturales propias entre las que se destaca su lengua “bandé” de base inglesa y mezcla con el idioma español. Natural del Archipiélago de San Andrés, Providencia y Santa Catalina."]
[null,null,"5. Población Gitano o Rrom: Personas del pueblo nómada de origen indio, que conservan sus rasgos culturales propios y mantienen su propia lengua llamada Romanés o Romaní. Sé es Rrom o gitano por derecho de nacimiento y se lleva la sangre gitana. Mediante el decreto 2957, del 6 de agosto de 2010, el Estado colombiano reconoce que los gitanos tienen una identidad propia y mantienen una conciencia étnica particular.\n6. Palenquero de San Basilio: Personas pertenecientes a la población afrocolombiana de San Basilio de Palenque, del municipio de Mahates, departamento de Bolívar, que tiene características culturales propias entre las que se destaca su lengua “creol” de sustrato español y mezcla con dialectos africanos. Declarados patrimonio inmaterial de la humanidad por la UNESCO.\n7. Ninguno: En caso de que el usuario o el grupo familiar no se autoreconoce con alguna de estas, seleccione esta opción."]
[]
["Antes de imprimir este documento… piense en el medio ambiente!"]
["Cualquier copia impresa de este documento se considera como COPIA NO CONTROLADA"]
[" LOS DATOS PROPORCIONADOS SERÁN TRATADOS DE ACUERDO A LA POLÍTICA DE TRATAMIENTO DE DATOS PERSONALES DEL ICBF Y A LA LEY 1581 DE 2012"]
[null,null,"PROCESO\nPROMOCIÓN Y PREVENCIÓN",null,null,"F23.MO12.PP","2021-02-08"]
[null,null,"FORMATO FICHA DE CARACTERIZACIÓN PARA LOS SERVICIOS DE ATENCIÓN A LA PRIMERA INFANCIA",null,null,"Versión 2","Página 6 de 37"]
[null,null,null,null,null,"Clasificación de la Información:\nPública"]
[]
[22,"¿Qué lengua o lenguas utilizan para comunicarse con el niño o la niña? :","Registre la lengua o lenguas que en el entorno familiar se utilizan para comunicarse con el usuario-a. Tenga en cuenta que la lengua hace referencia a un sistema de signos lingüísticos, conformado en la interacción comunicativa y cuyo fin es la comunicación misma. En ese sentido, la lengua es un sistema convencional de signos utilizados por los grupos sociales para comunicarse entre sus miembros. Se llama lengua materna de una persona, a la o las lengua(s) que esta persona ha adquirido en su infancia, en el curso del proceso de perfeccionamiento y adquisición del lenguaje que todo niño o niña realiza espontáneamente y en forma natural, durante sus usuales interacciones sociales en el entorno familiar y en la comunidad.\nEn Colombia, se hablan 70 lenguas: el castellano y 69 lenguas maternas. Entre ellas 65 son lenguas indígenas, 2 lenguas criollas (palenquero de San Basilio y la de las islas de San Andrés  y Providencia - creole),  la Romaní o Romaníes del pueblo Room – Gitano y la lengua de señas colombiana.\nOtras de las formas de comunicación se pueden categorizar en: \n• Gestos y señas naturales: hace referencia al código manual o gestual empleado para establecer comunicación con el niño o la niña, quien presenta dificultades en su interacción oral o que presenta una discapacidad auditiva\n• Lengua de Señas colombiana: Consiste en el uso de los códigos manuales y gestuales propios de la población sorda y que pueden estar presente en el usuario-a y sus familias.\nLa Ley 1381 de 2010 o Ley de Lenguas, indica que Las lenguas nativas de Colombia constituyen parte integrante del patrimonio cultural inmaterial de los pueblos que las hablan, y demandan por lo tanto una atención particular del Estado y de los poderes públicos para su protección y fortalecimiento. La pluralidad y variedad de lenguas es una expresión destacada de la diversidad cultural y étnica de Colombia.\nLas opciones son:"]
[null,null,"0. No aplica\n1. Castellano\n2. Lenguas Criolla Palenquero de San Basilio\n3. Lenguas Criolla – Creole\n4. Lengua Romaní\n5. Lengua de señas Colombiana\n6. Lengua de señas y gestos\n7.  Achagua\n8.  Andoque\n9.  Awapit\n10.  Bará\n11.  Barasano\n12.  Barí\n13.  Ara\n14.  Bora\n15.  Cabiyari\n16.  Carapana\n17.  Carijona\n18.  Cocama\n19.  Cofán\n20.  Cuiba\n21.  Curripaco\n22.  Damana\n23.  Desano\n24.  Embera\n25.  Ette\n26.  Naka","24.  Embera\n25.  Ette\n26.  Naka\n27.  Hitnu\n28.  Guayabero\n29.  Ika\n30.  Inga\n31.  Kakua\n32.  Kamsá\n33.  Kichwa\n34.  Kogui\n35.  Koreguaje\n36.  Kubeo\n37.  Kuna\n38.  Tule\n39.  Macuna\n40.  Miraña\n41.  Muinane\n42.  Namtrik\n43.  Nasa-Yuwe\n44.  Nonuya\n45.  Nukak\n46.  Ocaina\n47.  Piapoco\n48.  Piaroa",null,"50.  Pisamira\n51.  Puinave\n52.  Sáliba\n53.  Sikuani\n54.  Siona\n55.  Siriano\n56.  Taiwano\n57.  Tanimuca\n58.  Tariano\n59.  Tatuyo\n60.  Tikuna\n61.  Tinigua\n62.  Tucano\n63.  Tucuná\n64.  Tuyuca\n65.  Uitoto\n66.  Uwa\n67.  Wanano\n68.  Wayuunaiki\n69.  Wounaan\n70.  Yagua\n71.  Yanuro\n72.  Yuhup\n73.  Yukpa\n74.  Yuruti\n","        75. Otro"]
[]
[]
["Antes de imprimir este documento… piense en el medio ambiente!"]
["Cualquier copia impresa de este documento se considera como COPIA NO CONTROLADA"]
[" LOS DATOS PROPORCIONADOS SERÁN TRATADOS DE ACUERDO A LA POLÍTICA DE TRATAMIENTO DE DATOS PERSONALES DEL ICBF Y A LA LEY 1581 DE 2012"]
[null,null,"PROCESO\nPROMOCIÓN Y PREVENCIÓN\n\nFORMATO FICHA DE CARACTERIZACIÓN PARA LOS SERVICIOS DE ATENCIÓN A LA PRIMERA INFANCIA",null,null,"F23.MO12.PP","2021-02-08"]
[null,null,null,null,null,"Versión 2","Página 7 de 37"]
[null,null,null,null,null,"Clasificación de la Información:\nPública"]
[]
["B. Condiciones habitacionales"]
[23,"¿La niña o el niño duerme en?:","Seleccione la opción que corresponda de acuerdo con los criterios que se describen a continuación:\n1. Hamaca: Puede referirse a diferentes objetos según la región, sin embargo, se define hamaca, como red alargada fabricada con un tejido resistente, que se fija a dos soportes firmes para quedar colgada y servir como columpio o cama.\n2. Cama: Pieza de mobiliario de distintos materiales “madera, hierro” sobre la cual se coloca un colchón, una o más almohadas, sábanas y ropa de abrigo en la que permite tomar descansos acostándose sobre ella.\n3. Colchoneta: Término que se emplea para nombrar a un colchón de escaso grosor y alargado, que puede utilizarse para realizar actividad física, asiento, cama o para llevar de camping.\n4. Estera: Pieza de tejido que se utiliza para cubrir el suelo y los materiales más utilizados son los juncos o palma.\n5. Cuna: Cama pequeña con bordes elevados o barandillas en la que duermen los bebés y los niños pequeños; generalmente se puede mecer.\n6. Plancha: Termino utilizado en el contexto carcelario para nombrar a la pieza de cemento utilizado para dormir.\n7. Otro: Indicar otras formas como, por ejemplo: cobijas, piso, sofá cama, entre otros, en el campo habilitado para ello."]
[24,"¿La niña o el niño duerme con adultos en la misma habitación?: ","Seleccione la opción que corresponda teniendo en cuenta que las siguientes respuestas:\nSI: Cuando los niños y niñas en primera infancia comparten la habitación donde duermen con uno o más adultos.\nNO: Cuando los niños y niñas en primera infancia duermen en una habitación aparte de los adultos."]
[25,"¿La niñas o el niño duerme con adultos en la misma cama?:","Seleccione la opción que corresponda teniendo en cuenta que las siguientes respuestas:\nSI: Indica sí los niños y niñas en primera infancia comparten la cama donde duermen con uno o más adultos.\nNO: Cuando los niños y niñas en primera infancia duermen en una cama diferente de la de los adultos. "]
["C. Atenciones en salud"]
["C1 Validación servicios de salud"]
[26,"¿La niña o niño se encuentra afiliado (a) al Sistema General de Seguridad Social en Salud?:","Seleccione una única respuesta:\nAfiliado: Cuando el usuario tiene soporte físico o digital de la EPS en la que se encuentra afiliado.\nNo afiliado: Cuando hay ausencia del soporte de afiliación. \nRecuerde que el soporte también puede ser generado por la UDS/UCA a través del sitio web de la Base de Datos Única de Afiliados BDUA del Sistema General de Seguridad Social en Salud BDUA-SGSSS . \nhttps://www.adres.gov.co/BDUA/Consulta-Afiliados-BDUA\nNota: En caso que esta respuesta sea afirmativa, pasar a la pregunta No. 28."]
[27,"En caso de no estar afiliado al Sistema General de Seguridad Social en Salud ¿Cuál es la razón? ","En caso que, la respuesta anterior sea negativa, seleccione uno de los motivos por los cuales el usuario NO cuenta con la afiliación al Sistema General de Seguridad Social en Salud.\n1. En tramite\n2. Falta de dinero\n3. No sabe que debe afiliarse\n4. No le interesa\n5. No hay entidad cercana\n6. Otra\nEn caso de seleccionar la opción \"6. Otra\", describa de manera breve las razones que han llevado a que el usuario no cuente con la afiliación efectiva al Sistema General de Seguridad Social en Salud, en el campo habilitado para ello."]
[28,"¿La niña o niño cuenta con el esquema de vacunación completo, según la edad?: ","Solicite al entrevistado una copia del carné de vacunación y verifique si este se encuentra al día de acuerdo con la edad del usuario. \nSeleccione una única respuesta:\nEsquema completo: Cuando cuenta con soporte de aplicación de las vacunas y estan completas según la edad.\nEsquema incompleto: Cuando no tiene aplicación de vacunas o a pesar de presentar soporte no estan completas según la edad.\nEs importante tener en cuenta que, está verificación también se puede hacer a través del sitio web de la secretaría de salud de su municipio.\nNota: En caso que esta respuesta sea afirmativa, pasar a la pregunta No. 30"]
["Antes de imprimir este documento… piense en el medio ambiente!"]
["Cualquier copia impresa de este documento se considera como COPIA NO CONTROLADA"]
[" LOS DATOS PROPORCIONADOS SERÁN TRATADOS DE ACUERDO A LA POLÍTICA DE TRATAMIENTO DE DATOS PERSONALES DEL ICBF Y A LA LEY 1581 DE 2012"]
[null,null,"PROCESO\nPROMOCIÓN Y PREVENCIÓN\n\nFORMATO FICHA DE CARACTERIZACIÓN PARA LOS SERVICIOS DE ATENCIÓN A LA PRIMERA INFANCIA",null,null,"F23.MO12.PP","2021-02-08"]
[null,null,null,null,null,"Versión 2","Página 8 de 37"]
[null,null,null,null,null,"Clasificación de la Información:\nPública"]
[]
[29,"En caso de que no contar con el esquema de vacunación completo según la edad de la niña o el niño, ¿Cuál es la razón?: ","En caso que, la respuesta anterior sea negativa, seleccione uno de los motivos por los cuales el usuario NO cuenta con el esquema de vacunación completo.\n1. Falta de dinero\n2. No sabe que debe vacunarse\n3. No le interesa\n4. Pertenece a movimiento anti vacunas\n5. No hay entidad cercana\n6. Motivos religiosos\n7. Otra\nEn caso de seleccionar la opción \"7. Otra\", describa de manera breve las razones que han llevado a que el usuario no cuente con el esquema de vacunación, en el campo habilitado para ello."]
[" Si la niña o el niño es mayor de 6 meses, contestar las siguientes preguntas (No. 30 - 33). De lo contrario pasar a la pregunta 34."]
[30,"Si la niña o el niño es mayor de 6 meses ¿Ha tenido atención en salud bucal?: ","Teniendo en cuenta que, en la resolución 3280 de 2018 se especifica en el “Esquema de intervenciones/atenciones en salud individuales para niños y niñas en primera infancia” que la atención en salud bucal por un profesional de odontología inicia desde los 6 meses. Confirme con la familia o el entrevistado si el usuario ha recibido esta atención. \nSeleccione una única respuesta. \n- Con atención salud bucal\n- Sin atención en salud bucal\nNota: En caso que esta respuesta sea afirmativa, pasar a la pregunta No.32."]
[31,"En caso de no contar con la atención en la salud bucal ¿Cuál es el motivo?: ","En caso que, la respuesta anterior sea negativa, seleccione uno de los motivos por los cuales el usuario NO cuenta con atención en salud bucal.\n1. Falta de dinero\n2. No sabe la utilidad de esta valoración\n3. No le interesa\n4. No hay entidad cercana\n5. Motivos religiosos\n6. Otro\nEn caso de seleccionar la opción \"6. Otro\", describa de manera breve las razones que han llevado a que el usuario no cuente con atención en salud bucal, en el campo habilitado para ello."]
[32,"¿La niña o el niño ha recibido valoración de la salud auditiva y comunicativa?:","Solicite a la familia un certificado o soporte reciente, con el cual se pueda constatar que el usuario no tiene alteraciones en los oídos. Seleccione una unica respuesta:\n- Con valoración auditiva\n- Sin valoración auditiva\nNota: En caso que esta respuesta sea afirmativa, pasar a la pregunta No.34.\n"]
[33,"En caso de no contar con valoración de salud auditiva y comunicativa ¿Cuál es el motivo?","En caso que, la respuesta anterior sea negativa, seleccione uno de los motivos por los cuales el usuario NO cuenta con valoración auditiva y comunicativa:\n1. Falta de dinero\n2. No sabe la utilidad de esta valoración\n3. No le interesa\n4. No hay entidad cercana\n5. Motivos religiosos\n6. Otro\nEn caso de seleccionar la opción \"6. Otro\", describa de manera breve las razones que han llevado a que el usuario no cuente con valoración auditiva y comunicativa, en el campo habilitado para ello."]
[]
["Antes de imprimir este documento… piense en el medio ambiente!"]
["Cualquier copia impresa de este documento se considera como COPIA NO CONTROLADA"]
[" LOS DATOS PROPORCIONADOS SERÁN TRATADOS DE ACUERDO A LA POLÍTICA DE TRATAMIENTO DE DATOS PERSONALES DEL ICBF Y A LA LEY 1581 DE 2012"]
[null,null,"PROCESO\nPROMOCIÓN Y PREVENCIÓN\n\nFORMATO FICHA DE CARACTERIZACIÓN PARA LOS SERVICIOS DE ATENCIÓN A LA PRIMERA INFANCIA",null,null,"F23.MO12.PP","2021-02-08"]
[null,null,null,null,null,"Versión 2","Página 9 de 37"]
[null,null,null,null,null,"Clasificación de la Información:\nPública"]
[]
["Si la niña o el niño es mayor de 3 años, contestar la siguiente pregunta (No. 34). De lo contrario pasar a la pregunta 35."]
[34,"Si la niña o niño es mayor de (3) tres años ¿Ha recibido valoración de la salud visual?:","Solicite a la familia un certificado o soporte reciente, con el cual se pueda constatar que el usuario no tiene alteraciones de la visión. \nOpciones de respuesta:\nSI\nNO"]
[35,"¿La niña o niño es alérgico a algún medicamento o alimento?: ","Para indagar lo relacionado con esta pregunta, es importante especificar si a la fecha el usuario ha presentado síntomas como hormigueo o picazón en la boca, hinchazón en los labios/cara/lengua/garganta, dificultad para respirar, dolor abdominal, diarrea, vomito, mareos o desmayos, que no estén relacionados con el periodo de enfermedad sino con el momento de comer algún alimento o tomar un medicamento. \nSeleccionar una única respuesta:\nSI\nNO"]
[36,"38. Si la respuesta anterior es SI, indique el medicamento o alimento al cual es alérgico: ","Indague con el entrevistado o la familia el nombre del alimento o medicamento al cual produce alguno o varios de los síntomas mencionados en el ítem anterior. Es importante que en esta pregunta describa los signos de alarma o alerta a los cuales se debe estar atento en la unidad."]
["C2 Valoración integral en salud"]
[37,"La niña o niño ¿cuenta con la valoración integral del desarrollo en salud según la edad?: ","Verificar con el entrevistado la constancia o soporte, físico o digital, en las que el usuario:\nSI: Recibió valoración integral en salud o consulta de crecimiento y desarrollo. \nNO: En el caso que la familia o el entrevistado desconozca la información o no tenga el soporte."]
[38,"Si la niña o niño cuenta con valoración integral en salud, indique la fecha de la última cita a la que asistió ","Indague con la familia si recientemente la niña o el niño asistió a control de crecimiento y desarrollo y digite la fecha de esta valoración, en el formato Día/Mes/año; siempre usando dos dígitos y el año con cuatro dígitos. (Ejemplo: 01/02/2020) Recuerde tener a la mano los tiempos de la valoración integral en salud como lo especifica la resolución 3280 de 2018, para tener en cuenta los tiempos en los que debe asistir el usuario según la edad."]
[39,"En caso de que no contar con la valoración integral del desarrollo en salud según la edad de la niña o el niño, ¿Cuál es la razón?:","En caso que, la respuesta No. 37 sea negativa, seleccione uno de los motivos por los cuales el usuario NO cuenta con valoración integral en salud:\n1. Falta de dinero\n2. No sabe que debe recibir esta atención\n3. No le interesa\n4. No hay entidad cercana\n5. Otro\nEn caso de seleccionar la opción \"5. Otro\", describa de manera breve las razones que han llevado a que el usuario no cuente con valoración integral en salud, en el campo habilitado para ello."]
["D. Lactancia materna y Alimentación Complementaria"]
["D1 Niña/Niño menor de 6 meses"]
["Si la niña o el niño es menor de 6 meses, contestar las siguientes preguntas (No. 40 - 44). De lo contrario pasar a la pregunta 45."]
[40,"¿La niña o el niño Recibe leche materna?: ","Indague con la familia o el entrevistado, si la niña o el niño a la fecha es alimentado con leche materna a lo largo del día. Recuerde que este alimento puede ser suministrado a través de diferentes medios tasa, pocillo, biberón, cuchara, etc.\nSelección de unica respuesta:\n- Si recibe leche materna\n- No recibe leche materna\nNota: En caso que esta respuesta sea afirmativa, pasar a la pregunta No.42."]
[]
[]
[]
["Antes de imprimir este documento… piense en el medio ambiente!"]
["Cualquier copia impresa de este documento se considera como COPIA NO CONTROLADA"]
[" LOS DATOS PROPORCIONADOS SERÁN TRATADOS DE ACUERDO A LA POLÍTICA DE TRATAMIENTO DE DATOS PERSONALES DEL ICBF Y A LA LEY 1581 DE 2012"]
[null,null,"PROCESO\nPROMOCIÓN Y PREVENCIÓN\n\nFORMATO FICHA DE CARACTERIZACIÓN PARA LOS SERVICIOS DE ATENCIÓN A LA PRIMERA INFANCIA",null,null,"F23.MO12.PP","2021-02-08"]
[null,null,null,null,null,"Versión 2","Página 10 de 37"]
[null,null,null,null,null,"Clasificación de la Información:\nPública"]
[]
[41,"Si la respuesta anterior es negativa ¿cuál es el motivo?","En caso que, la respuesta anterior sea negativa, seleccione uno de los motivos por los cuales el usuario NO recibe leche materna:\n1. Empleo\n2. Ausencia de la madre\n3. Dificultades en el amamantamiento\n4. Falta de motivación\n5. No sabe como hacerlo\n6. Tratamiento médico\n7. Presión familiar\n8. Otro\nEn caso de seleccionar la opción \"8. Otro\", describa de manera breve las razones, en el campo habilitado para ello."]
[42,"Es alimentado exclusivamente con leche materna (no se le ofrece ningún otro alimento o bebida, incluyendo agua y/o leche de fórmula): ","Indague con la familia cual es la alimentación más frecuente que recibe el usuario en casa. Realice preguntas como: ¿acostumbra a darle agua al niño o niña? ¿utiliza alimentos en polvo como leche, arroz u otros alimentos de fácil consumo para preparar la comida del niño o niña? ¿invierte dinero para compra de alimentos de consumo exclusivo de la niña o el niño?\nSelección de unica respuesta:\n- Si, exclusivamente leche materna\n- No, recibe otros alimentos\nNota: En caso que esta respuesta sea afirmativa, a terminado de registrar la información correspondiente al módulo 1."]
[43,"Si la respuesta anterior es negativa ¿a qué edad le ofreció alimentos diferentes a la leche materna (incluyendo agua y/o leche de fórmula) responda en meses:  ","A partir de la respuesta anterior indague con la familia ¿Qué edad tenía la niña o niño cuando consumió su primer alimento? Tenga en cuenta que las opciones de respuesta se encuentran en meses:\n1. (0 meses)\n2. (1 mes)\n3. (2 meses)\n4. (3 meses)\n5. (4 meses)\n6. (5 meses)"]
[44,"¿Cuál fue el primer alimento que proporcionó diferente a leche materna o de formula? ","De acuerdo con cada caso y si el niño o niña ya se encuentra recibiendo alimentos diferentes a la leche materna, describa el nombre del primer alimento con el cual se inició. Tenga en cuenta que, si se proporcionaron preparaciones como sopas o mezclas de varios alimentos escriba el alimento o ingrediente principal (Ejemplo: Sopa de pollo, el ingrediente principal es el pollo; arroz de fideos, el ingrediente principal es el arroz).\nPregunta abierta."]
["D2 Niña/Niño entre 7 meses y 2 años"]
["Si la niña o el niño tiene entre 7 meses y 2 años, contestar las siguientes preguntas (No. 45 - 48). De lo contrario continúe con el registro del módulo 3."]
[45,"¿La niña o el niño recibió leche materna de forma exclusiva?: ","Indague con la familia o el entrevistado, si la niña o el niño recibió leche materna exclusiva en algún momento de 0 a 6 meses. Recuerde que este alimento pudo ser suministrado a través de diferentes medios tasa, pocillo, biberón, cuchara, etc.\nSelección de unica respuesta:\n- Si recibió leche materna exclusiva\n- No recibió leche materna exclusiva\nNota: En caso que esta respuesta sea afirmativa, pasar a la pregunta No.47."]
[46,"Si la respuesta anterior es negativa, ¿ cuál fue el motivo?","En caso que, la respuesta anterior sea negativa, seleccione uno de los motivos por los cuales el usuario NO recibió leche materna:\n1. Empleo\n2. Ausencia de la madre\n3. Dificultades en el amamantamiento"]
[]
["Antes de imprimir este documento… piense en el medio ambiente!"]
["Cualquier copia impresa de este documento se considera como COPIA NO CONTROLADA"]
[" LOS DATOS PROPORCIONADOS SERÁN TRATADOS DE ACUERDO A LA POLÍTICA DE TRATAMIENTO DE DATOS PERSONALES DEL ICBF Y A LA LEY 1581 DE 2012"]
[null,null,"PROCESO\nPROMOCIÓN Y PREVENCIÓN\n\nFORMATO FICHA DE CARACTERIZACIÓN PARA LOS SERVICIOS DE ATENCIÓN A LA PRIMERA INFANCIA",null,null,"F23.MO12.PP","2021-02-08"]
[null,null,null,null,null,"Versión 2","Página 11 de 37"]
[null,null,null,null,null,"Clasificación de la Información:\nPública"]
[]
[null,null,"4. Falta de motivación\n5. No sabe como hacerlo\n6. Tratamiento médico\n7. Presión familiar\n8. Otro\nEn caso de seleccionar la opción \"8. Otro\", describa de manera breve las razones, en el campo habilitado para ello."]
[47,"¿A qué edad le ofreció alimentos diferentes a la leche materna?: ","A partir de la respuesta anterior indague con la familia ¿Qué edad tenía la niña o niño cuando consumió su primer alimento? Tenga en cuenta que las opciones de respuesta se encuentran en meses (De 0 a 12 meses)."]
[48,"¿Cuál fue el primer alimento que proporciono diferente a leche materna?: ","De acuerdo con cada caso y si el niño o niña ya se encuentra recibiendo alimentos diferentes a la leche materna, describa el nombre del primer alimento con el cual se inició. Tenga en cuenta que, si se proporcionaron preparaciones como sopas o mezclas de varios alimentos escriba el alimento o ingrediente principal (Ejemplo: Sopa de pollo, el ingrediente principal es el pollo; arroz de fideos, el ingrediente principal es el arroz).\nPregunta abierta"]
[]
["MÓDULO 2 MUJER GESTANTE"]
["E. Variables básicas de identificación de la mujer gestante"]
[7,"¿La usuaria es mayor de 14 años de edad?:","Seleccione si la usuaria es o no menor de 14 años de edad, tome la información del documento de identidad de la mujer gestante.\nOpciones de respuesta:\nSI\nNO\nEn caso de que la mujer gestante sea menor de 14 años de edad, tenga en cuenta las orientaciones dadas en el “Protocolo de Actuación ante alerta de amenaza o vulneración de derechos en los servicios de atención del ICBF” y las actuaciones a seguir para la activación de la ruta integral para la violencia sexual de niños, niñas y adolescentes. "]
[8,"Nombres: ","Escriba el o los nombres completos del usuario/a inscrito en la Unidad de Servicio, en MAYÚSCULAS."]
[9,"Apellidos:","Escriba los apellidos completos del usuario-a inscrito en la Unidad de Servicio, en MAYÚSCULAS."]
[10,"Tipo de Documento de identidad: ","Seleccione el tipo documento de identidad del usuario-a. En caso de no contar con el documento de identidad,indicar la opción No tiene. Recuerde que, para el registro de esta pregunta, se debe solicitar el documento de identidad.\nRegistre una opción de respuesta entre las opciones planteadas, estas son:\n1. Tarjeta de Identidad: Documento de identificación para hombres y mujeres mayores de 7 años y menores de 18 años.\n2. Cédula de ciudadanía: Documento de identificación para hombres y mujeres mayores de 18 años de edad.\n3. Cédula de Extranjería: Cedula (mayores de edad) y la tarjeta (menores de edad) de extranjería, son los documentos de identificación de todos los extranjeros residentes en Colombia, temporales o permanentes. \n4. Pasaporte: Sólo para extranjeros sin cédula de ciudadanía.\n5. Permiso especial de permanencia (PEP): Documento el cual se otorga únicamente a los nacionales venezolanos.\n6. Sin información: No posee la información sobre el documento de identidad"]
[11,"Número de documento:","Escriba / Digite el número de documento de identidad de acuerdo con el tipo seleccionado anteriormente. Sin puntos, guiones o comas."]
[12,"Fecha de nacimiento : ","Indique la fecha de nacimiento de la o el usuario, coloque el número del día y mes, con dos dígitos cada uno (Ejemplo: el nueve de marzo se escribe 09-03), y el año en cuatro dígitos (Ejemplo: 2000). Esta información debe ser tomada del documento de identidad de la mujer gestante."]
[13,"Edad:","Especificar la edad del usuario-a en años y meses (Ejemplo: 24 años)"]
[]
[]
[]
["Antes de imprimir este documento… piense en el medio ambiente!"]
["Cualquier copia impresa de este documento se considera como COPIA NO CONTROLADA"]
[" LOS DATOS PROPORCIONADOS SERÁN TRATADOS DE ACUERDO A LA POLÍTICA DE TRATAMIENTO DE DATOS PERSONALES DEL ICBF Y A LA LEY 1581 DE 2012"]
[null,null,"PROCESO\nPROMOCIÓN Y PREVENCIÓN\n\nFORMATO FICHA DE CARACTERIZACIÓN PARA LOS SERVICIOS DE ATENCIÓN A LA PRIMERA INFANCIA",null,null,"F23.MO12.PP","2021-02-08"]
[null,null,null,null,null,"Versión 2","Página 12 de 37"]
[null,null,null,null,null,"Clasificación de la Información:\nPública"]
[]
[14,"Sexo:","Registre el sexo según con lo manifestado por e/la entrevistado-a, de acuerdo con las opciones (Mujer, Hombre o Intersexual). Tenga en cuenta que la categoría Sexo hace se define como “las características genéticas, endocrinas y morfológicas del cuerpo. Las categorías utilizadas para clasificar estas características en los seres humanos son hombre, mujer e intersexual”, de acuerdo con lo establecido por el SIVIGE  (2016:71). Las opciones de respuesta son las siguientes:\n1. Mujer: “Personas cuyas características genéticas, morfológicas y endocrinas le identifican como hembra, según la clasificación biológica de la especie humana” (SIVIGE, 2016:71). \n2. Hombre: “Personas cuyas características genéticas, morfológicas y endocrinas le identifican como macho, según la clasificación biológica de la especie humana” (SIVIGE, 2016:71). \n3. Intersexual: De acuerdo con la oficina de las Naciones Unidas, la intersexualidad integra a las personas que poseen, de manera simultánea, características genéticas de hombres y mujeres y se ha definido como “todas aquellas situaciones en las que el cuerpo sexuado de un individuo varía respecto al estándar de corporalidad femenina o masculina culturalmente vigente”. El SIVIGE lo define como todas las “personas que presentan simultáneamente características genéticas, congénitas, endocrinas o morfológicas de hembra y macho” (SIVIGE, 2016:71). "]
[15,"Género:","Registre esta variable de acuerdo con lo manifestado por la mujer gestante, de acuerdo con las opciones. La variable género o identidad de género se define como “el auto reconocimiento que una persona hace de sí misma basada a partir de la construcción social, histórica y cultural de lo que se ha definido [debe ser] lo femenino, lo masculino o la transición entre ambos” (SIVIGE, 2016;73). Las Opciones de respuesta son: \n1. Femenino: “Es la identidad conformada por un conjunto de características inscritas en lo que la expectativa colectiva ha construido social, histórica y culturalmente respecto a las mujeres\" (SIVIGE, 2016:73).\n2. Masculino: “Es una identidad conformada por un conjunto de características inscritas en lo que la expectativa colectiva ha construido social, histórica y culturalmente respecto a los hombres” (SIVIGE, 2016:73). \n3. Transgénero/trans: “Es la identidad en la que no coincide el sexo biológico con las características inscritas en lo que la expectativa colectiva ha construido social, histórica y culturalmente como femenino o masculino (SIVIGE, 2016:73). Una persona trans puede construir su identidad de género independientemente de intervenciones quirúrgicas o tratamientos médicos. Dentro de estas se encuentran: (i) las personas travestis quienes expresan su identidad de género ya sea de manera permanente o transitoria mediante la utilización de prendas de vestir y actitudes del género opuesto que social y culturalmente se asigna a su sexo biológico. Ello puede incluir la modificación o no de su cuerpo; (ii) personas transformistas, quienes representan de forma ocasional y/o artística personajes del sexo opuesto; (iii) personas transexuales, quienes se sienten y se conciben a sí mismas como pertenecientes al género opuesto al que social y culturalmente se les asignó al nacer y que optan por una intervención médica (hormonal, quirúrgica o ambas) para adecuar su apariencia física a su realidad psíquica, espiritual y social (Defensoría del Pueblo de Colombia, 2018)."]
[null,null,"Hombre trans: Persona que al nacer fue asignado como mujer en razón a su genitalidad, pero construye una expresión de género desde la masculinidad (Defensoría del Pueblo de Colombia, 2018). \nMujer trans: Persona que al nacer fue asignado como hombre en razón a su genitalidad, pero construye una expresión de género desde lo femenino (Defensoría del Pueblo de Colombia, 2018). \n4. Otro: Como por ejemplo una persona andrógina quien, o bien no tienen un sexo definido (intersex) o bien no está interesada en clasificarse dentro de lo típicamente femenino o masculino, es decir, no aparenta físicamente de forma clara pertenecer al género con el que nació. \n5. No desea responder\n6. Menor de 14 años - No aplica: Tenga en cuenta que de acuerdo con lo estipulado por el SIVIGE (2016) esta categoría aplica únicamente para personas mayores de 14 años. Lo que significa que no se hará la pregunta a personas menores de esta edad. \n"]
[]
[]
[]
[]
[]
["Antes de imprimir este documento… piense en el medio ambiente!"]
["Cualquier copia impresa de este documento se considera como COPIA NO CONTROLADA"]
[" LOS DATOS PROPORCIONADOS SERÁN TRATADOS DE ACUERDO A LA POLÍTICA DE TRATAMIENTO DE DATOS PERSONALES DEL ICBF Y A LA LEY 1581 DE 2012"]
[null,null,"PROCESO\nPROMOCIÓN Y PREVENCIÓN\n\nFORMATO FICHA DE CARACTERIZACIÓN PARA LOS SERVICIOS DE ATENCIÓN A LA PRIMERA INFANCIA",null,null,{"$f":"$F$1","v":"F23.MO12.PP"},"2021-02-08"]
[null,null,null,null,null,"Versión 2","Página 13 de 37"]
[null,null,null,null,null,"Clasificación de la Información:\nPública"]
[]
[16,"Orientación sexual","Registre esta variable de acuerdo con lo manifestado por el entrevistado.\nLa Orientación Sexual de acuerdo con los principios de Yogyakarta (2006) se refiere a la “capacidad de cada persona de sentir una profunda atracción emocional, afectiva y sexual por personas de un género diferente al suyo, o de su mismo género, o de más de un género, así como la capacidad de mantener relaciones íntimas y sexuales con estas personas. \nOpciones de respuesta: \n1. Heterosexual: “Persona cuya atracción afectiva, erótica o sexual se dirige hacia personas de sexo distinto al suyo” (SIVIGE, 2016;72). \n2. Homosexual: “Persona cuya atracción afectiva, erótica o sexual se dirige hacia personas de su mismo sexo” (SIVIGE, 2016;71). \nLesbiana: Una mujer que se siente atraída física, romántica o emocionalmente por otras mujeres. \nHombre gay: Un hombre que se siente atraído física, romántica o emocionalmente por otros hombres. \n3. Bisexual: “Persona cuya atracción afectiva, erótica o sexual se dirige o materializa con personas de ambos sexos” (SIVIGE, 2016;71). \n4. Otro: Dentro de esta categoría pueden incluirse personas asexuales, definidas por el SIVIGE (2016;71) como aquellas que “reconoce y acepta que no siente atracción afectiva, erótica o sexual por otras personas”. O una persona pansexual quien siente atracción romántica y/o sexual hacia individuos independientemente de su género o sexo. \n"]
[null,null,"5. No desea responder \n6. Menor de 14 años - No aplica: Tenga en cuenta que de acuerdo con lo estipulado por el SIVIGE (2016) esta categoría aplica únicamente para personas mayores de 14 años. Lo que significa que no se hará la pregunta a personas menores de esta edad. \nPara algunas recomendaciones sobre las variables remítase a la Guía para el registro de las variables sexo, género y orientación sexual en los sistemas de información del ICBF. 2019."]
[17,"País de nacimiento:","Escriba / Digite el país de nacimiento del usuario-a. La información debe ser tomada del documento de identidad."]
[18,"Nacionalidad:","Hace referencia al vínculo jurídico que liga a una persona con un Estado que le reconoce como su nacional; por lo tanto, escriba o digite la nacionalidad o nacionalidades de acuerdo con sus documentos de identidad"]
[19,"Departamento de residencia:","Mencione el departamento donde reside la mujer gestante."]
[20,"Municipio de residencia:","Mencione el municipio donde reside el usuario-a."]
[21,"Estado civil:","Selección de única respuesta:\n1. Casada\n2. Unión Marital de Hecho\n3. Soltera\n4. Viuda\n5. Divorciada/Separada"]
[22,"Mujer gestante con discapacidad:","Seleccione la opción que indique si el usuario-a presenta o no alguna de las categorías de discapacidad.\nTenga en cuenta que la Discapacidad es una condición del ser humano que hace parte de las formas en que se manifiesta la diversidad. Se caracteriza por presentar variaciones o alteraciones transitorias o permanentes en el desarrollo de las niñas, niños y mujeres gestantes, las cuales pueden ser físicas, mentales, intelectuales o sensoriales, que inciden en la participación de las actividades de la vida diaria.\nOpciones de respuesta:\n1. SI\n2. NO\n"]
[23,"Categoría de discapacidad:","Si presenta discapacidad, seleccione la categoria de discapacidad que corresponda de acuerdo a la información de la Tabla 1. En caso que el usuario no tenga discapacidad, seleccionar la opción \"12. Ninguna\"."]
[]
["Antes de imprimir este documento… piense en el medio ambiente!"]
["Cualquier copia impresa de este documento se considera como COPIA NO CONTROLADA"]
[" LOS DATOS PROPORCIONADOS SERÁN TRATADOS DE ACUERDO A LA POLÍTICA DE TRATAMIENTO DE DATOS PERSONALES DEL ICBF Y A LA LEY 1581 DE 2012"]
[null,null,"PROCESO\nPROMOCIÓN Y PREVENCIÓN\n\nFORMATO FICHA DE CARACTERIZACIÓN PARA LOS SERVICIOS DE ATENCIÓN A LA PRIMERA INFANCIA",null,null,{"$f":"$F$1","v":"F23.MO12.PP"},"2021-02-08"]
[null,null,null,null,null,"Versión 2","Página 14 de 37"]
[null,null,null,null,null,"Clasificación de la Información:\nPública"]
[]
[24,"Grupo étnico con el que se reconoce la mujer gestante:","Seleccione una de las opciones si la mujer gestante da aceptación de reconocimiento de su identidad en algún grupo étnico definido como “población indígena”, “población afrocolombiano”, “población negra” “población ROM/Gitano”, “población Raizal descendiente del Archipiélago de San Andrés, Providencia y Santa Catalina” “población palenquero”.\nNota: Debe marcar las opciones partiendo del libre auto reconocimiento y la pertenencia a una comunidad de origen del núcleo familiar, por tanto, debe preguntársele directamente al padre, madre cuidador o persona que realice la inscripción de la niña o niño , no depende en ningún caso del criterio de quien realiza el registro.\nDefiniciones Grupos étnicos:\n1. Población Indígena: Personas de origen amerindio, con características culturales que reconocen como propias del grupo y que le otorgan singularidad y revelan una identidad que la distingue de otros grupos, independientemente de que vivan en el campo o en la ciudad.\n2. Población Negra: Personas de ascendencia africana que se reconoce por sus rasgos físicos, que poseen una cultura propia, se identifica con una historia particular y tiene sus propias tradiciones y costumbres que revelan y conservan conciencia de identidad que las distinguen de otros grupos étnicos, independientemente de que vivan en el campo o en la ciudad.\n3. Población Afrocolombiana: Personas de raíces y descendencia histórica, étnica y cultural africana nacidos en Colombia; poseen algunos rasgos culturales que les da singularidad como grupo humano, comparten una tradición y conservan costumbres propias que revelan una identidad que la distinguen de otros grupos, independientemente de que vivan en el campo o en la ciudad.\n4. Población Raizal descendiente del Archipiélago de San Andrés, Providencia y Santa Catalina: Personas de rasgos culturales afro-angloantillanos, de fuerte identidad caribeña, que tiene características culturales propias entre las que se destaca su lengua “bandé” de base inglesa y mezcla con el idioma español. Natural del Archipiélago de San Andrés, Providencia y Santa Catalina."]
[null,null,"5. Población Gitano o Rrom: Personas del pueblo nómada de origen indio, que conservan sus rasgos culturales propios y mantienen su propia lengua llamada Romanés o Romaní. Sé es Rrom o gitano por derecho de nacimiento y se lleva la sangre gitana. Mediante el decreto 2957, del 6 de agosto de 2010, el Estado colombiano reconoce que los gitanos tienen una identidad propia y mantienen una conciencia étnica particular.\n6. Palenquero de San Basilio: Personas pertenecientes a la población afrocolombiana de San Basilio de Palenque, del municipio de Mahates, departamento de Bolívar, que tiene características culturales propias entre las que se destaca su lengua “creol” de sustrato español y mezcla con dialectos africanos. Declarados patrimonio inmaterial de la humanidad por la UNESCO.\n7. Ninguno: En caso de que el usuario o el grupo familiar no se autoreconoce con alguna de estas, seleccione esta opción."]
[25,"¿Cuál es su lengua materna? ","Registre la lengua o lenguas que en el entorno familiar se utilizan para comunicarse con el usuario-a. Tenga en cuenta que la lengua hace referencia a un sistema de signos lingüísticos, conformado en la interacción comunicativa y cuyo fin es la comunicación misma. En ese sentido, la lengua es un sistema convencional de signos utilizados por los grupos sociales para comunicarse entre sus miembros. Se llama lengua materna de una persona, a la o las lengua(s) que esta persona ha adquirido en su infancia, en el curso del proceso de perfeccionamiento y adquisición del lenguaje que todo niño o niña realiza espontáneamente y en forma natural, durante sus usuales interacciones sociales en el entorno familiar y en la comunidad.\nEn Colombia, se hablan 70 lenguas: el castellano y 69 lenguas maternas. Entre ellas 65 son lenguas indígenas, 2 lenguas criollas (palenquero de San Basilio y la de las islas de San Andrés  y Providencia - creole),  la Romaní o Romaníes del pueblo Room – Gitano y la lengua de señas colombiana."]
[]
[]
[]
["Antes de imprimir este documento… piense en el medio ambiente!"]
["Cualquier copia impresa de este documento se considera como COPIA NO CONTROLADA"]
[" LOS DATOS PROPORCIONADOS SERÁN TRATADOS DE ACUERDO A LA POLÍTICA DE TRATAMIENTO DE DATOS PERSONALES DEL ICBF Y A LA LEY 1581 DE 2012"]
[null,null,"PROCESO \nPROMOCIÓN Y PREVENCIÓN\n\nFORMATO FICHA DE CARACTERIZACIÓN PARA LOS SERVICIOS DE ATENCIÓN A LA PRIMERA INFANCIA",null,null,{"$f":"$F$1","v":"F23.MO12.PP"},"2021-02-08"]
[null,null,null,null,null,"Versión 2","Página 15 de 37"]
[null,null,null,null,null,"Clasificación de la Información:\nPública"]
[]
[null,null,"Otras de las formas de comunicación se pueden categorizar en: \n• Gestos y señas naturales: hace referencia al código manual o gestual empleado para establecer comunicación con el niño o la niña, quien presenta dificultades en su interacción oral o que presenta una discapacidad auditiva\n• Lengua de Señas colombiana: Consiste en el uso de los códigos manuales y gestuales propios de la población sorda y que pueden estar presente en el usuario-a y sus familias.\nLa Ley 1381 de 2010 o Ley de Lenguas, indica que Las lenguas nativas de Colombia constituyen parte integrante del patrimonio cultural inmaterial de los pueblos que las hablan, y demandan por lo tanto una atención particular del Estado y de los poderes públicos para su protección y fortalecimiento. La pluralidad y variedad de lenguas es una expresión destacada de la diversidad cultural y étnica de Colombia.\nLas opciones son:"]
[null,null,"0. No aplica\n1. Castellano\n2. Lenguas Criolla Palenquero de San Basilio\n3. Lenguas Criolla – Creole\n4. Lengua Romaní\n5. Lengua de señas Colombiana\n6. Lengua de señas y gestos\n7.  Achagua\n8.  Andoque\n9.  Awapit\n10.  Bará\n11.  Barasano\n12.  Barí\n13.  Ara\n14.  Bora\n15.  Cabiyari\n16.  Carapana\n17.  Carijona\n18.  Cocama\n19.  Cofán\n20.  Cuiba\n21.  Curripaco\n22.  Damana\n23.  Desano\n24.  Embera\n25.  Ette\n26.  Naka","24.  Embera\n25.  Ette\n26.  Naka\n27.  Hitnu\n28.  Guayabero\n29.  Ika\n30.  Inga\n31.  Kakua\n32.  Kamsá\n33.  Kichwa\n34.  Kogui\n35.  Koreguaje\n36.  Kubeo\n37.  Kuna\n38.  Tule\n39.  Macuna\n40.  Miraña\n41.  Muinane\n42.  Namtrik\n43.  Nasa-Yuwe\n44.  Nonuya\n45.  Nukak\n46.  Ocaina\n47.  Piapoco\n48.  Piaroa",null,"50.  Pisamira\n51.  Puinave\n52.  Sáliba\n53.  Sikuani\n54.  Siona\n55.  Siriano\n56.  Taiwano\n57.  Tanimuca\n58.  Tariano\n59.  Tatuyo\n60.  Tikuna\n61.  Tinigua\n62.  Tucano\n63.  Tucuná\n64.  Tuyuca\n65.  Uitoto\n66.  Uwa\n67.  Wanano\n68.  Wayuunaiki\n69.  Wounaan\n70.  Yagua\n71.  Yanuro\n72.  Yuhup\n73.  Yukpa\n74.  Yuruti\n","        75. Otro"]
["F. Nivel educativo y actividad principal"]
[26,"¿Sabe leer y escribir?: ","Con esta pregunta se busca establecer el nivel de analfabetismo de una persona.\nSelección de única respuesta:\nSI\nNO"]
[27,"¿Actualmente estudia? ","Recuerde que una persona se considera asistiendo a escuela, colegio o universidad, cuando está matriculada a un centro de educación formal regular  o para adultos, y aunque presente ausencias temporales por enfermedad, licencia, vacaciones, u otra, se considera que SI asiste.\nSelección de única respuesta:\nSI\nNO"]
[]
["Antes de imprimir este documento… piense en el medio ambiente!"]
["Cualquier copia impresa de este documento se considera como COPIA NO CONTROLADA"]
[" LOS DATOS PROPORCIONADOS SERÁN TRATADOS DE ACUERDO A LA POLÍTICA DE TRATAMIENTO DE DATOS PERSONALES DEL ICBF Y A LA LEY 1581 DE 2012"]
[null,null,"PROCESO\nPROMOCIÓN Y PREVENCIÓN\n\nFORMATO FICHA DE CARACTERIZACIÓN PARA LOS SERVICIOS DE ATENCIÓN A LA PRIMERA INFANCIA",null,null,{"$f":"$F$1","v":"F23.MO12.PP"},"2021-02-08"]
[null,null,null,null,null,"Versión 2","Página 16 de 37"]
[null,null,null,null,null,"Clasificación de la Información:\nPública"]
[]
[28,"¿Cuál es su nivel más alto de escolaridad?: ","Seleccione el último nivel de estudios alcanzado dentro de la educación formal, teniendo en cuenta lo siguiente:\n1. Ninguno: El integrante del hogar no ha realizado ningún grado de estudios en el marco de la educación formal.\n2. Preescolar: Corresponde a la ofrecida al niño menor de seis (6) años, para su desarrollo integral en los aspectos biológico, cognoscitivo, sicomotriz, socio - afectivo y espiritual, a través de experiencias de socialización pedagógica y recreativas. (Ley 155. Art 15)\n3. Básica Primaria: comprende la educación básica conformada por cinco grados, que van de primero a quinto.\n4. Bachillerato: comprende la educación básica desde el grado sexto al grado noveno y media los grados décimo y undécimo.\n5. Normalista: Maestro que se gradúa de una escuela normal.\n6. Técnico: La educación técnico profesional es la modalidad de la educación secundaria y la educación superior responsable de la formación de técnicos medios y técnicos superiores en áreas ocupacionales específicas. También incluye estudios de educación no formal\n7. Técnologica: Es aquella que ofrece programas de formación en ocupaciones, programas de formación académica en profesiones o disciplinas y programas de especialización. (Ley 30 de 1993).\n8. Universitario: La educación profesional forma parte de la educación formal y está dirigida a los procesos de formación que conducen al desarrollo de profesiones.\n9. Posgrado: Hace referencia al ciclo de estudios posteriores al grado profesional, e incluyen las especializaciones, las maestrías y los doctorados."]
[29,"¿Cuál es su actividad principal en este momento?","Seleccione de la opción que corresponda para la mujer gestante.\n1. Trabajando: se define que la persona se encuentra trabajando cuando dedica la mayor parte de su tiempo a desarrollar una actividad relacionada con el intercambio de tiempo, conocimiento y/o fuerza por dinero.\n2. Buscando Trabajo: son las personas que habían tomado medidas concretas para buscar un empleo asalariado o independiente en las últimas cuatro semanas.\n3. Oficios del hogar: el o la integrante del hogar dedica la mayor parte de su tiempo a realizar actividades relacionadas con la limpieza de la vivienda, la preparación de alimentos y el cuidado de niños-as y/o adultos.\n4. Estudiando: una persona se considera asistiendo a la escuela u otra institución de enseñanza formal, cuando está matriculada en un centro de educación formal regular o para adultos y no se ha retirado, aún cuando esté ausente temporalmente por enfermedad, vacaciones u otra causa, aunque asista solamente parte del día.\n5. Rentista: Persona que cobra una renta por bienes que posee.\n6. Jubilado-a/pensionado-a: trabajador jubilado que recibe las prestaciones correspondientes de acuerdo con la legislación de cada país.\n7. Cuidador-a: Persona que ejerce el cuidado de un tercero.\n8. Privada de la libertad: Cuando una persona es encarcelada, puede decirse que se la ha privado de su libertad. La privación, en este caso, es legal. \n9. Sin actividad\n10. Otro\n"]
[30,"¿Si se encuentra trabajando, qué tipo de situación laboral presenta? ","Si la usuaria se encuentra trabajando, seleccione entre estas opciones:\n1. Empleado con contrato laboral: Contrato de trabajo es aquel por el cual una persona natural se obliga a prestar un servicio personal a otra persona, natural o jurídica, bajo la continuada dependencia o subordinación de la segunda y mediante remuneración. Código Sustantivo del trabajo. Artículo 22. \n2. Independiente: son personas que trabajan sin estar vinculadas a una empresa, es decir, no gozan de un contrato de trabajo sino de servicios\n3. No aplica:  Esta opción será utilizada o seleccionada, cuando la mujer gestante referencia que se encuentra en alguna de las situaciones de la pregunta anterior ubicadas en la lista desde el punto 2 hasta el 10.\n"]
[]
[]
["Antes de imprimir este documento… piense en el medio ambiente!"]
["Cualquier copia impresa de este documento se considera como COPIA NO CONTROLADA"]
[" LOS DATOS PROPORCIONADOS SERÁN TRATADOS DE ACUERDO A LA POLÍTICA DE TRATAMIENTO DE DATOS PERSONALES DEL ICBF Y A LA LEY 1581 DE 2012"]
[null,null,"PROCESO\nPROMOCIÓN Y PREVENCIÓN\n\nFORMATO FICHA DE CARACTERIZACIÓN PARA LOS SERVICIOS DE ATENCIÓN A LA PRIMERA INFANCIA",null,null,{"$f":"$F$1","v":"F23.MO12.PP"},"2021-02-08"]
[null,null,null,null,null,"Versión 2","Página 17 de 37"]
[null,null,null,null,null,"Clasificación de la Información:\nPública"]
[]
[31,"Ingresos mensuales promedio: ","Hace alusión al monto económico producto de los ingresos mensuales promedio de la mujer gestante independientemente de la actividad principal que desarrolle. En caso de que no cuente con ingresos diligencie No aplica"]
["G. Condiciones de habitabilidad"]
[32,"¿La mujer gestante dónde duerme?:","Seleccione la opción que corresponda de acuerdo con los criterios que se describen a continuación:\n1. Hamaca: Puede referirse a diferentes objetos según la región, sin embargo, se define hamaca, como red alargada fabricada con un tejido resistente, que se fija a dos soportes firmes para quedar colgada y servir como columpio o cama.\n2. Cama: Pieza de mobiliario de distintos materiales “madera, hierro” sobre la cual se coloca un colchón, una o más almohadas, sábanas y ropa de abrigo en la que permite tomar descansos acostándose sobre ella.\n3. Colchoneta: Término que se emplea para nombrar a un colchón de escaso grosor y alargado, que puede utilizarse para realizar actividad física, asiento, cama o para llevar de camping.\n4. Estera: Pieza de tejido que se utiliza para cubrir el suelo y los materiales más utilizados son los juncos o palma.\n5. Plancha: Termino utilizado en el contexto carcelario para nombrar a la pieza de cemento utilizado para dormir.\n6. Otro: Indicar otras formas como, por ejemplo: cobijas, piso, sofá cama, entre otros, en el campo habilitado para ello."]
["H. Vulnerabilidad y vulneración de derechos"]
[33,"34. ¿Cuál o cuáles de los siguientes eventos se presentan o se han presentado en su vida? ","Seleccione de los siguientes eventos de violencia cuál o cuáles se han presentado en la historia de vida de la mujer gestante:\n1. Violencia sexual: Cualquier acción que implique la vulneración en todas sus formas, con o sin acceso genital, del derecho de la mujer a decidir voluntariamente acerca de su vida sexual o reproductiva a través de amenazas, coerción, uso de la fuerza o intimidación, incluyendo la violación dentro del matrimonio o de otras relaciones vinculares o de parentesco, exista o no convivencia, así como la prostitución forzada, explotación, esclavitud, acoso, abuso sexual y trata de mujeres.\n2. Violencia psicológica: Es una forma de abuso que no utiliza la violencia física, pero produce cicatrices muy dolorosas, Causa daño emocional, disminución de la autoestima y perjudica el pleno desarrollo personal. Por ejemplo, cuando una persona descalifica, desvaloriza o humilla a una mujer, en la intimidad o frente a otras personas. \n3. Violencia en el conflicto armado: La violencia durante conflictos armados se produce a través de ataques centrados en la mujeres y niñas cuyos cuerpos se constituyen en territorio de disputa y son utilizados como armas de guerra, motines y moneda de cambio. \n4. Violencia económica y patrimonial: Se produce cuando a la mujer se le niega el dinero necesario para satisfacer las necesidades básicas de supervivencia de la familia, especialmente de los hijos, o bien cuando una persona presiona a la mujer para que le entregue su dinero, bajo amenaza de daño físico o emocional.\n5. Violencia Física: Es la forma más evidente de violencia. La que se emplea contra el cuerpo de la mujer produciendo dolor, daño o riesgo de producirlo y cualquier otra forma de maltrato agresión que afecte su integridad física.\n6. Ninguna"]
[34,"Si en la respuesta anterior seleccionó alguna opción de violencia ¿la violencia ocurrió al interior del hogar? ","En caso de que haya seleccionado algún o algunos eventos de violencia en la pregunta anterior, seleccione:\nSI: Cuando el evento lo generó otro integrante del hogar.\nNO: Cuando ocurrió por fuera del contexto del hogar.\nNO APLICA: Si seleccionó en la pregunta anterior la opción \"6. Ninguna\""]
[]
[]
[]
[]
[]
["Antes de imprimir este documento… piense en el medio ambiente!"]
["Cualquier copia impresa de este documento se considera como COPIA NO CONTROLADA"]
[" LOS DATOS PROPORCIONADOS SERÁN TRATADOS DE ACUERDO A LA POLÍTICA DE TRATAMIENTO DE DATOS PERSONALES DEL ICBF Y A LA LEY 1581 DE 2012"]
[null,null,"PROCESO\nPROMOCIÓN Y PREVENCIÓN\n\nFORMATO FICHA DE CARACTERIZACIÓN PARA LOS SERVICIOS DE ATENCIÓN A LA PRIMERA INFANCIA",null,null,{"$f":"$F$1","v":"F23.MO12.PP"},"2021-02-08"]
[null,null,null,null,null,"Versión 2","Página 18 de 37"]
[null,null,null,null,null,"Clasificación de la Información:\nPública"]
[]
[35,"Si en la respuesta a la pregunta 33 seleccionó alguna opción de violencia ¿Tiene en curso o ha interpuesto algún tipo de denuncia ante el sector protección o justicia por ese motivo?  ","En caso de que haya seleccionado algún o algunos eventos de violencia en la pregunta 33, seleccione:\nSI: Interpuso alguna denuncia ante el sector protección (comisaria de familia, ICBF, policía Nacional) o justicia (Fiscalía general de la Nación, Policía Judicial. CTI, SIJIN, DIJIN).\nNO: No interpuso algún tipo de denuncia.\nNO APLICA: Si selecciono en la pregunta 33 la opción \"6. Ninguna\""]
[36,"Si a la pregunta anterior respondió SI, ¿En qué estado está o terminó el proceso? ","Escriba lo manifestado por la usuaria de ante el estado del caso denunciado. \nEscriba No aplica en caso que en la pregunta 33 haya seleccionado la opción \"6. Ninguna\""]
[37,"¿Presenta alguna de las siguientes situaciones de vulnerabilidad?","Seleccione alguna o algunas otras situaciones de vulnerabilidad que se presentan con la mujer gestante. Las opciones son las siguientes:\n1. Cabeza de familia: Proveedor- proveedora de ingresos de la familia; este miembro se constituye como el único-única que aporta dinero y manutención a sus dependientes (miembros del hogar).\n2. Enfermedad terminal o de alto costo: se define como una enfermedad avanzada, progresiva e incurable, sin posibilidades razonables de respuesta al tratamiento específico, muy relacionado con la presencia, explícita o no, de muerte y con un pronóstico de vida inferior a 6 meses / requiere una alta complejidad técnica en su manejo y tratamiento y representa un gran compromiso económico por parte de los aseguradores y de familiares/ genera limitaciones físicas, sensitivas, cognitivas y mentales, aislamiento social y requiere en muchas oportunidades del apoyo total o parcial de otros para poder realizar sus actividades básicas.\n3. Cuidadora de otro-a: Que se encuentra al cuidado de otra persona (persona mayor, persona con discapacidad, persona con enfermedad, entre otros) y no percibe ingreso por ese concepto.\n4. Otra\n5. Ninguna\nEn caso de seleccionar la opción \"4. Otra\", describa de manera breve otras situaciones de vulnerabilidad, en el campo habilitado para ello."]
["I. Datos de contacto"]
[38,"Número telefónico de la Mujer Gestante: ","Digite el número celular o fijo de contacto de la mujer gestante."]
[39,"Indique otro número telefónico de contacto: ","Digite el número celular o fijo de un allegado-a a la mujer gestante."]
["J. Gestación, Hijos e Hijas"]
[40,"¿Es su primer embarazo? ","Seleccione SI / NO"]
[41,"¿Cuántos embarazos ha tenido?: ","Escriba el número de embarazos que ha tenido la mujer gestante, contando el actual."]
[42,"¿A qué edad tuvo su primer embarazo? ","Escriba la edad en la cual la mujer gestante quedo en su primer embarazo."]
[43,"¿Cuántos hijos-as nacidos vivos ha tenido? ","Seleccione de la opción de acuerdo con el número de hijos e hijas que nacieron vivos:\n1. Ninguno (0)\n2. Uno (1)\n3. Dos (2)\n4. Tres (3)\n5. Cuatro (4)\n6. Más de cinco (5)"]
[]
["Antes de imprimir este documento… piense en el medio ambiente!"]
["Cualquier copia impresa de este documento se considera como COPIA NO CONTROLADA"]
[" LOS DATOS PROPORCIONADOS SERÁN TRATADOS DE ACUERDO A LA POLÍTICA DE TRATAMIENTO DE DATOS PERSONALES DEL ICBF Y A LA LEY 1581 DE 2012"]
[null,null,"PROCESO \nPROMOCIÓN Y PREVENCIÓN\n\nFORMATO FICHA DE CARACTERIZACIÓN PARA LOS SERVICIOS DE ATENCIÓN A LA PRIMERA INFANCIA",null,null,{"$f":"$F$1","v":"F23.MO12.PP"},"2021-02-08"]
[null,null,null,null,null,"Versión 2","Página 19 de 37"]
[null,null,null,null,null,"Clasificación de la Información:\nPública"]
[]
[44,"¿Quién va a ser el cuidador-a principal del niño o niña en gestación?: ","Seleccione la opción que corresponda, con respecto a la relación de parentesco o afinidad de la mujer gestante con quien tiene proyectado sea el cuidador-a del niño o niña por nacer:\n1. Padre: Biológicamente se denomina Padre en primer grado de consanguinidad si engendra al hijo. También se denomina Padre, quien adquiere por medio de la adopción al niño o niña.\n2. Madre: Biológicamente es quien tiene en su vientre durante 9 meses establecidos al hijo. También se denomina Madre, quien adquiere por medio de la adopción al niño o niña.\n3. Hermana-o: Biológicamente Engendrado por el mismo Padre y por la misma Madre\n4. Prima-o: Biológicamente se denomina Prima(a) quien es hijo de los tíos.\n5. Sobrina-o: Hijo- a del hermano -a\n6. Nieta-o: Hijo(a) de la Hija(a) cuando el grado de consanguinidad en la familia es Padre o Madre.\n7. Cónyuge: Hombre o Mujer elegido como compañero de vida.\n8. Padrastro: Marido, Conyugue o Esposo de la madre respecto de los hijos de ésta habidos en un matrimonio anterior.\n9. Madrasta: Conyugue o Esposa del padre respecto de los hijos de ésta habidos en un matrimonio anterior\n10. Hijastra-o: En el nuevo círculo familiar Hombre y Mujer se denomina Hijastro(a) cuando los niños del nuevo grupo familiar, cuenta con un Padre o Madre biológico, diferente al actual.\n11. Abuela-o: En el grado de consanguinidad se denomina abuela quien ha parido uno o varios hijos(a) y los mismos ya han procreado, parido o adoptado.\n"]
[null,null,"12. Tía-o: Hermano (a) de Padre o Hermano(a) de la Madre\n13. Suegra-o: Madre de Hombre o Mujer quien se encuentran construyendo nuevo\n14. Nuera: Es la esposa o compañera de los hijos o hijas (casados por matrimonio civil o el religioso o en unión libre).\n15. Yerno: Esposo o compañero de las hijas o hijos (casados por matrimonio civil o el religioso o en unión libre).\n16. Cuñada-o: Corresponde al esposo-a o compañero-a del hermano o hermana.\n17. Padrino: Hombre que presenta o acompaña a una persona en una ceremonia religiosa en la que se recibe un sacramento, como el bautismo o el matrimonio, y que se compromete a cumplir con una serie de funciones religiosas o morales.\n18. Madrina: Mujer que presenta o acompaña a una persona en una ceremonia religiosa en la que se recibe un sacramento, como el bautismo o el matrimonio, y que se compromete a cumplir con una serie de funciones religiosas o morales.\n19. Familia sustituta/institución de protección: Lugares de protección de niños, niñas, adolescentes y familias como una medida de restablecimiento de derechos.\n20. No sabe\n21. Otro\nEn caso de seleccionar la opción \"21. Otro\", describa quien seria el cuidador principal, en el campo habilitado para ello."]
["K. Consumo de sustancias durante la gestación"]
[45,"Consume usted algún medicamento bajo prescripción médica:","Recuerda que esto incluye los suplementos de micronutrientes suministrados por la EPS durante la gestación: Consulte con la usuaria si en el último mes ha estado bajo tratamiento médico en el que se le formule algún tipo de medicamento. \nSeleccione SI / NO"]
[46,"En caso que la respuesta anterior sea SI, mencione que medicamentos consume: ","De acuerdo con lo manifestado por la usuaria o su familia seleccione máximo 3 de las opciones de respuesta. Para obtener esta información tenga en cuenta preguntar si la usuaria tiene alguna enfermedad, o ¿toma alguna vitamina? O ¿asiste a controles médicos regularmente?\n1. Micronutrientes suministrados durante la gestación.\n2. Médicamentos para el dolor.\n3. Médicamentos por enfermedad anterior a la gestación."]
["Antes de imprimir este documento… piense en el medio ambiente!"]
["Cualquier copia impresa de este documento se considera como COPIA NO CONTROLADA"]
[" LOS DATOS PROPORCIONADOS SERÁN TRATADOS DE ACUERDO A LA POLÍTICA DE TRATAMIENTO DE DATOS PERSONALES DEL ICBF Y A LA LEY 1581 DE 2012"]
[null,null,"PROCESO\nPROMOCIÓN Y PREVENCIÓN\n\nFORMATO FICHA DE CARACTERIZACIÓN PARA LOS SERVICIOS DE ATENCIÓN A LA PRIMERA INFANCIA",null,null,{"$f":"$F$1","v":"F23.MO12.PP"},"2021-02-08"]
[null,null,null,null,null,"Versión 2","Página 20 de 37"]
[null,null,null,null,null,"Clasificación de la Información:\nPública"]
[]
[47,"¿Cuáles suplementos de micronutrientes le han suministrado durante la gestación?:","Recuerde que lo normalizado a través de la resolución 3280 de 2018, en el LINEAMIENTO TECNICO Y OPERATIVO RUTA INTEGRAL DE ATENCIÓN EN SALUD MATERNO PERINATAL, se encuentra normado la suplementación con micronutrientes como el hierro, ácido fólico y calcio durante la gestación y todas las mujeres gestantes tienen derecho al suministro de estos medicamentos. A partir de lo anterior indague si la usuaria se encuentra consumiendo estos medicamentos de manera regular, puede utilizar preguntas como ¿Toma usted alguna pastilla suministrada durante los controles prenatales? ¿En el control prenatal le formularon algún medicamento? "]
[48,"En caso de no consumir los suplementos de micronutrientes, ¿cuál es la razón?:","Describa de manera breve, las razones que comente la usuaria para desistir el consumo de estos medicamentos. Importante tener en cuenta que estos micronutrientes son los que previenen procesos de malformación fetal entre otros beneficios para el proceso de la gestación. "]
[49,"¿Consume usted, algún medicamento sin prescripción médica?:","Teniendo en cuenta que existe una variedad de medicamentos que se encuentran contraindicados consumir durante la gestación, indague o pregunte a la usuaria que tipo de medicamentos consume y si estos fueron formulados por el equipo médico de su EPS o fueron recomendados por familiares o amigos. Seleccione una única opción de respuesta: SI / NO"]
[50,"¿Consume usted algún tipo de sustancias psicoactivas?:","A partir que lo primordial durante la gestación es mantener prácticas de vida adecuada, es importante indagar con la usuaria si acostumbra a consumir sustancias psicoactivas, (legales y no legales) cabe anotar que en este grupo se encuentra incluido el consumo de alcohol y cigarrillo. Seleccione una única opción de respuesta: SI / NO"]
[51,"En caso que la respuesta anterior sea SI, mencione que sustancias consume:","En caso que la respuesta anterior haya sido afirmativa ”SI”, seleccione una o varias opciones:\n1. Cigarrillo\n2. Bebidas Alcohólicas\n3. Otras SPA"]
["L. Participación en Cursos"]
[52,"¿Asiste al curso de preparación para la maternidad y la paternidad?: ","Seleccione entre SI/NO la mujer asiste de manera regular al curso; tenga en cuenta que el curso de preparación para la maternidad y la paternidad es un proceso educativo dirigido a los futuros madres y padres para prepararlos, mediante módulos teóricos y prácticos, en los aspectos físicos y psicológicos que caracterizan el embarazo, el parto y el postparto. Está reglamentado en la Resolución 3280 de 2018 del Ministerio de salud y protección social."]
[53,"Si asiste algún curso o actividades en relación con la gestación, parto o posparto, mencione cuál o cuáles son:","En caso que la mujer gestante asista a algún o algunos cursos o actividades relacionados con la gestación, parto o postparto escríbalos, tales cursos o actividades pueden ser: Ejercicios preparatorios para el parto, yoga, gimnasio, entre otros. En caso que no asista escriba No aplica. "]
["M. Participación asociaciones, grupos u organizaciones"]
[54,"¿La mujer gestante es miembro de algún grupo, organización o asociación?:","Seleccione SI/NO la mujer gestante es miembro de algún tipo de agrupación. Tenga en cuenta lo siguiente:\nGrupo: Conjunto de personas unidas por un objetivo común, generalmente de carácter \ncoyuntural o transitorio.\nOrganización: Asociación de personas regulada por un conjunto de normas en función de determinados fines.\nAsociación: Conjunto de asociados para un mismo fin, y en su caso, persona jurídica que los representa."]
[55,"¿En cuál de estos grupos u organizaciones que están activos y a los que usted pertenece, es en el que participa más?:","Si la mujer gestante en la pregunta No. 54 selecciono SI, seleccione en cuál agrupación más participa. Las opciones de respuesta son las siguientes: \n1. Asociación comercial o de comerciantes\n2. Comité de trabajo (vereda, consejo, pueblo)\n3. Grupo religioso /espiritual\n4. Asociación o grupo cultural"]
[]
["Antes de imprimir este documento… piense en el medio ambiente!"]
["Cualquier copia impresa de este documento se considera como COPIA NO CONTROLADA"]
[" LOS DATOS PROPORCIONADOS SERÁN TRATADOS DE ACUERDO A LA POLÍTICA DE TRATAMIENTO DE DATOS PERSONALES DEL ICBF Y A LA LEY 1581 DE 2012"]
[null,null,"PROCESO\nPROMOCIÓN Y PREVENCIÓN\n\nFORMATO FICHA DE CARACTERIZACIÓN PARA LOS SERVICIOS DE ATENCIÓN A LA PRIMERA INFANCIA",null,null,{"$f":"$F$1","v":"F23.MO12.PP"},"2021-02-08"]
[null,null,null,null,null,"Versión 2","Página 21 de 37"]
[null,null,null,null,null,"Clasificación de la Información:\nPública"]
[]
[null,null,"5. Asociación (de padres y profesores, comité escolar, por ocupación)\n6. ONG\n7. Asociación de víctimas\n8. Grupo de Mujeres\n9. Otra\n10. No aplica: Si la mujer gestante respondió en la pregunta No. 54 seleccionó NO."]
[56,"¿Qué rol tiene dentro del grupo u organización más importante?:","Si la mujer gestante en la pregunta No. 54 selecciono SI, seleccione el rol que tiene en la agrupación. \n1. Representante\n2. Miembro Junta directiva\n3. Participante\n4. No aplica: Si la mujer gestante respondió en la pregunta No. 54 seleccionó NO.\n"]
["N. Validación servicios de salud "]
[57,"¿Se encuentra afiliado (a) al Sistema General de Seguridad Social en Salud?:","Seleccione una única respuesta:\nSI: Cuando el usuario tiene soporte físico o digital de la EPS en la que se encuentra afiliado.\nNO: Cuando hay ausencia del soporte de afiliación. \nRecuerde que el soporte también puede ser generado por la UDS/UCA a través del sitio web de la Base de Datos Única de Afiliados BDUA del Sistema General de Seguridad Social en Salud BDUA-SGSSS . \nhttps://www.adres.gov.co/BDUA/Consulta-Afiliados-BDUA\nNota: En caso que esta respuesta sea afirmativa, pasar a la pregunta No. 59"]
[58,"En caso de no estar afiliado al Sistema General de Seguridad Social en Salud ¿Cuál es la razón? ","En caso que, la respuesta anterior sea negativa, seleccione uno de los motivos por los cuales el usuario NO cuenta con la afiliación al Sistema General de Seguridad Social en Salud.\n1. En tramite\n2. Falta de dinero\n3. No sabe que debe afiliarse\n4. No le interesa\n5. No hay entidad cercana\n6. Otro\nEn caso de seleccionar la opción \"6. Otro\", describa de manera breve las razones que han llevado a que el usuario no cuente con la afiliación efectiva al Sistema General de Seguridad Social en Salud, en el campo habilitado para ello."]
[59,"¿Cuenta con el esquema de vacunación completo, según la edad gestacional?: ","Solicite al entrevistado una copia del carné de vacunación y verifique si este se encuentra al día de acuerdo con la edad gestacional. \nSeleccione una única respuesta:\nSI: Cuando cuenta con soporte de aplicación de las vacunas y estan completas según la edad.\nNO: Cuando no tiene aplicación de vacunas o a pesar de presentar soporte no estan completas según la edad.\nEs importante tener en cuenta que, está verificación también se puede hacer a través del sitio web de la secretaría de salud de su municipio.\nNota: En caso que esta respuesta sea afirmativa, pasar al diligenciamiento del módulo 3."]
[60,"Si la respuesta anterior fue NO, ¿Cuál es la razón?: ","En caso que, la respuesta anterior sea negativa, seleccione uno de los motivos por los cuales el usuario NO cuenta con el esquema de vacunación completo.\n1. Falta de dinero\n2. No sabe que debe vacunarse\n3. No le interesa\n4. Pertenece a movimiento anti vacunas\n5. No hay entidad cercana"]
[]
["Antes de imprimir este documento… piense en el medio ambiente!"]
["Cualquier copia impresa de este documento se considera como COPIA NO CONTROLADA"]
[" LOS DATOS PROPORCIONADOS SERÁN TRATADOS DE ACUERDO A LA POLÍTICA DE TRATAMIENTO DE DATOS PERSONALES DEL ICBF Y A LA LEY 1581 DE 2012"]
[null,null,"PROCESO\nPROMOCIÓN Y PREVENCIÓN\n\nFORMATO FICHA DE CARACTERIZACIÓN PARA LOS SERVICIOS DE ATENCIÓN A LA PRIMERA INFANCIA",null,null,{"$f":"$F$1","v":"F23.MO12.PP"},"2021-02-08"]
[null,null,null,null,null,"Versión 2","Página 22 de 37"]
[null,null,null,null,null,"Clasificación de la Información:\nPública"]
[]
[null,null,"6. Motivos religiosos\n7. Otro\nEn caso de seleccionar la opción \"7. Otro\", describa de manera breve las razones que han llevado a que el usuario no cuente con el esquema de vacunación, en el campo habilitado para ello."]
[]
["MÓDULO 3 FAMILIA"]
["O. Variables Básicas"]
[1,"Tipo documento de identidad usuario:","Seleccione el tipo documento de identidad del usuario-a:\nOpciones usuario Niño - Niña:\n1. Registro Civil: Documento de identificación para hombres y mujeres menores de 7 años. \n2. Tarjeta de Identidad: Documento de identificación para hombres y mujeres mayores de 7 años y menores de 18 años.\n3. Pasaporte: Sólo para extranjeros sin cédula de ciudadanía.\n4. Permiso especial de permanencia (PEP): documento el cual se otorga únicamente a los nacionales venezolanos.\n5. No tiene: No posee ningún documento de identidad\nOpciones usuario mujer gestante:\n1. Tarjeta de Identidad: Documento de identificación para hombres y mujeres mayores de 7 años y menores de 18 años.\n2. Cédula de ciudadanía: Documento de identificación para hombres y mujeres mayores de 18 años de edad.\n3. Cédula de Extranjería: Cedula (mayores de edad) y la tarjeta (menores de edad) de extranjería, son los documentos de identificación de todos los extranjeros residentes en Colombia, temporales o permanentes. \n4. Pasaporte: Sólo para extranjeros sin cédula de ciudadanía.\n5. Permiso especial de permanencia (PEP): Documento el cual se otorga únicamente a los nacionales venezolanos.\n6. Sin información: No posee la información sobre el documento de identidad"]
[2,"Número de documento:","Escriba / Digite el número de documento de identidad de acuerdo con el tipo seleccionado anteriormente. Sin puntos, guiones o comas."]
[3,"Número de personas que componen el hogar del usuario(a): ","Escriba el número de personas que componen el hogar. El hogar se define como una persona o grupo de personas, parientes o no, que: ocupan la totalidad o parte de una vivienda; atienden necesidades básicas con cargo a un presupuesto común y generalmente comparten las comidas. DANE."]
["P. Variables básicas de Composición del Hogar y estructura familiar  (Integrantes del hogar que conviven con el niña/niño o mujer gestante)"]
["Se pueden registrar hasta 10 integrantes del hogar."]
[4,"Parentesco","Seleccione la opción que corresponda, con respecto a la relación de parentesco o afinidad del usuario-a. Las opciones son las siguientes\n1. Padre: Biológicamente se denomina Padre en primer grado de consanguinidad si engendra al hijo. También se denomina Padre, quien adquiere por medio de la adopción al niño o niña.\n2. Madre: Biológicamente es quien tiene en su vientre durante 9 meses establecidos al hijo. También se denomina Madre, quien adquiere por medio de la adopción al niño o niña.\n3. Hija-o: Primer grado de parentesco de consanguinidad en relación con los padres\n4. Hermana-o: Biológicamente Engendrado por el mismo Padre y por la misma Madre\n5. Prima-o: Biológicamente se denomina Prima(a) quien es hijo de los tíos.\n6. Sobrina-o: Hijo- a del hermano -a\n7. Nieta-o: Hijo(a) de la Hija(a) cuando el grado de consanguinidad en la familia es Padre o Madre.\n8. Cónyuge: Hombre o Mujer elegido como compañero de vida.\n"]
[]
["Antes de imprimir este documento… piense en el medio ambiente!"]
["Cualquier copia impresa de este documento se considera como COPIA NO CONTROLADA"]
[" LOS DATOS PROPORCIONADOS SERÁN TRATADOS DE ACUERDO A LA POLÍTICA DE TRATAMIENTO DE DATOS PERSONALES DEL ICBF Y A LA LEY 1581 DE 2012"]
[null,null,"PROCESO\nPROMOCIÓN Y PREVENCIÓN\n\nFORMATO FICHA DE CARACTERIZACIÓN PARA LOS SERVICIOS DE ATENCIÓN A LA PRIMERA INFANCIA",null,null,{"$f":"$F$1","v":"F23.MO12.PP"},"2021-02-08"]
[null,null,null,null,null,"Versión 2","Página 23 de 37"]
[null,null,null,null,null,"Clasificación de la Información:\nPública"]
[]
[4,"Parentesco","9. Padrastro: Marido, Conyugue o Esposo de la madre respecto de los hijos de ésta habidos en un matrimonio anterior.\n10. Madrasta: Conyugue o Esposa del padre respecto de los hijos de ésta habidos en un matrimonio anterior\n11. Hijastra-o: En el nuevo círculo familiar Hombre y Mujer se denomina Hijastro(a) cuando los niños del nuevo grupo familiar, cuenta con un Padre o Madre biológico, diferente al actual.\n12. Abuela-o: En el grado de consanguinidad se denomina abuela quien ha parido uno o varios hijos(a) y los mismos ya han procreado, parido o adoptado.\n13. Tía-o: Hermano (a) de Padre o Hermano(a) de la Madre\n14. Suegra-o: Madre de Hombre o Mujer quien se encuentran construyendo nuevo\n15. Nuera: Es la esposa o compañera de los hijos o hijas (casados por matrimonio civil o el religioso o en unión libre).\n16. Yerno: Esposo o compañero de las hijas o hijos (casados por matrimonio civil o el religioso o en unión libre).\n17. Cuñada-o: Corresponde al esposo-a o compañero-a del hermano o hermana.\n18. Padrino: Hombre que presenta o acompaña a una persona en una ceremonia religiosa en la que se recibe un sacramento, como el bautismo o el matrimonio, y que se compromete a cumplir con una serie de funciones religiosas o morales.\n19. Madrina: Mujer que presenta o acompaña a una persona en una ceremonia religiosa en la que se recibe un sacramento, como el bautismo o el matrimonio, y que se compromete a cumplir con una serie de funciones religiosas o morales.\n20. Familia sustituta/institución de protección: Lugares de protección de niños, niñas, adolescentes y familias como una medida de restablecimiento de derechos.\n21. Otro\nEn caso de seleccionar la opción \"21. Otro\", describa quien seria el cuidador principal, en el campo habilitado para ello."]
[5,"Nombres y Apellidos: ","Escriba el o los nombres y apellido completos del usuario/a inscrito en la Unidad de Servicio, en MAYÚSCULAS."]
[6,"Tipo documento de identidad:","Coloque el numero que corresponda a la opción:\n1. Registro Civil: Documento de identificación para hombres y mujeres menores de 7 años. \n2. Tarjeta de Identidad: Documento de identificación para hombres y mujeres mayores de 7 años y menores de 18 años.\n3. Cédula de ciudadanía: Documento de identificación para hombres y mujeres mayores de 18 años de edad.\n4. Cédula de Extranjería: Cedula (mayores de edad) y la tarjeta (menores de edad) de extranjería, son los documentos de identificación de todos los extranjeros residentes en Colombia, temporales o permanentes. \n5. Pasaporte: Sólo para extranjeros sin cédula de ciudadanía.\n6. Permiso especial de permanencia (PEP): documento el cual se otorga únicamente a los nacionales venezolanos.\n7. Sin información: No posee la información sobre el documento de identidad"]
[7,"Número de documento:","Escriba / Digite el número de documento de identidad de acuerdo con el tipo seleccionado anteriormente. Sin puntos, guiones o comas."]
[8,"Fecha de nacimiento : ","Indique la fecha de nacimiento, coloque el número del día y mes, con dos dígitos cada uno (Ejemplo: el nueve de marzo se escribe 09-03), y el año en cuatro dígitos (Ejemplo: 2018). Esta información debe ser tomada del documento de identidad."]
[9,"Edad:","Especificar la edad en años (Ejemplo: 24 años)"]
[10,"País de nacimiento:","Escriba / Digite el país de nacimiento del usuario-a. La información debe ser tomada del documento de identidad."]
[]
[]
["Antes de imprimir este documento… piense en el medio ambiente!"]
["Cualquier copia impresa de este documento se considera como COPIA NO CONTROLADA"]
[" LOS DATOS PROPORCIONADOS SERÁN TRATADOS DE ACUERDO A LA POLÍTICA DE TRATAMIENTO DE DATOS PERSONALES DEL ICBF Y A LA LEY 1581 DE 2012"]
[null,null,"PROCESO\nPROMOCIÓN Y PREVENCIÓN\n\nFORMATO FICHA DE CARACTERIZACIÓN PARA LOS SERVICIOS DE ATENCIÓN A LA PRIMERA INFANCIA",null,null,{"$f":"$F$1","v":"F23.MO12.PP"},"2021-02-08"]
[null,null,null,null,null,"Versión 2","Página 24 de 37"]
[null,null,null,null,null,"Clasificación de la Información:\nPública"]
[]
[11,"Sexo:","Registre el número de las opciones de sexo según con lo manifestado por e/la entrevistado-a, de acuerdo con las opciones (Mujer, Hombre o Intersexual). Tenga en cuenta que la categoría Sexo hace se define como “las características genéticas, endocrinas y morfológicas del cuerpo. Las categorías utilizadas para clasificar estas características en los seres humanos son hombre, mujer e intersexual”, de acuerdo con lo establecido por el SIVIGE  (2016:71). Las opciones de respuesta son las siguientes:\n1. Mujer: “Personas cuyas características genéticas, morfológicas y endocrinas le identifican como hembra, según la clasificación biológica de la especie humana” (SIVIGE, 2016:71). \n2. Hombre: “Personas cuyas características genéticas, morfológicas y endocrinas le identifican como macho, según la clasificación biológica de la especie humana” (SIVIGE, 2016:71). \n3. Intersexual: De acuerdo con la oficina de las Naciones Unidas, la intersexualidad integra a las personas que poseen, de manera simultánea, características genéticas de hombres y mujeres y se ha definido como “todas aquellas situaciones en las que el cuerpo sexuado de un individuo varía respecto al estándar de corporalidad femenina o masculina culturalmente vigente”. El SIVIGE lo define como todas las “personas que presentan simultáneamente características genéticas, congénitas, endocrinas o morfológicas de hembra y macho” (SIVIGE, 2016:71). "]
[12,"Género:","Registre el número de la opción de acuerdo con lo manifestado por la mujer gestante, de acuerdo con las opciones. La variable género o identidad de género se define como “el auto reconocimiento que una persona hace de sí misma basada a partir de la construcción social, histórica y cultural de lo que se ha definido [debe ser] lo femenino, lo masculino o la transición entre ambos” (SIVIGE, 2016;73). Las Opciones de respuesta son: \n1. Femenino: “Es la identidad conformada por un conjunto de características inscritas en lo que la expectativa colectiva ha construido social, histórica y culturalmente respecto a las mujeres\" (SIVIGE, 2016:73).\n2. Masculino: “Es una identidad conformada por un conjunto de características inscritas en lo que la expectativa colectiva ha construido social, histórica y culturalmente respecto a los hombres” (SIVIGE, 2016:73). \n3. Transgénero/trans: “Es la identidad en la que no coincide el sexo biológico con las características inscritas en lo que la expectativa colectiva ha construido social, histórica y culturalmente como femenino o masculino (SIVIGE, 2016:73). Una persona trans puede construir su identidad de género independientemente de intervenciones quirúrgicas o tratamientos médicos. Dentro de estas se encuentran: (i) las personas travestis quienes expresan su identidad de género ya sea de manera permanente o transitoria mediante la utilización de prendas de vestir y actitudes del género opuesto que social y culturalmente se asigna a su sexo biológico. Ello puede incluir la modificación o no de su cuerpo; (ii) personas transformistas, quienes representan de forma ocasional y/o artística personajes del sexo opuesto; (iii) personas transexuales, quienes se sienten y se conciben a sí mismas como pertenecientes al género opuesto al que social y culturalmente se les asignó al nacer y que optan por una intervención médica (hormonal, quirúrgica o ambas) para adecuar su apariencia física a su realidad psíquica, espiritual y social (Defensoría del Pueblo de Colombia, 2018)."]
[null,null,"Hombre trans: Persona que al nacer fue asignado como mujer en razón a su genitalidad, pero construye una expresión de género desde la masculinidad (Defensoría del Pueblo de Colombia, 2018). \nMujer trans: Persona que al nacer fue asignado como hombre en razón a su genitalidad, pero construye una expresión de género desde lo femenino (Defensoría del Pueblo de Colombia, 2018). \n4. Otro: Como por ejemplo una persona andrógina quien, o bien no tienen un sexo definido (intersex) o bien no está interesada en clasificarse dentro de lo típicamente femenino o masculino, es decir, no aparenta físicamente de forma clara pertenecer al género con el que nació. \n5. No desea responder\n6. Menor de 14 años - No aplica: Tenga en cuenta que de acuerdo con lo estipulado por el SIVIGE (2016) esta categoría aplica únicamente para personas mayores de 14 años. Lo que significa que no se hará la pregunta a personas menores de esta edad. \n"]
[]
[]
[]
[]
[]
["Antes de imprimir este documento… piense en el medio ambiente!"]
["Cualquier copia impresa de este documento se considera como COPIA NO CONTROLADA"]
[" LOS DATOS PROPORCIONADOS SERÁN TRATADOS DE ACUERDO A LA POLÍTICA DE TRATAMIENTO DE DATOS PERSONALES DEL ICBF Y A LA LEY 1581 DE 2012"]
[null,null,"PROCESO\nPROMOCIÓN Y PREVENCIÓN\n\nFORMATO FICHA DE CARACTERIZACIÓN PARA LOS SERVICIOS DE ATENCIÓN A LA PRIMERA INFANCIA",null,null,{"$f":"$F$1","v":"F23.MO12.PP"},"2021-02-08"]
[null,null,null,null,null,"Versión 2","Página 25 de 37"]
[null,null,null,null,null,"Clasificación de la Información:\nPública"]
[]
[13,"Orientación sexual","Registre el número de la opción de acuerdo con lo manifestado por el entrevistado.\nLa Orientación Sexual de acuerdo con los principios de Yogyakarta (2006) se refiere a la “capacidad de cada persona de sentir una profunda atracción emocional, afectiva y sexual por personas de un género diferente al suyo, o de su mismo género, o de más de un género, así como la capacidad de mantener relaciones íntimas y sexuales con estas personas. \nOpciones de respuesta: \n1. Heterosexual: “Persona cuya atracción afectiva, erótica o sexual se dirige hacia personas de sexo distinto al suyo” (SIVIGE, 2016;72). \n2. Homosexual: “Persona cuya atracción afectiva, erótica o sexual se dirige hacia personas de su mismo sexo” (SIVIGE, 2016;71). \nLesbiana: Una mujer que se siente atraída física, romántica o emocionalmente por otras mujeres. \nHombre gay: Un hombre que se siente atraído física, romántica o emocionalmente por otros hombres. \n3. Bisexual: “Persona cuya atracción afectiva, erótica o sexual se dirige o materializa con personas de ambos sexos” (SIVIGE, 2016;71). \n4. Otro: Dentro de esta categoría pueden incluirse personas asexuales, definidas por el SIVIGE (2016;71) como aquellas que “reconoce y acepta que no siente atracción afectiva, erótica o sexual por otras personas”. O una persona pansexual quien siente atracción romántica y/o sexual hacia individuos independientemente de su género o sexo. \n"]
[null,null,"5. No desea responder \n6. Menor de 14 años - No aplica: Tenga en cuenta que de acuerdo con lo estipulado por el SIVIGE (2016) esta categoría aplica únicamente para personas mayores de 14 años. Lo que significa que no se hará la pregunta a personas menores de esta edad. \nPara algunas recomendaciones sobre las variables remítase a la Guía para el registro de las variables sexo, género y orientación sexual en los sistemas de información del ICBF. 2019."]
[14,"Grupo étnico con el que se autoreconoce:","Registre el número de la opción que da aceptación de reconocimiento de su identidad en algún grupo étnico definido como “población indígena”, “población afrocolombiano”, “población negra” “población ROM/Gitano”, “población Raizal descendiente del Archipiélago de San Andrés, Providencia y Santa Catalina” “población palenquero”.\nNota: Debe marcar las opciones partiendo del libre auto reconocimiento y la pertenencia a una comunidad de origen del núcleo familiar, por tanto, debe preguntársele directamente al padre, madre cuidador o persona que realice la inscripción de la niña o niño , no depende en ningún caso del criterio de quien realiza el registro.\nDefiniciones Grupos étnicos:\n1. Población Indígena: Personas de origen amerindio, con características culturales que reconocen como propias del grupo y que le otorgan singularidad y revelan una identidad que la distingue de otros grupos, independientemente de que vivan en el campo o en la ciudad.\n2. Población Negra: Personas de ascendencia africana que se reconoce por sus rasgos físicos, que poseen una cultura propia, se identifica con una historia particular y tiene sus propias tradiciones y costumbres que revelan y conservan conciencia de identidad que las distinguen de otros grupos étnicos, independientemente de que vivan en el campo o en la ciudad.\n3. Población Afrocolombiana: Personas de raíces y descendencia histórica, étnica y cultural africana nacidos en Colombia; poseen algunos rasgos culturales que les da singularidad como grupo humano, comparten una tradición y conservan costumbres propias que revelan una identidad que la distinguen de otros grupos, independientemente de que vivan en el campo o en la ciudad.\n4. Población Raizal descendiente del Archipiélago de San Andrés, Providencia y Santa Catalina: Personas de rasgos culturales afro-angloantillanos, de fuerte identidad caribeña, que tiene características culturales propias entre las que se destaca su lengua “bandé” de base inglesa y mezcla con el idioma español. Natural del Archipiélago de San Andrés, Providencia y Santa Catalina."]
["Antes de imprimir este documento… piense en el medio ambiente!"]
["Cualquier copia impresa de este documento se considera como COPIA NO CONTROLADA"]
[" LOS DATOS PROPORCIONADOS SERÁN TRATADOS DE ACUERDO A LA POLÍTICA DE TRATAMIENTO DE DATOS PERSONALES DEL ICBF Y A LA LEY 1581 DE 2012"]
[null,null,"PROCESO\nPROMOCIÓN Y PREVENCIÓN\n\nFORMATO FICHA DE CARACTERIZACIÓN PARA LOS SERVICIOS DE ATENCIÓN A LA PRIMERA INFANCIA",null,null,{"$f":"$F$1","v":"F23.MO12.PP"},"2021-02-08"]
[null,null,null,null,null,"Versión 2","Página 26 de 37"]
[null,null,null,null,null,"Clasificación de la Información:\nPública"]
[]
[null,null,"5. Población Gitano o Rrom: Personas del pueblo nómada de origen indio, que conservan sus rasgos culturales propios y mantienen su propia lengua llamada Romanés o Romaní. Sé es Rrom o gitano por derecho de nacimiento y se lleva la sangre gitana. Mediante el decreto 2957, del 6 de agosto de 2010, el Estado colombiano reconoce que los gitanos tienen una identidad propia y mantienen una conciencia étnica particular.\n6. Palenquero de San Basilio: Personas pertenecientes a la población afrocolombiana de San Basilio de Palenque, del municipio de Mahates, departamento de Bolívar, que tiene características culturales propias entre las que se destaca su lengua “creol” de sustrato español y mezcla con dialectos africanos. Declarados patrimonio inmaterial de la humanidad por la UNESCO.\n7. Ninguno: En caso de que el usuario o el grupo familiar no se autoreconoce con alguna de estas, seleccione esta opción."]
[15,"¿Sabe leer y escribir?: ","Con esta pregunta se busca establecer el nivel de analfabetismo de una persona.\nSelección de única respuesta:\nSI\nNO"]
[16,"¿Actualmente estudia? ","Recuerde que una persona se considera asistiendo a escuela, colegio o universidad, cuando está matriculada a un centro de educación formal regular  o para adultos, y aunque presente ausencias temporales por enfermedad, licencia, vacaciones, u otra, se considera que SI asiste.\nSelección de única respuesta:\nSI\nNO"]
[17,"¿Cuál es su nivel más alto de escolaridad?: ","Registre el número de la opción según el último nivel de estudios alcanzado dentro de la educación formal, teniendo en cuenta lo siguiente:\n1. Ninguno: El integrante del hogar no ha realizado ningún grado de estudios en el marco de la educación formal.\n2. Preescolar: Corresponde a la ofrecida al niño menor de seis (6) años, para su desarrollo integral en los aspectos biológico, cognoscitivo, sicomotriz, socio - afectivo y espiritual, a través de experiencias de socialización pedagógica y recreativas. (Ley 155. Art 15)\n3. Básica Primaria: comprende la educación básica conformada por cinco grados, que van de primero a quinto.\n4. Bachillerato: comprende la educación básica desde el grado sexto al grado noveno y media los grados décimo y undécimo.\n5. Normalista: Maestro que se gradúa de una escuela normal.\n6. Técnico: La educación técnico profesional es la modalidad de la educación secundaria y la educación superior responsable de la formación de técnicos medios y técnicos superiores en áreas ocupacionales específicas. También incluye estudios de educación no formal\n7. Técnologica: Es aquella que ofrece programas de formación en ocupaciones, programas de formación académica en profesiones o disciplinas y programas de especialización. (Ley 30 de 1993).\n8. Universitario: La educación profesional forma parte de la educación formal y está dirigida a los procesos de formación que conducen al desarrollo de profesiones.\n9. Posgrado: Hace referencia al ciclo de estudios posteriores al grado profesional, e incluyen las especializaciones, las maestrías y los doctorados."]
[18,"¿Cuál es su actividad principal en este momento?","Seleccione de la opción que corresponda.\n1. Trabajando: Se define que la persona se encuentra trabajando cuando dedica la mayor parte de su tiempo a desarrollar una actividad relacionada con el intercambio de tiempo, conocimiento y/o fuerza por dinero.\n2. Buscando Trabajo: Son las personas que habían tomado medidas concretas para buscar un empleo asalariado o independiente en las últimas cuatro semanas."]
[]
[]
["Antes de imprimir este documento… piense en el medio ambiente!"]
["Cualquier copia impresa de este documento se considera como COPIA NO CONTROLADA"]
[" LOS DATOS PROPORCIONADOS SERÁN TRATADOS DE ACUERDO A LA POLÍTICA DE TRATAMIENTO DE DATOS PERSONALES DEL ICBF Y A LA LEY 1581 DE 2012"]
[null,null,"PROCESO\nPROMOCIÓN Y PREVENCIÓN\n\nFORMATO FICHA DE CARACTERIZACIÓN PARA LOS SERVICIOS DE ATENCIÓN A LA PRIMERA INFANCIA",null,null,{"$f":"$F$1","v":"F23.MO12.PP"},"2021-02-08"]
[null,null,null,null,null,"Versión 2","Página 27 de 37"]
[null,null,null,null,null,"Clasificación de la Información:\nPública"]
[]
[null,null,"3. Oficios del hogar: el o la integrante del hogar dedica la mayor parte de su tiempo a realizar actividades relacionadas con la limpieza de la vivienda, la preparación de alimentos y el cuidado de niños-as y/o adultos.\n4. Estudiando: una persona se considera asistiendo a la escuela u otra institución de enseñanza formal, cuando está matriculada en un centro de educación formal regular o para adultos y no se ha retirado, aún cuando esté ausente temporalmente por enfermedad, vacaciones u otra causa, aunque asista solamente parte del día.\n5. Rentista: Persona que cobra una renta por bienes que posee.\n6. Jubilado-a/pensionado-a: trabajador jubilado que recibe las prestaciones correspondientes de acuerdo con la legislación de cada país.\n7. Cuidador-a: Persona que ejerce el cuidado de un tercero.\n8. Privada de la libertad: Cuando una persona es encarcelada, puede decirse que se la ha privado de su libertad. La privación, en este caso, es legal. \n9. Sin actividad\n10. Otro\n"]
[19,"¿Si se encuentra trabajando, qué tipo de situación laboral presenta? ","Si el integrante del hogar se encuentra trabajando, seleccione entre estas opciones:\n1. Empleado con contrato laboral: Contrato de trabajo es aquel por el cual una persona natural se obliga a prestar un servicio personal a otra persona, natural o jurídica, bajo la continuada dependencia o subordinación de la segunda y mediante remuneración. Código Sustantivo del trabajo. Artículo 22. \n2. Independiente: son personas que trabajan sin estar vinculadas a una empresa, es decir, no gozan de un contrato de trabajo sino de servicios\n3. No aplica:  Esta opción será utilizada o seleccionada, cuando la mujer gestante referencia que se encuentra en alguna de las situaciones de la pregunta anterior ubicadas en la lista desde el punto 2 hasta el 10.\n"]
[20,"Ingresos mensuales promedio: ","Hace alusión al monto económico producto de los ingresos mensuales promedio independientemente de la actividad principal que desarrolle. En caso de que no cuente con ingresos diligencie No aplica"]
[21,"Observaciones: ","Estas observaciones hacen referencia a situaciones de riesgo, amenaza o vulnerabilidad del integrante del hogar asociado a las siguientes problemáticas u otras que se consideren, por ejemplo: permanencia en calle, prostitución (mayores de edad) explotación sexual comercial en niñas, niños y adolescentes, adicciones, etc."]
["Q. Características de la vivienda"]
[22,"Clase de ubicación de la vivienda: ","Seleccione la opción de acuerdo con la ubicación de la vivienda donde reside el usuario-a, las opciones son las siguientes:\n1. Cabecera municipal: Delimitación geográfica definida por el DANE para fines estadísticos, alusiva al área geográfica delimitada por el perímetro censal. A su interior se localiza la sede administrativa del municipio, es decir la alcaldía. \n2. Centro poblado: Concepto construido por el DANE con fines estadísticos, para la identificación y localización geográfica de núcleos o asentamientos de población. Se define como una concentración mínima de veinte (20) viviendas contiguas, vecinas o adosadas entre sí, ubicada en el área resto municipal o en un área no municipalizada (corregimiento departamental). Contempla los núcleos de población de los corregimientos municipales, inspecciones de policía y caseríos. (DANE, 2018). Dicha concentración presenta características tales como la delimitación de vías vehiculares y peatonales. \n3. Rural disperso: Delimitación geográfica definida por el DANE para fines estadísticos, comprendida entre el perímetro censal de las cabeceras municipales y de los centros poblados, y el límite municipal. Se caracteriza por la disposición dispersa de viviendas y de explotaciones agropecuarias existentes en ella. Se caracteriza por objetos y elementos relacionados con la agricultura, predios de descanso o recreo, usos mineros o extractivos. El número de unidades residenciales por área es menor a las zonas urbanas. "]
[]
[]
[]
["Antes de imprimir este documento… piense en el medio ambiente!"]
["Cualquier copia impresa de este documento se considera como COPIA NO CONTROLADA"]
[" LOS DATOS PROPORCIONADOS SERÁN TRATADOS DE ACUERDO A LA POLÍTICA DE TRATAMIENTO DE DATOS PERSONALES DEL ICBF Y A LA LEY 1581 DE 2012"]
[null,null,"PROCESO\nPROMOCIÓN Y PREVENCIÓN\n\nFORMATO FICHA DE CARACTERIZACIÓN PARA LOS SERVICIOS DE ATENCIÓN A LA PRIMERA INFANCIA",null,null,{"$f":"$F$1","v":"F23.MO12.PP"},"2021-02-08"]
[null,null,null,null,null,"Versión 2","Página 28 de 37"]
[null,null,null,null,null,"Clasificación de la Información:\nPública"]
[]
[23,"Territorio étnico: ","Seleccione SI/NO la vivienda del hogar se encuentra en un territorio étnico.\n"]
[24,"Si la respuesta anterior fue Si, a qué territorio étnico pertenece: ","Si en la respuesta anterior la elección a la pregunta fue SI, seleccione: \n1. Resguardo Indígena: Institución legal y sociopolítica de carácter especial indivisible, inalienable, imprescriptible e inembargable; está conformada por una o varias comunidades de ascendencia amerindia, que con un título de propiedad colectiva o comunitaria, posee un territorio y se rige para el manejo de este y de su vida interna por una organización social ajustada al fuero indígena, el cabildo o a sus pautas y tradiciones culturales. Poseen resolución o acuerdo de creación emitido por el INCORA o el INCODER o la Agencia Nacional de Tierras \n2. Territorios Colectivos de Comunidades Negras TCCN: Son los terrenos de ocupación histórica de comunidades negras sobre los cuales se ha reconocido el derecho a la propiedad y han sido adjudicados de manera colectiva mediante resolución del Instituto Colombiano de Reforma Agraria (INCORA) o por el Instituto Colombiano de Desarrollo Rural (INCODER), en la que habitan o realizan actividades sociales, económicas y culturales las comunidades negras del país. \n3. No aplica: Si seleccionó NO en la pregunta anterior."]
[25,"Indique el nombre de la comunidad en la que habita: ","Nombre del lugar en donde se encuentra la vivienda. Puede ser una comunidad en un resguardo indígena o en un territorio colectivo de comunidad negra – consejo comunitario."]
[26,"Tipo de Vivienda: ","Seleccione la opción que corresponde, de acuerdo con los siguientes criterios:\n1. Casa: Es la edificación constituida por una sola unidad cuyo uso es el de vivienda, con acceso directo desde la vía pública o desde el exterior de la edificación. El servicio sanitario y la cocina pueden estar o no dentro de ella. También se consideran casas aquellas en donde el garaje, la sala o alguna habitación se destinan para uso comercial o económico.\n2. Cambuche: Vivienda improvisada construida con material que está al alcance, para pasar la noche.\n3. Apartamento: Es una unidad de vivienda que hace parte de una edificación, en la cual hay otra(s) unidad(es) que generalmente es (son) de vivienda. Tiene acceso directo desde el exterior o por pasillos, patios, corredores, escaleras o ascensores. Dispone de servicio sanitario y cocina en su interior.\n4. Vivienda tradicional indígena: Es la edificación constituida por una sola unidad cuyo uso es el de vivienda, construida según la costumbre de cada grupo étnico conservando la estructura tradicional.\n5. Tipo cuarto: Es una unidad de vivienda que forma parte de una casa o apartamento que dispone un solo espacio para zona social y dormitorio. Tiene acceso desde el exterior por pasillos, patios, zaguanes u otros espacios de circulación común.\n6. Rancho: Unidad habitacional en la que los integrantes del hogar residen en una vivienda construida en condiciones precarias, con materiales de desecho, como paroid (tela asfáltica), lata y/o madera\n7. Finca: Unidad habitacional que aplica para personas u hogares que residen en un inmueble destinado para la vivienda de los integrantes del hogar, pero que también tiene como uso la agricultura o la ganadería y se ubica en el área rural y rural dispersa."]
[null,null,"8. Casalote: Es un predio conformado por un lote o porción de terreno y una edificación, comúnmente una casa, usada para vivienda. Puede tener acceso a la vía pública y/o colindar con otros predios de naturaleza similar\n9. Establecimiento de reclusión: Denominación genérica para alojar a infractores de la Ley Penal., Aplica en el caso que la mujer gestante o el niño o niña sea usuario-a del servicio DIER de la modalidad institucional \n10. Otra: Es un espacio adaptado para vivienda donde habitan personas. Por lo general carece de servicio sanitario y cocina. Se consideran en esta categoría: los vagones de trenes, los contenedores, las embarcaciones, las carpas, las cuevas, los puentes, las casetas, entre otros. (DANE,2015).\nEn caso de seleccionar la opción \"10. Otra\", describa el tipo de vivienda, en el campo habilitado para ello."]
[]
[]
[]
[]
[]
["Antes de imprimir este documento… piense en el medio ambiente!"]
["Cualquier copia impresa de este documento se considera como COPIA NO CONTROLADA"]
[" LOS DATOS PROPORCIONADOS SERÁN TRATADOS DE ACUERDO A LA POLÍTICA DE TRATAMIENTO DE DATOS PERSONALES DEL ICBF Y A LA LEY 1581 DE 2012"]
[null,null,"PROCESO\nPROMOCIÓN Y PREVENCIÓN\n\nFORMATO FICHA DE CARACTERIZACIÓN PARA LOS SERVICIOS DE ATENCIÓN A LA PRIMERA INFANCIA",null,null,{"$f":"$F$1","v":"F23.MO12.PP"},"2021-02-08"]
[null,null,null,null,null,"Versión 2","Página 29 de 37"]
[null,null,null,null,null,"Clasificación de la Información:\nPública"]
[]
[27,"Tipo de tenencia de la vivienda: ","De acuerdo con la relación que exista entre el grupo familiar con la propiedad de la vivienda donde habitan, seleccione la opción que corresponde, con base en los siguientes criterios:\n1. Propia: Aquella que ha sido comprada por parte de uno o varios miembros del hogar; puede estar totalmente paga, o la pueden estar pagando y adeudar alguna parte de su valor; o ser producto de una herencia.\n2. Familiar: Hace referencia al habitar en algún tipo de vivienda de propiedad de un familiar de otro grupo de hogar.\n3. En arriendo: Cuando se realiza un pago periódico por la habitabilidad sin tener propiedad sobre el bien raíz, este pago puede ser mensual, semanal, quincenal ó diario.\n4. Ocupante de hecho o poseedor: cuando el hogar habita en una vivienda que ha sido construida sobre un lote que no es de su propiedad o cuando el hogar ocupa una vivienda sin ser dueño de esta y sin autorización del propietario-a o administrador-a.\n5. En concesión: es el otorgamiento del derecho de explotación, por un período determinado. Titulación comunitaria: Procedimiento por medio del cual se reconoce la propiedad colectiva de unas tierras baldías, propias o adquiridas por la Agencia Nacional de tierras dentro del programa de dotación de tierras a las Comunidades Étnicas.\n6. Otra: Se refiere a albergues o cuando viven en casa de algún pariente que no pertenece al grupo familiar sin realizar pago alguno, casa de un amigo o conocido, entre otros.\nEn caso de seleccionar la opción \"6. Otra\", describa la tenencia de la vivienda, en el campo habilitado para ello."]
["R. Condiciones del entorno de la vivienda y habitabilidad"]
["R1 Habitabilidad"]
[28,"¿En dónde preparan los alimentos las personas del hogar? ","Seleccione la opción que corresponda:\n1. En un cuarto usado solo para cocinar\n2. En un cuarto usado también para dormir\n3. En una sala- comedor con lavaplatos\n4. En una sala -comedor u otro espacio de la vivienda sin lavaplatos\n5. En un patio, corredor, enramada, aire libre\n6. No preparan alimentos en la vivienda"]
[29,"¿El lugar donde viven cuenta con espacios independientes para dormitorio, cocina y baños?","De acuerdo con la distribución de la vivienda, seleccione:\nSI corresponde a contar con espacios independientes para habitación, cocina y baño.\nNO cuando las habitaciones, la cocina y el baño se encuentran en un mismo espacio o se comparten espacios."]
["R2 Energía o combustible "]
[30,"¿Con qué energía o combustible utilizan principalmente para cocinar? ","Seleccione la opción que corresponda:\n1. Electricidad: Cuando el hogar utiliza energía eléctrica para cocinar los alimentos.\n2. Gas natural: conectado a red pública (Gas domiciliario): Cuando se utiliza gas natural que\nproviene de una red exterior para cocinar los alimentos.\n3. Gas Propano \"Cilindro\": Envases donde se almacena y se transporta gas licuado de petróleo\n4. Petróleo, gasolina, kerosene, alcohol, cocinol: Cuando se utilizan combustibles inflamables como el kerosene, petróleo, gasolina, o alcohol para cocinar los alimentos.\n5. Carbón mineral: Cuando se utiliza carbón de origen mineral extraído de minas ya sean de socavón o a cielo abierto, tecnificadas o artesanales para cocinar los alimentos (DANE, 2015).\n6. Leña, madera, o carbón de leña: Cuando se utilizan materiales de combustión de origen vegetal como leña, madera o carbón de leña para cocinar los alimentos.\n7. Material de desecho: Cuando se utilizan desechos como cáscaras secas de frutas y verduras, papel.\n8. Ninguno"]
[]
["Antes de imprimir este documento… piense en el medio ambiente!"]
["Cualquier copia impresa de este documento se considera como COPIA NO CONTROLADA"]
[" LOS DATOS PROPORCIONADOS SERÁN TRATADOS DE ACUERDO A LA POLÍTICA DE TRATAMIENTO DE DATOS PERSONALES DEL ICBF Y A LA LEY 1581 DE 2012"]
[null,null,"PROCESO\nPROMOCIÓN Y PREVENCIÓN\n\nFORMATO FICHA DE CARACTERIZACIÓN PARA LOS SERVICIOS DE ATENCIÓN A LA PRIMERA INFANCIA",null,null,{"$f":"$F$1","v":"F23.MO12.PP"},"2021-02-08"]
[null,null,null,null,null,"Versión 2","Página 30 de 37"]
[null,null,null,null,null,"Clasificación de la Información:\nPública"]
[]
["R3 Acceso a servicio sanitario "]
[31,"¿Qué tipo de servicio sanitario (inodoro) tiene la vivienda donde habita el hogar? ","Seleccione la opción que corresponda para el tipo de sanitario con el que cuenta la vivienda del hogar de acuerdo con los siguientes criterios: \n1. Inodoro conectado a alcantarillado: Corresponde a un servicio sanitario que descarga a una red de alcantarillado, usualmente de servicio público.\n2. Inodoro conectado a pozo séptico: Es un pozo subterráneo al que están conectados uno varios sanitarios y en el cual quedan depositados los excrementos. Funciona mediante un sistema de agua corriente absorbida por la tierra.\n3. Inodoro sin conexión: Servicio sanitario que no cuenta con alcantarillado y en el cual las excretas son conducidas por arrastre de agua a otro sitio (calle, potrero, etc.) fuera de la vivienda.\n4. Letrina: Es un pozo o hueco subterráneo para la acumulación y eliminación de excretas en el cual no interviene un sistema de agua corriente.\n5. Inodoro con descarga directa a fuentes de agua (bajamar): Es un servicio sanitario en que las excretas caen de forma directa desde la tasa asiento a un sitio donde son arrastradas por el agua (mar, río, quebrada, arroyo, etc.).\n6. La vivienda no tiene servicio sanitario: Se registra esta alternativa cuando el hogar no cuenta con ninguno de los sistemas de eliminación de excretas descritos en las alternativas anteriores y por lo tanto las personas excretan en tierra o en las fuentes hídricas como ríos, quebradas o mar."]
["R4 Servicios públicos"]
[32,"El grupo familiar del usuario-a tiene acceso a los siguientes servicios domiciliarios: ","Seleccione la opción u opciones que correspondan, de acuerdo con los criterios que se describen a continuación:\n1. Energía Eléctrica: Servicio Público de energía eléctrica suministrada por una empresa especializada en brindar servicios domiciliarios.\n2. Acueducto: Servicio público de agua por tubería u otro ducto que está conectado a una red y cuyo suministro es relativamente permanente. Este servicio debe estar dado por una empresa especializada.\n3. Alcantarillado: Servicio público domiciliario su función específica, es la filtración para la eliminación de excretas (materias fecales y orines) y aguas servidas (agua del lavaplatos, etc.) mediante un sistema de desagüe por tuberías, prestado por una empresa especializada.\n4. Gas natural: Servicio público domiciliario de gas natural, generado para la elaboración de alimentos y/o calentar, por medio de estufa adaptada a una red exterior. No es el caso de las pipetas de gas propano.\n5. Telefonía fija: Conocido también como línea fija, línea principal, teléfono de casa o línea por cable, la telefonía fija a diferencia de la telefonía celular se puede manejar por cableado o inalámbrica.\n6. Todas las anteriores"]
["R5 Eliminación de basura"]
[33,"¿Cómo eliminan principalmente la basura en este hogar?: ","Seleccione la opción u opciones que correspondan, de acuerdo con los criterios que se describen a continuación:\n1. La recogen los servicios del aseo: Se considera que una vivienda cuenta con recolección de basuras cuando una entidad pública, privada o comunal legalmente establecida, le presta este servicio en forma regular o esporádica, en carretas, zorras, etc., destinados para este fin. Si la basura es recogida en carretas, zorras u otro medio, por personas que no están constituidas en empresas o en sociedades legalmente establecidas, se considera que la vivienda NO cuenta con servicio de recolección de basuras (DANE, 2015).\n2. La tiran a un río, quebrada, caño o laguna: Si las basuras son arrojadas directamente a corrientes de agua como ríos, quebradas o caños de aguas negras o fuentes estancadas como lagos y lagunas.\n3. La tiran a un patio, lote, zanja o baldío: Cuando la basura es tirada directamente a un patio, al interior de la vivienda o a un lote abandonado cercano a ella"]
[]
[]
["Antes de imprimir este documento… piense en el medio ambiente!"]
["Cualquier copia impresa de este documento se considera como COPIA NO CONTROLADA"]
[" LOS DATOS PROPORCIONADOS SERÁN TRATADOS DE ACUERDO A LA POLÍTICA DE TRATAMIENTO DE DATOS PERSONALES DEL ICBF Y A LA LEY 1581 DE 2012"]
[null,null,"PROCESO\nPROMOCIÓN Y PREVENCIÓN",null,null,{"$f":"$F$1","v":"F23.MO12.PP"},"2021-02-08"]
[null,null,"FORMATO FICHA DE CARACTERIZACIÓN PARA LOS SERVICIOS DE ATENCIÓN A LA PRIMERA INFANCIA",null,null,"Versión 2","Página 31 de 37"]
[null,null,null,null,null,"Clasificación de la Información:\nPública"]
[]
[null,null,"4. La queman: Si la basura es incinerada o usada como combustible.\n5. La entierran: Si la basura es depositada en un agujero en el suelo y luego tapada con tierra.\n6. La recoge un servicio informal (zorra, carreta, etc.): Se refiere al servicio informal que prestan personas particulares, que de manera personal se dedican a la recolección de basuras y desechos, es decir, no son empresas ni sociedades legalmente establecidas y acuerdan de palabra la forma de pago con las personas que requieren sus servicios.\n7. La reciclan: Cuando la basura se somete a un proceso de transformación o aprovechamiento para que puedan ser nuevamente utilizados.\n8. La elimina de otra forma: Se refiere a la eliminación de basura, cuando la opción no contemple ninguna de las anteriores alternativas."]
["R6 Riesgos del entorno de la vivienda"]
[34,"La vivienda está ubicada en o cerca de…","Seleccione la opción u opciones que correspondan, de acuerdo con los criterios que se describen a continuación:\n1. Área de deslizamiento de tierra: Vivienda situada en un lugar susceptible a movimientos en masa de la tierra provocados por la inestabilidad de la misma. \n2. Zona propensa a las inundaciones: Vivienda ubicada cerca a ríos, quebradas, canales, fuentes de agua que pueden afectarlas por su desbordamiento. \n3. Orilla de río: Vivienda propensa a verse afectada por el desbordamiento de este. \n4. Colina empinada: Vivienda situada en cerros o picos del terreno. \n5. Montaña/pila de basura: Vivienda ubicada cerca de entornos de disposición de residuos. \n6. Área de contaminación industrial: Vivienda ubicada en zona de altas descargas de contaminantes sin control y de diferente composición química.  \n7. Ferrocarril: Vivienda situada cerca a la vía que permite la circulación del tren. \n8. Central eléctrica: Vivienda ubicada cerca a cables de alta tensión. \n9. Paso elevado: Viviendas situadas en zonas elevadas susceptibles a deslizamientos. \n10. Ninguna de las anteriores\n11. Otra\nEn caso de seleccionar la opción \"11. Otra\", describa los riesgos en el entorno de la vivienda, en el campo habilitado para ello."]
["R7 Riesgos de accidentes dentro del hogar"]
[35,"Riesgos de accidentes dentro del hogar para la niña o niño: ","Seleccione la opción u opciones que correspondan, de acuerdo con los criterios que se describen a continuación:\n1. Objetos cortantes o punzantes al alcance de niñas y niños: Objetos puntiagudos como puntas de lápices, pinceles, tijeras, bisturís, entre otros objetos, falta de percepción de riesgos.\n2. Fármacos con fácil acceso o mal identificados: Dejar al alcance de las niñas y los niños medicamentos. \n3. Fósforos o encendedores o similares al alcance los niñas y las niños\n4. Recipientes con querosene, alcohol industrial, bebidas alcohólicas u otras sustancias tóxicas al alcance de las niñas y los niños: Productos que generan con mayor frecuencia intoxicaciones en las niñas y los niños productos de limpieza, cosméticos o productos de aseo personal, plaguicidas. \n5. Escaleras, azoteas o balcones sin barandas o barandas inseguras:  Riesgo de sufrir caídas por acceso a escaleras, Zonas elevadas como azoteas, balcones, paredes elevadas, ventanas cornisas, entre otros. Las caídas también son generadas desde la propia altura, falta de percepción de riesgos.\n6. Depósitos de agua destapados: Riesgo de ahogamiento por acceso a cualquier almacenamiento de como mínimo 5 cm3 de agua (bañeras, baldes, albercas, piscinas, lagos, lagunas, humedales, tanques, entre otros), falta de percepción de riesgos."]
[]
[]
["Antes de imprimir este documento… piense en el medio ambiente!"]
["Cualquier copia impresa de este documento se considera como COPIA NO CONTROLADA"]
[" LOS DATOS PROPORCIONADOS SERÁN TRATADOS DE ACUERDO A LA POLÍTICA DE TRATAMIENTO DE DATOS PERSONALES DEL ICBF Y A LA LEY 1581 DE 2012"]
[null,null,"PROCESO\nPROMOCIÓN Y PREVENCIÓN\n\nFORMATO FICHA DE CARACTERIZACIÓN PARA LOS SERVICIOS DE ATENCIÓN A LA PRIMERA INFANCIA",null,null,{"$f":"$F$1","v":"F23.MO12.PP"},"2021-02-08"]
[null,null,null,null,null,"Versión 2","Página 32 de 37"]
[null,null,null,null,null,"Clasificación de la Información:\nPública"]
[]
[null,null,"8. Hacinamiento: Riesgo de violencia intrafamiliar por las condiciones de habitabilidad. \n9. Quemaduras: Exposición de las niñas y los niños a agentes externos, ya sean físicos (sólidos calientes como planchas y estufas o, líquidos como aceite o agua, por larga exposición al sol o, por fuego), químicos (ácidos como el clorhídrico, sulfúrico, muriático, por álcalis como la soda cáustica ó quemadura de las vías respiratorias por inhalación de sus vapores), eléctricos (descargas eléctricas a diferentes voltajes) y/o cualquiera de sus combinaciones, falta de percepción de riesgos.\n10. Ninguno de las anteriores\n11. Otro\nEn caso de seleccionar la opción \"11. Otra\", describa los riesgos de accidentes en el hogar, en el campo habilitado para ello."]
["S. Acceso y calidad del agua"]
[36,"¿En el grupo familiar la fuente principal para el consumo del agua es?:","Seleccione la opción que correspondan, de acuerdo con los criterios que se describen a continuación:\n1. Acueducto: Servicio público de agua por tubería u otro ducto que está conectado a una red y cuyo suministro es relativamente permanente. Este servicio debe estar dado por una empresa especializada.\n2. Aguatero y/o carrotanque: Servicio que prestan llevando hasta las viviendas o en sitios centrales el agua por medio de carros que almacenan agua o por medio de recipientes, puede ser un servicio público o privado.\n3. Pozo-Aljibe- Jagüey: Agua obtenida de un hoyo profundo cavado en la tierra, que sirve como depósito de agua lluvia o de nacimiento, donde el agua recolectada no circula\n4. Agua Lluvia: Agua recolectada en recipientes la cual cae de la atmósfera.\n5. Rio, quebrada, manantial: Agua que proviene directamente de una fuente natural como río, quebrada, manantial o nacimiento.\n6. Agua embotellada o en bolsa: Agua que ha tenido un tratamiento previo de purificación realizado por empresas comerciales la misma es comercializada en garrafones, botellas o bolsas.\n7. Pila pública: Agua obtenida de surtidores comunitarios ubicados, en algún sitio del barrio, localidad o comunidad, fuera de la vivienda."]
[37,"¿Con qué frecuencia el grupo familiar dispone del agua para el consumo humano? ","De acuerdo con la frecuencia con la cual el grupo familiar cuenta con el agua para consumo humano seleccione: \n1. Nunca\n2.Todos los días\n3. Semanal\n4. Quincenal\n5. Mensual"]
[38,"39. ¿Al agua que se usa para consumo humano en el hogar, se le realiza algún tratamiento para que sea apta para el consumo?: ","Responsa si el hogar usa algún tratamiento para el agua con el fin de que sea apta para consumo humano:\n1. Si\n2. No\n3. No sabe"]
[39," Si la respuesta anterior es SI ¿Qué tratamiento usa?: ","Seleccione la opción que correspondan, de acuerdo con los criterios que se describen a continuación:\n1. Filtro casero: Un filtro de agua casero es un aparato compuesto generalmente de un material poroso y carbón activo, que permite purificar este líquido que viene directamente del acueducto y llega a través de los grifos. Al pasar por el filtro, este atrapa las partículas que el agua trae y pueden ser tóxicas o perjudiciales para la salud, algunos de estos elementos son arena, barro, oxido, polvo, hierro, altas cantidades de cloro y bacterias, entre otros."]
[]
[]
[]
[]
["Antes de imprimir este documento… piense en el medio ambiente!"]
["Cualquier copia impresa de este documento se considera como COPIA NO CONTROLADA"]
[" LOS DATOS PROPORCIONADOS SERÁN TRATADOS DE ACUERDO A LA POLÍTICA DE TRATAMIENTO DE DATOS PERSONALES DEL ICBF Y A LA LEY 1581 DE 2012"]
[null,null,"PROCESO\nPROMOCIÓN Y PREVENCIÓN\n\nFORMATO FICHA DE CARACTERIZACIÓN PARA LOS SERVICIOS DE ATENCIÓN A LA PRIMERA INFANCIA",null,null,{"$f":"$F$1","v":"F23.MO12.PP"},"2021-02-08"]
[null,null,null,null,null,"Versión 2","Página 33 de 37"]
[null,null,null,null,null,"Clasificación de la Información:\nPública"]
[]
[null,null,"2. Filtro OMS: Son dispositivos diseñados con los parámetros de la Organización Mundial de la Salud que eliminan el riesgo de enfermedades relacionadas con el consumo de agua no apta para el consumo humano, estos filtros van unidos a unos contenedores que tienen una capacidad de filtración de 12 litros de agua por hora y una vida útil hasta de 100000 litros, lo que representa el consumo de 100 personas durante 3 años, se coloca el agua en la parte superior de los dispositivos se espera que la fuerza de gravedad haga su efecto a través de los filtros de malla y automáticamente se obtiene agua segura .\n3. Agua hervida: Llevar el agua en un recipiente a punto de ebullición por más de un minuto para la destrucción de agentes patógenos. \n4. Agua lluvia tratada: Almacenamiento y recolección de agua proveniente de lluvias y posteriormente tratada mediante filtración y desinfección. \n5. Agua embotellada o en bolsa: Agua que ha tenido un tratamiento previo de purificación realizado por empresas comerciales la misma es comercializada en garrafones, botellas o bolsas.\n6. Carro tanque: Servicio que prestan llevando hasta las viviendas o en sitios centrales el agua por medio de carros que almacenan agua, puede ser un servicio público o privado.\n7. Pastillas potabilizadoras de agua: Tabletas efervescentes, purificadoras y desinfectantes de agua y alimentos de rápida dilución; comprende amplios escenarios de acción contra organismos patógenos causantes de enfermedades que se transmiten a través del agua. \n8. Otro.\nEn caso de seleccionar la opción \"8. Otro\", describa el tratamiento de agua utilizado, en el campo habilitado para ello."]
["T.  Dinámica Familiar"]
[40,"¿Con qué integrante del grupo familiar el niño, niña o mujer gestante tiene un lazo afectivo más fuerte?:","Seleccione la opción que corresponda, teniendo en cuenta que los lazos afectivos son los vínculos de confianza, cariño y amor que se establecen con otras personas. \n\nPara la selección tenga en cuenta las opciones de respuesta desarrolladas en el apartado P. Variables básicas de Composición del Hogar y estructura familiar  en la preguna 4. Parentesco"]
[41,"¿Qué actividad principal realizan como familia?:","Seleccione la opción que corresponde a las actividades que principalmente se desarrollan en la familia.\n Las opciones son las siguientes:\n1. Pasear\n2. Ver TV\n3. Juegos\n4. Leer\n5.Eventos religiosos\n6.Otra\n7. Ninguna\nEn caso de seleccionar la opción \"6. Otra\", describa  otras actividades como hacer deporte, ejemplo ir al rio, pescar, jugar con los animales, ir a la maloca, coger las frutas ,visitar a los familiares, visitar a los amigos, juegos de mesa o cantar, en el campo habilitado para ello."]
[42,"¿Quién toma las decisiones en la familia del usuario-a?: ","Hace referencia a la persona del hogar es quien tiene mayor peso en la toma de decisiones que se adoptan dentro del grupo familiar y es quien asume la mayor responsabilidad.\nPara la selección tenga en cuenta las opciones de respuesta desarrolladas en el apartado P. Variables básicas de Composición del Hogar y estructura familiar en la preguna 4. Parentesco"]
[]
[]
[]
[]
["Antes de imprimir este documento… piense en el medio ambiente!"]
["Cualquier copia impresa de este documento se considera como COPIA NO CONTROLADA"]
[" LOS DATOS PROPORCIONADOS SERÁN TRATADOS DE ACUERDO A LA POLÍTICA DE TRATAMIENTO DE DATOS PERSONALES DEL ICBF Y A LA LEY 1581 DE 2012"]
[null,null,"PROCESO\nPROMOCIÓN Y PREVENCIÓN\n\nFORMATO FICHA DE CARACTERIZACIÓN PARA LOS SERVICIOS DE ATENCIÓN A LA PRIMERA INFANCIA",null,null,{"$f":"$F$1","v":"F23.MO12.PP"},"2021-02-08"]
[null,null,null,null,null,"Versión 2","Página 34 de 37"]
[null,null,null,null,null,"Clasificación de la Información:\nPública"]
[]
[43,"¿Bajo qué criterio principal se fundamenta el liderazgo en la toma de decisiones?:","Seleccione la opción que corresponda teniendo en cuenta los siguientes criterios: \n1. Reconocimiento del liderazgo familiar\n2. Edad\n3. Proveedor-a económico\n4. Otro.\nEn caso de seleccionar la opción \"4. Otro\", describa el criterio de liderazgo, en el campo habilitado para ello."]
[44,"¿De qué manera resuelven los conflictos en la familia?: ","Escriba de manera textual y manera concisa de acuerdo con lo reportado en la entrevista sin dar lugar a interpretaciones por parte de quien diligencia la ficha.\nPregunta abierta"]
[45,"¿Cómo corrigen principalmente en la familia a la niña o el niño?:","Hace referencia a la principal forma de disciplina que la familia utiliza con los niños y las niñas.  Los criterios son los siguientes:\n1. Palmadas, pellizcos, etc\n2. Gritos\n3. Hablando\n4. Diálogo\n5. Buen ejemplo\n6. Otro\nEn caso de seleccionar la opción \"6. Otro\", describa otra forma de corregir por ejemplo ignorando la situación o no se habla del tema, en el campo habilitado para ello.\n"]
[46,"¿Quién corrige principalmente a la niña o el niño?: ","Seleccione la opción de quien principalmente ejerce la corrección con el niño y la niña.  \nPara la selección tenga en cuenta las opciones de respuesta desarrolladas en el apartado P. Variables básicas de Composición del Hogar y estructura familiar  en la preguna 4. Parentesco"]
[47,"De los siguientes eventos ¿cuál se han presentado o presenta en el hogar?: ","Seleccione el evento que se han presentado o se presenta actualmente en el hogar asociado a las violencias. \nLos criterios son los siguientes:\n1.Violencia sexual\n2.Violencia psicológica\n3.Violencia física\n4.Violencia por conflicto armado\n5.Castigo físico: Contiene dos elementos: “El primero consiste en la intención de corregir, disciplinar o castigar el comportamiento de la niña, niño o adolescente. El segundo elemento de carácter objetivo se configura con el uso de la fuerza física. “El Castigo Corporal parte de la falsa idea de que contribuye a la formación de los niños, niñas y adolescentes, siendo que por el contrario es una expresión de violencia”. Lineamiento técnico atención NNA con derechos inobservados, amenazados y vulnerados a causa de la violencia. ICBF.\n6. Ninguna\n7. Otra\nEn caso de seleccionar la opción \"7. Otra\", describa otro evento, en el campo habilitado para ello."]
[48,"¿Con qué frecuencia el usuario-a es tenido en cuenta para la toma de decisiones que afectan a la familia?:","Hace referencia a la frecuencia en el proceso mediante el cual se toman en cuentas las opiniones, consideraciones, intereses, necesidades y expectativas de los usuarios-as (niños/niñas y mujeres gestantes) en la toman decisiones que involucra todo el hogar. Las opciones son las siguientes:\n1. Ocasionalmente\n2. Diario\n3. Nunca"]
[]
[]
[]
[]
[]
["Antes de imprimir este documento… piense en el medio ambiente!"]
["Cualquier copia impresa de este documento se considera como COPIA NO CONTROLADA"]
[" LOS DATOS PROPORCIONADOS SERÁN TRATADOS DE ACUERDO A LA POLÍTICA DE TRATAMIENTO DE DATOS PERSONALES DEL ICBF Y A LA LEY 1581 DE 2012"]
[null,null,"PROCESO\nPROMOCIÓN Y PREVENCIÓN\n\nFORMATO FICHA DE CARACTERIZACIÓN PARA LOS SERVICIOS DE ATENCIÓN A LA PRIMERA INFANCIA",null,null,{"$f":"$F$1","v":"F23.MO12.PP"},"2021-02-08"]
[null,null,null,null,null,"Versión 2","Página 35 de 37"]
[null,null,null,null,null,"Clasificación de la Información:\nPública"]
[]
["U. Redes de apoyo"]
[49,"¿Cuenta con algún tipo de apoyo cuando se encuentra en crisis (económica, afectiva, social, entre otras) el hogar?:","Seleccione SI/NO ante alguna crisis presente en el hogar del usuario-a, se cuenta con algún tipo de apoyo del estado, de la comunidad o de la familia."]
[50,"51. Si respondió si, indique ¿De quién?: "," Si en la pregunta anterior la respuesta fue SI, seleccione:\n1. Estado: Hace referencia a los apoyos o subsidios suministrados por una entidad pública del orden distrital, departamental o nacional, en efectivo o especie, representado en alimentación, educación, salud, vivienda recreación, deporte, cultura, de forma esporádica o permanente.\n2. Comunidad: Alude a los apoyos o subsidios suministrados por una organización social y/o comunitaria en efectivo o especie, representado en alimentación, educación, salud, vivienda recreación, deporte, cultura, de forma esporádica o permanente.\n3. Familia: Apoyo económico, en especie, moral, entre otros, por alguna persona del sistema familiar.\n"]
["V. Variables de familia específicas con el niño o la niña"]
["Aplica solo para registro de niñas y niños"]
["V1 Cuidador-a y cuidado de la niña/niño"]
[51,"¿Nombre del cuidador-a principal del niño o la niña?: ","Escriba el nombre completo de la persona quien principalmente ejerce el cuidado de la niña o el niño, puede ser integrante de su hogar o no."]
[52,"¿Cuál es el tipo de parentesco o afinidad con el niño o la niña?:","Hace referencia al parentesco o afinidad que tiene el cuidador-a con el niño o la niña que tiene a su cuidado. \n1. Familiar\n2. Social\n3. Comunitario\n4. Institucional"]
[53,"¿Qué edad tiene el cuidador-a principal?:","Escriba la edad del cuidador-a principal del niño o niña en años. (Ejemplo: 25 años)"]
[54,"¿Cuál es la actividad principal del cuidador en este momento?:","Seleccione de la opción que corresponda.\n1. Trabajando: se define que la persona se encuentra trabajando cuando dedica la mayor parte de su tiempo a desarrollar una actividad relacionada con el intercambio de tiempo, conocimiento y/o fuerza por dinero.\n2. Buscando Trabajo: son las personas que habían tomado medidas concretas para buscar un empleo asalariado o independiente en las últimas cuatro semanas.\n3. Oficios del hogar: el o la integrante del hogar dedica la mayor parte de su tiempo a realizar actividades relacionadas con la limpieza de la vivienda, la preparación de alimentos y el cuidado de niños-as y/o adultos.\n4. Estudiando: una persona se considera asistiendo a la escuela u otra institución de enseñanza formal, cuando está matriculada en un centro de educación formal regular o para adultos y no se ha retirado, aún cuando esté ausente temporalmente por enfermedad, vacaciones u otra causa, aunque asista solamente parte del día.\n5. Rentista: Persona que cobra una renta por bienes que posee.\n6. Jubilado-a/pensionado-a: trabajador jubilado que recibe las prestaciones correspondientes de acuerdo con la legislación de cada país.\n7. Cuidador-a: Persona que ejerce el cuidado de un tercero.\n8. Sin actividad\n9. Privada de la libertad: Cuando una persona es encarcelada, puede decirse que se la ha privado de su libertad. La privación, en este caso, es legal. \n10. Otro\nEn caso de seleccionar la opción \"10. Otro\", describa la actividad principal del cuidador, en el campo habilitado para ello."]
["Antes de imprimir este documento… piense en el medio ambiente!"]
["Cualquier copia impresa de este documento se considera como COPIA NO CONTROLADA"]
[" LOS DATOS PROPORCIONADOS SERÁN TRATADOS DE ACUERDO A LA POLÍTICA DE TRATAMIENTO DE DATOS PERSONALES DEL ICBF Y A LA LEY 1581 DE 2012"]
[null,null,"PROCESO\nPROMOCIÓN Y PREVENCIÓN\n\nFORMATO FICHA DE CARACTERIZACIÓN PARA LOS SERVICIOS DE ATENCIÓN A LA PRIMERA INFANCIA",null,null,{"$f":"$F$1","v":"F23.MO12.PP"},"2021-02-08"]
[null,null,null,null,null,"Versión 2","Página 36 de 37"]
[null,null,null,null,null,"Clasificación de la Información:\nPública"]
[]
[55,"¿Si se encuentra trabajando, qué tipo de situación laboral presenta?:","Si el cuidador se encuentra trabajando, seleccione entre estas opciones:\n1. Empleado con contrato laboral: Contrato de trabajo es aquel por el cual una persona natural se obliga a prestar un servicio personal a otra persona, natural o jurídica, bajo la continuada dependencia o subordinación de la segunda y mediante remuneración. Código Sustantivo del trabajo. Artículo 22. \n2. Independiente: son personas que trabajan sin estar vinculadas a una empresa, es decir, no gozan de un contrato de trabajo sino de servicios\n3. No aplica:  Esta opción será utilizada o seleccionada, cuando la mujer gestante referencia que se encuentra en alguna de las situaciones de la pregunta anterior ubicadas en la lista desde el punto 2 hasta el 10.\n"]
[56,"¿Cuánto tiempo pasa el cuidador-a con el niño o la niña al día?:","Seleccione el promedio diario de cuidado con el niño o la niña. Las opciones son los siguientes:\n1. Entre una hora a dos diarias\n2. Entre dos a cuatro horas diarias\n3. Más de 4 horas diarias \n"]
[57,"¿La niña o el niño queda en algún momento solo-a?:","Seleccione SI/NO en algún momento del día la niña o el niño se queda sin el cuidado de alguna persona adulta responsable. "]
[58,"Si queda solo-a, ¿Cuánto tiempo queda solo- a?:","Si la respuesta a la pregunta anterior fue Si, seleccione el tiempo en número de horas que el niño o la niña se queda solo-a:\n1. Menos de una hora\n2. Entre una y tres horas\n3. Más de tres horas\n4. No aplica"]
["V2 Recursos en familia"]
[59,"En los pasados tres días(3) usted o alguien de su hogar mayor de 15 años de edad, ¿Qué actividades realizó con la niña o el niño?:","Seleccione una o varias actividades que ha realizado el grupo familiar con el niño o la niña en los últimos 3 días:\n1. Leer un libro o ver las imágenes de un libro con él/ella      \n2. Contarle historias y cuentos         \n3. Cantar canciones con él o ella         \n4. Llevarlo-a afuera de la casa a un patio u otro lugar abierto    \n5. Pasar tiempo con él o ella nombrando cosas, contando, pintando, adivinando o repitiendo trabalenguas cortos.          \n6. Mirando en la  TV o en el celular un programa infantil\n7. Jugar con él/ella con diversos objetos.\n8. Explorar con él/ella en el jardín, parque, museo, biblioteca infantil, sala de lectura\n9. Baila con él/ella en algunos momentos del día\n10. Ninguna \n"]
[60,"¿Quién o quiénes realizaron la actividad?:","Si en la pregunta anterior se seleccionó una o algunas actividades, seleccione el o los integrantes del hogar que participaron."]
[61,"¿Cuántos libros infantiles para niñas y niños tiene en el hogar?:","Escriba / digite el número de libros infantiles acordes con el sentido de la educación inicial con los que cuenta el niño y la niña."]
[62,"¿La niña o el niño tiene juguetes en el hogar?:","Seleccione SI/NO el niño o a la niña tiene juguetes en su vivienda. Estos no solo se refieren a juguetes comprados sino aquellos construidos con materiales reutilizables o elementos propios de la vivienda."]
[63,"¿Con qué cosas juega la niña o el niño cuando está en casa?:","Escriba textualmente según lo manifestado por el entrevistador los objetos o elementos, con los cuales el niño a el niño juega en el hogar."]
[]
["Antes de imprimir este documento… piense en el medio ambiente!"]
["Cualquier copia impresa de este documento se considera como COPIA NO CONTROLADA"]
[" LOS DATOS PROPORCIONADOS SERÁN TRATADOS DE ACUERDO A LA POLÍTICA DE TRATAMIENTO DE DATOS PERSONALES DEL ICBF Y A LA LEY 1581 DE 2012"]
[null,null,"PROCESO\nPROMOCIÓN Y PREVENCIÓN\n\nFORMATO FICHA DE CARACTERIZACIÓN PARA LOS SERVICIOS DE ATENCIÓN A LA PRIMERA INFANCIA",null,null,{"$f":"$F$1","v":"F23.MO12.PP"},"2021-02-08"]
[null,null,null,null,null,"Versión 2","Página 37 de 37"]
[null,null,null,null,null,"Clasificación de la Información:\nPública"]
[]
["V3 Interacciones con la niña y el niño"]
[64,"¿Qué tipo de reconocimientos le dan a la niña o el niño por sus logros?:","Seleccione de la lista desplegable los incentivos o reconocimientos que utilizan con el niño o la niña por algún logro, las opciones son las siguientes:\nOpciones de respuesta:\n1. Le da un regalo\n2. Lo dejan salir a jugar\n3. Lo felicitan verbalmente\n4. Otro\nEn caso de seleccionar la opción \"4. Otro\", describa el tipo de reconocimiento, en el campo habilitado para ello.\n"]
[65,"¿Cuál o cuáles son las principales normas y límites establecidas en la familia para la niña y el niño?:","Escriba las principales normas, reglas o límites que se establecen en el hogar en relación con la niña o el niño. De no establecerse ninguna norma escriba Ninguna. \nPregunta abierta."]
[66,"¿Cuál o cuáles son los gustos e intereses de la niña o el niño? ","Escriba los principales gustos e intereses identificados en las familias que tenga el niño o la niña. \nPregunta abierta"]
[]
["CONTROL DE CAMBIOS"]
["Fecha",null,"Versión","Descripción del cambio"]
[]
[]
[]
[]
[]
[]
[]
[]
[]
[]
[]
[]
[]
[]
[]
[]
[]
[]
[]
[]
[]
[]
[]
[]
[]
[]
[]
[]
[]
[]
[]
[]
[]
["Antes de imprimir este documento… piense en el medio ambiente!"]
["Cualquier copia impresa de este documento se considera como COPIA NO CONTROLADA"]
[" LOS DATOS PROPORCIONADOS SERÁN TRATADOS DE ACUERDO A LA POLÍTICA DE TRATAMIENTO DE DATOS PERSONALES DEL ICBF Y A LA LEY 1581 DE 2012"]

{"sheet":"V_IMPRIMIBLE_NN","index":2,"n_rows":271,"n_cols":50,"rows_kept":271,"cut":false,"hidden":false,"merged":[[63,37,63,50],[99,5,101,40],[129,5,131,40],[177,5,179,40],[224,5,226,40],[268,0,268,50],[182,46,183,50],[190,45,191,50],[205,36,206,48],[218,0,218,50],[182,14,183,21],[182,23,185,27],[177,0,179,4],[177,41,177,45],[177,46,177,50],[178,41,178,45],[178,46,178,50],[179,41,179,50],[171,0,171,50],[172,0,172,50],[173,0,173,50],[174,0,176,50],[153,20,154,30],[164,27,165,38],[269,0,269,50],[270,0,270,50],[271,0,273,50],[230,25,231,28],[248,1,249,11],[242,0,243,25],[242,45,244,50],[219,0,219,50],[220,0,220,50],[221,0,223,50],[224,0,226,4],[224,41,224,45],[224,46,224,50],[225,41,225,45],[225,46,225,50],[226,41,226,50],[146,19,147,26],[134,21,135,27],[123,0,123,50],[124,0,124,50],[125,0,125,50],[126,0,128,50],[129,0,131,4],[129,41,129,45],[129,46,129,50],[130,41,130,45],[130,46,130,50],[131,41,131,50],[122,39,122,40],[122,41,122,42],[122,43,122,44],[122,45,122,47],[122,48,122,50],[121,43,121,44],[121,45,121,47],[121,48,121,50],[122,1,122,3],[122,4,122,6],[122,7,122,12],[122,13,122,14],[122,15,122,18],[122,22,122,23],[122,24,122,26],[122,27,122,28],[122,29,122,30],[122,31,122,32],[122,33,122,34],[122,35,122,36],[122,37,122,38],[121,33,121,34],[121,35,121,36],[121,37,121,38],[121,39,121,40],[121,41,121,42],[121,22,121,23],[121,24,121,26],[121,27,121,28],[121,29,121,30],[121,31,121,32],[121,1,121,3],[121,4,121,6],[121,7,121,12],[121,13,121,14],[121,15,121,18],[120,39,120,40],[120,41,120,42],[120,43,120,44],[120,45,120,47],[120,48,120,50],[119,43,119,44],[119,45,119,47],[119,48,119,50],[120,1,120,3],[120,4,120,6],[120,7,120,12],[120,13,120,14],[120,15,120,18],[120,22,120,23],[120,24,120,26],[120,27,120,28],[120,29,120,30],[120,31,120,32],[120,33,120,34],[120,35,120,36],[120,37,120,38],[119,33,119,34],[119,35,119,36],[119,37,119,38],[119,39,119,40],[119,41,119,42],[119,22,119,23],[119,24,119,26],[119,27,119,28],[119,29,119,30],[119,31,119,32],[119,1,119,3],[119,4,119,6],[119,7,119,12],[119,13,119,14],[119,15,119,18],[118,39,118,40],[118,41,118,42],[118,43,118,44],[118,45,118,47],[118,48,118,50],[117,43,117,44],[117,45,117,47],[117,48,117,50],[118,1,118,3],[118,4,118,6],[118,7,118,12],[118,13,118,14],[118,15,118,18],[118,22,118,23],[118,24,118,26],[118,27,118,28],[118,29,118,30],[118,31,118,32],[118,33,118,34],[118,35,118,36],[118,37,118,38],[117,33,117,34],[117,35,117,36],[117,37,117,38],[117,39,117,40],[117,41,117,42],[117,22,117,23],[117,24,117,26],[117,27,117,28],[117,29,117,30],[117,31,117,32],[117,1,117,3],[117,4,117,6],[117,7,117,12],[117,13,117,14],[117,15,117,18],[116,39,116,40],[116,41,116,42],[116,43,116,44],[116,45,116,47],[116,48,116,50],[115,43,115,44],[115,45,115,47],[115,48,115,50],[116,1,116,3],[116,4,116,6],[116,7,116,12],[116,13,116,14],[116,15,116,18],[116,22,116,23],[116,24,116,26],[116,27,116,28],[116,29,116,30],[116,31,116,32],[116,33,116,34],[116,35,116,36],[116,37,116,38],[115,31,115,32],[115,33,115,34],[115,35,115,36],[115,37,115,38],[115,39,115,40],[115,41,115,42],[114,37,114,38],[114,39,114,40],[114,41,114,42],[115,1,115,3],[115,4,115,6],[115,7,115,12],[115,13,115,14],[115,15,115,18],[115,22,115,23],[115,24,115,26],[115,27,115,28],[115,29,115,30],[113,41,113,42],[113,43,113,44],[113,45,113,47],[113,48,113,50],[114,1,114,3],[114,4,114,6],[114,7,114,12],[114,13,114,14],[114,15,114,18],[114,22,114,23],[114,24,114,26],[114,27,114,28],[114,29,114,30],[114,31,114,32],[114,33,114,34],[114,35,114,36],[114,48,114,50],[114,43,114,44],[114,45,114,47],[111,48,112,50],[113,1,113,3],[113,4,113,6],[113,7,113,12],[113,13,113,14],[113,15,113,18],[113,22,113,23],[113,24,113,26],[113,27,113,28],[113,29,113,30],[113,31,113,32],[113,33,113,34],[113,35,113,36],[113,37,113,38],[113,39,113,40],[111,29,112,30],[111,31,112,32],[111,33,112,34],[111,35,112,36],[111,37,112,38],[111,39,112,40],[111,41,112,42],[111,43,112,44],[111,45,112,47],[111,0,112,0],[111,1,112,3],[111,4,112,6],[111,7,112,12],[111,13,112,14],[111,15,112,18],[111,22,112,23],[111,24,112,26],[111,27,112,28],[111,19,111,21],[99,0,101,4],[99,41,99,45],[99,46,99,50],[100,41,100,45],[100,46,100,50],[101,41,101,50],[15,18,15,23],[39,0,40,6],[39,12,40,18],[42,0,43,6],[42,13,44,19],[34,32,35,37],[34,42,35,47],[34,0,35,4],[30,8,31,15],[27,0,28,6],[30,38,31,42],[17,8,17,13],[17,21,17,26],[59,0,60,6],[59,13,60,18],[68,9,69,16],[96,0,98,50],[85,0,86,6],[9,6,9,13],[6,0,6,5],[0,0,2,4],[0,41,0,45],[0,46,0,50],[1,41,1,45],[1,46,1,50],[2,41,2,50],[4,1,4,49],[0,5,2,40],[11,6,11,13],[15,0,15,5],[56,0,57,6],[56,13,57,18],[46,0,46,50],[47,0,47,50],[49,0,50,50],[51,0,53,4],[51,41,51,45],[51,46,51,50],[52,41,52,45],[52,46,52,50],[53,41,53,50],[48,0,48,50],[51,5,53,40],[95,0,95,50],[85,15,87,19],[89,0,91,5],[93,0,93,50],[94,0,94,50],[68,0,70,5],[68,18,70,25],[68,41,69,50],[75,0,76,6],[75,13,76,18],[79,0,81,7],[79,16,81,25],[79,38,80,50]]}
[null,null,null,null,null,"PROCESO\nPROMOCIÓN Y PREVENCIÓN\n\nFORMATO FICHA DE CARACTERIZACIÓN PARA LOS SERVICIOS DE ATENCIÓN A LA PRIMERA INFANCIA",null,null,null,null,null,null,null,null,null,null,null,null,null,null,null,null,null,null,null,null,null,null,null,null,null,null,null,null,null,null,null,null,null,null,null,{"$f":"PORTADA!K1","v":"F23.MO12.PP"},null,null,null,null,"2021-02-08"]
[null,null,null,null,null,null,null,null,null,null,null,null,null,null,null,null,null,null,null,null,null,null,null,null,null,null,null,null,null,null,null,null,null,null,null,null,null,null,null,null,null,"Versión 2",null,null,null,null,"Página 1 de 6"]
[null,null,null,null,null,null,null,null,null,null,null,null,null,null,null,null,null,null,null,null,null,null,null,null,null,null,null,null,null,null,null,null,null,null,null,null,null,null,null,null,null,"Clasificación de la Información:\nPública"]
[]
[null,"FICHA DE CARACTERIZACIÓN PARA LOS SERVICIOS DE ATENCIÓN A LA PRIMERA INFANCIA ICBF\nNIÑA Y NIÑO / FAMILIA"]
[]
["1. Fecha de diligenciamiento",null,null,null,null,null,"D","D","M","M","A","A","A","A"]
[]
["I. INFORMACIÓN UNIDAD DE SERVICIO"]
["2. Regional",null,null,null,null,null,null,null,null,null,null,null,null,null,null,"3. Centro Zonal",null,null,null,null,null,null,null,null,null,null,null,null,null,null,"4. NIT Entidad "]
[]
["5. Código CUÉNTAME UDS",null,null,null,null,null,null,null,null,null,null,null,null,null,null,"6. Nombre Agente Educativo que diligencia la ficha"]
[]
["II. MÓDULO 1: NIÑA Y NIÑO"]
["A. Variables Básicas"]
["7. Fecha de nacimiento",null,null,null,null,null,"D","D","M","M","A","A","A","A",null,"8. Edad",null,null,null,null,null,null,null,null,null,"9. País de Nacimiento",null,null,null,null,null,null,null,null,null,null,null,null,"10. Nacionalidad Principal"]
[]
["10.1 Si, tiene segunda nacionalidad, indique",null,null,null,null,null,null,null,null,null,null,null,null,null,null,"11. Departamento de residencia",null,null,null,null,null,null,null,null,null,null,null,null,"12. Municipio de residencia",null,null,null,null,null,null,null,null,null,null,null,"13. Número celular acudiente"]
[]
["14. Tipo documento de identidad",null,null,null,null,null,null,"1. Registro Civil ",null,null,null,"2. Tarjeta de identidad",null,null,null,null,null,null,null,null,"15. Número de documento"]
[null,null,null,null,null,null,null,"3. Pasaporte",null,null,null,"4. Permiso especial de permanencia (PEP)"]
[null,null,null,null,null,null,null,"5. No tiene",null,null,null,null,null,null,null,null,null,null,null,null,"16. Nombres",null,null,null,null,null,null,null,null,null,null,null,null,null,null,null,"17. Apellidos"]
[]
["18. Sexo",null,null,null,"1. Mujer",null,null,null,null,null,"19. Niña o niño con discapacidad",null,null,null,null,null,null,null,null,"SI",null,null,"20. Categoría de discapacidad",null,null,null,null,null,null,"1. Física",null,null,null,null,"4. Auditiva",null,null,null,null,"7. Múltiple ",null,null,null,null,null,null,"10. Voz y habla"]
[null,null,null,null,"2. Hombre",null,null,null,null,null,null,null,null,null,null,null,null,null,null,"NO",null,null,null,null,null,null,null,null,null,"2. Intelectual",null,null,null,null,"5. Visual",null,null,null,null,"8. Sensorial (gusto, olfato, tacto)",null,null,null,null,null,null,"11. Piel, pelo y uñas"]
[null,null,null,null,"3. Intersexual",null,null,null,null,null,null,null,null,null,null,null,null,null,null,null,null,null,null,null,null,null,null,null,null,"3. Psicosocial",null,null,null,null,"6. Sordo ceguera",null,null,null,null,"9. Sistémica ",null,null,null,null,null,null,"12. Ninguna"]
[]
["21. Grupo étnico con el que se reconoce la familia de la niña o el niño",null,null,null,null,null,null,null,"1. Población indígena",null,null,null,null,null,null,null,null,"5. Población Gitana o Rrom",null,null,null,null,null,null,null,"22. ¿Qué lengua o lenguas utilizan para comunicarse con el niño o la niña? (ver opciones en instructivo)"]
[null,null,null,null,null,null,null,null,"2. Población Negra",null,null,null,null,null,null,null,null,"6. Población Palenquera",null,null,null,null,null,null,null,"22.1 Lengua Principal",null,null,null,null,null,null,null,null,null,null,null,null,"22.2 Lengua Secundaria"]
[null,null,null,null,null,null,null,null,"3.  Población Afrocolombiana",null,null,null,null,null,null,null,null,"7. Ninguno"]
[null,null,null,null,null,null,null,null,"4.  Población Raizal descendiente del Archipiélago de San Andrés, Providencia y Santa Catalina",null,null,null,null,null,null,null,null,null,null,null,null,null,null,null,null,"22.3 Lengua Terciaria",null,null,null,null,null,null,null,null,null,null,null,null,"22.4 Si, respondió \"75. Otro\", indique cuál"]
[]
[]
["B. Condiciones habitacionales"]
["23. ¿La niña o el niño duerme en ?",null,null,null,null,null,"1.Hamaca",null,null,null,"3. Colchoneta",null,null,null,null,"5. Cuna",null,null,null,"7. Otro",null,null,"23.1 Si, respondió \"7.Otro\", indique cuál",null,null,null,null,null,null,null,null,null,"24. ¿La niña o el niño duerme con adultos en la misma habitación?",null,null,null,null,null,null,"SI",null,null,"25. ¿La niña o el niño duerme con adultos en la misma cama?",null,null,null,null,null,null,"SI"]
[null,null,null,null,null,null,"2. Cama",null,null,null,"4. Estera",null,null,null,null,"6. Plancha",null,null,null,null,null,null,null,null,null,null,null,null,null,null,null,null,null,null,null,null,null,null,null,"NO",null,null,null,null,null,null,null,null,null,"NO"]
[]
["C. Atenciones en salud"]
["C1 Validación servicios de salud"]
["26.¿La niña o niño se encuentra afiliado (a) al Sistema General de Seguridad Social en Salud?",null,null,null,null,null,null,null,"Afiliado",null,null,null,"27. En caso de no estar afiliado al Sistema General de Seguridad Social en Salud ¿Cuál es la razón?",null,null,null,null,null,null,null,"1. En trámite",null,null,null,null,"3. No sabe que debe afiliarse",null,null,null,null,null,null,"5. No hay entidad cercana",null,null,null,null,null,"27.1 Si la respuesta anterior fue \"Otra\", diligenciar cuál,"]
[null,null,null,null,null,null,null,null,"No afiliado",null,null,null,null,null,null,null,null,null,null,null,"2. Falta de dinero",null,null,null,null,"4. No le interesa",null,null,null,null,null,null,"6. Otra"]
[]
["28. ¿La niña o niño cuenta con el esquema de vacunación completo, según la edad?",null,null,null,null,null,null,null,"Esquema Completo",null,null,null,null,"29. En caso de que no contar con el esquema de vacunación completo según la edad de la niña o el niño, ¿Cuál es la razón?",null,null,null,null,null,null,null,"1. Falta de dinero",null,null,null,null,null,"4. Pertenece a movimiento anti vacunas",null,null,null,null,null,null,null,"7. Otra",null,null,"29.1. Si la respuesta anterior fue \"7. Otra\", diligenciar cuál,"]
[null,null,null,null,null,null,null,null,"Esquema Incompleto",null,null,null,null,null,null,null,null,null,null,null,null,"2. No sabe que debe vacunarse",null,null,null,null,null,"5. No hay entidad cercana."]
[null,null,null,null,null,null,null,null,null,null,null,null,null,null,null,null,null,null,null,null,null,"3. No le interesa ",null,null,null,null,null,"6. Motivos religiosos"]
[]
["Antes de imprimir este documento… piense en el medio ambiente!"]
["Cualquier copia impresa de este documento se considera como COPIA NO CONTROLADA"]
[" LOS DATOS PROPORCIONADOS SERÁN TRATADOS DE ACUERDO A LA POLÍTICA DE TRATAMIENTO DE DATOS PERSONALES DEL ICBF Y A LA LEY 1581 DE 2012"]
[]
[]
[null,null,null,null,null,"PROCESO\nPROMOCIÓN Y PREVENCIÓN\n\nFORMATO FICHA DE CARACTERIZACIÓN PARA LOS SERVICIOS DE ATENCIÓN A LA PRIMERA INFANCIA",null,null,null,null,null,null,null,null,null,null,null,null,null,null,null,null,null,null,null,null,null,null,null,null,null,null,null,null,null,null,null,null,null,null,null,{"$f":"$AP$1","v":"F23.MO12.PP"},null,null,null,null,"2021-02-08"]
[null,null,null,null,null,null,null,null,null,null,null,null,null,null,null,null,null,null,null,null,null,null,null,null,null,null,null,null,null,null,null,null,null,null,null,null,null,null,null,null,null,"Versión 2",null,null,null,null,"Página 2 de 6"]
[null,null,null,null,null,null,null,null,null,null,null,null,null,null,null,null,null,null,null,null,null,null,null,null,null,null,null,null,null,null,null,null,null,null,null,null,null,null,null,null,null,"Clasificación de la Información:\nPública"]
[]
[" Si la niña o el niño es mayor de 6 meses, contestar las siguientes preguntas (No. 30 - 33). De lo contrario pasar a la pregunta 34."]
["30. Si la niña o el niño es mayor de 6 meses ¿Ha tenido atención en salud bucal?",null,null,null,null,null,null,null,"Con atención salud bucal",null,null,null,null,"31. En caso de no contar con la atención en la salud  bucal\n ¿Cuál es el motivo?",null,null,null,null,null,null,"1. Falta de dinero",null,null,null,null,null,null,null,"3. No le interesa ",null,null,null,null,null,"5. Motivos religiosos",null,null,null,null,"31.1 Si la respuesta anterior fue \"6. Otro\", diligenciar cuál,"]
[null,null,null,null,null,null,null,null,"Sin atención salud bucal",null,null,null,null,null,null,null,null,null,null,null,"2. No sabe la utilidad de esta valoración",null,null,null,null,null,null,null,"4. No hay entidad cercana.",null,null,null,null,null,"6. Otro "]
[]
["32. ¿La niña o el niño ha recibido valoración de la salud auditiva y comunicativa?",null,null,null,null,null,null,null,"Con valoración auditiva",null,null,null,null,"33. En caso de no contar con la atención en la salud  auditiva y comunicativa ¿Cuál es el motivo?",null,null,null,null,null,null,"1. Falta de dinero",null,null,null,null,null,null,null,"3. No le interesa ",null,null,null,null,null,"5. Motivos religiosos",null,null,null,null,"33.1 Si la respuesta anterior fue \"6. Otro\", diligenciar cuál,"]
[null,null,null,null,null,null,null,null,"Sin valoración auditiva",null,null,null,null,null,null,null,null,null,null,null,"2. No sabe la utilidad de esta valoración",null,null,null,null,null,null,null,"4. No hay entidad cercana.",null,null,null,null,null,"6. Otro "]
[]
["Si la niña o el niño es mayor de 3 años, contestar la siguiente pregunta (No. 34). De lo contrario pasar a la pregunta 35."]
["34. Si la niña o niño es mayor de (3) tres años ¿Ha recibido valoración  de la salud visual?",null,null,null,null,null,null,null,null,null,null,null,null,null,null,null,null,null,"SI",null,"35.¿La niña o niño es alérgico a algún medicamento o alimento?",null,null,null,null,null,null,null,null,null,null,null,null,"1. Si",null,null,null,"36. Si la respuesta anterior es SI, indique el medicamento o alimento al\n cuál es alérgico,"]
[null,null,null,null,null,null,null,null,null,null,null,null,null,null,null,null,null,null,"NO",null,null,null,null,null,null,null,null,null,null,null,null,null,null,"2. No"]
[null,null,null,null,null,null,null,null,null,null,null,null,null,null,null,null,null,null,null,null,null,null,null,null,null,null,null,null,null,null,null,null,null,"3. No sabe"]
[]
["C2 Valoración integral en salud"]
["37.La niña o niño ¿cuenta con la valoración integral del desarrollo en salud según la edad? ",null,null,null,null,null,null,"SI",null,"38. Si la niña o niño cuenta con valoración integral en salud, indique la fecha de la ultima cita a la que asistió",null,null,null,null,null,null,null,null,"39. En caso de que no contar con la valoración integral del desarrollo en salud según la edad de la niña o el niño, \n¿Cuál es la razón?",null,null,null,null,null,null,null,null,"1. Falta de dinero",null,null,null,null,null,null,null,"4. No hay entidad cercana",null,null,null,null,null,"39.1 Si la respuesta anterior fue \"5. Otro\", diligenciar cuál,"]
[null,null,null,null,null,null,null,"NO",null,null,null,null,null,null,null,null,null,null,null,null,null,null,null,null,null,null,null,"2. No sabe que debe recibir esta atención",null,null,null,null,null,null,null,"5. Otro "]
[null,null,null,null,null,null,null,null,null,"D","D","M","M","A","A","A","A",null,null,null,null,null,null,null,null,null,null,"3. No le interesa"]
[]
["D. Lactancia Materna y Alimentación Complementaria"]
["D1 Niña/Niño menor de 6 meses"]
["Si la niña o el niño es menor de 6 meses, contestar las siguientes preguntas (No. 40 - 44). De lo contrario pasar a la pregunta 45."]
["40. ¿La niña o el niño recibe leche materna?",null,null,null,null,null,null,null,"Si recibe leche materna",null,null,null,null,"41. Si la respuesta anterior es negativa, ¿cuál es el motivo?",null,null,null,null,null,null,"1. Empleo",null,null,null,null,null,null,"4. Falta de motivación",null,null,null,null,null,"7. Presión familiar ",null,null,null,null,"41.1 Si la respuesta anterior fue \"8. Otro\", describa cuál"]
[null,null,null,null,null,null,null,null,"No recibe leche materna",null,null,null,null,null,null,null,null,null,null,null,"2. Ausencia de la madre",null,null,null,null,null,null,"5. No sabe como hacerlo ",null,null,null,null,null,"8. Otro "]
[null,null,null,null,null,null,null,null,null,null,null,null,null,null,null,null,null,null,null,null,"3. Dificultades en el amamantamiento",null,null,null,null,null,null,"6. Tratamiento médico"]
[]
["42. Es alimentado exclusivamente con leche materna (no se le ofrece ningún otro alimento o bebida, incluyendo agua y/o leche de fórmula) ",null,null,null,null,null,null,null,null,"Si, exclusivamente leche materna",null,null,null,null,null,null,"43. Si la respuesta anterior es negativa, ¿a qué edad le ofreció alimentos diferentes a la leche materna (incluyendo agua y/o leche de fórmula)?",null,null,null,null,null,null,null,null,null,null,"1. (0 meses)",null,null,null,null,null,"4. (3 meses)",null,null,null,null,"44. ¿Cuál fue el primer alimento que proporcionó diferente a leche materna o de formula?"]
[null,null,null,null,null,null,null,null,null,"No, recibe otros alimentos",null,null,null,null,null,null,null,null,null,null,null,null,null,null,null,null,null,"2. (1 mes)",null,null,null,null,null,"5. (4 meses)"]
[null,null,null,null,null,null,null,null,null,null,null,null,null,null,null,null,null,null,null,null,null,null,null,null,null,null,null,"3. (2 meses)",null,null,null,null,null,"6. (5 meses)"]
[]
["D2 Niña/Niño entre 7 meses y 2 años"]
["Si la niña o el niño tiene entre 7 meses y 2 años, contestar las siguientes preguntas (No. 45 - 48). De lo contrario continúe con el registro del módulo 3."]
["45. ¿La niña o el niño recibió leche materna de forma exclusiva?",null,null,null,null,null,null,null,"Si recibió leche materna exclusiva",null,null,null,null,null,null,"46. Si la respuesta anterior es negativa, ¿cuál fue el motivo?",null,null,null,null,null,"1. Empleo",null,null,null,null,null,null,"4. Falta de motivación",null,null,null,null,null,"7. Presión familiar ",null,null,null,"46.1 Si la respuesta anterior fue \"8. Otro\", describa cuál"]
[null,null,null,null,null,null,null,null,"No recibió leche materna exclusiva",null,null,null,null,null,null,null,null,null,null,null,null,"2. Ausencia de la madre",null,null,null,null,null,null,"5. No sabia como hacerlo ",null,null,null,null,null,"8. Otro "]
[null,null,null,null,null,null,null,null,null,null,null,null,null,null,null,null,null,null,null,null,null,"3. Dificultades en el amamantamiento",null,null,null,null,null,null,"6. Tratamiento médico"]
[]
["47. ¿A qué edad le ofreció alimentos diferentes a la leche materna?",null,null,null,null,null,null,"1. (0 meses)",null,null,null,"4. (3 meses)",null,null,null,"7. (6 meses)",null,null,null,"10. (9 meses)",null,null,null,"13. (12 meses)",null,null,null,"48. ¿Cuál fue el primer alimento que proporcionó diferente a leche materna?"]
[null,null,null,null,null,null,null,"2. (1 mes)",null,null,null,"5. (4 meses)",null,null,null,"8. (7 meses)",null,null,null,"11. (10 meses)"]
[null,null,null,null,null,null,null,"3. (2 meses)",null,null,null,"6. (5 meses)",null,null,null,"9. (8 meses)",null,null,null,"12. (11 meses)"]
[]
["Antes de imprimir este documento… piense en el medio ambiente!"]
["Cualquier copia impresa de este documento se considera como COPIA NO CONTROLADA"]
[" LOS DATOS PROPORCIONADOS SERÁN TRATADOS DE ACUERDO A LA POLÍTICA DE TRATAMIENTO DE DATOS PERSONALES DEL ICBF Y A LA LEY 1581 DE 2012"]
[]
[]
[]
[null,null,null,null,null,"PROCESO\nPROMOCIÓN Y PREVENCIÓN\n\nFORMATO FICHA DE CARACTERIZACIÓN PARA LOS SERVICIOS DE ATENCIÓN A LA PRIMERA INFANCIA",null,null,null,null,null,null,null,null,null,null,null,null,null,null,null,null,null,null,null,null,null,null,null,null,null,null,null,null,null,null,null,null,null,null,null,{"$f":"$AP$1","v":"F23.MO12.PP"},null,null,null,null,"2021-02-08"]
[null,null,null,null,null,null,null,null,null,null,null,null,null,null,null,null,null,null,null,null,null,null,null,null,null,null,null,null,null,null,null,null,null,null,null,null,null,null,null,null,null,"Versión 2",null,null,null,null,"Página 3 de 6"]
[null,null,null,null,null,null,null,null,null,null,null,null,null,null,null,null,null,null,null,null,null,null,null,null,null,null,null,null,null,null,null,null,null,null,null,null,null,null,null,null,null,"Clasificación de la Información:\nPública"]
[]
["III. MÓDULO 3: FAMILIA"]
["O. Variables Básicas"]
["1. Tipo documento de identidad usuario",null,null,null,null,null,null,"1. Registro Civil ",null,null,null,"2. Tarjeta de identidad",null,null,null,null,null,null,null,null,"2. Número de documento",null,null,null,null,null,null,null,null,null,null,null,null,null,null,"3. Número de personas que componen el hogar del usuario(a)"]
[null,null,null,null,null,null,null,"3. Pasaporte",null,null,null,"4. Permiso especial de permanencia (PEP)"]
[null,null,null,null,null,null,null,"5. No tiene"]
[]
["P. Variables básicas de Composición del Hogar y estructura familiar  (Integrantes del hogar que conviven con el niña/niño o mujer gestante)"]
[]
["No.","4. Parentesco",null,null,"4.1 Si respondió \"20.Otro\", indique cuál",null,null,"5. Nombres y Apellidos",null,null,null,null,null,"6. Tipo documento de identidad",null,"7. Número de documento",null,null,null,"8. Fecha de nacimiento",null,null,"9. Edad",null,"10. País de Nacimiento",null,null,"11. Sexo",null,"12. Género",null,"13. Orientación sexual",null,"14. Grupo étnico con el que se autoreconoce",null,"15. ¿Sabe leer y escribir en español?",null,"16. ¿Actualmente estudia?",null,"17. ¿Cuál es su nivel más alto de escolaridad?",null,"18. ¿Cuál es su actividad principal en este momento?",null,"19. ¿Si se encuentra trabajando, qué tipo de situación laboral presenta?",null,"20. Ingreso mensual promedio",null,null,"21. Observaciones"]
[null,null,null,null,null,null,null,null,null,null,null,null,null,null,null,null,null,null,null,"Día","Mes","Año"]
[1]
[2]
[3]
[4]
[5]
[6]
[7]
[8]
[9]
[10]
["Antes de imprimir este documento… piense en el medio ambiente!"]
["Cualquier copia impresa de este documento se considera como COPIA NO CONTROLADA"]
[" LOS DATOS PROPORCIONADOS SERÁN TRATADOS DE ACUERDO A LA POLÍTICA DE TRATAMIENTO DE DATOS PERSONALES DEL ICBF Y A LA LEY 1581 DE 2012"]
[]
[]
[]
[null,null,null,null,null,"PROCESO\nPROMOCIÓN Y PREVENCIÓN\n\nFORMATO FICHA DE CARACTERIZACIÓN PARA LOS SERVICIOS DE ATENCIÓN A LA PRIMERA INFANCIA",null,null,null,null,null,null,null,null,null,null,null,null,null,null,null,null,null,null,null,null,null,null,null,null,null,null,null,null,null,null,null,null,null,null,null,{"$f":"$AP$1","v":"F23.MO12.PP"},null,null,null,null,"2021-02-08"]
[null,null,null,null,null,null,null,null,null,null,null,null,null,null,null,null,null,null,null,null,null,null,null,null,null,null,null,null,null,null,null,null,null,null,null,null,null,null,null,null,null,"Versión 2",null,null,null,null,"Página 4 de 6"]
[null,null,null,null,null,null,null,null,null,null,null,null,null,null,null,null,null,null,null,null,null,null,null,null,null,null,null,null,null,null,null,null,null,null,null,null,null,null,null,null,null,"Clasificación de la Información:\nPública"]
[]
["Q. Características de la vivienda"]
["22. Clase de ubicación de la vivienda",null,null,null,null,null,null,null,"1. Cabecera municipal",null,null,null,null,null,"23. Territorio étnico",null,null,null,null,"SI",null,"24. Si la respuesta anterior fue Si, a qué territorio étnico pertenece",null,null,null,null,null,null,null,"1. Resguardo indígena",null,null,null,null,null,null,null,null,null,"25. Indique el nombre de la comunidad en la que habita"]
[null,null,null,null,null,null,null,null,"2. Centro poblado",null,null,null,null,null,null,null,null,null,null,"NO",null,null,null,null,null,null,null,null,null,"2. Territorio colectivo de comunidad negra"]
[null,null,null,null,null,null,null,null,"3. Rural disperso",null,null,null,null,null,null,null,null,null,null,null,null,null,null,null,null,null,null,null,null,"3. No aplica"]
[]
["26. Tipo de Vivienda",null,null,null,null,"1. Casa",null,null,null,"4. Vivienda tradicional indígena",null,null,null,null,null,null,"7. Finca",null,null,null,null,null,null,"10. Otra",null,null,null,null,"27. Tipo de tenencia de la vivienda",null,null,null,null,null,null,null,null,"1. Propia",null,null,null,null,"4. Ocupador de hecho o poseedor"]
[null,null,null,null,null,"2. Cambuche",null,null,null,"5. Tipo cuarto",null,null,null,null,null,null,"8. Casa lote",null,null,null,null,null,null,null,null,null,null,null,null,null,null,null,null,null,null,null,null,"2. Familiar",null,null,null,null,"5. En concesión"]
[null,null,null,null,null,"3. Apartamento",null,null,null,"6. Rancho",null,null,null,null,null,null,"9. Establecimiento de reclusión",null,null,null,null,null,null,null,null,null,null,null,null,null,null,null,null,null,null,null,null,"3. En arriendo",null,null,null,null,"6. Otra."]
[]
[null,null,null,null,"26.1. Si respondió \"10.Otra\", indique cuál",null,null,null,null,null,null,null,null,null,null,null,null,null,null,null,null,null,null,null,null,null,null,null,"27.1 Si respondió \"6.Otra\", indique cuál"]
[]
["R. Condiciones del entorno de la vivienda y habitabilidad"]
["R1 Habitabilidad",null,null,null,null,null,null,null,null,null,null,null,null,null,null,null,null,null,null,null,null,null,null,null,null,null,null,null,"R2 Energía o combustible "]
["28. ¿En dónde preparan los alimentos las personas del hogar? (Respuesta única)",null,null,null,null,null,null,null,null,null,null,null,null,null,null,null,null,null,null,"29. ¿El lugar donde viven cuenta con espacios independientes para dormitorio, cocina y baños?",null,null,null,null,null,null,null,null,"30. ¿Con qué energía o combustible utilizan principalmente para cocinar? (Respuesta única)"]
[null,"1. En un cuarto usado solo para cocinar",null,null,null,null,null,null,null,null,"4. En una sala -comedor sin lavaplatos",null,null,null,null,null,null,null,null,null,null,null,null,null,null,null,null,null,null,"1. Electricidad",null,null,null,null,null,null,null,null,null,null,null,"5. Carbón mineral"]
[null,"2. En un cuarto usado también para dormir",null,null,null,null,null,null,null,null,"5. En un patio, corredor , enramada, aire libre ",null,null,null,null,null,null,null,null,null,"SI",null,null,null,null,null,null,null,null,"2. Gas natural, conectado a red pública (Gas domiciliario)",null,null,null,null,null,null,null,null,null,null,null,"6. Leña, madera, o carbón de leña"]
[null,"3. En una sala- comedor con lavaplatos",null,null,null,null,null,null,null,null,"6. No preparan alimentos en la vivienda",null,null,null,null,null,null,null,null,null,"NO",null,null,null,null,null,null,null,null,"3. Gas Propano \"Cilindro\"",null,null,null,null,null,null,null,null,null,null,null,"7. Material de desecho"]
[null,null,null,null,null,null,null,null,null,null,null,null,null,null,null,null,null,null,null,null,null,null,null,null,null,null,null,null,null,"4. Petróleo, gasolina, kerosene , alcohol, cocinol",null,null,null,null,null,null,null,null,null,null,null,"8. Ninguno"]
[]
["R3 Acceso a servicio sanitario ",null,null,null,null,null,null,null,null,null,null,null,null,null,null,null,null,null,null,null,"R4 Servicios públicos",null,null,null,null,null,null,null,null,null,null,null,"R5 Eliminación de basura"]
["31. ¿Qué tipo de servicio sanitario (inodoro) tiene la vivienda donde habita el hogar?",null,null,null,null,null,null,null,null,null,null,null,null,null,null,null,null,null,null,null," 32. El grupo familiar del usuario-a tiene acceso a los siguientes servicios domiciliarios (Selección múltiple)",null,null,null,null,null,null,null,null,null,null,null,"33. ¿Cómo eliminan principalmente la basura en este hogar? (Selección múltiple)"]
[null,"1. Inodoro conectado al alcantarillado",null,null,null,null,null,null,null,"4. Letrina",null,null,null,null,null,null,null,null,null,null,null,null,null,null,null,null,null,null,null,null,null,null,null,"1. La recogen los servicios del aseo",null,null,null,null,null,null,null,null,"5. La entierran "]
[null,"2. Inodoro conectado a pozo séptico ",null,null,null,null,null,null,null,"5. Inodoro con descarga directa a fuentes de agua (bajamar)",null,null,null,null,null,null,null,null,null,null,null,"1. Energía",null,null,null,null,"4. Gas natural",null,null,null,null,null,null,"2. La tiran a un río, quebrada, caño o laguna",null,null,null,null,null,null,null,null,"6. La recoge un servicio informal (zorra, carreta, etc.)"]
[null,"3. Inodoro sin conexión",null,null,null,null,null,null,null,"6. La vivienda no tiene servicio sanitario",null,null,null,null,null,null,null,null,null,null,null,"2. Acueducto",null,null,null,null,"5. Telefonía fija",null,null,null,null,null,null,"3. La tiran a un patio, lote, zanja o baldío",null,null,null,null,null,null,null,null,"7. La reciclan "]
[null,null,null,null,null,null,null,null,null,null,null,null,null,null,null,null,null,null,null,null,null,"3. Alcantarillado",null,null,null,null,"6. Todas las anteriores",null,null,null,null,null,null,"4. La queman",null,null,null,null,null,null,null,null,"8. La elimina de otra forma"]
[]
["R6 Riesgos del entorno de la vivienda",null,null,null,null,null,null,null,null,null,null,null,null,null,null,null,null,null,null,null,null,null,null,null,null,null,"R7 Riesgos de accidentes dentro del hogar"]
["34. La vivienda está ubicada en o cerca de … (Selección múltiple)",null,null,null,null,null,null,null,null,null,null,null,null,null,null,null,null,null,null,null,null,null,null,null,null,null,"35. Riesgos de accidentes dentro del hogar para la niña o niño son … (Selección múltiple)"]
[null,"1. Área de deslizamiento de tierra",null,null,null,null,null,null,"4. Colina empinada",null,null,null,null,null,null,"7. Ferrocarril",null,null,null,null,"10. Ninguna de las anteriores",null,null,null,null,null,null,"1. Objetos cortantes o punzantes al alcance de niñas y niños",null,null,null,null,null,null,null,null,null,null,null,null,null,"6. Depósitos de agua destapados"]
[null,"2. Zona propensa a las inundaciones",null,null,null,null,null,null,"5. Montaña/pila de basura",null,null,null,null,null,null,"8. Central eléctrica",null,null,null,null,"11. Otra",null,null,null,null,null,null,"2. Fármacos con fácil acceso o mal identificados ",null,null,null,null,null,null,null,null,null,null,null,null,null,"7. Bolsas de plástico al alcance de la niña o el niño"]
[null,"3. Orilla de río",null,null,null,null,null,null,"6. Área de contaminación industrial",null,null,null,null,null,null,"9. Paso elevado",null,null,null,null,null,null,null,null,null,null,null,"3. Fósforos, encendedores o similares al alcance las niñas y los niños",null,null,null,null,null,null,null,null,null,null,null,null,null,"8. Hacinamiento "]
[null,null,null,null,null,null,null,null,null,null,null,null,null,null,null,null,null,null,null,null,null,null,null,null,null,null,null,"4. Recipientes con querosene, alcohol industrial, bebidas alcohólicas u otras sustancias tóxicas al alcance de las niñas y los niños",null,null,null,null,null,null,null,null,null,null,null,null,null,"9. Quemaduras"]
["34.1 Si seleccionó \"11. Otra\", indique cuál",null,null,null,null,null,null,null,null,null,null,null,null,null,null,null,null,null,null,null,null,null,null,null,null,null,null,null,null,null,null,null,null,null,null,null,null,null,null,null,null,"10. Ninguno de las anteriores"]
[null,null,null,null,null,null,null,null,null,null,null,null,null,null,null,null,null,null,null,null,null,null,null,null,null,null,null,"5. Escaleras, azoteas o balcones sin barandas o barandas inseguras",null,null,null,null,null,null,null,null,null,null,null,null,null,"11. Otro, cuál"]
[]
[null,null,null,null,null,null,null,null,null,null,null,null,null,null,null,null,null,null,null,null,null,null,null,null,null,null,"35.1 Si seleccionó \"11. Otro\", indique cuál"]
[]
[]
["Antes de imprimir este documento… piense en el medio ambiente!"]
["Cualquier copia impresa de este documento se considera como COPIA NO CONTROLADA"]
[" LOS DATOS PROPORCIONADOS SERÁN TRATADOS DE ACUERDO A LA POLÍTICA DE TRATAMIENTO DE DATOS PERSONALES DEL ICBF Y A LA LEY 1581 DE 2012"]
[]
[]
[]
[null,null,null,null,null,"PROCESO\nPROMOCIÓN Y PREVENCIÓN\n\nFORMATO FICHA DE CARACTERIZACIÓN PARA LOS SERVICIOS DE ATENCIÓN A LA PRIMERA INFANCIA",null,null,null,null,null,null,null,null,null,null,null,null,null,null,null,null,null,null,null,null,null,null,null,null,null,null,null,null,null,null,null,null,null,null,null,{"$f":"$AP$1","v":"F23.MO12.PP"},null,null,null,null,"2021-02-08"]
[null,null,null,null,null,null,null,null,null,null,null,null,null,null,null,null,null,null,null,null,null,null,null,null,null,null,null,null,null,null,null,null,null,null,null,null,null,null,null,null,null,"Versión 2",null,null,null,null,"Página 5 de 6"]
[null,null,null,null,null,null,null,null,null,null,null,null,null,null,null,null,null,null,null,null,null,null,null,null,null,null,null,null,null,null,null,null,null,null,null,null,null,null,null,null,null,"Clasificación de la Información:\nPública"]
[]
["S. Acceso y calidad del agua"]
["36. ¿En el grupo familiar la fuente principal para el consumo del agua es?",null,null,null,null,null,null,null,null,null,null,null,null,null,"37. ¿Con qué frecuencia el grupo familiar dispone del agua  para el consumo humano?",null,null,null,null,null,null,null,null,"38. ¿Al agua que se usa para consumo humano en el hogar, se le realiza algún tratamiento para  que sea apta para el consumo? ",null,null,null,null,null,"1. Si",null,null,null,"39. Si la respuesta anterior es SI ¿Qué tratamiento usa? ",null,null,null,null,null,null,null,null,null,null,null,null,"39.1 Si seleccionó \"8. Otro\", indique cuál"]
[null,"1. Acueducto",null,null,null,null,null,"5. Río, Quebrada, Manantial",null,null,null,null,null,null,null,null,null,null,null,null,null,null,null,null,null,null,null,null,null,"2. No",null,null,null,null,"1. Filtro casero",null,null,null,null,"5. Agua embotellada o en bolsa"]
[null,"2. Aguatero -carro tanque",null,null,null,null,null,"6. Agua embotellada o en bolsa",null,null,null,null,null,null,null,"1. Nunca",null,null,null,"4.Quincenal ",null,null,null,null,null,null,null,null,null,"3. No sabe ",null,null,null,null,"2. Filtro OMS",null,null,null,null,"6. Carro Tanque"]
[null,"3. Pozo-Aljibe-Jagüey",null,null,null,null,null,"7. Pila Pública",null,null,null,null,null,null,null,"2. Todos los días",null,null,null,"5. Mensual ",null,null,null,null,null,null,null,null,null,null,null,null,null,null,"3. Agua Hervida",null,null,null,null,"7. Pastillas potabilizadoras de agua"]
[null,"4. Agua - lluvia",null,null,null,null,null,null,null,null,null,null,null,null,null,"3. Semanal",null,null,null,null,null,null,null,null,null,null,null,null,null,null,null,null,null,null,"4. Agua lluvia tratada",null,null,null,null,"8. Otro"]
[]
["T.  Dinámica Familiar"]
["40. ¿Con qué integrante del grupo familiar  el niño, niña o mujer gestante tiene un lazo afectivo más fuerte?",null,null,null,null,null,null,null,null,null,null,null,null,null,null,null,null,null,null,null,null,"41. ¿Qué actividad principal realizan como familia?",null,null,null,null,null,null,null,null,null,null,"42. ¿Quién toma las decisiones en la familia del usuario-a?"]
[null,"1. Padre",null,null,null,"6. Sobrina- o",null,null,null,"11. Hijastra- o",null,null,null,"16. Yerno",null,null,null,"21. Otro",null,null,null,null,"1. Pasear",null,null,null,null,"6. Otra",null,null,null,null,null,"1. Padre",null,null,null,"7. Cónyuge",null,null,null,"13. Suegra -o",null,null,null,"19. Familia sustituta/institución de protección"]
[null,"2. Madre",null,null,null,"7. Nieta - o",null,null,null,"12. Abuela- o",null,null,null,"17. Cuñada-o",null,null,null,null,null,null,null,null,"2. Ver TV",null,null,null,null,"7. Ninguna",null,null,null,null,null,"2. Madre",null,null,null,"8. Padrastro",null,null,null,"14. Nuera"]
[null,"3. Hija-o",null,null,null,"8. Cónyuge",null,null,null,"13. Tía - o",null,null,null,"18. Padrino",null,null,null,null,null,null,null,null,"3. Juegos",null,null,null,null,null,null,null,null,null,null,"3. Hermana-o",null,null,null,"9. Madrastra",null,null,null,"15. Yerno",null,null,null,"20. Usuaria- Mujer gestante"]
[null,"4. Hermana-o",null,null,null,"9. Padrastro",null,null,null,"14. Suegra -o",null,null,null,"19. Madrina",null,null,null,null,null,null,null,null,"4. Leer",null,null,null,null,null,null,null,null,null,null,"4. Prima- o",null,null,null,"10. Hijastra- o",null,null,null,"16. Cuñada-o",null,null,null,"21.Otro"]
[null,"5. Prima- o",null,null,null,"10. Madrastra",null,null,null,"15. Nuera",null,null,null,"20. Familia sustituta/institución de protección",null,null,null,null,null,null,null,null,"5. Eventos religiosos",null,null,null,null,null,null,null,null,null,null,"5. Sobrina- o",null,null,null,"11. Abuela- o",null,null,null,"17. Padrino"]
[null,null,null,null,null,null,null,null,null,null,null,null,null,null,null,null,null,null,null,null,null,null,null,null,null,null,null,null,null,null,null,null,null,"6. Nieta - o",null,null,null,"12. Tía - o",null,null,null,"18. Madrina"]
["40.1 Si seleccionó \"20. Otro\", indique cuál",null,null,null,null,null,null,null,null,null,null,null,null,null,null,null,null,null,null,null,null,"41.1 Si seleccionó \"6. Otra\", indique cuál",null,null,null,null,null,null,null,null,null,null,"42.1 Si seleccionó \"21. Otro\", indique cuál"]
[]
[]
["43. ¿Bajo qué criterio principal se fundamenta el liderazgo en la toma de decisiones?",null,null,null,null,null,null,null,null,null,null,null,null,null,null,null,null,"44. ¿De qué manera resuelven los conflictos en la familia?",null,null,null,null,null,null,null,null,null,null,null,null,null,null,null,null,null,"45. ¿Cómo corrigen principalmente en la familia a la niña o el niño? "]
[null,"1. Reconocimiento del liderazgo familiar",null,null,null,null,null,null,null,"3. Proveedor-a económico",null,null,null,null,null,null,null,null,null,null,null,null,null,null,null,null,null,null,null,null,null,null,null,null,null,null,"1. Palmadas, pellizcos, etc.",null,null,null,null,null,null,"3. Hablando",null,null,null,"5. Buen ejemplo"]
[null,"2. Edad",null,null,null,null,null,null,null,"4. Otro",null,null,null,null,null,null,null,null,null,null,null,null,null,null,null,null,null,null,null,null,null,null,null,null,null,null,"2. Gritos",null,null,null,null,null,null,"4. Diálogo",null,null,null,"6. Otro"]
[]
["43.1 Si seleccionó \"4. Otro\", indique cuál",null,null,null,null,null,null,null,null,null,null,null,null,null,null,null,null,null,null,null,null,null,null,null,null,null,null,null,null,null,null,null,null,null,null,"45.1 Si seleccionó \"6. Otro\", indique cuál"]
[]
["46. ¿Quién corrige principalmente a la niña o el niño?",null,null,null,null,null,null,null,null,null,null,null,null,null,null,null,null,null,null,null,null,"47. De los siguientes eventos ¿cuál se ha presentado o presenta en el hogar?",null,null,null,null,null,null,null,null,null,null,null,null,null,null,"48. ¿Con qué frecuencia el usuario-a es tenido en cuenta para la toma de decisiones que afectan a la familia?"]
[null,"1. Padre",null,null,null,"6. Nieta - o",null,null,null,"11. Abuela- o",null,null,null,"16. Cuñada-o",null,null,null,null,null,null,null,null,"1. Violencia sexual",null,null,null,null,null,null,"6. Ninguna"]
[null,"2. Madre",null,null,null,"7. Cónyuge",null,null,null,"12. Tía - o",null,null,null,"17. Padrino",null,null,null,null,null,null,null,null,"2. Violencia psicológica",null,null,null,null,null,null,"7. Otra",null,null,null,null,null,null,null,"1. Ocasionalmente"]
[null,"3. Hermana-o",null,null,null,"8. Padrastro",null,null,null,"13. Suegra -o",null,null,null,"18. Madrina",null,null,null,null,null,null,null,null,"3. Violencia física",null,null,null,null,null,null,null,null,null,null,null,null,null,null,"2. Diario"]
[null,"4. Prima- o",null,null,null,"9. Madrastra",null,null,null,"14. Nuera",null,null,null,"19. Familia sustituta/Institución de protección",null,null,null,null,null,null,null,null,"4. Violencia por conflicto armado",null,null,null,null,null,null,null,null,null,null,null,null,null,null,"3. Nunca"]
[null,"5. Sobrina- o",null,null,null,"10. Hijastra- o",null,null,null,"15. Yerno",null,null,null,"20. Otro",null,null,null,null,null,null,null,null,"5. Castigo físico"]
[]
["46.1 Si seleccionó \"20. Otro\", indique cuál",null,null,null,null,null,null,null,null,null,null,null,null,null,null,null,null,null,null,null,null,"47.1 Si seleccionó \"6. Otro\", indique cuál"]
[]
["U. Redes de apoyo"]
["49. ¿Cuenta con algún tipo de apoyo cuando se encuentra en crisis (económica, afectiva, social, entre otras) el hogar?",null,null,null,null,null,null,null,null,null,null,null,null,null,null,null,null,null,null,null,null,null,null,"SI",null,"50. Si respondió SI, indique ¿De quién?",null,null,null,null,null,null,null,null,"1. Estado",null,null,null,null,"3. Familia"]
[null,null,null,null,null,null,null,null,null,null,null,null,null,null,null,null,null,null,null,null,null,null,null,"NO",null,null,null,null,null,null,null,null,null,null,"2. Comunidad"]
[]
["Antes de imprimir este documento… piense en el medio ambiente!"]
["Cualquier copia impresa de este documento se considera como COPIA NO CONTROLADA"]
[" LOS DATOS PROPORCIONADOS SERÁN TRATADOS DE ACUERDO A LA POLÍTICA DE TRATAMIENTO DE DATOS PERSONALES DEL ICBF Y A LA LEY 1581 DE 2012"]
[]
[]
[]
[null,null,null,null,null,"PROCESO\nPROMOCIÓN Y PREVENCIÓN\n\nFORMATO FICHA DE CARACTERIZACIÓN PARA LOS SERVICIOS DE ATENCIÓN A LA PRIMERA INFANCIA",null,null,null,null,null,null,null,null,null,null,null,null,null,null,null,null,null,null,null,null,null,null,null,null,null,null,null,null,null,null,null,null,null,null,null,{"$f":"$AP$1","v":"F23.MO12.PP"},null,null,null,null,"2021-02-08"]
[null,null,null,null,null,null,null,null,null,null,null,null,null,null,null,null,null,null,null,null,null,null,null,null,null,null,null,null,null,null,null,null,null,null,null,null,null,null,null,null,null,"Versión 2",null,null,null,null,"Página 6 de 6"]
[null,null,null,null,null,null,null,null,null,null,null,null,null,null,null,null,null,null,null,null,null,null,null,null,null,null,null,null,null,null,null,null,null,null,null,null,null,null,null,null,null,"Clasificación de la Información:\nPública"]
[]
["V. Variables de familia específicas con el niño o la niña (Aplica solo para registro de niñas y niños)"]
["V1 Cuidador-a y cuidado de la niña/niño"]
["51. ¿Nombre del  cuidador-a principal del niño o la niña?",null,null,null,null,null,null,null,null,null,null,null,"52. ¿Cuál es el tipo de parentesco o afinidad con el niño o la niña?",null,null,null,null,null,null,null,null,null,null,null,null,"53. ¿Qué edad tiene el cuidador-a principal?",null,null,null,null,"54. ¿Cuál es la actividad principal del cuidador en este momento?"]
[null,null,null,null,null,null,null,null,null,null,null,null,null,"1. Familiar",null,null,null,"3. Comunitario",null,null,null,null,null,null,null,null,null,null,null,null,null,"1. Trabajando",null,null,null,null,"4. Estudiando",null,null,null,null,null,"6. Cuidador-a",null,null,null,null,null,"9. Otro"]
[null,null,null,null,null,null,null,null,null,null,null,null,null,"2. Social",null,null,null,"4. Institucional",null,null,null,null,null,null,null,null,null,null,null,null,null,"2. Buscando trabajo",null,null,null,null,"5. Rentista",null,null,null,null,null,"7. Sin actividad"]
[null,null,null,null,null,null,null,null,null,null,null,null,null,null,null,null,null,null,null,null,null,null,null,null,null,null,null,null,null,null,null,"3. Oficios del hogar",null,null,null,null,"6. Jubilado-a/pensionado-a",null,null,null,null,null,"8. Privada de la libertad"]
[]
[null,null,null,null,null,null,null,null,null,null,null,null,null,null,null,null,null,null,null,null,null,null,null,null,null,null,null,null,null,null,"54.1 Si seleccionó \"9. Otro\", indique cuál"]
[]
["55 ¿Si se encuentra trabajando, qué tipo de situación laboral presenta?",null,null,null,null,null,null,null,null,null,null,null,null,null,"56. ¿Cuánto tiempo pasa el cuidador-a con el niño o la niña al día?",null,null,null,null,null,null,null,null,null,null,null,null,null,"57. La niña o el niño queda en algún momento solo-a?",null,null,null,null,null,null,null,null,null,null,"58. Si queda solo-a, ¿Cuánto tiempo queda solo- a al día?"]
[null,"1. Empleado con contrato laboral",null,null,null,null,null,null,"3. No aplica",null,null,null,null,null,null,"1. Entre una hora a dos diarias",null,null,null,null,null,null,"3. Más de 4 horas diarias ",null,null,null,null,null,null,"SI",null,null,null,null,null,null,null,null,null,null,"1. Menos de una hora",null,null,null,null,null,"3. Más de tres horas"]
[null,"2. Independiente",null,null,null,null,null,null,null,null,null,null,null,null,null,"2. Entre dos a cuatro horas diarias",null,null,null,null,null,null,null,null,null,null,null,null,null,"NO",null,null,null,null,null,null,null,null,null,null,"2. Entre una y tres horas",null,null,null,null,null,"4. No aplica"]
[]
["V2 Recursos en familia"]
["59. En los pasados tres días(3) usted o alguien de su hogar mayor de 15 años de edad, ¿Qué actividades realizó con la niña o el niño?\n (Selección múltiple)",null,null,null,null,null,null,null,null,null,null,null,null,null,null,null,null,null,null,null,null,null,null,null,null,null,null,"60. ¿Quién o quienes realizaron la actividad? (Selección múltiple)",null,null,null,null,null,null,null,null,null,null,null,null,null,null,null,null,null,"61. ¿Cuántos libros infantiles  para niñas y niños tiene en el hogar?"]
[]
[null,"1. Leer un libro o ver las imágenes de un libro con él/ella",null,null,null,null,null,null,null,null,null,null,null,"6. Mirando en la  TV o en el celular un programa infantil",null,null,null,null,null,null,null,null,null,null,null,null,null,null,"1. Padre",null,null,null,"6. Padrastro",null,null,null,"11. Padrino"]
[null,"2. Contarle historias y cuentos",null,null,null,null,null,null,null,null,null,null,null,"7. Jugar con él/ella con diversos objetos.",null,null,null,null,null,null,null,null,null,null,null,null,null,null,"2. Madre",null,null,null,"7. Madrastra",null,null,null,"12. Madrina"]
[null,"3. Cantar canciones con él o ella",null,null,null,null,null,null,null,null,null,null,null,"8. Explorar con él/ella en el jardín, parque, museo, biblioteca infantil, sala de lectura",null,null,null,null,null,null,null,null,null,null,null,null,null,null,"3. Hermana-o",null,null,null,"8. Abuela- o",null,null,null,"13. Familia sustituta/Institución de protección"]
[null,"4. Llevarlo-a afuera de la casa a un patio u otro lugar abierto",null,null,null,null,null,null,null,null,null,null,null,"9. Baila con él/ella en algunos momentos del día",null,null,null,null,null,null,null,null,null,null,null,null,null,null,"4. Prima- o",null,null,null,"9. Tía - o",null,null,null,"14.Otro"]
[null,"5. Pasar tiempo con él o ella nombrando cosas, contando, pintando, adivinando o repitiendo trabalenguas cortos.",null,null,null,null,null,null,null,null,null,null,null,"10. Ninguna",null,null,null,null,null,null,null,null,null,null,null,null,null,null,"5. Sobrina- o",null,null,null,"10. Cuñada-o",null,null,null,"15. Ninguno"]
[]
[]
["62. ¿La niña o el niño tiene juguetes en el hogar?",null,null,null,null,null,null,null,null,null,"SI",null,"63. ¿Con qué cosas juega la niña o el niño cuando está en casa?"]
[null,null,null,null,null,null,null,null,null,null,"NO"]
[]
["V3 Interacciones con la niña y el niño"]
["64. ¿Qué tipo de reconocimientos le dan a la niña o el niño por sus logros? ",null,null,null,null,null,null,null,null,null,null,null,null,null,null,null,null,"65. ¿Cuál o cuáles son las principales normas y límites establecidas en la familia para la  niña y el niño?"]
["(Selección múltiple)"]
[null,"1. Le da un regalo",null,null,null,null,null,null,"3. Lo felicitan verbalmente"]
[null,"2. Lo dejan salir a jugar",null,null,null,null,null,null,"4. Otro"]
[null,null,null,null,null,null,null,null,null,null,null,null,null,null,null,null,null,"66. ¿Cuál o cuáles son los gustos e intereses de la niña o el niño?"]
["64.1 Si seleccionó \"4. Otro\", indique cuál"]
[]
[]
[]
[]
[]
[]
[]
["Antes de imprimir este documento… piense en el medio ambiente!"]
["Cualquier copia impresa de este documento se considera como COPIA NO CONTROLADA"]
[" LOS DATOS PROPORCIONADOS SERÁN TRATADOS DE ACUERDO A LA POLÍTICA DE TRATAMIENTO DE DATOS PERSONALES DEL ICBF Y A LA LEY 1581 DE 2012"]

{"sheet":"V_IMPRIMIBLE_MG","index":3,"n_rows":265,"n_cols":49,"rows_kept":265,"cut":false,"hidden":false,"merged":[[73,45,73,50],[99,5,101,40],[141,5,143,40],[175,5,177,40],[219,5,221,40],[47,0,47,50],[33,36,34,43],[30,30,32,34],[6,0,6,5],[9,6,9,13],[11,6,11,13],[17,33,17,38],[19,36,19,41],[48,0,48,50],[49,0,51,50],[52,0,54,4],[52,41,52,45],[52,46,52,50],[53,41,53,45],[53,46,53,50],[54,41,54,50],[52,5,54,40],[57,27,59,32],[61,27,63,35],[0,0,2,4],[0,41,0,45],[0,46,0,50],[1,41,1,45],[1,46,1,50],[2,41,2,50],[46,0,46,50],[4,1,4,49],[0,5,2,40],[57,41,58,50],[130,27,131,28],[130,29,131,30],[130,31,131,32],[130,33,131,34],[100,41,100,45],[100,46,100,50],[94,0,94,50],[95,0,95,50],[80,38,81,50],[81,0,82,12],[99,41,99,45],[99,46,99,50],[101,41,101,50],[113,0,114,10],[117,0,118,10],[84,0,85,12],[84,14,85,19],[84,24,85,29],[93,0,93,50],[104,0,105,10],[96,0,98,50],[99,0,101,4],[124,37,125,45],[130,0,131,0],[130,1,131,3],[130,4,131,6],[130,7,131,12],[130,13,131,14],[130,15,131,18],[130,19,130,21],[130,22,131,23],[130,24,131,26],[130,48,131,50],[130,35,131,36],[130,37,131,38],[130,39,131,40],[130,41,131,42],[130,43,131,44],[130,45,131,47],[132,1,132,3],[132,4,132,6],[132,7,132,12],[132,13,132,14],[132,15,132,18],[132,22,132,23],[132,24,132,26],[132,27,132,28],[132,29,132,30],[132,43,132,44],[132,45,132,47],[132,48,132,50],[132,35,132,36],[132,37,132,38],[132,39,132,40],[132,41,132,42],[133,1,133,3],[133,4,133,6],[133,7,133,12],[133,13,133,14],[133,15,133,18],[133,22,133,23],[133,24,133,26],[132,31,132,32],[132,33,132,34],[133,39,133,40],[133,41,133,42],[133,43,133,44],[133,45,133,47],[133,48,133,50],[133,27,133,28],[133,29,133,30],[133,31,133,32],[133,33,133,34],[133,35,133,36],[133,37,133,38],[134,48,134,50],[135,0,135,50],[136,0,136,50],[134,15,134,18],[134,13,134,14],[134,7,134,12],[134,4,134,6],[134,1,134,3],[134,35,134,36],[134,37,134,38],[134,39,134,40],[134,41,134,42],[134,43,134,44],[134,45,134,47],[134,22,134,23],[134,24,134,26],[134,27,134,28],[134,29,134,30],[134,31,134,32],[134,33,134,34],[145,0,146,0],[145,1,146,3],[145,4,146,6],[145,7,146,12],[145,13,146,14],[145,15,146,18],[137,0,137,50],[138,0,140,50],[141,0,143,4],[141,41,141,45],[141,46,141,50],[142,41,142,45],[142,46,142,50],[143,41,143,50],[145,45,146,47],[145,48,146,50],[145,35,146,36],[145,37,146,38],[145,39,146,40],[145,41,146,42],[145,43,146,44],[147,1,147,3],[147,4,147,6],[147,7,147,12],[147,13,147,14],[147,15,147,18],[147,22,147,23],[147,24,147,26],[147,27,147,28],[145,33,146,34],[145,19,145,21],[145,22,146,23],[145,24,146,26],[145,27,146,28],[145,29,146,30],[145,31,146,32],[147,41,147,42],[147,43,147,44],[147,45,147,47],[147,48,147,50],[148,1,148,3],[148,4,148,6],[148,7,148,12],[148,13,148,14],[148,15,148,18],[148,22,148,23],[147,29,147,30],[147,31,147,32],[147,33,147,34],[147,35,147,36],[147,37,147,38],[147,39,147,40],[148,37,148,38],[148,39,148,40],[148,41,148,42],[148,43,148,44],[148,45,148,47],[148,48,148,50],[148,24,148,26],[148,27,148,28],[148,29,148,30],[148,31,148,32],[148,33,148,34],[148,35,148,36],[149,43,149,44],[149,45,149,47],[149,48,149,50],[149,24,149,26],[149,27,149,28],[149,29,149,30],[149,31,149,32],[149,33,149,34],[149,35,149,36],[150,1,150,3],[150,4,150,6],[150,7,150,12],[150,13,150,14],[150,15,150,18],[150,22,150,23],[149,37,149,38],[149,39,149,40],[149,41,149,42],[149,1,149,3],[149,4,149,6],[149,7,149,12],[149,13,149,14],[149,15,149,18],[149,22,149,23],[150,37,150,38],[150,39,150,40],[150,41,150,42],[150,43,150,44],[150,45,150,47],[150,48,150,50],[150,24,150,26],[150,27,150,28],[150,29,150,30],[150,31,150,32],[150,33,150,34],[150,35,150,36],[151,43,151,44],[151,45,151,47],[151,48,151,50],[151,24,151,26],[151,27,151,28],[151,29,151,30],[151,31,151,32],[151,33,151,34],[151,35,151,36],[152,1,152,3],[152,4,152,6],[152,7,152,12],[152,13,152,14],[152,15,152,18],[152,22,152,23],[151,37,151,38],[151,39,151,40],[151,41,151,42],[151,1,151,3],[151,4,151,6],[151,7,151,12],[151,13,151,14],[151,15,151,18],[151,22,151,23],[152,37,152,38],[152,39,152,40],[152,41,152,42],[152,43,152,44],[152,45,152,47],[152,48,152,50],[152,24,152,26],[152,27,152,28],[152,29,152,30],[152,31,152,32],[152,33,152,34],[152,35,152,36],[156,21,157,27],[169,0,169,50],[153,37,153,38],[153,39,153,40],[153,41,153,42],[153,43,153,44],[153,45,153,47],[153,48,153,50],[153,24,153,26],[153,27,153,28],[153,29,153,30],[153,31,153,32],[153,33,153,34],[153,35,153,36],[153,1,153,3],[153,4,153,6],[153,7,153,12],[153,13,153,14],[153,15,153,18],[153,22,153,23],[176,46,176,50],[177,41,177,50],[181,19,182,26],[188,20,189,30],[199,27,200,38],[206,14,207,21],[206,23,209,27],[206,46,207,50],[170,0,170,50],[171,0,171,50],[172,0,174,50],[175,0,177,4],[175,41,175,45],[175,46,175,50],[176,41,176,45],[262,0,262,50],[263,0,263,50],[264,0,264,50],[265,0,267,50],[220,46,220,50],[221,41,221,50],[225,45,226,50],[240,36,241,48],[213,0,213,50],[214,0,214,50],[215,0,215,50],[216,0,218,50],[219,0,221,4],[219,41,219,45],[219,46,219,50],[220,41,220,45]]}
[null,null,null,null,null,"PROCESO\nPROMOCIÓN Y PREVENCIÓN\n\nFORMATO FICHA DE CARACTERIZACIÓN PARA LOS SERVICIOS DE ATENCIÓN A LA PRIMERA INFANCIA",null,null,null,null,null,null,null,null,null,null,null,null,null,null,null,null,null,null,null,null,null,null,null,null,null,null,null,null,null,null,null,null,null,null,null,{"$f":"PORTADA!K1","v":"F23.MO12.PP"},null,null,null,null,"2021-02-08"]
[null,null,null,null,null,null,null,null,null,null,null,null,null,null,null,null,null,null,null,null,null,null,null,null,null,null,null,null,null,null,null,null,null,null,null,null,null,null,null,null,null,"Versión 2",null,null,null,null,"Página 1 de 6"]
[null,null,null,null,null,null,null,null,null,null,null,null,null,null,null,null,null,null,null,null,null,null,null,null,null,null,null,null,null,null,null,null,null,null,null,null,null,null,null,null,null,"Clasificación de la Información:\nPública"]
[]
[null,"FICHA DE CARACTERIZACIÓN PARA LOS SERVICIOS DE ATENCIÓN A LA PRIMERA INFANCIA ICBF\nMUJER GESTANTE / FAMILIA"]
[]
["1. Fecha de diligenciamiento",null,null,null,null,null,"D","D","M","M","A","A","A","A"]
[]
["I. INFORMACIÓN UNIDAD DE SERVICIO"]
["2. Regional",null,null,null,null,null,null,null,null,null,null,null,null,null,null,"3. Centro Zonal",null,null,null,null,null,null,null,null,null,null,null,null,null,null,"4. NIT Entidad "]
[]
["5. Código CUÉNTAME UDS",null,null,null,null,null,null,null,null,null,null,null,null,null,null,"6. Nombre Agente Educativo que diligencia la ficha"]
[]
["II. MÓDULO 2: MUJER GESTANTE"]
["E. Variables básicas de identificación de la mujer gestante"]
["7. ¿La usuaria es mayor de 14 años de edad?",null,null,null,null,null,null,null,null,null,"SI",null,null,"NO",null,"8. Nombres",null,null,null,null,null,null,null,null,null,null,null,null,null,null,null,null,null,"9. Apellidos"]
[]
["10. Tipo documento de identidad",null,null,null,null,null,null,null,"1. Tarjeta de Identidad",null,null,null,null,null,"4. Pasaporte",null,null,null,null,null,null,null,"11. Número de documento",null,null,null,null,null,null,null,null,null,null,"12. Fecha de nacimiento",null,null,null,null,null,"D","D","M","M","A","A","A","A"]
[null,null,null,null,null,null,null,null,"2. Cédula ciudadanía",null,null,null,null,null,"5. Permiso especial de permanencia (PEP)"]
[null,null,null,null,null,null,null,null,"3. Cedula de extranjería",null,null,null,null,null,"6. Sin Información",null,null,null,null,null,null,null,null,null,null,null,null,null,null,null,null,null,null,"13. Edad"]
[]
["14. Sexo",null,null,null,"1. Mujer",null,null,null,"15. Género",null,null,null,"1. Femenino",null,null,null,null,"4. Otro",null,null,null,null,null,null,"16. Orientación sexual",null,null,null,null,null,"1. Heterosexual",null,null,null,null,"4. Otro",null,null,null,null,null,null,"17. País de Nacimiento"]
[null,null,null,null,"2. Hombre",null,null,null,null,null,null,null,"2. Masculino",null,null,null,null,"5. No desea responder",null,null,null,null,null,null,null,null,null,null,null,null,"2. Homosexual",null,null,null,null,"5. No desea responder"]
[null,null,null,null,"3. Intersexual",null,null,null,null,null,null,null,"3. Transgénero/trans",null,null,null,null,"6. Menor de 14 años - No aplica",null,null,null,null,null,null,null,null,null,null,null,null,"3. Bisexual",null,null,null,null,"6. Menor de 14 años - No aplica"]
[]
["18. Nacionalidad Principal",null,null,null,null,null,null,null,null,null,null,null,null,null,"18.1 Si, tiene segunda nacionalidad, indique",null,null,null,null,null,null,null,null,null,null,null,null,null,null,null,null,"19. Departamento de residencia"]
[]
["20. Municipio de residencia",null,null,null,null,null,null,null,null,null,null,null,null,null,"21. Estado civil",null,null,null,null,"1. Casada",null,null,null,null,null,"3. Soltera",null,null,null,"5. Divorciada/Separada",null,null,null,null,null,"22. Mujer gestante con discapacidad",null,null,null,null,null,null,null,"SI"]
[null,null,null,null,null,null,null,null,null,null,null,null,null,null,null,null,null,null,null,"2. Unión Marital de Hecho",null,null,null,null,null,"4. Viuda",null,null,null,null,null,null,null,null,null,null,null,null,null,null,null,null,null,"NO"]
[]
["23. Categoría de discapacidad",null,null,null,null,null,null,"1. Física",null,null,null,null,"4. Auditiva",null,null,null,null,"7. Múltiple ",null,null,null,null,null,null,"10. Voz y habla",null,null,null,null,null,"24. Grupo étnico con el que se autoreconoce la mujer gestante",null,null,null,null,null,"1. Población indígena",null,null,null,null,null,null,null,null,"5. Población Gitana o Rrom"]
[null,null,null,null,null,null,null,"2. Intelectual",null,null,null,null,"5. Visual",null,null,null,null,"8. Sensorial (gusto, olfato, tacto)",null,null,null,null,null,null,"11. Piel, pelo y uñas",null,null,null,null,null,null,null,null,null,null,null,"2. Población Negra",null,null,null,null,null,null,null,null,"6. Población Palenquera"]
[null,null,null,null,null,null,null,"3. Psicosocial",null,null,null,null,"6. Sordo ceguera",null,null,null,null,"9. Sistémica ",null,null,null,null,null,null,"12. Ninguna",null,null,null,null,null,null,null,null,null,null,null,"3.  Población Afrocolombiana",null,null,null,null,null,null,null,null,"7. Ninguno"]
[null,null,null,null,null,null,null,null,null,null,null,null,null,null,null,null,null,null,null,null,null,null,null,null,null,null,null,null,null,null,null,null,null,null,null,null,"4.  Población Raizal descendiente del Archipiélago de San Andrés, Providencia y Santa Catalina"]
["25. ¿Cuál es su lengua materna? (ver opciones en instructivo)"]
[]
["F. Nivel educativo y actividad principal"]
["26. ¿Sabe leer y escribir?",null,null,null,null,null,"SI",null,null,"27. ¿Actualmente estudia?",null,null,null,null,null,"SI",null,null,"28. ¿Cuál es su nivel más alto de escolaridad?",null,null,null,null,null,null,null,null,null,"1. Ninguno",null,null,null,null,"4. Bachillerato",null,null,null,"7. Tecnológica "]
[null,null,null,null,null,null,"NO",null,null,null,null,null,null,null,null,"NO",null,null,null,null,null,null,null,null,null,null,null,null,"2. Preescolar",null,null,null,null,"5. Normalista ",null,null,null,"8. Universitario "]
[null,null,null,null,null,null,null,null,null,null,null,null,null,null,null,null,null,null,null,null,null,null,null,null,null,null,null,null,"3. Básica Primaria ",null,null,null,null,"6. Técnico ",null,null,null,"9. Posgrado"]
[]
["29. ¿Cuál es su actividad principal en este momento?",null,null,null,null,null,null,null,null,null,null,"1. Trabajando",null,null,null,null,"5. Rentista",null,null,null,null,null,"9. Sin actividad",null,null,null,"30. ¿Si se encuentra trabajando, qué tipo de situación laboral presenta?",null,null,null,null,null,null,null,null,null,null,null,null,null,"31. Ingreso mensual promedio"]
[null,null,null,null,null,null,null,null,null,null,null,"2. Buscando trabajo",null,null,null,null,"6. Jubilado-a/pensionado-a",null,null,null,null,null,"10. Otro",null,null,null,null,"1. Empleado con contrato laboral"]
[null,null,null,null,null,null,null,null,null,null,null,"3. Oficios del hogar",null,null,null,null,"7. Cuidador-a",null,null,null,null,null,null,null,null,null,null,"2. Independiente"]
[null,null,null,null,null,null,null,null,null,null,null,"4. Estudiando",null,null,null,null,"8. Privada de la libertad",null,null,null,null,null,null,null,null,null,null,"3. No aplica"]
[]
["Antes de imprimir este documento… piense en el medio ambiente!"]
["Cualquier copia impresa de este documento se considera como COPIA NO CONTROLADA"]
[" LOS DATOS PROPORCIONADOS SERÁN TRATADOS DE ACUERDO A LA POLÍTICA DE TRATAMIENTO DE DATOS PERSONALES DEL ICBF Y A LA LEY 1581 DE 2012"]
[]
[]
[]
[null,null,null,null,null,"PROCESO\nPROMOCIÓN Y PREVENCIÓN\n\nFORMATO FICHA DE CARACTERIZACIÓN PARA LOS SERVICIOS DE ATENCIÓN A LA PRIMERA INFANCIA",null,null,null,null,null,null,null,null,null,null,null,null,null,null,null,null,null,null,null,null,null,null,null,null,null,null,null,null,null,null,null,null,null,null,null,{"$f":"$AP$1","v":"F23.MO12.PP"},null,null,null,null,"2021-02-08"]
[null,null,null,null,null,null,null,null,null,null,null,null,null,null,null,null,null,null,null,null,null,null,null,null,null,null,null,null,null,null,null,null,null,null,null,null,null,null,null,null,null,"Versión 2",null,null,null,null,"Página 2 de 6"]
[null,null,null,null,null,null,null,null,null,null,null,null,null,null,null,null,null,null,null,null,null,null,null,null,null,null,null,null,null,null,null,null,null,null,null,null,null,null,null,null,null,"Clasificación de la Información:\nPública"]
[]
["G. Condiciones de habitabilidad",null,null,null,null,null,null,null,null,null,"H. Vulnerabilidad y vulneración de derechos "]
["32. ¿La mujer gestante dónde duerme?",null,null,null,null,null,null,null,null,null,"33. ¿Cuál o cuáles de los siguientes eventos se presentan o se han presentado en  su vida?",null,null,null,null,null,null,null,null,null,null,null,null,null,null,null,null,"34. Si en la respuesta anterior seleccionó alguna opción de violencia, ¿la violencia ocurrió al interior del hogar?",null,null,null,null,null,null,"SI",null,null,null,null,null,null,"36. Si a la anterior pregunta respondió SI, ¿En qué estado está o terminó el proceso?"]
[null,"1.Hamaca",null,null,null,"4. Estera",null,null,null,null,"(Selección múltiple)",null,null,null,null,null,null,null,null,null,null,null,null,null,null,null,null,null,null,null,null,null,null,null,"NO"]
[null,"2. Cama",null,null,null,"5. Plancha",null,null,null,null,null,"1. Violencia sexual",null,null,null,null,null,null,null,"4. Violencia económica y patrimonial",null,null,null,null,null,null,null,null,null,null,null,null,null,null,"NO APLICA"]
[null,"3. Colchoneta",null,null,null,"6. Otro",null,null,null,null,null,"2. Violencia psicológica",null,null,null,null,null,null,null,"5. Violencia Física"]
[null,null,null,null,null,null,null,null,null,null,null,"3. Violencia en el conflicto armado",null,null,null,null,null,null,null,"6. Ninguna",null,null,null,null,null,null,null,"35. Si en la respuesta a la pregunta 33 seleccionó alguna opción de violencia, ¿Tiene en curso o ha interpuesto algún tipo de denuncia ante el sector protección o justicia por ese motivo?",null,null,null,null,null,null,null,null,null,"SI"]
["32.1 Si respondio \"6.Otro\", indique cuál",null,null,null,null,null,null,null,null,null,null,null,null,null,null,null,null,null,null,null,null,null,null,null,null,null,null,null,null,null,null,null,null,null,null,null,null,"NO"]
[null,null,null,null,null,null,null,null,null,null,null,null,null,null,null,null,null,null,null,null,null,null,null,null,null,null,null,null,null,null,null,null,null,null,null,null,null,"NO APLICA"]
[]
[null,null,null,null,null,null,null,null,null,null,"37. ¿Presenta alguna de las siguientes situaciones de vulnerabilidad?",null,null,null,null,null,null,null,null,null,null,null,null,null,null,null,null,null,"1.  Cabeza de familia",null,null,null,null,null,null,null,"4. Otra",null,null,null,null,"37.1 Si seleccionó \"4. Otra\", indique cuál"]
[null,null,null,null,null,null,null,null,null,null,"(Selección múltiple)",null,null,null,null,null,null,null,null,null,null,null,null,null,null,null,null,null,"2. Enfermedad terminal o de alto costo ",null,null,null,null,null,null,null,"5. Ninguna"]
[null,null,null,null,null,null,null,null,null,null,null,null,null,null,null,null,null,null,null,null,null,null,null,null,null,null,null,null,"3.  Cuidora de otro-a"]
[]
["I. Datos de contacto",null,null,null,null,null,null,null,null,null,"J. Gestación, Hijos e Hijas"]
["38. Número telefónico de la Mujer Gestante",null,null,null,null,null,null,null,null,null,"40. ¿Es su primer embarazo? ",null,null,null,null,null,null,"SI",null,null,"41. ¿Cuántos embarazos ha tenido?",null,null,null,null,null,null,null,null,null,null,"42. ¿A qué edad tuvo su primer embarazo?"]
[null,null,null,null,null,null,null,null,null,null,null,null,null,null,null,null,null,"NO"]
[null,null,null,null,null,null,null,null,null,null,"43. ¿Cuántos hijos-as nacidos vivos ha tenido?",null,null,null,null,null,null,null,null,null,"44. ¿Quién va a ser el cuidador-a principal del niño o niña en gestación?"]
["39. Indique otro número  telefónico de contacto",null,null,null,null,null,null,null,null,null,null,"1. Ninguno (0)",null,null,null,"4. Tres (3)",null,null,null,null,null,"1. Padre",null,null,null,"4. Prima- o",null,null,null,"7. Cónyuge",null,null,null,"10. Hijastra- o",null,null,null,"13. Suegra -o",null,null,null,"16. Cuñada-o",null,null,null,"19. Familia sustituta/institución de protección"]
[null,null,null,null,null,null,null,null,null,null,null,"2. Uno (1)",null,null,null,"5. Cuatro (4)",null,null,null,null,null,"2. Madre",null,null,null,"5. Sobrina- o",null,null,null,"8. Padrastro",null,null,null,"11. Abuela- o",null,null,null,"14. Nuera",null,null,null,"17. Padrino",null,null,null,"20. No sabe"]
[null,null,null,null,null,null,null,null,null,null,null,"3. Dos (2)",null,null,null,"6 Más de cinco (5)",null,null,null,null,null,"3. Hermana-o",null,null,null,"6. Nieta - o",null,null,null,"9. Madrastra",null,null,null,"12. Tía - o",null,null,null,"15. Yerno",null,null,null,"18. Madrina",null,null,null,"21.Otro"]
[]
[null,null,null,null,null,null,null,null,null,null,null,null,null,null,null,null,null,null,null,null,"44.1 Si seleccionó \"21. Otro\", indique cuál"]
[]
["K. Consumo de sustancias durante la gestación"]
["45. Consume usted algún medicamento bajo prescripción médica. ",null,null,null,null,null,null,null,null,null,null,null,null,null,"SI",null,null,"46. En caso que la respuesta anterior sea SI, mencione que medicamentos consume. (Selección múltiple)",null,null,null,null,null,null,null,null,null,null,null,null,null,null,null,null,null,null,null,null,"47. ¿Cuáles suplementos de micronutrientes le han suministrado durante la gestación? "]
["Recuerde que esto incluye los suplementos de micronutrientes suministrados por la EPS durante la gestación.",null,null,null,null,null,null,null,null,null,null,null,null,null,"NO",null,null,null,"1. Micronutrientes suministrados durante la gestación. ",null,null,null,null,null,null,null,null,null,"3. Médicamentos por enfermedad anterior a la gestación."]
[null,null,null,null,null,null,null,null,null,null,null,null,null,null,null,null,null,null,"2. Médicamentos para el dolor. "]
[]
["48. En caso de no consumir los suplementos de micronutrientes, ¿cuál es la razón?",null,null,null,null,null,null,null,null,null,null,null,null,null,"49. ¿Consume usted, algún medicamento  sin prescripción médica?",null,null,null,null,null,null,"SI",null,null,"50.¿ Consume usted algún tipo de sustancias psicoactivas?",null,null,null,null,null,null,"SI",null,null,"51. En caso que la respuesta anterior sea SI, mencione que sustancias consume."]
[null,null,null,null,null,null,null,null,null,null,null,null,null,null,null,null,null,null,null,null,null,"NO",null,null,null,null,null,null,null,null,null,"NO",null,null,null,"1. Cigarrillo",null,null,null,null,null,null,"3. Otras SPA"]
[null,null,null,null,null,null,null,null,null,null,null,null,null,null,null,null,null,null,null,null,null,null,null,null,null,null,null,null,null,null,null,null,null,null,null,"2. Bebidas Alcohólicas"]
[]
["L. Participación en Cursos"]
["52. ¿Asiste  al curso de preparación para la maternidad y la paternidad?",null,null,null,null,null,null,null,null,null,null,null,null,null,"SI",null,null,"53. Si asiste algún curso o actividades en relación con la gestación, parto o posparto, mencione cuál o cuáles son."]
[null,null,null,null,null,null,null,null,null,null,null,null,null,null,"NO"]
[]
[]
["Antes de imprimir este documento… piense en el medio ambiente!"]
["Cualquier copia impresa de este documento se considera como COPIA NO CONTROLADA"]
[" LOS DATOS PROPORCIONADOS SERÁN TRATADOS DE ACUERDO A LA POLÍTICA DE TRATAMIENTO DE DATOS PERSONALES DEL ICBF Y A LA LEY 1581 DE 2012"]
[]
[]
[]
[null,null,null,null,null,"PROCESO\nPROMOCIÓN Y PREVENCIÓN\n\nFORMATO FICHA DE CARACTERIZACIÓN PARA LOS SERVICIOS DE ATENCIÓN A LA PRIMERA INFANCIA",null,null,null,null,null,null,null,null,null,null,null,null,null,null,null,null,null,null,null,null,null,null,null,null,null,null,null,null,null,null,null,null,null,null,null,{"$f":"$AP$1","v":"F23.MO12.PP"},null,null,null,null,"2021-02-08"]
[null,null,null,null,null,null,null,null,null,null,null,null,null,null,null,null,null,null,null,null,null,null,null,null,null,null,null,null,null,null,null,null,null,null,null,null,null,null,null,null,null,"Versión 2",null,null,null,null,"Página 3 de 6"]
[null,null,null,null,null,null,null,null,null,null,null,null,null,null,null,null,null,null,null,null,null,null,null,null,null,null,null,null,null,null,null,null,null,null,null,null,null,null,null,null,null,"Clasificación de la Información:\nPública"]
[]
["M. Participación asociaciones, grupos u organizaciones"]
["54. ¿La mujer gestante es miembro de algún grupo, organización o asociación?",null,null,null,null,null,null,null,null,null,null,null,"SI",null,null,"55. ¿En cuál de estos grupos u organizaciones que están activos y a los que usted pertenence, es en el que participa más?"]
[null,null,null,null,null,null,null,null,null,null,null,null,"NO",null,null,null,"1. Asociación comercial o de comerciantes",null,null,null,null,null,null,null,null,null,"4. Asociación o grupo cultural",null,null,null,null,null,null,null,null,null,null,null,null,null,"7. Asociación de víctimas",null,null,null,null,null,null,"10. No aplica"]
[null,null,null,null,null,null,null,null,null,null,null,null,null,null,null,null,"2. Comité de trabajo (vereda, consejo, pueblo)",null,null,null,null,null,null,null,null,null,"5. Asociación (de padres y profesores, comité escolar, por ocupación)",null,null,null,null,null,null,null,null,null,null,null,null,null,"8. Grupo de Mujeres"]
[null,null,null,null,null,null,null,null,null,null,null,null,null,null,null,null,"3. Grupo religioso /espiritual",null,null,null,null,null,null,null,null,null,"6. ONG",null,null,null,null,null,null,null,null,null,null,null,null,null,"9. Otra"]
[]
["56. ¿Qué rol tiene dentro del grupo u organización más importante?",null,null,null,null,null,null,null,null,null,null,null,null,null,"1. Representante",null,null,null,null,null,"3. Participante"]
[null,null,null,null,null,null,null,null,null,null,null,null,null,null,"2. Miembro Junta directiva",null,null,null,null,null,"4. No aplica"]
[]
["N. Validación servicios de salud "]
["57.¿Se encuentra afiliado (a)  al Sistema General de Seguridad Social en Salud?",null,null,null,null,null,null,null,null,null,null,null,"SI",null,null,"58. En caso de no estar afiliado al Sistema General de Seguridad Social en Salud ¿Cuál es la razón?",null,null,null,null,null,null,null,null,null,null,null,null,null,null,null,null,null,null,"58.1 Si la respuesta anterior fue \"6. Otro\", diligenciar cuál,"]
[null,null,null,null,null,null,null,null,null,null,null,null,"NO",null,null,null,"1. En trámite",null,null,null,null,"3. No sabe que debe afiliarse",null,null,null,null,null,null,"5. No hay entidad cercana"]
[null,null,null,null,null,null,null,null,null,null,null,null,null,null,null,null,"2. Falta de dinero",null,null,null,null,"4. No le interesa",null,null,null,null,null,null,"6. Otro "]
[]
["59. ¿Cuenta con el esquema de vacunación completo, según la edad gestacional?",null,null,null,null,null,null,null,null,null,null,null,"SI",null,null,"60. Si la respuesta anterior fue NO, ¿Cuál es la razón? ",null,null,null,null,null,null,null,null,null,null,null,null,null,null,null,null,null,null,"60.1 Si la respuesta anterior fue \"7. Otro\", diligenciar cuál,"]
[null,null,null,null,null,null,null,null,null,null,null,null,"NO",null,null,null,"1. Falta de dinero",null,null,null,null,null,null,"4. Pertenece a movimiento anti vacunas",null,null,null,null,null,null,null,"7. Otro"]
[null,null,null,null,null,null,null,null,null,null,null,null,null,null,null,null,"2. No sabe que debe vacunarse",null,null,null,null,null,null,"5. No hay entidad cercana."]
[null,null,null,null,null,null,null,null,null,null,null,null,null,null,null,null,"3. No le interesa ",null,null,null,null,null,null,"6. Motivos religiosos"]
[]
["III. MÓDULO 3: FAMILIA"]
["O. Variables Básicas"]
["1. Tipo documento de identidad usuario",null,null,null,null,null,null,null,"1. Tarjeta de Identidad",null,null,null,null,null,"4. Pasaporte",null,null,null,null,null,null,null,"2. Número de documento",null,null,null,null,null,null,null,null,null,null,null,null,null,null,"3. Número de personas que componen el hogar del usuario(a)"]
[null,null,null,null,null,null,null,null,"2. Cédula ciudadanía",null,null,null,null,null,"5. Permiso especial de permanencia (PEP)"]
[null,null,null,null,null,null,null,null,"3. Cedula de extranjería",null,null,null,null,null,"6. Sin Información"]
[]
["P. Variables básicas de Composición del Hogar y estructura familiar  (Integrantes del hogar que conviven con el niña/niño o mujer gestante)"]
[]
["No.","4. Parentesco",null,null,"4.1 Si respondió \"20.Otro\", indique cuál",null,null,"5. Nombres y Apellidos",null,null,null,null,null,"6. Tipo documento de identidad",null,"7. Número de documento",null,null,null,"8. Fecha de nacimiento",null,null,"9. Edad",null,"10. País de Nacimiento",null,null,"11. Sexo",null,"12. Género",null,"13. Orientación sexual",null,"14. Grupo étnico con el que se autoreconoce",null,"15. ¿Sabe leer y escribir en español?",null,"16. ¿Actualmente estudia?",null,"17. ¿Cuál es su nivel más alto de escolaridad?",null,"18. ¿Cuál es su actividad principal en este momento?",null,"19. ¿Si se encuentra trabajando, qué tipo de situación laboral presenta?",null,"20. Ingreso mensual promedio",null,null,"21. Observaciones"]
[null,null,null,null,null,null,null,null,null,null,null,null,null,null,null,null,null,null,null,"Día","Mes","Año"]
[1]
[2]
[3]
["Antes de imprimir este documento… piense en el medio ambiente!"]
["Cualquier copia impresa de este documento se considera como COPIA NO CONTROLADA"]
[" LOS DATOS PROPORCIONADOS SERÁN TRATADOS DE ACUERDO A LA POLÍTICA DE TRATAMIENTO DE DATOS PERSONALES DEL ICBF Y A LA LEY 1581 DE 2012"]
[]
[]
[]
[null,null,null,null,null,"PROCESO\nPROMOCIÓN Y PREVENCIÓN\n\nFORMATO FICHA DE CARACTERIZACIÓN PARA LOS SERVICIOS DE ATENCIÓN A LA PRIMERA INFANCIA",null,null,null,null,null,null,null,null,null,null,null,null,null,null,null,null,null,null,null,null,null,null,null,null,null,null,null,null,null,null,null,null,null,null,null,{"$f":"$AP$1","v":"F23.MO12.PP"},null,null,null,null,"2021-02-08"]
[null,null,null,null,null,null,null,null,null,null,null,null,null,null,null,null,null,null,null,null,null,null,null,null,null,null,null,null,null,null,null,null,null,null,null,null,null,null,null,null,null,"Versión 2",null,null,null,null,"Página 4 de 6"]
[null,null,null,null,null,null,null,null,null,null,null,null,null,null,null,null,null,null,null,null,null,null,null,null,null,null,null,null,null,null,null,null,null,null,null,null,null,null,null,null,null,"Clasificación de la Información:\nPública"]
[]
["No.","4. Parentesco",null,null,"4.1 Si respondió \"20.Otro\", indique cuál",null,null,"5. Nombres y Apellidos",null,null,null,null,null,"6. Tipo documento de identidad",null,"7. Número de documento",null,null,null,"8. Fecha de nacimiento",null,null,"9. Edad",null,"10. País de Nacimiento",null,null,"11. Sexo",null,"12. Género",null,"13. Orientación sexual",null,"14. Grupo étnico con el que se autoreconoce",null,"15. ¿Sabe leer y escribir en español?",null,"16. ¿Actualmente estudia?",null,"17. ¿Cuál es su nivel más alto de escolaridad?",null,"18. ¿Cuál es su actividad principal en este momento?",null,"19. ¿Si se encuentra trabajando, qué tipo de situación laboral presenta?",null,"20. Ingreso mensual promedio",null,null,"21. Observaciones"]
[null,null,null,null,null,null,null,null,null,null,null,null,null,null,null,null,null,null,null,"Día","Mes","Año"]
[4]
[5]
[6]
[7]
[8]
[9]
[10]
[]
["Q. Características de la vivienda"]
["22. Clase de ubicación de la vivienda",null,null,null,null,null,null,null,"1. Cabecera municipal",null,null,null,null,null,"23. Territorio étnico",null,null,null,null,"SI",null,"24. Si la respuesta anterior fue Si, a qué territorio étnico pertenece",null,null,null,null,null,null,null,"1. Resguardo indígena",null,null,null,null,null,null,null,null,null,"25. Indique el nombre de la comunidad en la que habita"]
[null,null,null,null,null,null,null,null,"2. Centro poblado",null,null,null,null,null,null,null,null,null,null,"NO",null,null,null,null,null,null,null,null,null,"2. Territorio colectivo de comunidad negra"]
[null,null,null,null,null,null,null,null,"3. Rural disperso",null,null,null,null,null,null,null,null,null,null,null,null,null,null,null,null,null,null,null,null,"3. No aplica"]
[]
["26. Tipo de Vivienda",null,null,null,null,"1. Casa",null,null,null,"4. Vivienda tradicional indígena",null,null,null,null,null,null,"7. Finca",null,null,null,null,null,null,"10. Otra",null,null,null,null,"27. Tipo de tenencia de la vivienda",null,null,null,null,null,null,null,null,"1. Propia",null,null,null,null,"4. Ocupador de hecho o poseedor"]
[null,null,null,null,null,"2. Cambuche",null,null,null,"5. Tipo cuarto",null,null,null,null,null,null,"8. Casa lote",null,null,null,null,null,null,null,null,null,null,null,null,null,null,null,null,null,null,null,null,"2. Familiar",null,null,null,null,"5. En concesión"]
[null,null,null,null,null,"3. Apartamento",null,null,null,"6. Rancho",null,null,null,null,null,null,"9. Establecimiento de reclusión",null,null,null,null,null,null,null,null,null,null,null,null,null,null,null,null,null,null,null,null,"3. En arriendo",null,null,null,null,"6. Otra."]
[]
[null,null,null,null,"26.1. Si respondió \"10.Otra\", indique cuál",null,null,null,null,null,null,null,null,null,null,null,null,null,null,null,null,null,null,null,null,null,null,null,"27.1 Si respondió \"6.Otra\", indique cuál"]
[]
[]
[]
[]
["Antes de imprimir este documento… piense en el medio ambiente!"]
["Cualquier copia impresa de este documento se considera como COPIA NO CONTROLADA"]
[" LOS DATOS PROPORCIONADOS SERÁN TRATADOS DE ACUERDO A LA POLÍTICA DE TRATAMIENTO DE DATOS PERSONALES DEL ICBF Y A LA LEY 1581 DE 2012"]
[]
[]
[]
[null,null,null,null,null,"PROCESO\nPROMOCIÓN Y PREVENCIÓN\n\n\nFORMATO FICHA DE CARACTERIZACIÓN PARA LOS SERVICIOS DE ATENCIÓN A LA PRIMERA INFANCIA",null,null,null,null,null,null,null,null,null,null,null,null,null,null,null,null,null,null,null,null,null,null,null,null,null,null,null,null,null,null,null,null,null,null,null,{"$f":"$AP$1","v":"F23.MO12.PP"},null,null,null,null,"2021-02-08"]
[null,null,null,null,null,null,null,null,null,null,null,null,null,null,null,null,null,null,null,null,null,null,null,null,null,null,null,null,null,null,null,null,null,null,null,null,null,null,null,null,null,"Versión 2",null,null,null,null,"Página 5 de 6"]
[null,null,null,null,null,null,null,null,null,null,null,null,null,null,null,null,null,null,null,null,null,null,null,null,null,null,null,null,null,null,null,null,null,null,null,null,null,null,null,null,null,"Clasificación de la Información:\nPública"]
[]
["R. Condiciones del entorno de la vivienda y habitabilidad"]
["R1 Habitabilidad",null,null,null,null,null,null,null,null,null,null,null,null,null,null,null,null,null,null,null,null,null,null,null,null,null,null,null,"R2 Energía o combustible "]
["28. ¿En dónde preparan los alimentos las personas del hogar?",null,null,null,null,null,null,null,null,null,null,null,null,null,null,null,null,null,null,"29. ¿El lugar donde viven cuenta con espacios independientes para dormitorio, cocina y baños?",null,null,null,null,null,null,null,null,"30. ¿Con qué energía o combustible utilizan principalmente para cocinar?"]
[null,"1. En un cuarto usado solo para cocinar",null,null,null,null,null,null,null,null,"4. En una sala -comedor sin lavaplatos",null,null,null,null,null,null,null,null,null,null,null,null,null,null,null,null,null,null,"1. Electricidad",null,null,null,null,null,null,null,null,null,null,null,"5. Carbón mineral"]
[null,"2. En un cuarto usado también para dormir",null,null,null,null,null,null,null,null,"5. En un patio, corredor , enramada, aire libre ",null,null,null,null,null,null,null,null,null,"SI",null,null,null,null,null,null,null,null,"2. Gas natural, conectado a red pública (Gas domiciliario)",null,null,null,null,null,null,null,null,null,null,null,"6. Leña, madera, o carbón de leña"]
[null,"3. En una sala- comedor con lavaplatos",null,null,null,null,null,null,null,null,"6. No preparan alimentos en la vivienda",null,null,null,null,null,null,null,null,null,"NO",null,null,null,null,null,null,null,null,"3. Gas Propano \"Cilindro\"",null,null,null,null,null,null,null,null,null,null,null,"7. Material de desecho"]
[null,null,null,null,null,null,null,null,null,null,null,null,null,null,null,null,null,null,null,null,null,null,null,null,null,null,null,null,null,"4. Petróleo, gasolina, kerosene , alcohol, cocinol",null,null,null,null,null,null,null,null,null,null,null,"8. Ninguno"]
[]
["R3 Acceso a servicio sanitario ",null,null,null,null,null,null,null,null,null,null,null,null,null,null,null,null,null,null,null,"R4 Servicios públicos",null,null,null,null,null,null,null,null,null,null,null,"R5 Eliminación de basura"]
["31. ¿Qué tipo de servicio sanitario (inodoro) tiene la vivienda donde habita el hogar?",null,null,null,null,null,null,null,null,null,null,null,null,null,null,null,null,null,null,null," 32. El grupo familiar del usuario-a tiene acceso a los siguientes servicios domiciliarios (Selección múltiple)",null,null,null,null,null,null,null,null,null,null,null,"33. ¿Cómo eliminan principalmente la basura en este hogar? (Selección múltiple)"]
[null,"1. Inodoro conectado al alcantarillado",null,null,null,null,null,null,null,"4. Letrina",null,null,null,null,null,null,null,null,null,null,null,null,null,null,null,null,null,null,null,null,null,null,null,"1. La recogen los servicios del aseo",null,null,null,null,null,null,null,null,"5. La entierran "]
[null,"2. Inodoro conectado a pozo séptico ",null,null,null,null,null,null,null,"5. Inodoro con descarga directa a fuentes de agua (bajamar)",null,null,null,null,null,null,null,null,null,null,null,"1. Energía",null,null,null,null,"4. Gas natural",null,null,null,null,null,null,"2. La tiran a un río, quebrada, caño o laguna",null,null,null,null,null,null,null,null,"6. La recoge un servicio informal (zorra, carreta, etc.)"]
[null,"3. Inodoro sin conexión",null,null,null,null,null,null,null,"6. La vivienda no tiene servicio sanitario",null,null,null,null,null,null,null,null,null,null,null,"2. Acueducto",null,null,null,null,"5. Telefonía fija",null,null,null,null,null,null,"3. La tiran a un patio, lote, zanja o baldío",null,null,null,null,null,null,null,null,"7. La reciclan "]
[null,null,null,null,null,null,null,null,null,null,null,null,null,null,null,null,null,null,null,null,null,"3. Alcantarillado",null,null,null,null,"6. Todas las anteriores",null,null,null,null,null,null,"4. La queman",null,null,null,null,null,null,null,null,"8. La elimina de otra forma"]
[]
["R6 Riesgos del entorno de la vivienda",null,null,null,null,null,null,null,null,null,null,null,null,null,null,null,null,null,null,null,null,null,null,null,null,null,"R7 Riesgos de accidentes dentro del hogar"]
["34. La vivienda está ubicada en o cerca de … (Selección múltiple)",null,null,null,null,null,null,null,null,null,null,null,null,null,null,null,null,null,null,null,null,null,null,null,null,null,"35. Riesgos de accidentes dentro del hogar para la niña o niño son … (Selección múltiple)"]
[null,"1. Área de deslizamiento de tierra",null,null,null,null,null,null,"4. Colina empinada",null,null,null,null,null,null,"7. Ferrocarril",null,null,null,null,"10. Ninguna de las anteriores",null,null,null,null,null,null,"1. Objetos cortantes o punzantes al alcance de niñas y niños",null,null,null,null,null,null,null,null,null,null,null,null,null,"6. Depósitos de agua destapados"]
[null,"2. Zona propensa a las inundaciones",null,null,null,null,null,null,"5. Montaña/pila de basura",null,null,null,null,null,null,"8. Central eléctrica",null,null,null,null,"11. Otra",null,null,null,null,null,null,"2. Fármacos con fácil acceso o mal identificados ",null,null,null,null,null,null,null,null,null,null,null,null,null,"7. Bolsas de plástico al alcance de la niña o el niño"]
[null,"3. Orilla de río",null,null,null,null,null,null,"6. Área de contaminación industrial",null,null,null,null,null,null,"9. Paso elevado",null,null,null,null,null,null,null,null,null,null,null,"3. Fósforos, encendedores o similares al alcance las niñas y los niños",null,null,null,null,null,null,null,null,null,null,null,null,null,"8. Hacinamiento "]
[null,null,null,null,null,null,null,null,null,null,null,null,null,null,null,null,null,null,null,null,null,null,null,null,null,null,null,"4. Recipientes con querosene, alcohol industrial, bebidas alcohólicas u otras sustancias tóxicas al alcance de las niñas y los niños",null,null,null,null,null,null,null,null,null,null,null,null,null,"9. Quemaduras"]
["34.1 Si seleccionó \"11. Otra\", indique cuál",null,null,null,null,null,null,null,null,null,null,null,null,null,null,null,null,null,null,null,null,null,null,null,null,null,null,null,null,null,null,null,null,null,null,null,null,null,null,null,null,"10. Ninguno de las anteriores"]
[null,null,null,null,null,null,null,null,null,null,null,null,null,null,null,null,null,null,null,null,null,null,null,null,null,null,null,"5. Escaleras, azoteas o balcones sin barandas o barandas inseguras",null,null,null,null,null,null,null,null,null,null,null,null,null,"11. Otro"]
[]
[null,null,null,null,null,null,null,null,null,null,null,null,null,null,null,null,null,null,null,null,null,null,null,null,null,null,"35.1 Si seleccionó \"11. Otro\", indique cuál"]
[]
["S. Acceso y calidad del agua"]
["36. ¿En el grupo familiar la fuente principal para el consumo del agua es?",null,null,null,null,null,null,null,null,null,null,null,null,null,"37. ¿Con qué frecuencia el grupo familiar dispone del agua  para el consumo humano?",null,null,null,null,null,null,null,null,"38. ¿Al agua que se usa para consumo humano en el hogar, se le realiza algún tratamiento para  que sea apta para el consumo? ",null,null,null,null,null,"1. Si",null,null,null,"39. Si la respuesta anterior es SI ¿Qué tratamiento usa? ",null,null,null,null,null,null,null,null,null,null,null,null,"39.1 Si seleccionó \"8. Otro\", indique cuál"]
[null,"1. Acueducto",null,null,null,null,null,"5. Río, Quebrada, Manantial",null,null,null,null,null,null,null,null,null,null,null,null,null,null,null,null,null,null,null,null,null,"2. No",null,null,null,null,"1. Filtro casero",null,null,null,null,"5. Agua embotellada o en bolsa"]
[null,"2. Aguatero -carro tanque",null,null,null,null,null,"6. Agua embotellada o en bolsa",null,null,null,null,null,null,null,"1. Nunca",null,null,null,"4.Quincenal ",null,null,null,null,null,null,null,null,null,"3. No sabe ",null,null,null,null,"2. Filtro OMS",null,null,null,null,"6. Carro Tanque"]
[null,"3. Pozo-Aljibe-Jagüey",null,null,null,null,null,"7. Pila Pública",null,null,null,null,null,null,null,"2. Todos los días",null,null,null,"5. Mensual ",null,null,null,null,null,null,null,null,null,null,null,null,null,null,"3. Agua Hervida",null,null,null,null,"7. Pastillas potabilizadoras de agua"]
[null,"4. Agua - lluvia",null,null,null,null,null,null,null,null,null,null,null,null,null,"3. Semanal",null,null,null,null,null,null,null,null,null,null,null,null,null,null,null,null,null,null,"4. Agua lluvia tratada",null,null,null,null,"8. Otro"]
[]
[]
["Antes de imprimir este documento… piense en el medio ambiente!"]
["Cualquier copia impresa de este documento se considera como COPIA NO CONTROLADA"]
[" LOS DATOS PROPORCIONADOS SERÁN TRATADOS DE ACUERDO A LA POLÍTICA DE TRATAMIENTO DE DATOS PERSONALES DEL ICBF Y A LA LEY 1581 DE 2012"]
[]
[]
[]
[null,null,null,null,null,"PROCESO\nPROMOCIÓN Y PREVENCIÓN\n\nFORMATO FICHA DE CARACTERIZACIÓN PARA LOS SERVICIOS DE ATENCIÓN A LA PRIMERA INFANCIA",null,null,null,null,null,null,null,null,null,null,null,null,null,null,null,null,null,null,null,null,null,null,null,null,null,null,null,null,null,null,null,null,null,null,null,{"$f":"$AP$1","v":"F23.MO12.PP"},null,null,null,null,"2021-02-08"]
[null,null,null,null,null,null,null,null,null,null,null,null,null,null,null,null,null,null,null,null,null,null,null,null,null,null,null,null,null,null,null,null,null,null,null,null,null,null,null,null,null,"Versión 2",null,null,null,null,"Página 6 de 6"]
[null,null,null,null,null,null,null,null,null,null,null,null,null,null,null,null,null,null,null,null,null,null,null,null,null,null,null,null,null,null,null,null,null,null,null,null,null,null,null,null,null,"Clasificación de la Información:\nPública"]
[]
["T.  Dinámica Familiar"]
["40. ¿Con qué integrante del grupo familiar  el niño, niña o mujer gestante tiene un lazo afectivo más fuerte?",null,null,null,null,null,null,null,null,null,null,null,null,null,null,null,null,null,null,null,null,"41. ¿Qué actividad principal realizan como familia?",null,null,null,null,null,null,null,null,null,null,"42. ¿Quién toma las decisiones en la familia del usuario-a?"]
[null,"1. Padre",null,null,null,"6. Sobrina- o",null,null,null,"11. Hijastra- o",null,null,null,"16. Yerno",null,null,null,"21. Otro",null,null,null,null,"1. Pasear",null,null,null,null,"6. Otra",null,null,null,null,null,"1. Padre",null,null,null,"7. Cónyuge",null,null,null,"13. Suegra -o",null,null,null,"19. Familia sustituta/institución de protección"]
[null,"2. Madre",null,null,null,"7. Nieta - o",null,null,null,"12. Abuela- o",null,null,null,"17. Cuñada-o",null,null,null,null,null,null,null,null,"2. Ver TV",null,null,null,null,"7. Ninguna",null,null,null,null,null,"2. Madre",null,null,null,"8. Padrastro",null,null,null,"14. Nuera"]
[null,"3. Hija-o",null,null,null,"8. Cónyuge",null,null,null,"13. Tía - o",null,null,null,"18. Padrino",null,null,null,null,null,null,null,null,"3. Juegos",null,null,null,null,null,null,null,null,null,null,"3. Hermana-o",null,null,null,"9. Madrastra",null,null,null,"15. Yerno",null,null,null,"20. Usuaria- Mujer gestante"]
[null,"4. Hermana-o",null,null,null,"9. Padrastro",null,null,null,"14. Suegra -o",null,null,null,"19. Madrina",null,null,null,null,null,null,null,null,"4. Leer",null,null,null,null,null,null,null,null,null,null,"4. Prima- o",null,null,null,"10. Hijastra- o",null,null,null,"16. Cuñada-o",null,null,null,"21.Otro"]
[null,"5. Prima- o",null,null,null,"10. Madrastra",null,null,null,"15. Nuera",null,null,null,"20. Familia sustituta/institución de protección",null,null,null,null,null,null,null,null,"5. Eventos religiosos",null,null,null,null,null,null,null,null,null,null,"5. Sobrina- o",null,null,null,"11. Abuela- o",null,null,null,"17. Padrino"]
[null,null,null,null,null,null,null,null,null,null,null,null,null,null,null,null,null,null,null,null,null,null,null,null,null,null,null,null,null,null,null,null,null,"6. Nieta - o",null,null,null,"12. Tía - o",null,null,null,"18. Madrina"]
["40.1 Si seleccionó \"20. Otro\", indique cuál",null,null,null,null,null,null,null,null,null,null,null,null,null,null,null,null,null,null,null,null,"41.1 Si seleccionó \"6. Otra\", indique cuál",null,null,null,null,null,null,null,null,null,null,"42.1 Si seleccionó \"21. Otro\", indique cuál"]
[]
[]
["43. ¿Bajo qué criterio principal se fundamenta el liderazgo en la toma de decisiones?",null,null,null,null,null,null,null,null,null,null,null,null,null,null,null,null,"44. ¿De qué manera resuelven los conflictos en la familia?",null,null,null,null,null,null,null,null,null,null,null,null,null,null,null,null,null,"45. ¿Cómo corrigen principalmente en la familia a la niña o el niño? "]
[null,"1. Reconocimiento del liderazgo familiar",null,null,null,null,null,null,null,"3. Proveedor-a económico",null,null,null,null,null,null,null,null,null,null,null,null,null,null,null,null,null,null,null,null,null,null,null,null,null,null,"1. Palmadas, pellizcos, etc.",null,null,null,null,null,null,"3. Hablando",null,null,null,"5. Buen ejemplo"]
[null,"2. Edad",null,null,null,null,null,null,null,"4. Otro",null,null,null,null,null,null,null,null,null,null,null,null,null,null,null,null,null,null,null,null,null,null,null,null,null,null,"2. Gritos",null,null,null,null,null,null,"4. Diálogo",null,null,null,"6. Otro"]
[]
["43.1 Si seleccionó \"4. Otro\", indique cuál",null,null,null,null,null,null,null,null,null,null,null,null,null,null,null,null,null,null,null,null,null,null,null,null,null,null,null,null,null,null,null,null,null,null,"45.1 Si seleccionó \"6. Otro\", indique cuál"]
[]
["46. ¿Quién corrige principalmente a la niña o el niño?",null,null,null,null,null,null,null,null,null,null,null,null,null,null,null,null,null,null,null,null,"47. De los siguientes eventos ¿cuál se ha presentado o presenta en el hogar?",null,null,null,null,null,null,null,null,null,null,null,null,null,null,"48. ¿Con qué frecuencia el usuario-a es tenido en cuenta para la toma de decisiones que afectan a la familia?"]
[null,"1. Padre",null,null,null,"6. Nieta - o",null,null,null,"11. Abuela- o",null,null,null,"16. Cuñada-o",null,null,null,null,null,null,null,null,"1. Violencia sexual",null,null,null,null,null,null,"6. Ninguna"]
[null,"2. Madre",null,null,null,"7. Cónyuge",null,null,null,"12. Tía - o",null,null,null,"17. Padrino",null,null,null,null,null,null,null,null,"2. Violencia psicológica",null,null,null,null,null,null,"7. Otra",null,null,null,null,null,null,null,"1. Ocasionalmente"]
[null,"3. Hermana-o",null,null,null,"8. Padrastro",null,null,null,"13. Suegra -o",null,null,null,"18. Madrina",null,null,null,null,null,null,null,null,"3. Violencia física",null,null,null,null,null,null,null,null,null,null,null,null,null,null,"2. Diario"]
[null,"4. Prima- o",null,null,null,"9. Madrastra",null,null,null,"14. Nuera",null,null,null,"19. Familia sustituta/Institución de protección",null,null,null,null,null,null,null,null,"4. Violencia por conflicto armado",null,null,null,null,null,null,null,null,null,null,null,null,null,null,"3. Nunca"]
[null,"5. Sobrina- o",null,null,null,"10. Hijastra- o",null,null,null,"15. Yerno",null,null,null,"20. Otro",null,null,null,null,null,null,null,null,"5. Castigo físico"]
[]
["46.1 Si seleccionó \"20. Otro\", indique cuál",null,null,null,null,null,null,null,null,null,null,null,null,null,null,null,null,null,null,null,null,"47.1 Si seleccionó \"6. Otro\", indique cuál"]
[]
["U. Redes de apoyo"]
["49. ¿Cuenta con algún tipo de apoyo cuando se encuentra en crisis (económica, afectiva, social, entre otras) el hogar?",null,null,null,null,null,null,null,null,null,null,null,null,null,null,null,null,null,null,null,null,null,null,"SI",null,"50. Si respondió SI, indique ¿De quién?",null,null,null,null,null,null,null,null,"1. Estado",null,null,null,null,"3. Familia"]
[null,null,null,null,null,null,null,null,null,null,null,null,null,null,null,null,null,null,null,null,null,null,null,"NO",null,null,null,null,null,null,null,null,null,null,"2. Comunidad"]
[]
[]
[]
[]
[]
[]
[]
[]
[]
[]
["Antes de imprimir este documento… piense en el medio ambiente!"]
["Cualquier copia impresa de este documento se considera como COPIA NO CONTROLADA"]
[" LOS DATOS PROPORCIONADOS SERÁN TRATADOS DE ACUERDO A LA POLÍTICA DE TRATAMIENTO DE DATOS PERSONALES DEL ICBF Y A LA LEY 1581 DE 2012"]

{"sheet":"DATOS UDS","index":4,"n_rows":21,"n_cols":11,"rows_kept":21,"cut":false,"hidden":false,"merged":[[0,0,2,1],[0,6,0,7],[1,6,1,7],[2,5,2,7],[0,2,2,4],[18,0,18,7],[19,0,19,7],[20,0,20,7],[4,0,4,7],[14,0,14,7],[8,5,8,6],[10,5,10,6],[12,3,12,6]]}
[null,null,"PROCESO\nPROMOCIÓN Y PREVENCIÓN\n\nFORMATO FICHA DE CARACTERIZACIÓN PARA LOS SERVICIOS DE ATENCIÓN A LA PRIMERA INFANCIA",null,null,{"$f":"PORTADA!$K$1","v":"F23.MO12.PP"},"2021-02-08"]
[null,null,null,null,null,"Versión 2","Página 1 de 1"]
[null,null,null,null,null,"Clasificación de la Información:\nPública"]
[]
["I. INFORMACIÓN UNIDAD DE SERVICIO",null,null,null,null,null,null,null,null,"1. Fecha de diligenciamiento",{"$f":"C7","v":"2021-02-05"}]
[null,null,null,null,null,null,null,null,null,"2. Regional",{"$f":"Seleccion_Regional","v":0}]
[null,"1. Fecha de diligenciamiento\n(dd/mm/aaaa)",{"$f":"TODAY()","v":"2021-02-05"},null,null,null,null,null,null,"3. Centro Zonal",{"$f":"F9","v":0}]
[null,null,null,null,null,null,null,null,null,"4. NIT Entidad ",{"$f":"C11","v":0}]
[null,"2. Regional",null,null,"3. Centro Zonal",null,null,null,null,"5. Código CUÉNTAME UDS",{"$f":"F11","v":0}]
[null,null,null,null,null,null,null,null,null,"6. Nombre Agente Educativo",{"$f":"D13","v":0}]
[null,"4. NIT Entidad ",null,null,"5. Código CUÉNTAME UDS"]
[]
[null,"6. Nombre Agente Educativo que diligencia la ficha"]
[]
[]
[]
[]
[]
["Antes de imprimir este documento… piense en el medio ambiente!"]
["Cualquier copia impresa de este documento se considera como COPIA NO CONTROLADA"]
[" LOS DATOS PROPORCIONADOS SERÁN TRATADOS DE ACUERDO A LA POLÍTICA DE TRATAMIENTO DE DATOS PERSONALES DEL ICBF Y A LA LEY 1581 DE 2012"]

{"sheet":"MODULO 1","index":5,"n_rows":104,"n_cols":16,"rows_kept":104,"cut":false,"hidden":false,"merged":[[0,0,2,1],[7,5,7,6],[9,5,9,6],[0,6,0,7],[1,6,1,7],[2,5,2,7],[0,2,2,4],[27,1,27,2],[37,0,37,7],[4,0,4,7],[5,0,5,7],[29,3,29,4],[31,3,31,4],[33,3,33,4],[35,3,35,4],[11,5,11,6],[13,5,13,6],[17,5,17,6],[19,2,19,6],[21,2,21,6],[23,5,23,6],[25,5,25,6],[54,1,54,5],[53,9,54,9],[52,2,52,6],[99,0,99,7],[79,1,79,5],[64,1,64,5],[72,5,72,6],[74,5,74,6],[81,5,81,6],[83,2,83,6],[85,5,85,6],[87,2,87,6],[91,5,91,6],[93,2,93,6],[97,2,97,6],[91,11,92,11],[53,10,54,10],[82,9,83,9],[91,9,92,9],[91,10,92,10],[39,5,39,6],[41,5,41,6],[46,5,46,6],[48,2,48,6],[50,5,50,6],[43,0,43,7],[101,0,101,7],[102,0,102,7],[103,0,103,7],[56,5,56,6],[58,2,58,6],[60,5,60,6],[62,2,62,6],[68,5,68,6],[76,0,76,7]]}
[null,null,"PROCESO\nPROMOCIÓN Y PREVENCIÓN\n\nFORMATO FICHA DE CARACTERIZACIÓN PARA LOS SERVICIOS DE ATENCIÓN A LA PRIMERA INFANCIA",null,null,{"$f":"PORTADA!$K$1","v":"F23.MO12.PP"},"2021-02-08"]
[null,null,null,null,null,"Versión 2","Página 1 de 1"]
[null,null,null,null,null,"Clasificación de la Información:\nPública"]
[]
["II. MÓDULO 1: NIÑA Y NIÑO"]
["A. Variables Básicas"]
[null,null,null,null,null,null,null,null,null,null,null,null,null,null,"Usuario","Niño o Niña"]
[null,"7. Fecha de nacimiento (dd/mm/aaaa)",null,null,"8. Edad",{"$f":"DATEDIF(C8,TODAY(),\"y\") & \" años, \" & DATEDIF(C8,TODAY(),\"ym\") & \" meses, \" &DATEDIF(C8,TODAY(),\"md\")& \" días\"","v":"121 años, 1 meses, 5 días"},null,null,null,null,null,null,null,null,"7. Fecha de nacimiento",{"$f":"C8","v":"00:00:00"}]
[null,null,null,null,null,null,null,null,null,null,null,null,null,null,"8. Edad",{"$f":"F8","v":"121 años, 1 meses, 5 días"}]
[null,"9. País de Nacimiento",null,null,"10. Nacionalidad Principal",null,null,null,null,null,null,null,null,null,"9. País de Nacimiento",{"$f":"C10","v":0}]
[null,null,null,null,null,null,null,null,null,null,null,null,null,null,"10. Nacionalidad Principal",{"$f":"F10","v":0}]
[null,null,null,null,"10.1 Si, tiene segunda nacionalidad, indique",null,null,null,null,null,null,null,null,null,"10.1 Segunda Nacionalidad",{"$f":"F12","v":0}]
[null,null,null,null,null,null,null,null,null,null,null,null,null,null,"11. Departamento de residencia",{"$f":"Seleccion_Departamento","v":0}]
[null,"11. Departamento de residencia",null,null,"12. Municipio de residencia",null,null,null,null,null,null,null,null,null,"12. Municipio de residencia",{"$f":"F14","v":0}]
[null,null,null,null,null,null,null,null,null,null,null,null,null,null,"13. Número celular acudiente",{"$f":"C16","v":0}]
[null,"13. Número celular acudiente",null,null,null,null,null,null,null,null,null,null,null,null,"14. Tipo documento de identidad",{"$f":"C18","v":0}]
[null,null,null,null,null,null,null,null,null,null,null,null,null,null,"15. Número de documento",{"$f":"F18","v":0}]
[null,"14. Tipo documento de identidad",null,null,"15. Número de documento",null,null,null,null,null,null,null,null,null,"16. Nombres",{"$f":"C20","v":0}]
[null,null,null,null,null,null,null,null,null,null,null,null,null,null,"17. Apellidos",{"$f":"C22","v":0}]
[null,"16. Nombres",null,null,null,null,null,null,null,null,null,null,null,null,"18. Sexo",{"$f":"C24","v":0}]
[null,null,null,null,null,null,null,null,null,null,null,null,null,null,"19. Niña o niño con discapacidad",{"$f":"NN_Discapacidad","v":0}]
[null,"17. Apellidos",null,null,null,null,null,null,null,null,null,null,null,null,"20. Categoría de discapacidad",{"$f":"C26","v":0}]
[null,null,null,null,null,null,null,null,null,null,null,null,null,null,"21. Grupo étnico con el que se reconoce la familia de la niña o el niño",{"$f":"F26","v":0}]
[null,"18. Sexo",null,null,"19. Niña o niño con discapacidad",null,null,null,null,null,null,null,null,null,"22. ¿Qué lengua o lenguas utilizan para comunicarse con el niño o la niña? (22.1 Lengua Principal)",{"$f":"D30","v":0}]
[null,null,null,null,null,null,null,null,null,null,null,null,null,null,"22. ¿Qué lengua o lenguas utilizan para comunicarse con el niño o la niña? (22.2 Lengua Secundaria)",{"$f":"D32","v":0}]
[null,"20. Categoría de discapacidad",null,null,"21. Grupo étnico con el que se reconoce la familia de la niña o el niño",null,null,null,null,null,null,null,null,null,"22. ¿Qué lengua o lenguas utilizan para comunicarse con el niño o la niña? (22.3 Lengua Terciaria)",{"$f":"D34","v":0}]
[null,null,null,null,null,null,null,null,null,null,null,null,null,null,"22. ¿Qué lengua o lenguas utilizan para comunicarse con el niño o la niña? (22.45 Otra)",{"$f":"D36","v":0}]
[null,"22. ¿Qué lengua o lenguas utilizan para comunicarse con el niño o la niña?",null,null,null,null,null,null,null,null,null,null,null,null,"23. ¿La niña o el niño duerme en ?",{"$f":"C40","v":0}]
[null,null,null,null,null,null,null,null,null,null,null,null,null,null,"23.1 Si, respondió \"8.Otra\", indique cuál",{"$f":"F40","v":0}]
[null,null,"22.1 Lengua Principal",null,null,null,null,null,null,null,null,null,null,null,"24. ¿La niña o el niño duerme con adultos en la misma habitación?",{"$f":"C42","v":0}]
[null,null,null,null,null,null,null,null,null,null,null,null,null,null,"25. ¿La niña o el niño duerme con adultos en la misma cama?",{"$f":"F42","v":0}]
[null,null,"22.2 Lengua Secundaria",null,null,null,null,null,null,null,null,null,null,null,"26.¿La niña o niño se encuentra afiliado (a) al Sistema General de Seguridad Social en Salud?",{"$f":"Seleccion_SSSG","v":0}]
[null,null,null,null,null,null,null,null,null,null,null,null,null,null,"27. En caso de no estar afiliado al Sistema General de Seguridad Social en Salud \n¿Cuál es la razón?",{"$f":"F47","v":0}]
[null,null,"22.3 Lengua Terciaria",null,null,null,null,null,null,null,null,null,null,null,"27.1 Si la respuesta anterior fue \"Otra\", diligenciar cuál,",{"$f":"C49","v":0}]
[null,null,null,null,null,null,null,null,null,null,null,null,null,null,"28. ¿La niña o niño cuenta con el esquema de vacunación completo, según la edad?",{"$f":"Seleccion_Vacunacion","v":0}]
[null,null,"22.4 Si, respondió \"75. Otro\", indique cuál",null,null,null,null,null,null,null,null,null,null,null,"29. En caso de que no contar con el esquema de vacunación completo según la edad de la niña o el niño, ¿Cuál es la razón?",{"$f":"F51","v":0}]
[null,null,null,null,null,null,null,null,null,null,null,null,null,null,"29.1. Si la respuesta anterior fue \"Otra\", diligenciar cuál,",{"$f":"C53","v":0}]
["B. Condiciones habitacionales",null,null,null,null,null,null,null,null,null,null,null,null,null,"30. Si la niña o el niño es mayor de 6 meses ¿Ha tenido atención en salud bucal?",{"$f":"Seleccion_bucal","v":0}]
[null,null,null,null,null,null,null,null,null,null,null,null,null,null,"31. En caso de no contar con la atención en la salud  bucal ¿Cuál es el motivo?",{"$f":"F57","v":0}]
[null,"23. ¿La niña o el niño duerme en ?",null,null,"23.1 Si, respondió \"7.Otro\", indique cuál",null,null,null,null,null,null,null,null,null,"31.1 Si la respuesta anterior fue \"Otro\", diligenciar cuál,",{"$f":"C59","v":0}]
[null,null,null,null,null,null,null,null,null,null,null,null,null,null,"32. ¿La niña o el niño ha recibido valoración de la salud auditiva y comunicativa?",{"$f":"C61","v":0}]
[null,"24. ¿La niña o el niño duerme con adultos en la misma habitación?",null,null,"25. ¿La niña o el niño duerme con adultos en la misma cama?",null,null,null,null,null,null,null,null,null,"33. En caso de no contar con la atención en la salud  auditiva y comunicativa ¿Cuál es el motivo?",{"$f":"F61","v":0}]
[null,null,null,null,null,null,null,null,null,null,null,null,null,null,"34. Si la niña o niño es mayor de (3) tres años ¿Ha recibido valoración  de la salud visual?",{"$f":"C67","v":"00:00:00"}]
["C. Atenciones en salud",null,null,null,null,null,null,null,null,null,null,null,null,null,"35.¿La niña o niño es alérgico a algún medicamento o alimento?",{"$f":"C69","v":"00:00:00"}]
["C1 Validación servicios de salud",null,null,null,null,null,null,null,null,null,null,null,null,null,"36. Si la respuesta anterior es SI, indique el medicamento o alimento al cuál es alérgico,",{"$f":"F69","v":0}]
[null,null,null,null,null,null,null,null,null,null,null,null,null,null,"37.La niña o niño ¿cuenta con la valoración integral del desarrollo en salud según la edad? ",{"$f":"C73","v":"00:00:00"}]
[null,"26.¿La niña o niño se encuentra afiliado (a) al Sistema General de Seguridad Social en Salud?",null,null,"27. En caso de no estar afiliado al Sistema General de Seguridad Social en Salud \n¿Cuál es la razón?",null,null,null,null,null,null,null,null,null,"38. Si la niña o niño cuenta con valoración integral en salud, indique la fecha de la ultima cita a la que asistió. Formato (dd/mm/aaaa)",{"$f":"F73","v":"00:00:00"}]
[null,null,null,null,null,null,null,null,null,null,null,null,null,null,"39. En caso de que no contar con la valoración integral del desarrollo en salud según la edad de la niña o el niño, ¿Cuál es la razón?",{"$f":"C75","v":"00:00:00"}]
[null,"27.1 Si la respuesta anterior fue \"Otra\", diligenciar cuál,",null,null,null,null,null,null,null,null,null,null,null,null,"39.1 Si la respuesta anterior fue \"Otro\", diligenciar cuál,",{"$f":"F75","v":0}]
[null,null,null,null,null,null,null,null,null,null,null,null,null,null,"40. ¿La niña o el niño recibe leche materna?",{"$f":"Seleccion_leche","v":0}]
[null,"28. ¿La niña o niño cuenta con el esquema de vacunación completo, según la edad?",null,null,"29. En caso de que no contar con el esquema de vacunación completo según la edad de la niña o el niño, ¿Cuál es la razón?",null,null,null,null,null,null,null,null,null,"41. Si la respuesta anterior es negativa, ¿cuál es el motivo?",{"$f":"F82","v":"00:00:00"}]
[null,null,null,null,null,null,null,null,null,null,null,null,null,null,"41.1 Si la respuesta anterior fue \"Otro\", describa cuál",{"$f":"C84","v":0}]
[null,"29.1. Si la respuesta anterior fue \"7. Otra\", diligenciar cuál,",null,null,null,null,null,null,null,"Condición 1","Condición 2",null,null,null,"42. Es alimentado exclusivamente con leche materna (no se le ofrece ningún otro alimento o bebida, incluyendo agua y/o leche de fórmula) ",{"$f":"Seleccón_exclusiva","v":0}]
[null,null,null,null,null,null,null,null,null,{"$f":"IF($F$8>\"0 años, 6 meses, 0 días\",\"SI\",\"NO\")","v":"SI"},{"$f":"IF($F$8>\"3 años, 0 meses, 0 días\",\"SI\",\"NO\")","v":"NO"},null,null,null,"43. A qué edad le ofreció alimentos diferentes a la leche materna (incluyendo agua y/o leche de fórmula)",{"$f":"F86","v":"00:00:00"}]
[null,"Condición: Si la niña o el niño es mayor de 6 meses, contestar las siguientes preguntas (No. 30 - 33). De lo contrario pasar a la pregunta 34.",null,null,null,null,null,null,null,null,null,null,null,null,"44. Cuál fue el primer alimento que proporcionó diferente a leche materna o de formula",{"$f":"C88","v":0}]
[null,null,null,null,null,null,null,null,null,null,null,null,null,null,"45. ¿La niña o el niño recibió leche materna de forma exclusiva?",{"$f":"Seleccion_complementaria","v":0}]
[null,"30. Si la niña o el niño es mayor de 6 meses ¿Ha tenido atención en salud bucal?",null,null,"31. En caso de no contar con la atención en la salud  bucal ¿Cuál es el motivo?",null,null,null,null,null,null,null,null,null,"46. Si la respuesta anterior es negativa, ¿cuál fue el motivo?",{"$f":"F92","v":"00:00:00"}]
[null,null,null,null,null,null,null,null,null,null,null,null,null,null,"46.1 Si la respuesta anterior fue \"Otro\", describa cuál",{"$f":"C94","v":0}]
[null,"31.1 Si la respuesta anterior fue \"6. Otro\", diligenciar cuál,",null,null,null,null,null,null,null,null,null,null,null,null,"47. A qué edad le ofreció alimentos diferentes a la leche materna",{"$f":"C96","v":"00:00:00"}]
[null,null,null,null,null,null,null,null,null,null,null,null,null,null,"48.Cuál fue el primer alimento que proporcionó diferente a leche materna?",{"$f":"C98","v":0}]
[null,"32. ¿La niña o el niño ha recibido valoración de la salud auditiva y comunicativa?",null,null,"33. En caso de NO contar con la atención en la salud  auditiva y comunicativa ¿Cuál es el motivo?"]
[]
[null,"33.1 Si la respuesta anterior fue \"6. Otro\", diligenciar cuál,"]
[]
[null,"Si la niña o el niño es mayor de 3 años, contestar la siguiente pregunta (No. 34). De lo contrario pasar a la pregunta 35."]
[]
[null,"34. Si la niña o niño es mayor de (3) tres años ¿Ha recibido valoración  de la salud visual?"]
[]
[null,"35.¿La niña o niño es alérgico a algún medicamento o alimento?",null,null,"36. Si la respuesta anterior es SI, indique el medicamento o alimento al cuál es alérgico,"]
[]
["C2 Valoración integral en salud"]
[]
[null,"37.La niña o niño ¿cuenta con la valoración integral del desarrollo en salud según la edad? ",null,null,"38. Si la niña o niño cuenta con valoración integral en salud, indique la fecha de la ultima cita a la que asistió. Formato (dd/mm/aaaa)"]
[]
[null,"39. En caso de que no contar con la valoración integral del desarrollo en salud según la edad de la niña o el niño, ¿Cuál es la razón?",null,null,"39.1 Si la respuesta anterior fue \"5. Otro\", diligenciar cuál,"]
[]
["D. Lactancia Materna y Alimentación Complementaria"]
["D1 Niña/Niño menor de 6 meses"]
[]
[null,"Si la niña o el niño es menor de 6 meses, contestar las siguientes preguntas (No. 40 - 44). De lo contrario pasar a la pregunta 45."]
[]
[null,"40. ¿La niña o el niño recibe leche materna?",null,null,"41. Si la respuesta anterior es negativa, ¿cuál es el motivo?",null,null,null,null,"Menor de 6 meses"]
[null,null,null,null,null,null,null,null,null,{"$f":"IF($F$8<\"0 años, 6 meses, 0 días\",\"SI\",\"NO\")","v":"NO"}]
[null,"41.1 Si la respuesta anterior fue \"8. Otro\", describa cuál"]
[]
[null,"42. Es alimentado exclusivamente con leche materna (no se le ofrece ningún otro alimento o bebida, incluyendo agua y/o leche de fórmula) ",null,null,"43. Si la respuesta anterior es negativa, ¿a qué edad le ofreció alimentos diferentes a la leche materna (incluyendo agua y/o leche de fórmula)?"]
[]
[null,"44. ¿Cuál fue el primer alimento que proporcionó diferente a leche materna o de formula?"]
[]
["D2 Niña/Niño entre 7 meses y 2 años"]
[null,"Si la niña o el niño tiene entre 7 meses y 2 años, contestar las siguientes preguntas (No. 45 - 48). De lo contrario continue con el registro del módulo 3.",null,null,null,null,null,null,null,"Mayor 7 meses","Menor 2 años","TOTAL"]
[null,"45. ¿La niña o el niño recibió leche materna de forma exclusiva?",null,null,"46. Si la respuesta anterior es negativa, ¿cuál fue el motivo?",null,null,null,null,{"$f":"IF($F$8>\"0 años, 7 meses, 0 días\",\"SI\",\"NO\")","v":"SI"},{"$f":"IF($F$8<\"2 años, 0 meses, 1 días\",\"SI\",\"NO\")","v":"SI"},{"$f":"IF(L94=2,\"SI\",\"NO\")","v":"SI"}]
[]
[null,"46.1 Si la respuesta anterior fue \"8. Otro\", describa cuál",null,null,null,null,null,null,null,{"$f":"IF(J92=\"SI\",\"1\",\"0\")","v":"1"},{"$f":"IF(K92=\"SI\",\"1\",\"0\")","v":"1"},{"$f":"J94+K94","v":2}]
[]
[null,"47. ¿A qué edad le ofreció alimentos diferentes a la leche materna?"]
[]
[null,"48. ¿Cuál fue el primer alimento que proporcionó diferente a leche materna?"]
[]
[]
[null,null,null,null,null,null,null,null,null,null,null,null,null,null,"Niño o Niña"]
["Antes de imprimir este documento… piense en el medio ambiente!"]
["Cualquier copia impresa de este documento se considera como COPIA NO CONTROLADA"]
[" LOS DATOS PROPORCIONADOS SERÁN TRATADOS DE ACUERDO A LA POLÍTICA DE TRATAMIENTO DE DATOS PERSONALES DEL ICBF Y A LA LEY 1581 DE 2012"]

{"sheet":"MODULO 2","index":6,"n_rows":110,"n_cols":11,"rows_kept":110,"cut":false,"hidden":false,"merged":[[79,5,79,6],[81,4,81,6],[87,2,87,6],[91,5,91,6],[97,5,97,6],[95,0,95,7],[63,5,63,6],[65,5,65,6],[67,5,67,6],[73,4,73,6],[75,2,75,6],[107,0,107,7],[108,0,108,7],[109,0,109,7],[9,2,9,6],[11,2,11,6],[13,5,13,6],[15,5,15,6],[17,5,17,6],[21,5,21,6],[23,5,23,6],[25,5,25,6],[27,5,27,6],[29,5,29,6],[35,5,35,6],[37,5,37,6],[39,5,39,6],[33,0,33,7],[41,0,41,7],[4,0,4,7],[5,0,5,7],[0,0,2,1],[0,6,0,7],[1,6,1,7],[2,5,2,7],[0,2,2,4],[43,5,43,6],[69,0,69,7],[71,1,71,2],[73,1,73,2],[77,2,77,6],[61,0,61,7],[53,1,53,2],[55,1,55,2],[45,0,45,7],[47,1,47,2],[47,4,47,6],[49,5,49,6],[51,2,51,6],[53,4,53,6],[59,5,59,6],[57,0,57,7],[105,0,105,7],[81,1,81,2],[83,0,83,7],[89,0,89,7],[99,2,99,6],[101,5,101,6],[103,2,103,6]]}
[null,null,"PROCESO\nPROMOCIÓN Y PREVENCIÓN\n\nFORMATO FICHA DE CARACTERIZACIÓN PARA LOS SERVICIOS DE ATENCIÓN A LA PRIMERA INFANCIA",null,null,{"$f":"PORTADA!$K$1","v":"F23.MO12.PP"},"2021-02-08"]
[null,null,null,null,null,"Versión 2","Página 1 de 1"]
[null,null,null,null,null,"Clasificación de la Información:\nPública"]
[]
["II. MÓDULO 2: MUJER GESTANTE"]
["E. Variables básicas de identificación de la mujer gestante"]
[null,null,null,null,null,null,null,null,null,"Usuario","Mujer Gestante"]
[null,"7. ¿La usuaria es mayor de 14 años de edad?",null,null,null,null,null,null,null,"7. ¿La usuaria es mayor de 14 años de edad?",{"$f":"C8","v":"00:00:00"}]
[null,null,null,null,null,null,null,null,null,"8. Nombres",{"$f":"C10","v":"00:00:00"}]
[null,"8. Nombres",null,null,null,null,null,null,null,"9. Apellidos",{"$f":"C12","v":"00:00:00"}]
[null,null,null,null,null,null,null,null,null,"10. Tipo documento",{"$f":"C14","v":"00:00:00"}]
[null,"9. Apellidos",null,null,null,null,null,null,null,"11. Número de documento",{"$f":"F14","v":0}]
[null,null,null,null,null,null,null,null,null,"12. Fecha de nacimiento",{"$f":"C16","v":"00:00:00"}]
[null,"10. Tipo documento de identidad",null,null,"11. Número de documento",null,null,null,null,"13. Edad",{"$f":"F16","v":"121 años, 1 meses, 5 días"}]
[null,null,null,null,null,null,null,null,null,"14. Sexo",{"$f":"C18","v":"00:00:00"}]
[null,"12. Fecha de nacimiento",null,null,"13. Edad",{"$f":"DATEDIF(C16,TODAY(),\"y\") & \" años, \" & DATEDIF(C16,TODAY(),\"ym\") & \" meses, \" &DATEDIF(C16,TODAY(),\"md\")& \" días\"","v":"121 años, 1 meses, 5 días"},null,null,null,"15. Genero",{"$f":"F18","v":"00:00:00"}]
[null,null,null,null,null,null,null,null,null,"16. Orientación sexual",{"$f":"C20","v":"00:00:00"}]
[null,"14. Sexo",null,null,"15. Género",null,null,null,null,"17. País de Nacimiento",{"$f":"C22","v":"00:00:00"}]
[null,null,null,null,null,null,null,null,null,"18. Nacionalidad Principal",{"$f":"F22","v":"00:00:00"}]
[null,"16. Orientación sexual",null,null,null,null,null,null,null,"18.1 Si, tiene segunda nacionalidad, indique",{"$f":"F24","v":"00:00:00"}]
[null,null,null,null,null,null,null,null,null,"19. Departamento de residencia",{"$f":"Seleccion_Dep2","v":"00:00:00"}]
[null,"17. País de Nacimiento",null,null,"18. Nacionalidad Principal",null,null,null,null,"20. Municipio de residencia",{"$f":"F26","v":"00:00:00"}]
[null,null,null,null,null,null,null,null,null,"21. Estado civil",{"$f":"C28","v":"00:00:00"}]
[null,null,null,null,"18.1 Si, tiene segunda nacionalidad, indique",null,null,null,null,"22. Mujer gestante con discapacidad",{"$f":"Discapacidad_MG","v":"00:00:00"}]
[null,null,null,null,null,null,null,null,null,"23. Categoría de discapacidad",{"$f":"C30","v":"00:00:00"}]
[null,"19. Departamento de residencia",null,null,"20. Municipio de residencia",null,null,null,null,"24. Grupo étnico con el que se autoreconoce la mujer gestante",{"$f":"F30","v":"00:00:00"}]
[null,null,null,null,null,null,null,null,null,"25. ¿Cuál es su lengua materna?",{"$f":"C32","v":"00:00:00"}]
[null,"21. Estado civil",null,null,"22. Mujer gestante con discapacidad",null,null,null,null,"26. ¿Sabe leer y escribir?",{"$f":"C36","v":"00:00:00"}]
[null,null,null,null,null,null,null,null,null,"27. ¿Actualmente estudia?",{"$f":"F36","v":"00:00:00"}]
[null,"23. Categoría de discapacidad",null,null,"24. Grupo étnico con el que se autoreconoce la mujer gestante",null,null,null,null,"28. ¿Cuál es su nivel más alto de escolaridad?",{"$f":"C38","v":"00:00:00"}]
[null,null,null,null,null,null,null,null,null,"29. ¿Cuál es su actividad principal en este momento?",{"$f":"F38","v":"00:00:00"}]
[null,"25. ¿Cuál es su lengua materna?",null,null,null,null,null,null,null,"30. ¿Si se encuentra trabajando, qué tipo de situación laboral presenta?",{"$f":"C40","v":"00:00:00"}]
[null,null,null,null,null,null,null,null,null,"31. Ingreso mensual promedio",{"$f":"F40","v":0}]
["F. Nivel educativo y actividad principal",null,null,null,null,null,null,null,null,"32. ¿La mujer gestante dónde duerme?",{"$f":"C44","v":"00:00:00"}]
[null,null,null,null,null,null,null,null,null,"32.1 Si respondio \"8.Otra\", indique cuál",{"$f":"F44","v":"00:00:00"}]
[null,"26. ¿Sabe leer y escribir?",null,null,"27. ¿Actualmente estudia?",null,null,null,null,"33. ¿Cuál o cuáles de los siguientes eventos se presentan o se han presentado en  su vida? (1. Violencia sexual)",false]
[null,null,null,null,null,null,null,null,null,"33. ¿Cuál o cuáles de los siguientes eventos se presentan o se han presentado en  su vida? (2. Violencia psicológica)",false]
[null,"28. ¿Cuál es su nivel más alto de escolaridad?",null,null,"29. ¿Cuál es su actividad principal en este momento?",null,null,null,null,"33. ¿Cuál o cuáles de los siguientes eventos se presentan o se han presentado en  su vida? (3. Violencia en el conflicto armado)",false]
[null,null,null,null,null,null,null,null,null,"33. ¿Cuál o cuáles de los siguientes eventos se presentan o se han presentado en  su vida? (4. Violencia economica y patrimonial)",false]
[null,"30. ¿Si se encuentra trabajando, qué tipo de situación laboral presenta?",null,null,"31. Ingreso mensual promedio",null,null,null,null,"33. ¿Cuál o cuáles de los siguientes eventos se presentan o se han presentado en  su vida? (5. Violencia fisica)",false]
[null,null,null,null,null,null,null,null,null,"33. ¿Cuál o cuáles de los siguientes eventos se presentan o se han presentado en  su vida? (6. Ninguna)",false]
["G. Condiciones de habitabilidad",null,null,null,null,null,null,null,null,"34. Si en la respuesta anterior seleccionó alguna opción de violencia, ¿la violencia ocurrió al interior del hogar?",{"$f":"C50","v":"00:00:00"}]
[null,null,null,null,null,null,null,null,null,"35. Si en la respuesta a la pregunta 33 seleccionó alguna opción de violencia, ¿Tiene en curso o ha interpuesto algún tipo de denuncia ante el sector protección o justicia por ese motivo?",{"$f":"F50","v":"00:00:00"}]
[null,"32. ¿La mujer gestante dónde duerme?",null,null,"32.1 Si respondio \"6.Otro\", indique cuál",null,null,null,null,"36. Si la anterior pregunta respondió SI, ¿En qué estado está o termino el proceso?",{"$f":"C52","v":"00:00:00"}]
[null,null,null,null,null,null,null,null,null,"37.¿Presenta alguna de las siguientes situaciones de vulnerabilidad?(1. Cabeza de familia)",false]
["H. Vulnerabilidad y vulneración de derechos ",null,null,null,null,null,null,null,null,"37.¿Presenta alguna de las siguientes situaciones de vulnerabilidad?(2. Enfermedad terminal o de alto costo)",false]
[null,null,null,null,null,null,null,null,null,"37.¿Presenta alguna de las siguientes situaciones de vulnerabilidad?(3. Cuidador de otro-a)",false]
[null,"33. ¿Cuál o cuáles de los siguientes eventos se presentan o se han presentado en  su vida?",null,null,null,null,null,null,null,"37.¿Presenta alguna de las siguientes situaciones de vulnerabilidad?(4. Otra)",false]
[null,null,null,null,null,null,null,null,null,"37.¿Presenta alguna de las siguientes situaciones de vulnerabilidad?(5. Ninguna)",false]
[null,"34. Si en la respuesta anterior seleccionó alguna opción de violencia, ¿la violencia ocurrió al interior del hogar?",null,null,"35. Si en la respuesta a la pregunta 33 seleccionó alguna opción de violencia, ¿Tiene en curso o ha interpuesto algún tipo de denuncia ante el sector protección o justicia por ese motivo?",null,null,null,null,"37.1 Si seleccionó \"4. Otra\", indique cuál",{"$f":"E56","v":"00:00:00"}]
[null,null,null,null,null,null,null,null,null,"38. Número telefónico de la Mujer Gestante",{"$f":"C60","v":0}]
[null,"36. Si a la anterior pregunta respondió SI, ¿En qué estado está o terminó el proceso?",null,null,null,null,null,null,null,"39. Indique otro número  telefónico de contacto",{"$f":"F60","v":0}]
[null,null,null,null,null,null,null,null,null,"40. ¿Es su primer embarazo? ",{"$f":"C64","v":"00:00:00"}]
[null,"37. ¿Presenta alguna de las siguientes situaciones de vulnerabilidad?",null,null,null,null,null,null,null,"41. ¿Cuántos embarazos ha tenido?",{"$f":"F64","v":0}]
[null,null,null,null,null,null,null,null,null,"42. ¿A qué edad tuvo su primer embarazo?",{"$f":"C66","v":0}]
[null,"37.1 Si seleccionó \"4. Otra\", indique cuál",null,null,null,null,null,null,null,"43. ¿Cuántos hijos-as nacidos vivos ha tenido?",{"$f":"F66","v":"00:00:00"}]
[null,null,null,null,null,null,null,null,null,"44. ¿Quién va a ser el cuidador-a principal del niño o niña en gestación?",{"$f":"C68","v":"00:00:00"}]
["I. Datos de contacto",null,null,null,null,null,null,null,null,"44.1 Si seleccionó \"4. Otra\", indique cuál",{"$f":"F68","v":"00:00:00"}]
[null,null,null,null,null,null,null,null,null,"45. Consume usted algún medicamento bajo prescripción médica. \nRecuerde que esto incluye los suplementos de micronutrientes suministrados por la EPS durante la gestación.",{"$f":"E72","v":"00:00:00"}]
[null,"38. Número telefónico de la Mujer Gestante",null,null,"39. Indique otro número  telefónico de contacto",null,null,null,null,"46. En caso que la respuesta anterior sea SI, mencione que medicamentos consume. (1. Micronutrientes suministrados durante la gestación)",false]
[null,null,null,null,null,null,null,null,null,"46. En caso que la respuesta anterior sea SI, mencione que medicamentos consume. (2. Médicamentos para el dolor)",false]
["J. Gestación, Hijos e Hijas",null,null,null,null,null,null,null,null,"46. En caso que la respuesta anterior sea SI, mencione que medicamentos consume. (3. Médicamentos por enfermedad anterior a la gestación)",false]
[null,null,null,null,null,null,null,null,null,"47. ¿Cuáles suplementos de micronutrientes le han suministrado durante la gestación? ",{"$f":"C76","v":"00:00:00"}]
[null,"40. ¿Es su primer embarazo? ",null,null,"41. ¿Cuántos embarazos ha tenido?",null,null,null,null,"48. En caso de no consumir los suplementos de micronutrientes, ¿cuál es la razón?",{"$f":"C78","v":"00:00:00"}]
[null,null,null,null,null,null,null,null,null,"49. ¿Consume usted, algún medicamento  sin prescripción médica?",{"$f":"C80","v":"00:00:00"}]
[null,"42. ¿A qué edad tuvo su primer embarazo?",null,null,"43. ¿Cuántos hijos-as nacidos vivos ha tenido?",null,null,null,null,"50. ¿ Consume usted algún tipo de sustancias psicoactivas?",{"$f":"F80","v":"00:00:00"}]
[null,null,null,null,null,null,null,null,null,"51. En caso que la respuesta anterior sea SI, mencione que sustancias consume. (1. Cigarrillo)",false]
[null,"44. ¿Quién va a ser el cuidador-a principal del niño o niña en gestación?",null,null,"44.1 Si seleccionó \"21. Otro\", indique cuál",null,null,null,null,"51. En caso que la respuesta anterior sea SI, mencione que sustancias consume. (2. Bebidas Alcohólicas)",false]
[null,null,null,null,null,null,null,null,null,"51. En caso que la respuesta anterior sea SI, mencione que sustancias consume. (3. Otras SPA)",false]
["K. Consumo de sustancias durante la gestación",null,null,null,null,null,null,null,null,"52. ¿Asiste  al curso de preparación para la maternidad y la paternidad?",{"$f":"C86","v":"00:00:00"}]
[null,null,null,null,null,null,null,null,null,"53. Si asiste algún curso o actividades en relación con la gestación, parto o posparto, mencione cuál o cuáles son.",{"$f":"C88","v":"00:00:00"}]
[null,"45. Consume usted algún medicamento bajo prescripción médica. \nRecuerde que esto incluye los suplementos de micronutrientes suministrados por la EPS durante la gestación.",null,null,null,null,null,null,null,"54. ¿La mujer gestante es miembro de algún grupo, organización o asociación?",{"$f":"C92","v":"00:00:00"}]
[null,null,null,null,null,null,null,null,null,"55. ¿En cuál de estos grupos u organizaciones que están activos y a los que usted pertenence, es en el que participa más?",{"$f":"F92","v":"00:00:00"}]
[null,"46. En caso que la respuesta anterior sea SI, mencione que medicamentos consume.",null,null,null,null,null,null,null,"56. ¿Qué rol tiene dentro del grupo u organización más importante?",{"$f":"C94","v":"00:00:00"}]
[null,null,null,null,null,null,null,null,null,"57. ¿Se encuentra afiliado (a)  al Sistema General de Seguridad Social en Salud?",{"$f":"C98","v":0}]
[null,"47. ¿Cuáles suplementos de micronutrientes le han suministrado durante la gestación? ",null,null,null,null,null,null,null,"58. En caso de no estar afiliado al Sistema General de Seguridad Social en Salud ¿Cuál es la razón?",{"$f":"F98","v":0}]
[null,null,null,null,null,null,null,null,null,"58.1 Si la respuesta anterior fue \"6. Otro\", diligenciar cuál,",{"$f":"C100","v":"00:00:00"}]
[null,"48. En caso de no consumir los suplementos de micronutrientes, ¿cuál es la razón?",null,null,null,null,null,null,null,"59. ¿Cuenta con el esquema de vacunación completo, según la edad gestacional?",{"$f":"C102","v":0}]
[null,null,null,null,null,null,null,null,null,"60. Si la respuesta anterior fue NO, ¿Cuál es la razón? ",{"$f":"F102","v":"00:00:00"}]
[null,"49. ¿Consume usted, algún medicamento  sin prescripción médica?",null,null,"50.¿ Consume usted algún tipo de sustancias psicoactivas?",null,null,null,null,"60.1 Si la respuesta anterior fue \"7. Otro\", diligenciar cuál,",{"$f":"C104","v":"00:00:00"}]
[]
[null,"51. En caso que la respuesta anterior sea SI, mencione que sustancias consume."]
[]
["L. Participación en Cursos"]
[]
[null,"52. ¿Asiste  al curso de preparación para la maternidad y la paternidad?"]
[]
[null,"53. Si asiste algún curso o actividades en relación con la gestación, parto o posparto, mencione cuál o cuáles son."]
[]
["M. Participación asociaciones, grupos u organizaciones"]
[]
[null,"54. ¿La mujer gestante es miembro de algún grupo, organización o asociación?",null,null,"55. ¿En cuál de estos grupos u organizaciones que están activos y a los que usted pertenence, es en el que participa más?"]
[]
[null,"56. ¿Qué rol tiene dentro del grupo u organización más importante?"]
[]
["N. Validación servicios de salud "]
[]
[null,"57.¿Se encuentra afiliado (a)  al Sistema General de Seguridad Social en Salud?",null,null,"58. En caso de no estar afiliado al Sistema General de Seguridad Social en Salud ¿Cuál es la razón?"]
[]
[null,"58.1 Si la respuesta anterior fue \"6. Otro\", diligenciar cuál,"]
[]
[null,"59. ¿Cuenta con el esquema de vacunación completo, según la edad gestacional?",null,null,"60. Si la respuesta anterior fue NO, ¿Cuál es la razón? "]
[]
[null,"60.1 Si la respuesta anterior fue \"7. Otro\", diligenciar cuál,"]
[]
[]
[null,null,null,null,null,null,null,null,null,"Mujer Gestante"]
["Antes de imprimir este documento… piense en el medio ambiente!"]
["Cualquier copia impresa de este documento se considera como COPIA NO CONTROLADA"]
[" LOS DATOS PROPORCIONADOS SERÁN TRATADOS DE ACUERDO A LA POLÍTICA DE TRATAMIENTO DE DATOS PERSONALES DEL ICBF Y A LA LEY 1581 DE 2012"]

{"sheet":"MODULO 3-NN","index":7,"n_rows":146,"n_cols":51,"rows_kept":146,"cut":false,"hidden":false,"merged":[[0,4,2,21],[106,1,106,25],[107,1,107,25],[108,1,108,25],[0,22,0,23],[0,24,0,25],[1,22,1,23],[2,22,2,25],[1,24,1,25],[104,1,104,25],[61,13,61,14],[63,9,63,10],[63,13,63,14],[57,2,57,3],[59,2,59,3],[61,2,61,3],[63,2,63,3],[61,4,61,7],[57,9,57,10],[57,13,57,14],[59,9,59,10],[59,13,59,14],[61,9,61,10],[65,2,65,3],[67,1,67,25],[69,2,69,3],[71,1,71,25],[102,6,102,7],[88,6,88,7],[92,4,92,7],[96,6,96,7],[51,2,51,3],[51,9,51,10],[98,2,98,4],[100,2,100,4],[102,2,102,4],[49,1,49,25],[55,1,55,25],[51,13,51,14],[53,13,53,14],[4,1,4,25],[5,1,5,25],[9,1,9,25],[100,6,100,7],[74,4,74,7],[86,6,86,7],[42,6,42,7],[7,2,7,3],[13,5,13,6],[14,5,14,6],[15,5,15,6],[16,5,16,6],[28,2,28,3],[42,11,45,14],[47,9,47,10],[47,11,47,13],[37,2,37,4],[42,2,42,4],[44,2,44,4],[42,9,42,10],[37,11,38,14],[16,8,16,9],[17,8,17,9],[18,8,18,9],[19,8,19,9],[20,8,20,9],[17,5,17,6],[18,5,18,6],[19,5,19,6],[21,12,21,13],[7,13,7,14],[20,5,20,6],[21,5,21,6],[30,1,30,25],[21,8,21,9],[7,9,7,10],[11,12,11,13],[12,12,12,13],[13,12,13,13],[14,12,14,13],[15,12,15,13],[16,12,16,13],[17,12,17,13],[18,12,18,13],[19,12,19,13],[20,12,20,13],[11,5,11,6],[12,5,12,6],[23,1,23,25],[11,8,11,9],[12,8,12,9],[13,8,13,9],[14,8,14,9],[15,8,15,9],[25,2,25,3],[33,2,33,3],[33,9,33,10],[33,13,33,14],[25,13,25,14],[28,9,28,10],[28,13,28,14],[25,9,25,10],[96,2,96,4],[74,2,74,3],[75,2,75,3],[76,2,76,3],[77,2,77,3],[78,2,78,3],[79,2,79,3],[80,2,80,3],[81,2,81,3],[82,2,82,3],[86,2,86,4],[88,2,88,4],[90,2,90,3],[92,2,92,3],[37,9,37,10],[37,6,37,7]]}
[null,null,null,null,"PROCESO\nPROMOCIÓN Y PREVENCIÓN\n\nFORMATO FICHA DE CARACTERIZACIÓN PARA LOS SERVICIOS DE ATENCIÓN A LA PRIMERA INFANCIA",null,null,null,null,null,null,null,null,null,null,null,null,null,null,null,null,null,{"$f":"PORTADA!$K$1","v":"F23.MO12.PP"},null,"2021-02-08"]
[null,null,null,null,null,null,null,null,null,null,null,null,null,null,null,null,null,null,null,null,null,null,"Versión 2",null,"Página 1 de 1"]
[null,null,null,null,null,null,null,null,null,null,null,null,null,null,null,null,null,null,null,null,null,null,"Clasificación de la Información:\nPública"]
[]
[null,"II. MÓDULO 3: FAMILIA"]
[null,"O. Variables Básicas"]
[]
[null,null,"Usuario",null,"Niño o Niña",null,"1. Tipo documento de identidad",{"$f":"IF(E8=\"Niño o Niña\",'MODULO 1'!$P$16,'MODULO 2'!$K$11)","v":"00:00:00"},null,"2. Número de documento",null,{"$f":"IF(E8=\"Niño o Niña\",'MODULO 1'!$P$17,'MODULO 2'!$K$12)","v":0},null,"3. Número de personas que componen el hogar del usuario(a)"]
[]
[null,"P. Variables básicas de Composición del Hogar y estructura familiar\n Integrantes del hogar que conviven con el niña/niño o mujer gestante"]
[]
["No. Codigo CUENTAME UDS","No. Documento Usuario","No.","4. Parentesco","4.1 Si respondió \"20.Otro\", indique cuál","5. Nombres y Apellidos",null,"6. Tipo documento de identidad","7. Número de documento",null,"8. Fecha de nacimiento\n(dd/mm/aaaa)","9. Edad","10. País de Nacimiento",null,"11. Sexo","12. Género","13. Orientación sexual","14. Grupo étnico con el que se autoreconoce","15. ¿Sabe leer y escribir en español?","16. ¿Actualmente estudia?","17. ¿Cuál es su nivel más alto de escolaridad?","18. ¿Cuál es su actividad principal en este momento?","19. ¿Si se encuentra trabajando, qué tipo de situación laboral presenta?","20. Ingreso mensual promedio","21. Observaciones",null,null,null,null,1,2,3,4,5,6,7,8,9,10,11,12,13,14,15,16,17,18,19,20,21,22]
[{"$f":"'DATOS UDS'!$F$11","v":0},{"$f":"$L$8","v":0},1,null,null,null,null,null,null,null,null,{"$f":"DATEDIF(K13,TODAY(),\"y\") & \" años, \" & DATEDIF(K13,TODAY(),\"ym\") & \" meses, \" &DATEDIF(K13,TODAY(),\"md\")& \" días\"","v":"121 años, 1 meses, 5 días"},null,null,null,null,null,null,null,null,null,null,null,null,null,null,null,null,null,{"$f":"A13","v":0},0,1,"00:00:00",0,0,{"$f":"H13","v":"00:00:00"},{"$f":"I13","v":0},{"$f":"K13","v":"00:00:00"},{"$f":"L13","v":"121 años, 1 meses, 5 días"},{"$f":"M13","v":"00:00:00"},{"$f":"O13","v":"00:00:00"},"00:00:00",0,0,"00:00:00","00:00:00","00:00:00","00:00:00","00:00:00",0,0]
[{"$f":"'DATOS UDS'!$F$11","v":0},0,2,null,null,null,null,null,null,null,null,"121 años, 1 meses, 5 días",null,null,null,null,null,null,null,null,null,null,null,null,null,null,null,null,null,{"$f":"A14","v":0},{"$f":"B14","v":0},{"$f":"C14","v":2},{"$f":"D14","v":"00:00:00"},{"$f":"E14","v":0},{"$f":"F14","v":0},{"$f":"H14","v":"00:00:00"},{"$f":"I14","v":0},{"$f":"K14","v":"00:00:00"},{"$f":"L14","v":"121 años, 1 meses, 5 días"},{"$f":"M14","v":"00:00:00"},{"$f":"O14","v":"00:00:00"},{"$f":"P14","v":"00:00:00"},{"$f":"Q14","v":0},{"$f":"R14","v":0},{"$f":"S14","v":"00:00:00"},{"$f":"T14","v":"00:00:00"},{"$f":"U14","v":"00:00:00"},{"$f":"V14","v":"00:00:00"},{"$f":"W14","v":"00:00:00"},{"$f":"X14","v":0},{"$f":"Y14","v":0}]
[{"$f":"'DATOS UDS'!$F$11","v":0},0,3,null,null,null,null,null,null,null,null,"121 años, 1 meses, 5 días",null,null,null,null,null,null,null,null,null,null,null,null,null,null,null,null,null,0,0,3,"00:00:00",0,0,"00:00:00",0,"00:00:00","121 años, 1 meses, 5 días","00:00:00","00:00:00","00:00:00",0,0,"00:00:00","00:00:00","00:00:00","00:00:00","00:00:00",0,0]
[{"$f":"'DATOS UDS'!$F$11","v":0},0,4,null,null,null,null,null,null,null,null,"121 años, 1 meses, 5 días",null,null,null,null,null,null,null,null,null,null,null,null,null,null,null,null,null,0,0,4,"00:00:00",0,0,"00:00:00",0,"00:00:00","121 años, 1 meses, 5 días","00:00:00","00:00:00","00:00:00",0,0,"00:00:00","00:00:00","00:00:00","00:00:00","00:00:00",0,0]
[{"$f":"'DATOS UDS'!$F$11","v":0},0,5,null,null,null,null,null,null,null,null,"121 años, 1 meses, 5 días",null,null,null,null,null,null,null,null,null,null,null,null,null,null,null,null,null,0,0,5,"00:00:00",0,0,"00:00:00",0,"00:00:00","121 años, 1 meses, 5 días","00:00:00","00:00:00","00:00:00",0,0,"00:00:00","00:00:00","00:00:00","00:00:00","00:00:00",0,0]
[{"$f":"'DATOS UDS'!$F$11","v":0},0,6,null,null,null,null,null,null,null,null,"121 años, 1 meses, 5 días",null,null,null,null,null,null,null,null,null,null,null,null,null,null,null,null,null,0,0,6,"00:00:00",0,0,"00:00:00",0,"00:00:00","121 años, 1 meses, 5 días","00:00:00","00:00:00","00:00:00",0,0,"00:00:00","00:00:00","00:00:00","00:00:00","00:00:00",0,0]
[{"$f":"'DATOS UDS'!$F$11","v":0},0,7,null,null,null,null,null,null,null,null,"121 años, 1 meses, 5 días",null,null,null,null,null,null,null,null,null,null,null,null,null,null,null,null,null,0,0,7,"00:00:00",0,0,"00:00:00",0,"00:00:00","121 años, 1 meses, 5 días","00:00:00","00:00:00","00:00:00",0,0,"00:00:00","00:00:00","00:00:00","00:00:00","00:00:00",0,0]
[{"$f":"'DATOS UDS'!$F$11","v":0},0,8,null,null,null,null,null,null,null,null,"121 años, 1 meses, 5 días",null,null,null,null,null,null,null,null,null,null,null,null,null,null,null,null,null,0,0,8,"00:00:00",0,0,"00:00:00",0,"00:00:00","121 años, 1 meses, 5 días","00:00:00","00:00:00","00:00:00",0,0,"00:00:00","00:00:00","00:00:00","00:00:00","00:00:00",0,0]
[{"$f":"'DATOS UDS'!$F$11","v":0},0,9,null,null,null,null,null,null,null,null,"121 años, 1 meses, 5 días",null,null,null,null,null,null,null,null,null,null,null,null,null,null,null,null,null,0,0,9,"00:00:00",0,0,"00:00:00",0,"00:00:00","121 años, 1 meses, 5 días","00:00:00","00:00:00","00:00:00",0,0,"00:00:00","00:00:00","00:00:00","00:00:00","00:00:00",0,0]
[{"$f":"'DATOS UDS'!$F$11","v":0},0,10,null,null,null,null,null,null,null,null,"121 años, 1 meses, 5 días",null,null,null,null,null,null,null,null,null,null,null,null,null,null,null,null,null,0,0,10,"00:00:00",0,0,"00:00:00",0,"00:00:00","121 años, 1 meses, 5 días","00:00:00","00:00:00","00:00:00",0,0,"00:00:00","00:00:00","00:00:00","00:00:00","00:00:00",0,0]
[]
[null,"Q. Características de la vivienda"]
[]
[null,null,"22. Clase de ubicación de la vivienda",null,null,null,"23. Territorio étnico",null,null,"24. Si la respuesta anterior fue Si, a qué territorio étnico pertenece",null,null,null,"25. Indique el nombre de la comunidad en la que habita",null,null,null,null,null,null,null,null,null,null,null,null,null,"Usuario",{"$f":"E8","v":"Niño o Niña"}]
[null,null,null,null,null,null,null,null,null,null,null,null,null,null,null,null,null,null,null,null,null,null,null,null,null,null,null,"1. Tipo documento de identidad",{"$f":"H8","v":0}]
[null,null,null,null,null,null,null,null,null,null,null,null,null,null,null,null,null,null,null,null,null,null,null,null,null,null,null,"2. Número de documento",{"$f":"L8","v":0}]
[null,null,"26. Tipo de Vivienda",null,null,null,"26.1. Si respondió \"10.Otra\", indique cuál",null,null,"27. Tipo de tenencia de la vivienda",null,null,null,"27.1 Si respondió \"6.Otra\", indique cuál",null,null,null,null,null,null,null,null,null,null,null,null,null,"3. Número de personas que componen el hogar del usuario(a)",{"$f":"P8","v":0}]
[null,null,null,null,null,null,null,null,null,null,null,null,null,null,null,null,null,null,null,null,null,null,null,null,null,null,null,"22. Clase de ubicación de la vivienda",{"$f":"E26","v":0}]
[null,"R. Condiciones del entorno de la vivienda y habitabilidad",null,null,null,null,null,null,null,null,null,null,null,null,null,null,null,null,null,null,null,null,null,null,null,null,null,"23. Territorio étnico",{"$f":"H26","v":0}]
[null,"Habitabilidad","R1 Habitabilidad",null,null,null,null,null,null,"R2 Energía o combustible ",null,null,null,"R3 Acceso a servicio sanitario ",null,null,null,null,null,null,null,null,null,null,null,null,null,"24. Si la respuesta anterior fue Si, a qué territorio étnico pertenece",{"$f":"L26","v":0}]
[null,null,null,null,null,null,null,null,null,null,null,null,null,null,null,null,null,null,null,null,null,null,null,null,null,null,null,"25. Indique el nombre de la comunidad en la que habita",{"$f":"P26","v":0}]
[null,null,"28. ¿En dónde preparan los alimentos las personas del hogar?",null,null,null,"29. ¿El lugar donde viven cuenta con espacios independientes para dormitorio, cocina y baños?",null,null,"30. ¿Con qué energía o combustible utilizan principalmente para cocinar?",null,null,null,"31. ¿Qué tipo de servicio sanitario (inodoro) tiene la vivienda donde habita el hogar?",null,null,null,null,null,null,null,null,null,null,null,null,null,"26. Tipo de Vivienda",{"$f":"E29","v":0}]
[null,null,null,null,null,null,null,null,null,null,null,null,null,null,null,null,null,null,null,null,null,null,null,null,null,null,null,"26.1. Si respondió \"10.Otra\", indique cuál",{"$f":"H29","v":0}]
[null,null,"R4 Servicios públicos",null,null,null,null,null,null,"R5 Eliminación de basura",null,null,null,null,null,null,null,null,null,null,null,null,null,null,null,null,null,"27. Tipo de tenencia de la vivienda",{"$f":"L29","v":0}]
[null,null,null,null,null,null,null,null,null,null,null,null,null,null,null,null,null,null,null,null,null,null,null,null,null,null,null,"27.1 Si respondió \"6.Otra\", indique cuál",{"$f":"P29","v":0}]
[null,null," 32. El grupo familiar del usuario-a tiene acceso a los siguientes servicios domiciliarios ",null,null,null,null,null,null,"33. ¿Cómo eliminan principalmente la basura en este hogar?",null,null,null,null,null,null,null,null,null,null,null,null,null,null,null,null,null,"28. ¿En dónde preparan los alimentos las personas del hogar?",{"$f":"E34","v":0}]
[null,null,null,null,null,null,null,null,null,null,null,null,null,null,null,null,null,null,null,null,null,null,null,null,null,null,null,"29. ¿El lugar donde viven cuenta con espacios independientes para dormitorio, cocina y baños?",{"$f":"H34","v":0}]
[null,null,null,null,null,null,null,null,null,null,null,null,null,null,null,null,null,null,null,null,null,null,null,null,null,null,null,"30. ¿Con qué energía o combustible utilizan principalmente para cocinar?",{"$f":"L34","v":0}]
[null,null,"R6 Riesgos del entorno de la vivienda",null,null,null,null,null,null,"R7 Riesgos de accidentes dentro del hogar",null,null,null,null,null,null,null,null,null,null,null,null,null,null,null,null,null,"31. ¿Qué tipo de servicio sanitario (inodoro) tiene la vivienda donde habita el hogar?",{"$f":"P34","v":0}]
[null,null,null,null,null,null,null,null,null,null,null,null,null,null,null,null,null,null,null,null,null,null,null,null,null,null,null,"32. El grupo familiar del usuario-a tiene acceso a los siguientes servicios domiciliarios (1. Energía)",false]
[null,null,"34. La vivienda está ubicada en o cerca de …",null,null,null,null,null,null,"35. Riesgos de accidentes dentro del hogar para la niña o niño son …",null,null,null,null,null,null,null,null,null,null,null,null,null,null,null,null,null,"32. El grupo familiar del usuario-a tiene acceso a los siguientes servicios domiciliarios (2. Acueducto)",false]
[null,null,null,null,null,null,null,null,null,null,null,null,null,null,null,null,null,null,null,null,null,null,null,null,null,null,null,"32. El grupo familiar del usuario-a tiene acceso a los siguientes servicios domiciliarios (3. Alcantarillado)",false]
[null,null,"34.1 Si seleccionó \"11. Otra\", indique cuál",null,null,null,null,null,null,null,null,null,null,null,null,null,null,null,null,null,null,null,null,null,null,null,null,"32. El grupo familiar del usuario-a tiene acceso a los siguientes servicios domiciliarios (4. Gas Natural)",false]
[null,null,null,null,null,null,null,null,null,null,null,null,null,null,null,null,null,null,null,null,null,null,null,null,null,null,null,"32. El grupo familiar del usuario-a tiene acceso a los siguientes servicios domiciliarios (5. Telefonía fija)",false]
[null,null,null,null,null,null,null,null,null,null,null,null,null,null,null,null,null,null,null,null,null,null,null,null,null,null,null,"32. El grupo familiar del usuario-a tiene acceso a los siguientes servicios domiciliarios (6. Todas las anteriores)",false]
[null,null,null,null,null,null,null,null,null,"35.1 Si seleccionó \"11. Otro\", indique cuál",null,null,null,null,null,null,null,null,null,null,null,null,null,null,null,null,null,"33. ¿Cómo eliminan principalmente la basura en este hogar? (1. La recogen los servicios del aseo)",false]
[null,null,null,null,null,null,null,null,null,null,null,null,null,null,null,null,null,null,null,null,null,null,null,null,null,null,null,"33. ¿Cómo eliminan principalmente la basura en este hogar? (2. La tiran a un río, quebrada, caño o laguna)",false]
[null,"S. Acceso y calidad del agua",null,null,null,null,null,null,null,null,null,null,null,null,null,null,null,null,null,null,null,null,null,null,null,null,null,"33. ¿Cómo eliminan principalmente la basura en este hogar? (3. La tiran a un patio, lote, zanja o baldío)",false]
[null,null,null,null,null,null,null,null,null,null,null,null,null,null,null,null,null,null,null,null,null,null,null,null,null,null,null,"33. ¿Cómo eliminan principalmente la basura en este hogar? (4. La queman)",false]
[null,null,"36. ¿En el grupo familiar la fuente principal para el consumo del agua es?",null,null,null,"37. ¿Con qué frecuencia el grupo familiar dispone del agua  para el consumo humano?",null,null,"38. ¿Al agua que se usa para consumo humano en el hogar, se le realiza algún tratamiento para  que sea apta para el consumo? ",null,null,null,"39. Si la respuesta anterior es SI ¿Qué tratamiento usa? ",null,null,null,null,null,null,null,null,null,null,null,null,null,"33. ¿Cómo eliminan principalmente la basura en este hogar? (5. La entierran)",false]
[null,null,null,null,null,null,null,null,null,null,null,null,null,null,null,null,null,null,null,null,null,null,null,null,null,null,null,"33. ¿Cómo eliminan principalmente la basura en este hogar? (6. La recoge un servicio informal (zorra, carreta, etc))",false]
[null,null,null,null,null,null,null,null,null,null,null,null,null,"39.1 Si seleccionó \"8. Otro\", indique cuál",null,null,null,null,null,null,null,null,null,null,null,null,null,"33. ¿Cómo eliminan principalmente la basura en este hogar? (7. La reciclan )",false]
[null,null,null,null,null,null,null,null,null,null,null,null,null,null,null,null,null,null,null,null,null,null,null,null,null,null,null,"33. ¿Cómo eliminan principalmente la basura en este hogar? (8. La elimina de otra forma)",false]
[null,"T.  Dinámica Familiar",null,null,null,null,null,null,null,null,null,null,null,null,null,null,null,null,null,null,null,null,null,null,null,null,null,"34. La vivienda está ubicada en o cerca de … (1. Área de deslizamiento de tierra)",false]
[null,null,null,null,null,null,null,null,null,null,null,null,null,null,null,null,null,null,null,null,null,null,null,null,null,null,null,"34. La vivienda está ubicada en o cerca de … (2. Zona propensa a las inundaciones)",false]
[null,null,"40. ¿Con qué integrante del grupo familiar  el niño, niña o mujer gestante tiene un lazo afectivo más fuerte?",null,null,null,"40.1 Si seleccionó \"20. Otro\", indique cuál",null,null,"41. ¿Qué actividad principal realizan como familia?",null,null,null,"41.1 Si seleccionó \"6. Otra\", indique cuál",null,null,null,null,null,null,null,null,null,null,null,null,null,"34. La vivienda está ubicada en o cerca de … (3. Orilla de río)",false]
[null,null,null,null,null,null,null,null,null,null,null,null,null,null,null,null,null,null,null,null,null,null,null,null,null,null,null,"34. La vivienda está ubicada en o cerca de … (4. Colina empinada)",false]
[null,null,"42. ¿Quién toma las decisiones en la familia del usuario-a?",null,null,null,"42.1 Si seleccionó \"21. Otro\", indique cuál",null,null,"43. ¿Bajo qué criterio principal se fundamenta el liderazgo en la toma de decisiones?",null,null,null,"43.1 Si seleccionó \"4. Otro\", indique cuál",null,null,null,null,null,null,null,null,null,null,null,null,null,"34. La vivienda está ubicada en o cerca de … (5. Montaña/pila de basura)",false]
[null,null,null,null,null,null,null,null,null,null,null,null,null,null,null,null,null,null,null,null,null,null,null,null,null,null,null,"34. La vivienda está ubicada en o cerca de … (6. Área de contaminación industrial)",false]
[null,null,"44. ¿De qué manera resuelven los conflictos en la familia?",null,null,null,null,null,null,"45. ¿Cómo corrigen principalmente en la familia a la niña o el niño? ",null,null,null,"45.1 Si seleccionó \"6. Otro\", indique cuál",null,null,null,null,null,null,null,null,null,null,null,null,null,"34. La vivienda está ubicada en o cerca de … (7. Ferrocarril)",false]
[null,null,null,null,null,null,null,null,null,null,null,null,null,null,null,null,null,null,null,null,null,null,null,null,null,null,null,"34. La vivienda está ubicada en o cerca de … (8. Central eléctrica)",false]
[null,null,"46. ¿Quién corrige principalmente a la niña o el niño?",null,null,null,"46.1 Si seleccionó \"20. Otro\", indique cuál",null,null,"47. De los siguientes eventos ¿cuál se ha presentado o presenta en el hogar?",null,null,null,"47.1 Si seleccionó \"6. Otro\", indique cuál",null,null,null,null,null,null,null,null,null,null,null,null,null,"34. La vivienda está ubicada en o cerca de … (9. Paso elevado)",false]
[null,null,null,null,null,null,null,null,null,null,null,null,null,null,null,null,null,null,null,null,null,null,null,null,null,null,null,"34. La vivienda está ubicada en o cerca de … (10. Ninguna de las anteriores)",false]
[null,null,"48. ¿Con qué frecuencia el usuario-a es tenido en cuenta para la toma de decisiones que afectan a la familia?",null,null,null,null,null,null,null,null,null,null,null,null,null,null,null,null,null,null,null,null,null,null,null,null,"34. La vivienda está ubicada en o cerca de … (11. Otra)",false]
[null,null,null,null,null,null,null,null,null,null,null,null,null,null,null,null,null,null,null,null,null,null,null,null,null,null,null,"34.1 Si seleccionó \"11. Otra\", indique cuál",{"$f":"G45","v":"00:00:00"}]
[null,"U. Redes de apoyo",null,null,null,null,null,null,null,null,null,null,null,null,null,null,null,null,null,null,null,null,null,null,null,null,null,"35. Riesgos de accidentes dentro del hogar para la niña o niño son … (1. Objetos cortantes o punzantes)",false]
[null,null,null,null,null,null,null,null,null,null,null,null,null,null,null,null,null,null,null,null,null,null,null,null,null,null,null,"35. Riesgos de accidentes dentro del hogar para la niña o niño son … (2. Fármacos)",false]
[null,null,"49. ¿Cuenta con algún tipo de apoyo cuando se encuentra en crisis (económica, afectiva, social, entre otras) el hogar?",null,null,null,"50. Si respondió SI, indique ¿De quién?",null,null,null,null,null,null,null,null,null,null,null,null,null,null,null,null,null,null,null,null,"35. Riesgos de accidentes dentro del hogar para la niña o niño son … (3. Fósforos, encendedores o similares)",false]
[null,null,null,null,null,null,null,null,null,null,null,null,null,null,null,null,null,null,null,null,null,null,null,null,null,null,null,"35. Riesgos de accidentes dentro del hogar para la niña o niño son … (4. Sustancias tóxicas)",false]
[null,"V. Variables de familia específicas con el niño o la niña\nAplica solo para registro de niñas y niños",null,null,null,null,null,null,null,null,null,null,null,null,null,null,null,null,null,null,null,null,null,null,null,null,null,"35. Riesgos de accidentes dentro del hogar para la niña o niño son … (5. Escaleras, azoteas o balcones inseguras)",false]
[null,null,"V1 Cuidador-a y cuidado de la niña/niño",null,null,null,null,null,null,null,null,null,null,null,null,null,null,null,null,null,null,null,null,null,null,null,null,"35. Riesgos de accidentes dentro del hogar para la niña o niño son … (6. Depósitos de agua destapados)",false]
[null,null,null,null,null,null,null,null,null,null,null,null,null,null,null,null,null,null,null,null,null,null,null,null,null,null,null,"35. Riesgos de accidentes dentro del hogar para la niña o niño son … (7. Bolsas de plástico)",false]
[null,null,"51. ¿Nombre del  cuidador-a principal del niño o la niña?",null,null,null,null,null,null,null,null,null,null,null,null,null,null,null,null,null,null,null,null,null,null,null,null,"35. Riesgos de accidentes dentro del hogar para la niña o niño son … (8. Hacinamiento)",false]
[null,null,null,null,null,null,null,null,null,null,null,null,null,null,null,null,null,null,null,null,null,null,null,null,null,null,null,"35. Riesgos de accidentes dentro del hogar para la niña o niño son … (9. Quemaduras)",false]
[null,null,"52. ¿Cuál es el tipo de parentesco o afinidad con el niño o la niña?",null,null,null,"53. ¿Qué edad tiene el cuidador-a principal?",null,null,null,null,null,null,null,null,null,null,null,null,null,null,null,null,null,null,null,null,"35. Riesgos de accidentes dentro del hogar para la niña o niño son … (10. Ninguno de las anteriores)",false]
[null,null,null,null,null,null,null,null,null,null,null,null,null,null,null,null,null,null,null,null,null,null,null,null,null,null,null,"35. Riesgos de accidentes dentro del hogar para la niña o niño son … (11. Otro)",false]
[null,null,"54. ¿Cuál es la actividad principal del cuidador en este momento?",null,null,null,"54.1 Si seleccionó \"9. Otro\", indique cuál",null,null,null,null,null,null,null,null,null,null,null,null,null,null,null,null,null,null,null,null,"35.1 Si seleccionó \"11. Otro\", indique cuál",{"$f":"L48","v":"00:00:00"}]
[null,null,null,null,null,null,null,null,null,null,null,null,null,null,null,null,null,null,null,null,null,null,null,null,null,null,null,"36. ¿En el grupo familiar la fuente principal para el consumo del agua es?",{"$f":"E52","v":"00:00:00"}]
[null,null,"55 ¿Si se encuentra trabajando, qué tipo de situación laboral presenta?",null,null,null,"56. ¿Cuánto tiempo pasa el cuidador-a con el niño o la niña al día?",null,null,null,null,null,null,null,null,null,null,null,null,null,null,null,null,null,null,null,null,"37. ¿Con qué frecuencia el grupo familiar dispone del agua  para el consumo humano?",{"$f":"H52","v":"00:00:00"}]
[null,null,null,null,null,null,null,null,null,null,null,null,null,null,null,null,null,null,null,null,null,null,null,null,null,null,null,"38. ¿Al agua que se usa para consumo humano en el hogar, se le realiza algún tratamiento para  que sea apta para el consumo? ",{"$f":"L52","v":"00:00:00"}]
[null,null,"57. La niña o el niño queda en algún momento solo-a?",null,null,null,"58. Si queda solo-a, ¿Cuánto tiempo queda solo- a al día?",null,null,null,null,null,null,null,null,null,null,null,null,null,null,null,null,null,null,null,null,"39. Si la respuesta anterior es SI ¿Qué tratamiento usa? ",{"$f":"P52","v":"00:00:00"}]
[null,null,null,null,null,null,null,null,null,null,null,null,null,null,null,null,null,null,null,null,null,null,null,null,null,null,null,"39.1 Si seleccionó \"8. Otro\", indique cuál",{"$f":"P54","v":"00:00:00"}]
[null,null,"V2 Recursos en familia",null,null,null,null,null,null,null,null,null,null,null,null,null,null,null,null,null,null,null,null,null,null,null,null,"40. ¿Con qué integrante del grupo familiar  el niño, niña o mujer gestante tiene un lazo afectivo más fuerte?",{"$f":"E58","v":"00:00:00"}]
[null,null,null,null,null,null,null,null,null,null,null,null,null,null,null,null,null,null,null,null,null,null,null,null,null,null,null,"40.1 Si seleccionó \"20. Otro\", indique cuál",{"$f":"H58","v":"00:00:00"}]
[null,null,"59. En los pasados tres días(3) usted o alguien de su hogar mayor de 15 años de edad, ¿Qué actividades realizó con la niña o el niño?",null,null,null,null,null,null,null,null,null,null,null,null,null,null,null,null,null,null,null,null,null,null,null,null,"41. ¿Qué actividad principal realizan como familia?",{"$f":"L58","v":"00:00:00"}]
[null,null,null,null,null,null,null,null,null,null,null,null,null,null,null,null,null,null,null,null,null,null,null,null,null,null,null,"41.1 Si seleccionó \"6. Otra\", indique cuál",{"$f":"P58","v":"00:00:00"}]
[null,null,"60. ¿Quién o quienes realizaron la actividad?",null,null,null,null,null,null,null,null,null,null,null,null,null,null,null,null,null,null,null,null,null,null,null,null,"42. ¿Quién toma las decisiones en la familia del usuario-a?",{"$f":"E60","v":"00:00:00"}]
[null,null,null,null,null,null,null,null,null,null,null,null,null,null,null,null,null,null,null,null,null,null,null,null,null,null,null,"42.1 Si seleccionó \"21. Otro\", indique cuál",{"$f":"H60","v":"00:00:00"}]
[null,null,"61. ¿Cuántos libros infantiles  para niñas y niños tiene en el hogar?",null,null,null,"62. ¿La niña o el niño tiene juguetes en el hogar?",null,null,null,null,null,null,null,null,null,null,null,null,null,null,null,null,null,null,null,null,"43. ¿Bajo qué criterio principal se fundamenta el liderazgo en la toma de decisiones?",{"$f":"L60","v":"00:00:00"}]
[null,null,null,null,null,null,null,null,null,null,null,null,null,null,null,null,null,null,null,null,null,null,null,null,null,null,null,"43.1 Si seleccionó \"4. Otro\", indique cuál",{"$f":"P60","v":"00:00:00"}]
[null,null,"63. ¿Con qué cosas juega la niña o el niño cuando está en casa?",null,null,null,null,null,null,null,null,null,null,null,null,null,null,null,null,null,null,null,null,null,null,null,null,"44. ¿De qué manera resuelven los conflictos en la familia?",{"$f":"E62","v":"00:00:00"}]
[null,null,null,null,null,null,null,null,null,null,null,null,null,null,null,null,null,null,null,null,null,null,null,null,null,null,null,"45. Cómo corrigen principalmente en la familia a la niña o el niño? ",{"$f":"L62","v":"00:00:00"}]
[null,null,"V3 Interacciones con la niña y el niño",null,null,null,null,null,null,null,null,null,null,null,null,null,null,null,null,null,null,null,null,null,null,null,null,"45.1 Si seleccionó \"6. Otro\", indique cuál",{"$f":"P62","v":"00:00:00"}]
[null,null,null,null,null,null,null,null,null,null,null,null,null,null,null,null,null,null,null,null,null,null,null,null,null,null,null,"46. ¿Quién corrige principalmente a la niña o el niño?",{"$f":"E64","v":"00:00:00"}]
[null,null,"64. ¿Qué tipo de reconocimientos le dan a la niña o el niño por sus logros? ",null,null,null,null,null,null,null,null,null,null,null,null,null,null,null,null,null,null,null,null,null,null,null,null,"46.1 Si seleccionó \"20. Otro\", indique cuál",{"$f":"H64","v":"00:00:00"}]
[null,null,null,null,null,null,null,null,null,null,null,null,null,null,null,null,null,null,null,null,null,null,null,null,null,null,null,"47. De los siguientes eventos ¿cuáles se han presentado o presentan en el hogar?",{"$f":"L64","v":"00:00:00"}]
[null,null,"64.1 Si seleccionó \"4. Otro\", indique cuál",null,null,null,null,null,null,null,null,null,null,null,null,null,null,null,null,null,null,null,null,null,null,null,null,"47.1 Si seleccionó \"6. Otro\", indique cuál",{"$f":"P64","v":"00:00:00"}]
[null,null,null,null,null,null,null,null,null,null,null,null,null,null,null,null,null,null,null,null,null,null,null,null,null,null,null,"48. ¿Con qué frecuencia el usuario-a es tenido en cuenta para la toma de decisiones que afectan a la familia?",{"$f":"E66","v":"00:00:00"}]
[null,null,"65. ¿Cuál o cuáles son las principales normas y límites establecidas en la familia para la  niña y el niño?",null,null,null,null,null,null,null,null,null,null,null,null,null,null,null,null,null,null,null,null,null,null,null,null,"49. ¿Cuenta con algún tipo de apoyo cuando se encuentra en crisis (económica, afectiva, social, entre otras) el hogar?",{"$f":"E70","v":"00:00:00"}]
[null,null,null,null,null,null,null,null,null,null,null,null,null,null,null,null,null,null,null,null,null,null,null,null,null,null,null,"50. Si respondió SI, indique ¿Quién?",{"$f":"H70","v":"00:00:00"}]
[null,null,"66. ¿Cuál o cuáles son los gustos e intereses de la niña o el niño?",null,null,null,null,null,null,null,null,null,null,null,null,null,null,null,null,null,null,null,null,null,null,null,null,"51. ¿Nombre del  cuidador-a principal del niño o la niña?",{"$f":"E75","v":"00:00:00"}]
[null,null,null,null,null,null,null,null,null,null,null,null,null,null,null,null,null,null,null,null,null,null,null,null,null,null,null,"52. ¿Cuál es el tipo de parentesco o afinidad con el niño o la niña?",{"$f":"E77","v":"00:00:00"}]
[null,null,null,null,null,null,null,null,null,null,null,null,null,null,null,null,null,null,null,null,null,null,null,null,null,null,null,"53. ¿Qué edad tiene el cuidador-a principal?",{"$f":"H77","v":0}]
[null,null,null,null,null,null,null,null,null,null,null,null,null,null,null,null,null,null,null,null,null,null,null,null,null,null,null,"54. ¿Cuál es la actividad principal del cuidador en este momento?",{"$f":"E79","v":"00:00:00"}]
[null,"Antes de imprimir este documento… piense en el medio ambiente!",null,null,null,null,null,null,null,null,null,null,null,null,null,null,null,null,null,null,null,null,null,null,null,null,null,"54.1 Si seleccionó \"9. Otro\", indique cuál",{"$f":"H79","v":"00:00:00"}]
[null,"Cualquier copia impresa de este documento se considera como COPIA NO CONTROLADA",null,null,null,null,null,null,null,null,null,null,null,null,null,null,null,null,null,null,null,null,null,null,null,null,null,"55 ¿Si se encuentra trabajando, qué tipo de situación laboral presenta?",{"$f":"E81","v":"00:00:00"}]
[null," LOS DATOS PROPORCIONADOS SERÁN TRATADOS DE ACUERDO A LA POLÍTICA DE TRATAMIENTO DE DATOS PERSONALES DEL ICBF Y A LA LEY 1581 DE 2012",null,null,null,null,null,null,null,null,null,null,null,null,null,null,null,null,null,null,null,null,null,null,null,null,null,"56. ¿Cuánto tiempo pasa el cuidador-a con el niño o la niña al día?",{"$f":"H81","v":"00:00:00"}]
[null,null,null,null,null,null,null,null,null,null,null,null,null,null,null,null,null,null,null,null,null,null,null,null,null,null,null,"57. La niña o el niño queda en algún momento solo-a?",{"$f":"E83","v":"00:00:00"}]
[null,null,null,null,null,null,null,null,null,null,null,null,null,null,null,null,null,null,null,null,null,null,null,null,null,null,null,"58. Si queda solo-a, ¿Cuánto tiempo queda solo- a al día?",{"$f":"H83","v":"00:00:00"}]
[null,null,null,null,null,null,null,null,null,null,null,null,null,null,null,null,null,null,null,null,null,null,null,null,null,null,null,"59. ¿Qué actividades realizó con la niña o el niño? (1. Leer un libro )",false]
[null,null,null,null,null,null,null,null,null,null,null,null,null,null,null,null,null,null,null,null,null,null,null,null,null,null,null,"59. ¿Qué actividades realizó con la niña o el niño? (2. Contarle historias y cuentos)",false]
[null,null,null,null,null,null,null,null,null,null,null,null,null,null,null,null,null,null,null,null,null,null,null,null,null,null,null,"59. ¿Qué actividades realizó con la niña o el niño? (3. Cantar canciones )",false]
[null,null,null,null,null,null,null,null,null,null,null,null,null,null,null,null,null,null,null,null,null,null,null,null,null,null,null,"59. ¿Qué actividades realizó con la niña o el niño? (4. Llevarlo-a afuera de la casa )",false]
[null,null,null,null,null,null,null,null,null,null,null,null,null,null,null,null,null,null,null,null,null,null,null,null,null,null,null,"59. ¿Qué actividades realizó con la niña o el niño? (5. Pasar tiempo con él o ella)",false]
[null,null,null,null,null,null,null,null,null,null,null,null,null,null,null,null,null,null,null,null,null,null,null,null,null,null,null,"59. ¿Qué actividades realizó con la niña o el niño? (6. Mirando en la  TV o en el celular )",false]
[null,null,null,null,null,null,null,null,null,null,null,null,null,null,null,null,null,null,null,null,null,null,null,null,null,null,null,"59. ¿Qué actividades realizó con la niña o el niño? (7. Jugar con él/ella)",false]
[null,null,null,null,null,null,null,null,null,null,null,null,null,null,null,null,null,null,null,null,null,null,null,null,null,null,null,"59. ¿Qué actividades realizó con la niña o el niño? (8. Explorar con él/ella )",false]
[null,null,null,null,null,null,null,null,null,null,null,null,null,null,null,null,null,null,null,null,null,null,null,null,null,null,null,"59. ¿Qué actividades realizó con la niña o el niño? (9. Baila con él/ella)",false]
[null,null,null,null,null,null,null,null,null,null,null,null,null,null,null,null,null,null,null,null,null,null,null,null,null,null,null,"59. ¿Qué actividades realizó con la niña o el niño? (10. Ninguna)",false]
[null,null,null,null,null,null,null,null,null,null,null,null,null,null,null,null,null,null,null,null,null,null,null,null,null,null,null,"60. ¿Quién o quienes realizaron la actividad? (1. Padre)",false]
[null,null,null,null,null,null,null,null,null,null,null,null,null,null,null,null,null,null,null,null,null,null,null,null,null,null,null,"60. ¿Quién o quienes realizaron la actividad? (2. Madre)",false]
[null,null,null,null,null,null,null,null,null,null,null,null,null,null,null,null,null,null,null,null,null,null,null,null,null,null,null,"60. ¿Quién o quienes realizaron la actividad? (3. Hermana-o)",false]
[null,null,null,null,null,null,null,null,null,null,null,null,null,null,null,null,null,null,null,null,null,null,null,null,null,null,null,"60. ¿Quién o quienes realizaron la actividad? (4. Prima- o)",false]
[null,null,null,null,null,null,null,null,null,null,null,null,null,null,null,null,null,null,null,null,null,null,null,null,null,null,null,"60. ¿Quién o quienes realizaron la actividad? (5. Sobrina- o)",false]
[null,null,null,null,null,null,null,null,null,null,null,null,null,null,null,null,null,null,null,null,null,null,null,null,null,null,null,"60. ¿Quién o quienes realizaron la actividad? (6. Padrastro)",false]
[null,null,null,null,null,null,null,null,null,null,null,null,null,null,null,null,null,null,null,null,null,null,null,null,null,null,null,"60. ¿Quién o quienes realizaron la actividad? (7. Madrastra)",false]
[null,null,null,null,null,null,null,null,null,null,null,null,null,null,null,null,null,null,null,null,null,null,null,null,null,null,null,"60. ¿Quién o quienes realizaron la actividad? (8. Abuela- o)",false]
[null,null,null,null,null,null,null,null,null,null,null,null,null,null,null,null,null,null,null,null,null,null,null,null,null,null,null,"60. ¿Quién o quienes realizaron la actividad? (9. Tía - o)",false]
[null,null,null,null,null,null,null,null,null,null,null,null,null,null,null,null,null,null,null,null,null,null,null,null,null,null,null,"60. ¿Quién o quienes realizaron la actividad? (10. Cuñada-o)",false]
[null,null,null,null,null,null,null,null,null,null,null,null,null,null,null,null,null,null,null,null,null,null,null,null,null,null,null,"60. ¿Quién o quienes realizaron la actividad? (11. Padrino)",false]
[null,null,null,null,null,null,null,null,null,null,null,null,null,null,null,null,null,null,null,null,null,null,null,null,null,null,null,"60. ¿Quién o quienes realizaron la actividad? (12. Madrina)",false]
[null,null,null,null,null,null,null,null,null,null,null,null,null,null,null,null,null,null,null,null,null,null,null,null,null,null,null,"60. ¿Quién o quienes realizaron la actividad? (13. Familia sustituta/Institucion de protección)",false]
[null,null,null,null,null,null,null,null,null,null,null,null,null,null,null,null,null,null,null,null,null,null,null,null,null,null,null,"60. ¿Quién o quienes realizaron la actividad? (14.Otro)",false]
[null,null,null,null,null,null,null,null,null,null,null,null,null,null,null,null,null,null,null,null,null,null,null,null,null,null,null,"60. ¿Quién o quienes realizaron la actividad? (15. Ninguno)",false]
[null,null,null,null,null,null,null,null,null,null,null,null,null,null,null,null,null,null,null,null,null,null,null,null,null,null,null,"61. ¿Cuántos libros infantiles  para niñas y niños tiene en el hogar?",{"$f":"E91","v":0}]
[null,null,null,null,null,null,null,null,null,null,null,null,null,null,null,null,null,null,null,null,null,null,null,null,null,null,null,"62. ¿La niña o el niño tiene juguetes en el hogar?",{"$f":"H91","v":0}]
[null,null,null,null,null,null,null,null,null,null,null,null,null,null,null,null,null,null,null,null,null,null,null,null,null,null,null,"63. ¿Con qué cosas juega la niña o el niño cuando está en casa?",{"$f":"E93","v":0}]
[null,null,null,null,null,null,null,null,null,null,null,null,null,null,null,null,null,null,null,null,null,null,null,null,null,null,null,"64. ¿Qué tipo de reconocimientos le dan a la niña o el niño por sus logros? (1. Le da un regalo)",false]
[null,null,null,null,null,null,null,null,null,null,null,null,null,null,null,null,null,null,null,null,null,null,null,null,null,null,null,"64. ¿Qué tipo de reconocimientos le dan a la niña o el niño por sus logros? (2. Lo dejan salir a jugar)",false]
[null,null,null,null,null,null,null,null,null,null,null,null,null,null,null,null,null,null,null,null,null,null,null,null,null,null,null,"64. ¿Qué tipo de reconocimientos le dan a la niña o el niño por sus logros? (3. Lo felicitan verbalmente)",false]
[null,null,null,null,null,null,null,null,null,null,null,null,null,null,null,null,null,null,null,null,null,null,null,null,null,null,null,"64. ¿Qué tipo de reconocimientos le dan a la niña o el niño por sus logros? (4. Otro)",false]
[null,null,null,null,null,null,null,null,null,null,null,null,null,null,null,null,null,null,null,null,null,null,null,null,null,null,null,"64.1 Si seleccionó \"4. Otro\", indique cuál",{"$f":"G99","v":"00:00:00"}]
[null,null,null,null,null,null,null,null,null,null,null,null,null,null,null,null,null,null,null,null,null,null,null,null,null,null,null,"65. ¿Cuál o cuáles son las principales normas y límites establecidas en la familia para la  niña y el niño?",{"$f":"G101","v":"00:00:00"}]
[null,null,null,null,null,null,null,null,null,null,null,null,null,null,null,null,null,null,null,null,null,null,null,null,null,null,null,"66. ¿Cuál o cuáles son los gustos e intereses de la niña o el niño?",{"$f":"G103","v":"00:00:00"}]

{"sheet":"Listados","index":8,"n_rows":296,"n_cols":34,"rows_kept":296,"cut":false,"hidden":false,"merged":[]}
["REGIONAL","CENTRO ZONAL"]
["AMAZONAS","AMAZONAS","ANTIOQUIA","ARAUCA","ATLÁNTICO","BOGOTÁ","BOLÍVAR","BOYACÁ","CALDAS","CAQUETÁ","CASANARE","CAUCA","CESAR","CHOCÓ","CÓRDOBA","CUNDINAMARCA","GUAINÍA","GUAVIARE","HUILA","LA GUAJIRA","MAGDALENA","META","NARIÑO","NORTE DE SANTANDER","PUTUMAYO","QUINDÍO","RISARALDA","SAN ANDRÉS","SANTANDER","SUCRE","TOLIMA","VALLE DEL CAUCA","VAUPÉS","VICHADA"]
["ANTIOQUIA","CENTRO ZONAL LETICIA","CENTRO ZONAL ABURRA NORTE","CENTRO ZONAL ARAUCA","CENTRO ZONAL BARANOA","CENTRO ZONAL BARRIOS UNIDOS","CENTRO ZONAL DE LA VIRGEN Y TURÍSTICO","CENTRO ZONAL CHIQUINQUIRÁ","CENTRO ZONAL DEL CAFÉ","CENTRO ZONAL BELÉN DE LOS ANDAQUÍES","CENTRO ZONAL PAZ DE ARIPORO","CENTRO ZONAL CENTRO","CENTRO ZONAL AGUACHICA","CENTRO ZONAL BAHÍA SOLANO","CENTRO ZONAL CERETÉ","CENTRO ZONAL CHOCONTÁ","CENTRO ZONAL INÍRIDA","CENTRO ZONAL SAN JOSÉ DEL GUAVIARE","CENTRO ZONAL GARZÓN","CENTRO ZONAL FONSECA","CENTRO ZONAL CIÉNAGA","CENTRO ZONAL ACACÍAS","CENTRO ZONAL BARBACOAS","CENTRO ZONAL CÚCUTA 1","CENTRO ZONAL LA HORMIGA","CENTRO ZONAL ARMENIA NORTE","CENTRO ZONAL BELÉN DE UMBRÍA","CENTRO ZONAL LOS ALMENDROS","CENTRO ZONAL ANTONIA SANTOS","CENTRO ZONAL BOSTON","CENTRO ZONAL CHAPARRAL","CENTRO ZONAL BUENAVENTURA","CENTRO ZONAL MITÚ","CENTRO ZONAL PUERTO CARREÑO"]
["ARAUCA",null,"CENTRO ZONAL ABURRA SUR","CENTRO ZONAL SARAVENA","CENTRO ZONAL HIPÓDROMO","CENTRO ZONAL BOSA","CENTRO ZONAL EL CARMEN DE BOLÍVAR","CENTRO ZONAL DUITAMA","CENTRO ZONAL NORTE","CENTRO ZONAL FLORENCIA 1","CENTRO ZONAL VILLANUEVA","CENTRO ZONAL COSTA PACÍFICA","CENTRO ZONAL CHIRIGUANÁ","CENTRO ZONAL ISTMINA","CENTRO ZONAL LORICA","CENTRO ZONAL CÁQUEZA",null,null,"CENTRO ZONAL LA GAITANA","CENTRO ZONAL MAICAO","CENTRO ZONAL DEL RÍO","CENTRO ZONAL GRANADA","CENTRO ZONAL IPIALES","CENTRO ZONAL CÚCUTA 2","CENTRO ZONAL MOCOA","CENTRO ZONAL ARMENIA SUR","CENTRO ZONAL DOSQUEBRADAS",null,"CENTRO ZONAL BUCARAMANGA SUR","CENTRO ZONAL LA MOJANA","CENTRO ZONAL ESPINAL","CENTRO ZONAL BUGA"]
["ATLÁNTICO",null,"CENTRO ZONAL BAJO CAUCA","CENTRO ZONAL TAME","CENTRO ZONAL NORTE CENTRO HISTÓRICO","CENTRO ZONAL CIUDAD BOLÍVAR","CENTRO ZONAL HISTÓRICO Y DEL CARIBE NORTE","CENTRO ZONAL EL COCUY","CENTRO ZONAL OCCIDENTE","CENTRO ZONAL FLORENCIA 2","CENTRO ZONAL YOPAL","CENTRO ZONAL INDÍGENA","CENTRO ZONAL CODAZZI","CENTRO ZONAL QUIBDÓ","CENTRO ZONAL MONTELÍBANO","CENTRO ZONAL FACATATIVÁ",null,null,"CENTRO ZONAL LA PLATA","CENTRO ZONAL MANAURE","CENTRO ZONAL EL BANCO","CENTRO ZONAL PUERTO LÓPEZ","CENTRO ZONAL LA UNIÓN","CENTRO ZONAL CÚCUTA 3","CENTRO ZONAL PUERTO ASIS","CENTRO ZONAL CALARCÁ","CENTRO ZONAL LA VIRGINIA",null,"CENTRO ZONAL CARLOS LLERAS RESTREPO","CENTRO ZONAL NORTE","CENTRO ZONAL GALÁN","CENTRO ZONAL CARTAGO"]
["BOGOTÁ",null,"CENTRO ZONAL LA MESETA",null,"CENTRO ZONAL SABANAGRANDE","CENTRO ZONAL ENGATIVÁ","CENTRO ZONAL INDUSTRIAL DE LA BAHÍA","CENTRO ZONAL GARAGOA","CENTRO ZONAL ORIENTE","CENTRO ZONAL PUERTO RICO",null,"CENTRO ZONAL MACIZO COLOMBIANO","CENTRO ZONAL VALLEDUPAR DOS","CENTRO ZONAL RIOSUCIO","CENTRO ZONAL MONTERÍA","CENTRO ZONAL FUSAGASUGÁ",null,null,"CENTRO ZONAL NEIVA","CENTRO ZONAL NAZARETH","CENTRO ZONAL FUNDACIÓN","CENTRO ZONAL VILLAVICENCIO DOS","CENTRO ZONAL PASTO 1","CENTRO ZONAL OCAÑA","CENTRO ZONAL SIBUNDOY",null,"CENTRO ZONAL PEREIRA",null,"CENTRO ZONAL LA FLORESTA","CENTRO ZONAL SINCELEJO","CENTRO ZONAL HONDA","CENTRO ZONAL JAMUNDÍ"]
["BOLÍVAR",null,"CENTRO ZONAL MAGDALENA MEDIO",null,"CENTRO ZONAL SABANALARGA","CENTRO ZONAL FONTIBÓN","CENTRO ZONAL MAGANGUÉ","CENTRO ZONAL MIRAFLORES","ENTRO ZONAL SURORIENTE",null,null,"CENTRO ZONAL NORTE","CENTRO ZONAL VALLEDUPAR UNO","CENTRO ZONAL TADÓ","CENTRO ZONAL PLANETA RICA","CENTRO ZONAL GACHETÁ",null,null,"CENTRO ZONAL PITALITO","CENTRO ZONAL RIOHACHA 1","CENTRO ZONAL PLATO","CENTRO ZONAL VILLAVICENCIO UNO","CENTRO ZONAL PASTO 2","CENTRO ZONAL PAMPLONA",null,null,"CENTRO ZONAL SANTA ROSA DE CABAL",null,"CENTRO ZONAL MÁLAGA",null,"CENTRO ZONAL LÉRIDA","CENTRO ZONAL NORORIENTAL"]
["BOYACÁ",null,"CENTRO ZONAL NOROCCIDENTAL",null,"CENTRO ZONAL SUR OCCIDENTE","CENTRO ZONAL KENNEDY","CENTRO ZONAL MOMPOX","CENTRO ZONAL MONIQUIRÁ","CENTRO ZONAL MANIZALES 1",null,null,"CENTRO ZONAL POPAYÁN",null,null,"CENTRO ZONAL SAHAGÚN","CENTRO ZONAL GIRARDOT",null,null,null,"CENTRO ZONAL RIOHACHA 2","CENTRO ZONAL SANTA ANA",null,"CENTRO ZONAL REMOLINO","CENTRO ZONAL TIBÚ",null,null,null,null,"CENTRO ZONAL SAN GIL",null,"CENTRO ZONAL LÍBANO","CENTRO ZONAL PALMIRA"]
["CALDAS",null,"CENTRO ZONAL NORORIENTAL",null,"CENTRO ZONAL SUR ORIENTE","CENTRO ZONAL MÁRTIRES","CENTRO ZONAL SIMITI","CENTRO ZONAL OTANCHE","CENTRO ZONAL MANIZALES 2",null,null,"CENTRO ZONAL SUR",null,null,"CENTRO ZONAL SAN ANDRÉS DE SOTAVENTO","CENTRO ZONAL LA MESA",null,null,null,null,"CENTRO ZONAL SANTA MARTA NORTE",null,"CENTRO ZONAL TUMACO",null,null,null,null,null,"CENTRO ZONAL SOCORRO",null,"CENTRO ZONAL MELGAR","CENTRO ZONAL ROLDANILLO"]
["CAQUETÁ",null,"CENTRO ZONAL OCCIDENTE",null,null,"CENTRO ZONAL RAFAEL URIBE","CENTRO ZONAL TURBACO","CENTRO ZONAL PUERTO BOYACÁ",null,null,null,null,null,null,"CENTRO ZONAL TIERRALTA","CENTRO ZONAL PACHO",null,null,null,null,"CENTRO ZONAL SANTA MARTA SUR",null,"CENTRO ZONAL TÚQUERRES",null,null,null,null,null,"CENTRO ZONAL VÉLEZ",null,"CENTRO ZONAL PURIFICACIÓN","CENTRO ZONAL SEVILLA"]
["CASANARE",null,"CENTRO ZONAL OCCIDENTE MEDIO",null,null,"CENTRO ZONAL SAN CRISTÓBAL",null,"CENTRO ZONAL SOATÁ",null,null,null,null,null,null,null,"CENTRO ZONAL SAN JUAN DE RÍOSECO",null,null,null,null,null,null,null,null,null,null,null,null,"CENTRO ZONAL LUIS CARLOS GALÁN SARMIENTO ",null,"CENTRO ZONAL IBAGUÉ ","CENTRO ZONAL SUR"]
["CAUCA",null,"CENTRO ZONAL ORIENTE",null,null,"CENTRO ZONAL SANTA FE",null,"CENTRO ZONAL SOGAMOSO",null,null,null,null,null,null,null,"CENTRO ZONAL SOACHA",null,null,null,null,null,null,null,null,null,null,null,null,"CENTRO ZONAL RESURGIR",null,"CENTRO ZONAL JORDÁN","CENTRO ZONAL SURORIENTAL"]
["CESAR",null,"CENTRO ZONAL ORIENTE MEDIO",null,null,"CENTRO ZONAL SUBA",null,"CENTRO ZONAL TUNJA 1 ",null,null,null,null,null,null,null,"CENTRO ZONAL SOACHA CENTRO",null,null,null,null,null,null,null,null,null,null,null,null,"CENTRO ZONAL YARIGUIES",null,null,"CENTRO ZONAL TULUÁ"]
["CHOCÓ",null,"CENTRO ZONAL PENDERISCO",null,null,"CENTRO ZONAL TUNJUELITO",null,"CENTRO ZONAL TUNJA 2",null,null,null,null,null,null,null,"CENTRO ZONAL UBATÉ",null,null,null,null,null,null,null,null,null,null,null,null,null,null,null,"CENTRO ZONAL YUMBO"]
["CÓRDOBA",null,"CENTRO ZONAL PORCE NUS",null,null,"CENTRO ZONAL USAQUÉN",null,null,null,null,null,null,null,null,null,"CENTRO ZONAL VILLETA",null,null,null,null,null,null,null,null,null,null,null,null,null,null,null,"CENTRO ZONAL CENTRO "]
["CUNDINAMARCA",null,"CENTRO ZONAL ROSALES",null,null,"CENTRO ZONAL USME",null,null,null,null,null,null,null,null,null,"CENTRO ZONAL ZIPAQUIRÁ",null,null,null,null,null,null,null,null,null,null,null,null,null,null,null,"CENTRO ZONAL ESPECIALIZADO RESTAURAR"]
["GUAINÍA",null,"CENTRO ZONAL SUR ORIENTE",null,null,null,null,null,null,null,null,null,null,null,null,null,null,null,null,null,null,null,null,null,null,null,null,null,null,null,null,"CENTRO ZONAL LADERA "]
["GUAVIARE",null,"CENTRO ZONAL SUROESTE"]
["HUILA",null,"CENTRO ZONAL URABÁ"]
["LA_GUAJIRA"]
["MAGDALENA",{"$f":"COUNTA(B3:B20)","v":1},{"$f":"COUNTA(C3:C20)","v":17},3,7,14,8,12,7,4,3,7,5,5,8,14,1,1,5,6,8,5,8,6,4,3,5,1,11,4,10,15,1,1]
["META"]
["NARIÑO"]
["NORTE_DE_SANTANDER"]
["PUTUMAYO"]
["QUINDÍO"]
["RISARALDA"]
["SAN_ANDRÉS"]
["SANTANDER"]
["SUCRE"]
["TOLIMA"]
["VALLE_DEL_CAUCA"]
["VAUPÉS"]
["VICHADA"]
[]
["DEPARTAMENTO","MUNICIPIO"]
["_91_AMAZONAS","91 AMAZONAS","5 ANTIOQUIA","81 ARAUCA","_88_SAN_ANDRÉS","8 ATLÁNTICO","11 BOGOTÁ D.C.","13 BOLÍVAR","15 BOYACÁ","17 CALDAS","18 CAQUETÁ","85 CASANARE","19 CAUCA","20 CESAR","27 CHOCÓ","23 CÓRDOBA","25 CUNDINAMARCA","94 GUAINÍA","95 GUAVIARE","41 HUILA","44 LA GUAJIRA","47 MAGDALENA","50 META","52 NARIÑO","54 NORTE DE SANTANDER","86 PUTUMAYO","63 QUINDÍO","66 RISARALDA","68 SANTANDER","70 SUCRE","73 TOLIMA","76 VALLE DEL CAUCA","97 VAUPÉS","99 VICHADA"]
["_5_ANTIOQUIA","EL ENCANTO","ABEJORRAL","ARAUCA","PROVIDENCIA","BARANOA","BOGOTÁ D.C.","ACHÍ","ALMEIDA","AGUADAS","ALBANIA","AGUAZUL","ALMAGUER","AGUACHICA","ACANDÍ","AYAPEL","AGUA DE DIOS","BARRANCO MINAS","CALAMAR","ACEVEDO","ALBANIA","ALGARROBO","ACACIAS","ALBÁN","ABREGO","COLÓN","ARMENIA","APÍA","AGUADA","BUENAVISTA","ALPUJARRA","ALCALÁ","CARURU","CUMARIBO"]
["_81_ARAUCA","LA CHORRERA","ABRIAQUÍ","ARAUQUITA","SAN ANDRÉS","BARRANQUILLA",null,"ALTOS DEL ROSARIO","AQUITANIA","ANSERMA","BELÉN DE LOS ANDAQUIES","CHÁMEZA","ARGELIA","AGUSTÍN CODAZZI","ALTO BAUDO","BUENAVISTA","ALBÁN","CACAHUAL","EL RETORNO","AGRADO","BARRANCAS","ARACATACA","BARRANCA DE UPÍA","ALDANA","ARBOLEDAS","LEGUÍZAMO","BUENAVISTA","BALBOA","ALBANIA","CAIMITO","ALVARADO","ANDALUCÍA","MITÚ","LA PRIMAVERA"]
["_8_ATLÁNTICO","LA PEDRERA","ALEJANDRÍA","CRAVO NORTE",null,"CAMPO DE LA CRUZ",null,"ARENAL","ARCABUCO","ARANZAZU","CARTAGENA DEL CHAIRÁ","HATO COROZAL","BALBOA","ASTREA","ATRATO","CANALETE","ANAPOIMA","INÍRIDA","MIRAFLORES","AIPE","DIBULA","ARIGUANÍ","CABUYARO","ANCUYÁ","BOCHALEMA","MOCOA","CALARCÁ","BELÉN DE UMBRÍA","ARATOCA","CHALÁN","AMBALEMA","ANSERMANUEVO","PACOA","PUERTO CARREÑO"]
["_11_BOGOTÁ_D.C.","LA VICTORIA","AMAGÁ","FORTUL",null,"CANDELARIA",null,"ARJONA","BELÉN","BELALCÁZAR","CURILLO","LA SALINA","BOLÍVAR","BECERRIL","BAGADÓ","CERETÉ","ANOLAIMA","LA GUADALUPE","SAN JOSÉ DEL GUAVIARE","ALGECIRAS","DISTRACCIÓN","CERRO SAN ANTONIO","CASTILLA LA NUEVA","ARBOLEDA","BUCARASICA","ORITO","CIRCASIA","DOSQUEBRADAS","BARBOSA","COLOSO","ANZOÁTEGUI","ARGELIA","PAPUNAUA","SANTA ROSALÍA"]
["_13_BOLÍVAR","LETICIA","AMALFI","PUERTO RONDÓN",null,"GALAPA",null,"ARROYOHONDO","BERBEO","CHINCHINÁ","EL DONCELLO","MANÍ","BUENOS AIRES","BOSCONIA","BAHÍA SOLANO","CHIMÁ","APULO","MAPIRIPANA",null,"ALTAMIRA","EL MOLINO","CHIVOLO","CUBARRAL","BARBACOAS","CACHIRÁ","PUERTO ASÍS","CÓRDOBA","GUÁTICA","BARICHARA","COROZAL","ARMERO","BOLÍVAR","TARAIRA"]
["_15_BOYACÁ","MIRITI PARANÁ","ANDES","SARAVENA",null,"JUAN DE ACOSTA",null,"BARRANCO DE LOBA","BETÉITIVA","FILADELFIA","EL PAUJIL","MONTERREY","CAJIBÍO","CHIMICHAGUA","BAJO BAUDÓ","CHINÚ","ARBELÁEZ","MORICHAL",null,"BARAYA","FONSECA","CIÉNAGA","CUMARAL","BELÉN","CÁCOTA","PUERTO CAICEDO","FILANDIA","LA CELIA","BARRANCABERMEJA","COVEÑAS","ATACO","BUENAVENTURA","YAVARATÉ"]
["_17_CALDAS","PUERTO ALEGRÍA","ANGELÓPOLIS","TAME",null,"LURUACO",null,"CALAMAR","BOAVITA","LA DORADA","FLORENCIA","NUNCHÍA","CALDONO","CHIRIGUANÁ","BELÉN DE BAJIRA","CIÉNAGA DE ORO","BELTRÁN","PANA PANA",null,"CAMPOALEGRE","HATONUEVO","CONCORDIA","EL CALVARIO","BUESACO","CHINÁCOTA","PUERTO GUZMÁN","GÉNOVA","LA VIRGINIA","BETULIA","EL ROBLE","CAJAMARCA","BUGALAGRANDE"]
["_18_CAQUETÁ","PUERTO ARICA","ANGOSTURA",null,null,"MALAMBO",null,"CANTAGALLO","BOYACÁ","LA MERCED","LA MONTAÑITA","OROCUÉ","CALOTO","CURUMANÍ","BOJAYA","COTORRA","BITUIMA","PUERTO COLOMBIA",null,"COLOMBIA","LA JAGUA DEL PILAR","EL BANCO","EL CASTILLO","CHACHAGÜÍ","CHITAGÁ","SAN FRANCISCO","LA TEBAIDA","MARSELLA","BOLÍVAR","GALERAS","CARMEN DE APICALA","CAICEDONIA"]
["_85_CASANARE","PUERTO NARIÑO","ANORÍ",null,null,"MANATÍ",null,"CARTAGENA","BRICEÑO","MANIZALES","MILÁN","PAZ DE ARIPORO","CORINTO","EL COPEY","CARMEN DEL DARIEN","LA APARTADA","BOJACÁ","SAN FELIPE",null,"ELÍAS","MAICAO","EL PIÑON","EL DORADO","COLÓN","CONVENCIÓN","SAN MIGUEL","MONTENEGRO","MISTRATÓ","BUCARAMANGA","GUARANDA","CASABIANCA","CALI"]
["_19_CAUCA","PUERTO SANTANDER","ANZA",null,null,"PALMAR DE VARELA",null,"CICUCO","BUENA VISTA","MANZANARES","MORELIA","PORE","EL TAMBO","EL PASO","CÉRTEGUI","LORICA","CABRERA",null,null,"GARZÓN","MANAURE","EL RETÉN","FUENTE DE ORO","CONSACA","CÚCUTA","SANTIAGO","PIJAO","PEREIRA","CABRERA","LA UNIÓN","CHAPARRAL","CALIMA"]
["_20_CESAR","TARAPACÁ","APARTADÓ",null,null,"PIOJÓ",null,"CLEMENCIA","BUSBANZÁ","MARMATO","PUERTO RICO","RECETOR","FLORENCIA","GAMARRA","CONDOTO","LOS CÓRDOBAS","CACHIPAY",null,null,"GIGANTE","RIOHACHA","FUNDACIÓN","GRANADA","CONTADERO","CUCUTILLA","SIBUNDOY","QUIMBAYA","PUEBLO RICO","CALIFORNIA","LOS PALMITOS","COELLO","CANDELARIA"]
["_27_CHOCÓ",null,"ARBOLETES",null,null,"POLONUEVO",null,"CÓRDOBA","CALDAS","MARQUETALIA","SAN JOSÉ DEL FRAGUA","SABANALARGA","GUACHENÉ","GONZÁLEZ","EL CANTÓN DEL SAN PABLO","MOMIL","CAJICÁ",null,null,"GUADALUPE","SAN JUAN DEL CESAR","GUAMAL","GUAMAL","CÓRDOBA","DURANIA","VALLE DE GUAMEZ","SALENTO","QUINCHÍA","CAPITANEJO","MAJAGUAL","COYAIMA","CARTAGO"]
["_23_CÓRDOBA",null,"ARGELIA",null,null,"PONEDERA",null,"EL CARMEN DE BOLÍVAR","CAMPOHERMOSO","MARULANDA","SAN VICENTE DEL CAGUÁN","SÁCAMA","GUAPI","LA GLORIA","EL CARMEN DE ATRATO","MONTELÍBANO","CAPARRAPÍ",null,null,"HOBO","URIBIA","NUEVA GRANADA","LA MACARENA","CUASPUD","EL CARMEN","VILLAGARZÓN",null,"SANTA ROSA DE CABAL","CARCASÍ","MORROA","CUNDAY","DAGUA"]
["_25_CUNDINAMARCA",null,"ARMENIA",null,null,"PUERTO COLOMBIA",null,"EL GUAMO","CERINZA","NEIRA","SOLANO","SAN LUIS DE PALENQUE","INZÁ","LA JAGUA DE IBIRICO","EL LITORAL DEL SAN JUAN","MONTERÍA","CAQUEZA",null,null,"IQUIRA","URUMITA","PEDRAZA","LEJANÍAS","CUMBAL","EL TARRA",null,null,"SANTUARIO","CEPITÁ","OVEJAS","DOLORES","EL ÁGUILA"]
["_94_GUAINÍA",null,"BARBOSA",null,null,"REPELÓN",null,"EL PEÑÓN","CHINAVITA","NORCASIA","SOLITA","TÁMARA","JAMBALÓ","LA PAZ","ISTMINA","MOÑITOS","CARMEN DE CARUPA",null,null,"ISNOS","VILLANUEVA","PIJIÑO DEL CARMEN","MAPIRIPÁN","CUMBITARA","EL ZULIA",null,null,null,"CERRITO","PALMITO","ESPINAL","EL CAIRO"]
["_95_GUAVIARE",null,"BELLO",null,null,"SABANAGRANDE",null,"HATILLO DE LOBA","CHIQUINQUIRÁ","PÁCORA","VALPARAÍSO","TAURAMENA","LA SIERRA","MANAURE","JURADÓ","PLANETA RICA","CHAGUANÍ",null,null,"LA ARGENTINA",null,"PIVIJAY","MESETAS","EL CHARCO","GRAMALOTE",null,null,null,"CHARALÁ","SAMPUÉS","FALAN","EL CERRITO"]
["_41_HUILA",null,"BELMIRA",null,null,"SABANALARGA",null,"MAGANGUÉ","CHÍQUIZA","PALESTINA",null,"TRINIDAD","LA VEGA","PAILITAS","LLORÓ","PUEBLO NUEVO","CHÍA",null,null,"LA PLATA",null,"PLATO","PUERTO CONCORDIA","EL PEÑOL","HACARÍ",null,null,null,"CHARTA","SAN BENITO ABAD","FLANDES","EL DOVIO"]
["_44_LA_GUAJIRA",null,"BETANIA",null,null,"SANTA LUCÍA",null,"MAHATES","CHISCAS","PENSILVANIA",null,"VILLANUEVA","LÓPEZ","PELAYA","MEDIO ATRATO","PUERTO ESCONDIDO","CHIPAQUE",null,null,"NÁTAGA",null,"PUEBLO VIEJO","PUERTO GAITÁN","EL ROSARIO","HERRÁN",null,null,null,"CHIMÁ","SAN JUAN DE BETULIA","FRESNO","FLORIDA"]
["_47_MAGDALENA",null,"BETULIA",null,null,"SANTO TOMÁS",null,"MARGARITA","CHITA","RIOSUCIO",null,"YOPAL","MERCADERES","PUEBLO BELLO","MEDIO BAUDÓ","PUERTO LIBERTADOR","CHOACHÍ",null,null,"NEIVA",null,"REMOLINO","PUERTO LLERAS","EL TABLÓN DE GÓMEZ","LA ESPERANZA",null,null,null,"CHIPATÁ","SAN LUIS DE SINCÉ","GUAMO","GINEBRA"]
["_50_META",null,"BRICEÑO",null,null,"SOLEDAD",null,"MARÍA LA BAJA","CHITARAQUE","RISARALDA",null,null,"MIRANDA","RÍO DE ORO","MEDIO SAN JUAN","PURÍSIMA","CHOCONTÁ",null,null,"OPORAPA",null,"SABANAS DE SAN ANGEL","PUERTO LÓPEZ","EL TAMBO","LA PLAYA",null,null,null,"CIMITARRA","SAN MARCOS","HERVEO","GUACARÍ"]
["_52_NARIÑO",null,"BURITICÁ",null,null,"SUAN",null,"MOMPÓS","CHIVATÁ","SALAMINA",null,null,"MORALES","SAN ALBERTO","NÓVITA","SAHAGÚN","COGUA",null,null,"PAICOL",null,"SALAMINA","PUERTO RICO","FRANCISCO PIZARRO","LABATECA",null,null,null,"CONCEPCIÓN","SAN ONOFRE","HONDA","GUADALAJARA DE BUGA"]
["_54_NORTE_DE_SANTANDER",null,"CÁCERES",null,null,"TUBARÁ",null,"MONTECRISTO","CHIVOR","SAMANÁ",null,null,"PADILLA","SAN DIEGO","NUQUÍ","SAN ANDRÉS SOTAVENTO","COTA",null,null,"PALERMO",null,"SAN SEBASTIÁN DE BUENAVISTA","RESTREPO","FUNES","LOS PATIOS",null,null,null,"CONFINES","SAN PEDRO","IBAGUÉ","JAMUNDÍ"]
["_86_PUTUMAYO",null,"CAICEDO",null,null,"USIACURÍ",null,"MORALES","CIÉNEGA","SAN JOSÉ",null,null,"PÁEZ","SAN MARTÍN","QUIBDÓ","SAN ANTERO","CUCUNUBÁ",null,null,"PALESTINA",null,"SAN ZENÓN","SAN CARLOS DE GUAROA","GUACHUCAL","LOURDES",null,null,null,"CONTRATACIÓN","SANTIAGO DE TOLÚ","ICONONZO","LA CUMBRE"]
["_63_QUINDÍO",null,"CALDAS",null,null,null,null,"NOROSÍ","CÓMBITA","SUPÍA",null,null,"PATÍA","TAMALAMEQUE","RÍO IRO","SAN BERNARDO DEL VIENTO","EL COLEGIO",null,null,"PITAL",null,"SANTA ANA","SAN JUAN DE ARAMA","GUAITARILLA","MUTISCUA",null,null,null,"COROMORO","SINCELEJO","LÉRIDA","LA UNIÓN"]
["_66_RISARALDA",null,"CAMPAMENTO",null,null,null,null,"PINILLOS","COPER","VICTORIA",null,null,"PIAMONTE","VALLEDUPAR","RÍO QUITO","SAN CARLOS","EL PEÑÓN",null,null,"PITALITO",null,"SANTA BÁRBARA DE PINTO","SAN JUANITO","GUALMATÁN","OCAÑA",null,null,null,"CURITÍ","SUCRE","LÍBANO","LA VICTORIA"]
["_88_SAN_ANDRÉS",null,"CAÑASGORDAS",null,null,null,null,"REGIDOR","CORRALES","VILLAMARÍA",null,null,"PIENDAMÓ",null,"RIOSUCIO","SAN JOSÉ DE URÉ","EL ROSAL",null,null,"RIVERA",null,"SANTA MARTA","SAN MARTÍN","ILES","PAMPLONA",null,null,null,"EL CARMEN DE CHUCURÍ","TOLÚ VIEJO","MARIQUITA","OBANDO"]
["_68_SANTANDER",null,"CARACOLÍ",null,null,null,null,"RÍO VIEJO","COVARACHÍA","VITERBO",null,null,"POPAYÁN",null,"SAN JOSÉ DEL PALMAR","SAN PELAYO","FACATATIVÁ",null,null,"SALADOBLANCO",null,"SITIONUEVO","URIBE","IMUÉS","PAMPLONITA",null,null,null,"EL GUACAMAYO",null,"MELGAR","PALMIRA"]
["_70_SUCRE",null,"CARAMANTA",null,null,null,null,"SAN CRISTÓBAL","CUBARÁ",null,null,null,"PUERTO TEJADA",null,"SIPÍ","TIERRALTA","FOMEQUE",null,null,"SAN AGUSTÍN",null,"TENERIFE","VILLAVICENCIO","IPIALES","PUERTO SANTANDER",null,null,null,"EL PEÑÓN",null,"MURILLO","PRADERA"]
["_73_TOLIMA",null,"CAREPA",null,null,null,null,"SAN ESTANISLAO","CUCAITA",null,null,null,"PURACÉ",null,"TADÓ","TUCHÍN","FOSCA",null,null,"SANTA MARÍA",null,"ZAPAYÁN","VISTA HERMOSA","LA CRUZ","RAGONVALIA",null,null,null,"EL PLAYÓN",null,"NATAGAIMA","RESTREPO"]
["_76_VALLE_DEL_CAUCA",null,"CAROLINA",null,null,null,null,"SAN FERNANDO","CUÍTIVA",null,null,null,"ROSAS",null,"UNGUÍA","VALENCIA","FUNZA",null,null,"SUAZA",null,"ZONA BANANERA",null,"LA FLORIDA","SALAZAR",null,null,null,"ENCINO",null,"ORTEGA","RIOFRÍO"]
["_97_VAUPÉS",null,"CAUCASIA",null,null,null,null,"SAN JACINTO","DUITAMA",null,null,null,"SAN SEBASTIÁN",null,"UNIÓN PANAMERICANA",null,"FÚQUENE",null,null,"TARQUI",null,null,null,"LA LLANADA","SAN CALIXTO",null,null,null,"ENCISO",null,"PALOCABILDO","ROLDANILLO"]
["_99_VICHADA",null,"CHIGORODÓ",null,null,null,null,"SAN JACINTO DEL CAUCA","EL COCUY",null,null,null,"SANTA ROSA",null,null,null,"FUSAGASUGÁ",null,null,"TELLO",null,null,null,"LA TOLA","SAN CAYETANO",null,null,null,"FLORIÁN",null,"PIEDRAS","SAN PEDRO"]
[null,null,"CISNEROS",null,null,null,null,"SAN JUAN NEPOMUCENO","EL ESPINO",null,null,null,"SANTANDER DE QUILICHAO",null,null,null,"GACHALA",null,null,"TERUEL",null,null,null,"LA UNIÓN","SANTIAGO",null,null,null,"FLORIDABLANCA",null,"PLANADAS","SEVILLA"]
[null,null,"CIUDAD BOLÍVAR",null,null,null,null,"SAN MARTÍN DE LOBA","FIRAVITOBA",null,null,null,"SILVIA",null,null,null,"GACHANCIPÁ",null,null,"TESALIA",null,null,null,"LEIVA","SARDINATA",null,null,null,"GALÁN",null,"PRADO","TORO"]
[null,null,"COCORNÁ",null,null,null,null,"SAN PABLO DE BORBUR","FLORESTA",null,null,null,"SOTARA",null,null,null,"GACHETÁ",null,null,"TIMANÁ",null,null,null,"LINARES","SILOS",null,null,null,"GAMBITA",null,"PURIFICACIÓN","TRUJILLO"]
[null,null,"CONCEPCIÓN",null,null,null,null,"SANTA CATALINA","GACHANTIVÁ",null,null,null,"SUÁREZ",null,null,null,"GAMA",null,null,"VILLAVIEJA",null,null,null,"LOS ANDES","TEORAMA",null,null,null,"GIRÓN",null,"RIO BLANCO","TULUÁ"]
[null,null,"CONCORDIA",null,null,null,null,"SANTA ROSA","GAMEZA",null,null,null,"SUCRE",null,null,null,"GIRARDOT",null,null,"YAGUARÁ",null,null,null,"MAGÜÍ","TIBÚ",null,null,null,"GUACA",null,"RONCESVALLES","ULLOA"]
[null,null,"COPACABANA",null,null,null,null,"SANTA ROSA DEL SUR","GARAGOA",null,null,null,"TIMBÍO",null,null,null,"GRANADA",null,null,null,null,null,null,"MALLAMA","TOLEDO",null,null,null,"GUADALUPE",null,"ROVIRA","VERSALLES"]
[null,null,"DABEIBA",null,null,null,null,"SIMITÍ","GUACAMAYAS",null,null,null,"TIMBIQUÍ",null,null,null,"GUACHETÁ",null,null,null,null,null,null,"MOSQUERA","VILLA CARO",null,null,null,"GUAPOTÁ",null,"SALDAÑA","VIJES"]
[null,null,"DON MATÍAS",null,null,null,null,"SOPLAVIENTO","GUATEQUE",null,null,null,"TORIBIO",null,null,null,"GUADUAS",null,null,null,null,null,null,"NARIÑO","VILLA DEL ROSARIO",null,null,null,"GUAVATÁ",null,"SAN ANTONIO","YOTOCO"]
[null,null,"EBÉJICO",null,null,null,null,"TALAIGUA NUEVO","GUAYATÁ",null,null,null,"TOTORÓ",null,null,null,"GUASCA",null,null,null,null,null,null,"OLAYA HERRERA",null,null,null,null,"GÜEPSA",null,"SAN LUIS","YUMBO"]
[null,null,"EL BAGRE",null,null,null,null,"TIQUISIO","GÜICÁN",null,null,null,"VILLA RICA",null,null,null,"GUATAQUÍ",null,null,null,null,null,null,"OSPINA",null,null,null,null,"HATO",null,"SANTA ISABEL","ZARZAL"]
[null,null,"EL CARMEN DE VIBORAL",null,null,null,null,"TURBACO","IZA",null,null,null,null,null,null,null,"GUATAVITA",null,null,null,null,null,null,"PASTO",null,null,null,null,"JESÚS MARÍA",null,"SUÁREZ"]
[null,null,"EL SANTUARIO",null,null,null,null,"TURBANÁ","JENESANO",null,null,null,null,null,null,null,"GUAYABAL DE SIQUIMA",null,null,null,null,null,null,"POLICARPA",null,null,null,null,"JORDÁN",null,"VALLE DE SAN JUAN"]
[null,null,"ENTRERRIOS",null,null,null,null,"VILLANUEVA","JERICÓ",null,null,null,null,null,null,null,"GUAYABETAL",null,null,null,null,null,null,"POTOSÍ",null,null,null,null,"LA BELLEZA",null,"VENADILLO"]
[null,null,"ENVIGADO",null,null,null,null,"ZAMBRANO","LA CAPILLA",null,null,null,null,null,null,null,"GUTIÉRREZ",null,null,null,null,null,null,"PROVIDENCIA",null,null,null,null,"LA PAZ",null,"VILLAHERMOSA"]
[null,null,"FREDONIA",null,null,null,null,null,"LA UVITA",null,null,null,null,null,null,null,"JERUSALÉN",null,null,null,null,null,null,"PUERRES",null,null,null,null,"LANDÁZURI",null,"VILLARRICA"]
[null,null,"FRONTINO",null,null,null,null,null,"LA VICTORIA",null,null,null,null,null,null,null,"JUNÍN",null,null,null,null,null,null,"PUPIALES",null,null,null,null,"LEBRÍJA"]
[null,null,"GIRALDO",null,null,null,null,null,"LABRANZAGRANDE",null,null,null,null,null,null,null,"LA CALERA",null,null,null,null,null,null,"RICAURTE",null,null,null,null,"LOS SANTOS"]
[null,null,"GIRARDOTA",null,null,null,null,null,"MACANAL",null,null,null,null,null,null,null,"LA MESA",null,null,null,null,null,null,"ROBERTO PAYÁN",null,null,null,null,"MACARAVITA"]
[null,null,"GÓMEZ PLATA",null,null,null,null,null,"MARIPÍ",null,null,null,null,null,null,null,"LA PALMA",null,null,null,null,null,null,"SAMANIEGO",null,null,null,null,"MÁLAGA"]
[null,null,"GRANADA",null,null,null,null,null,"MIRAFLORES",null,null,null,null,null,null,null,"LA PEÑA",null,null,null,null,null,null,"SAN ANDRÉS DE TUMACO",null,null,null,null,"MATANZA"]
[null,null,"GUADALUPE",null,null,null,null,null,"MONGUA",null,null,null,null,null,null,null,"LA VEGA",null,null,null,null,null,null,"SAN BERNARDO",null,null,null,null,"MOGOTES"]
[null,null,"GUARNE",null,null,null,null,null,"MONGUÍ",null,null,null,null,null,null,null,"LENGUAZAQUE",null,null,null,null,null,null,"SAN LORENZO",null,null,null,null,"MOLAGAVITA"]
[null,null,"GUATAPÉ",null,null,null,null,null,"MONIQUIRÁ",null,null,null,null,null,null,null,"MACHETA",null,null,null,null,null,null,"SAN PABLO",null,null,null,null,"OCAMONTE"]
[null,null,"HELICONIA",null,null,null,null,null,"MOTAVITA",null,null,null,null,null,null,null,"MADRID",null,null,null,null,null,null,"SAN PEDRO DE CARTAGO",null,null,null,null,"OIBA"]
[null,null,"HISPANIA",null,null,null,null,null,"MUZO",null,null,null,null,null,null,null,"MANTA",null,null,null,null,null,null,"SANDONÁ",null,null,null,null,"ONZAGA"]
[null,null,"ITAGUI",null,null,null,null,null,"NOBSA",null,null,null,null,null,null,null,"MEDINA",null,null,null,null,null,null,"SANTA BÁRBARA",null,null,null,null,"PALMAR"]
[null,null,"ITUANGO",null,null,null,null,null,"NUEVO COLÓN",null,null,null,null,null,null,null,"MOSQUERA",null,null,null,null,null,null,"SANTACRUZ",null,null,null,null,"PALMAS DEL SOCORRO"]
[null,null,"JARDÍN",null,null,null,null,null,"OICATÁ",null,null,null,null,null,null,null,"NARIÑO",null,null,null,null,null,null,"SAPUYES",null,null,null,null,"PÁRAMO"]
[null,null,"JERICÓ",null,null,null,null,null,"OTANCHE",null,null,null,null,null,null,null,"NEMOCÓN",null,null,null,null,null,null,"TAMINANGO",null,null,null,null,"PIEDECUESTA"]
[null,null,"LA CEJA",null,null,null,null,null,"PACHAVITA",null,null,null,null,null,null,null,"NILO",null,null,null,null,null,null,"TANGUA",null,null,null,null,"PINCHOTE"]
[null,null,"LA ESTRELLA",null,null,null,null,null,"PÁEZ",null,null,null,null,null,null,null,"NIMAIMA",null,null,null,null,null,null,"TÚQUERRES",null,null,null,null,"PUENTE NACIONAL"]
[null,null,"LA PINTADA",null,null,null,null,null,"PAIPA",null,null,null,null,null,null,null,"NOCAIMA",null,null,null,null,null,null,"YACUANQUER",null,null,null,null,"PUERTO PARRA"]
[null,null,"LA UNIÓN",null,null,null,null,null,"PAJARITO",null,null,null,null,null,null,null,"PACHO",null,null,null,null,null,null,null,null,null,null,null,"PUERTO WILCHES"]
[null,null,"LIBORINA",null,null,null,null,null,"PANQUEBA",null,null,null,null,null,null,null,"PAIME",null,null,null,null,null,null,null,null,null,null,null,"RIONEGRO"]
[null,null,"MACEO",null,null,null,null,null,"PAUNA",null,null,null,null,null,null,null,"PANDI",null,null,null,null,null,null,null,null,null,null,null,"SABANA DE TORRES"]
[null,null,"MARINILLA",null,null,null,null,null,"PAYA",null,null,null,null,null,null,null,"PARATEBUENO",null,null,null,null,null,null,null,null,null,null,null,"SAN ANDRÉS"]
[null,null,"MEDELLÍN",null,null,null,null,null,"PAZ DE RÍO",null,null,null,null,null,null,null,"PASCA",null,null,null,null,null,null,null,null,null,null,null,"SAN BENITO"]
[null,null,"MONTEBELLO",null,null,null,null,null,"PESCA",null,null,null,null,null,null,null,"PUERTO SALGAR",null,null,null,null,null,null,null,null,null,null,null,"SAN GIL"]
[null,null,"MURINDÓ",null,null,null,null,null,"PISBA",null,null,null,null,null,null,null,"PULÍ",null,null,null,null,null,null,null,null,null,null,null,"SAN JOAQUÍN"]
[null,null,"MUTATÁ",null,null,null,null,null,"PUERTO BOYACÁ",null,null,null,null,null,null,null,"QUEBRADANEGRA",null,null,null,null,null,null,null,null,null,null,null,"SAN JOSÉ DE MIRANDA"]
[null,null,"NARIÑO",null,null,null,null,null,"QUÍPAMA",null,null,null,null,null,null,null,"QUETAME",null,null,null,null,null,null,null,null,null,null,null,"SAN MIGUEL"]
[null,null,"NECHÍ",null,null,null,null,null,"RAMIRIQUÍ",null,null,null,null,null,null,null,"QUIPILE",null,null,null,null,null,null,null,null,null,null,null,"SAN VICENTE DE CHUCURÍ"]
[null,null,"NECOCLÍ",null,null,null,null,null,"RÁQUIRA",null,null,null,null,null,null,null,"RICAURTE",null,null,null,null,null,null,null,null,null,null,null,"SANTA BÁRBARA"]
[null,null,"OLAYA",null,null,null,null,null,"RONDÓN",null,null,null,null,null,null,null,"SAN ANTONIO DEL TEQUENDAMA",null,null,null,null,null,null,null,null,null,null,null,"SANTA HELENA DEL OPÓN"]
[null,null,"PEÑOL",null,null,null,null,null,"SABOYÁ",null,null,null,null,null,null,null,"SAN BERNARDO",null,null,null,null,null,null,null,null,null,null,null,"SIMACOTA"]
[null,null,"PEQUE",null,null,null,null,null,"SÁCHICA",null,null,null,null,null,null,null,"SAN CAYETANO",null,null,null,null,null,null,null,null,null,null,null,"SOCORRO"]
[null,null,"PUEBLORRICO",null,null,null,null,null,"SAMACÁ",null,null,null,null,null,null,null,"SAN FRANCISCO",null,null,null,null,null,null,null,null,null,null,null,"SUAITA"]
[null,null,"PUERTO BERRÍO",null,null,null,null,null,"SAN EDUARDO",null,null,null,null,null,null,null,"SAN JUAN DE RÍO SECO",null,null,null,null,null,null,null,null,null,null,null,"SUCRE"]
[null,null,"PUERTO NARE",null,null,null,null,null,"SAN JOSÉ DE PARE",null,null,null,null,null,null,null,"SASAIMA",null,null,null,null,null,null,null,null,null,null,null,"SURATÁ"]
[null,null,"PUERTO TRIUNFO",null,null,null,null,null,"SAN LUIS DE GACENO",null,null,null,null,null,null,null,"SESQUILÉ",null,null,null,null,null,null,null,null,null,null,null,"TONA"]
[null,null,"REMEDIOS",null,null,null,null,null,"SAN MATEO",null,null,null,null,null,null,null,"SIBATÉ",null,null,null,null,null,null,null,null,null,null,null,"VALLE DE SAN JOSÉ"]
[null,null,"RETIRO",null,null,null,null,null,"SAN MIGUEL DE SEMA",null,null,null,null,null,null,null,"SILVANIA",null,null,null,null,null,null,null,null,null,null,null,"VÉLEZ"]
[null,null,"RIONEGRO",null,null,null,null,null,"SAN PABLO DE BORBUR",null,null,null,null,null,null,null,"SIMIJACA",null,null,null,null,null,null,null,null,null,null,null,"VETAS"]
[null,null,"SABANALARGA",null,null,null,null,null,"SANTA MARÍA",null,null,null,null,null,null,null,"SOACHA",null,null,null,null,null,null,null,null,null,null,null,"VILLANUEVA"]
[null,null,"SABANETA",null,null,null,null,null,"SANTA ROSA DE VITERBO",null,null,null,null,null,null,null,"SOPÓ",null,null,null,null,null,null,null,null,null,null,null,"ZAPATOCA"]
[null,null,"SALGAR",null,null,null,null,null,"SANTA SOFÍA",null,null,null,null,null,null,null,"SUBACHOQUE"]
[null,null,"SAN ANDRÉS DE CUERQUÍA",null,null,null,null,null,"SANTANA",null,null,null,null,null,null,null,"SUESCA"]
[null,null,"SAN CARLOS",null,null,null,null,null,"SATIVANORTE",null,null,null,null,null,null,null,"SUPATÁ"]
[null,null,"SAN FRANCISCO",null,null,null,null,null,"SATIVASUR",null,null,null,null,null,null,null,"SUSA"]
[null,null,"SAN JERÓNIMO",null,null,null,null,null,"SIACHOQUE",null,null,null,null,null,null,null,"SUTATAUSA"]
[null,null,"SAN JOSÉ DE LA MONTAÑA",null,null,null,null,null,"SOATÁ",null,null,null,null,null,null,null,"TABIO"]
[null,null,"SAN JUAN DE URABÁ",null,null,null,null,null,"SOCHA",null,null,null,null,null,null,null,"TAUSA"]
[null,null,"SAN LUIS",null,null,null,null,null,"SOCOTÁ",null,null,null,null,null,null,null,"TENA"]
[null,null,"SAN PEDRO",null,null,null,null,null,"SOGAMOSO",null,null,null,null,null,null,null,"TENJO"]
[null,null,"SAN PEDRO DE URABA",null,null,null,null,null,"SOMONDOCO",null,null,null,null,null,null,null,"TIBACUY"]
[null,null,"SAN RAFAEL",null,null,null,null,null,"SORA",null,null,null,null,null,null,null,"TIBIRITA"]
[null,null,"SAN ROQUE",null,null,null,null,null,"SORACÁ",null,null,null,null,null,null,null,"TOCAIMA"]
[null,null,"SAN VICENTE",null,null,null,null,null,"SOTAQUIRÁ",null,null,null,null,null,null,null,"TOCANCIPÁ"]
[null,null,"SANTA BÁRBARA",null,null,null,null,null,"SUSACÓN",null,null,null,null,null,null,null,"TOPAIPÍ"]
[null,null,"SANTA ROSA DE OSOS",null,null,null,null,null,"SUTAMARCHÁN",null,null,null,null,null,null,null,"UBALÁ"]
[null,null,"SANTAFÉ DE ANTIOQUIA",null,null,null,null,null,"SUTATENZA",null,null,null,null,null,null,null,"UBAQUE"]
[null,null,"SANTO DOMINGO",null,null,null,null,null,"TASCO",null,null,null,null,null,null,null,"UNE"]
[null,null,"SEGOVIA",null,null,null,null,null,"TENZA",null,null,null,null,null,null,null,"ÚTICA"]
[null,null,"SONSÓN",null,null,null,null,null,"TIBANÁ",null,null,null,null,null,null,null,"VENECIA"]
[null,null,"SOPETRÁN",null,null,null,null,null,"TIBASOSA",null,null,null,null,null,null,null,"VERGARA"]
[null,null,"TÁMESIS",null,null,null,null,null,"TINJACÁ",null,null,null,null,null,null,null,"VIANÍ"]
[null,null,"TARAZÁ",null,null,null,null,null,"TIPACOQUE",null,null,null,null,null,null,null,"VILLA DE SAN DIEGO DE UBATE"]
[null,null,"TARSO",null,null,null,null,null,"TOCA",null,null,null,null,null,null,null,"VILLAGÓMEZ"]
[null,null,"TITIRIBÍ",null,null,null,null,null,"TOGÜÍ",null,null,null,null,null,null,null,"VILLAPINZÓN"]
[null,null,"TOLEDO",null,null,null,null,null,"TÓPAGA",null,null,null,null,null,null,null,"VILLETA"]
[null,null,"TURBO",null,null,null,null,null,"TOTA",null,null,null,null,null,null,null,"VIOTÁ"]
[null,null,"URAMITA",null,null,null,null,null,"TUNJA",null,null,null,null,null,null,null,"YACOPÍ"]
[null,null,"URRAO",null,null,null,null,null,"TUNUNGUÁ",null,null,null,null,null,null,null,"ZIPACÓN"]
[null,null,"VALDIVIA",null,null,null,null,null,"TURMEQUÉ",null,null,null,null,null,null,null,"ZIPAQUIRÁ"]
[null,null,"VALPARAÍSO",null,null,null,null,null,"TUTA"]
[null,null,"VEGACHÍ",null,null,null,null,null,"TUTAZÁ"]
[null,null,"VENECIA",null,null,null,null,null,"UMBITA"]
[null,null,"VIGÍA DEL FUERTE",null,null,null,null,null,"VENTAQUEMADA"]
[null,null,"YALÍ",null,null,null,null,null,"VILLA DE LEYVA"]
[null,null,"YARUMAL",null,null,null,null,null,"VIRACACHÁ"]
[null,null,"YOLOMBÓ",null,null,null,null,null,"ZETAQUIRA"]
[null,null,"YONDÓ"]
[null,null,"ZARAGOZA"]
[]
["TIPO DE DOCUMENTO NN","SEXO","DISCAPACIDAD","SI","NO","GRUPO ÉTNICO","DUERME","SSSG","AFILIADO","NO_AFILIADO","VACUNACIÓN","ESQUEMA_COMPLETO","ESQUEMA_INCOMPLETO","SALUD_BUCAL","CON_ATENCIÓN_SALUD_BUCAL","SIN_ATENCIÓN_SALUD_BUCAL","ALERGIA","RAZONES NO CITA","LENGUA","LENGUA","LACTANCIA","RECIBE_LECHE_MATERNA","NO RECIBE_LECHE_MATERNA","EXCLUSIVA","SI_EXCLUSIVAMENTE_LECHE_MATERNA","NO_OTROS_ALIMENTOS","COMPLEMENTARIA","SI_LECHE_MATERNA_EXCLUSIVA","NO_LECHE_MATERNA_EXCLUSIVA","TIEMPO COMPLEMENTARIA"]
["1. REGISTRO CIVIL ","1. MUJER","SI","1. Física","12. Ninguna","1. Población indígena","1.Hamaca","AFILIADO","No aplica","1. En trámite","ESQUEMA_COMPLETO","No aplica","1. Falta de dinero","CON_ATENCIÓN_SALUD_BUCAL","No aplica","1. Falta de dinero","1. Si","1. Falta de dinero","1. Castellano","0. No aplica","RECIBE_LECHE_MATERNA","No aplica","1. Empleo","SI_EXCLUSIVAMENTE_LECHE_MATERNA","No aplica","1. (0 meses)","SI_LECHE_MATERNA_EXCLUSIVA","No aplica","1. Empleo","1. (0 meses)"]
["2. TARJETA DE IDENTIDAD","2. HOMBRE","NO","2. Intelectual",null,"2. Población Negra","2. Cama","NO_AFILIADO",null,"2. Falta de dinero","ESQUEMA_INCOMPLETO",null,"2. No sabe que debe vacunarse","SIN_ATENCIÓN_SALUD_BUCAL",null,"2. No sabe la utilidad de esta valoración","2. No","2. No sabe que debe recibir esta atención","2. Lenguas Criolla Palenquero de San Basilio","1. Castellano","NO_RECIBE_LECHE_MATERNA",null,"2. Ausencia de la madre","NO_OTROS_ALIMENTOS",null,"2. (1 mes)","NO_LECHE_MATERNA_EXCLUSIVA",null,"2. Ausencia de la madre","2. (1 mes)"]
["3. PASAPORTE","3. INTERSEXUAL",null,"3. Psicosocial",null,"3.  Población Afrocolombiana","3. Colchoneta",null,null,"3. No sabe que debe afiliarse",null,null,"3. No le interesa ",null,null,"3. No le interesa ","3. No sabe","3. No le interesa","3. Lenguas Criolla – Creole","2. Lenguas Criolla Palenquero de San Basilio",null,null,"3. Dificultades en el amamantamiento",null,null,"3. (2 meses)",null,null,"3. Dificultades en el amamantamiento","3. (2 meses)"]
["4. PERMISO ESPECIAL DE PERMANENCIA (PEP)",null,null,"4. Auditiva",null,"4.  Población Raizal descendiente del Archipiélago de San Andrés, Providencia y Santa Catalina","4. Estera",null,null,"4. No le interesa",null,null,"4. Pertenece a movimiento anti vacunas",null,null,"4. No hay entidad cercana.",null,"4. No hay entidad cercana","4. Lengua Romaní","3. Lenguas Criolla – Creole",null,null,"4. Falta de motivación",null,null,"4. (3 meses)",null,null,"4. Falta de motivación","4. (3 meses)"]
["5. NO TIENE",null,null,"5. Visual",null,"5. Población Gitana o Rrom","5. Cuna",null,null,"5. No hay entidad cercana",null,null,"5. No hay entidad cercana.",null,null,"5. Motivos religiosos",null,"5. Otro ","5. Lengua de señas Colombiana","4. Lengua Romaní",null,null,"5. No sabe como hacerlo ",null,null,"5. (4 meses)",null,null,"5. No sabia como hacerlo ","5. (4 meses)"]
[null,null,null,"6. Sordo ceguera",null,"6. Población Palenquera","6. Plancha",null,null,"6. Otra",null,null,"6. Motivos religiosos",null,null,"6. Otro ",null,null,"6. Señas y gestos","5. Lengua de señas Colombiana",null,null,"6. Tratamiento médico",null,null,"6. (5 meses)",null,null,"6. Tratamiento médico","6. (5 meses)"]
[null,null,null,"7. Múltiple ",null,"7. Ninguno","7. Otro",null,null,null,null,null,"7. Otra",null,null,null,null,null,"7.  Achagua","6. Lengua de señas y gestos",null,null,"7. Presión familiar ",null,null,null,null,null,"7. Presión familiar ","7. (6 meses)"]
[null,null,null,"8. Sensorial (gusto, olfato, tacto)",null,null,null,null,null,null,null,null,null,null,null,null,null,null,"8.  Andoque","7.  Achagua",null,null,"8. Otro ",null,null,null,null,null,"8. Otro ","8. (7 meses)"]
[null,null,null,"9. Sistémica ",null,null,null,null,null,null,null,null,null,null,null,null,null,null,"9.  Awapit","8.  Andoque",null,null,null,null,null,null,null,null,null,"9. (8 meses)"]
[null,null,null,"10. Voz y habla",null,null,null,null,null,null,null,null,null,null,null,null,null,null,"10.  Bará","9.  Awapit",null,null,null,null,null,null,null,null,null,"10. (9 meses)"]
[null,null,null,"11. Piel, pelo y uñas",null,null,null,null,null,null,null,null,null,null,null,null,null,null,"11.  Barasano","10.  Bará",null,null,null,null,null,null,null,null,null,"11. (10 meses)"]
[null,null,null,null,null,null,null,null,null,null,null,null,null,null,null,null,null,null,"12.  Barí","11.  Barasano",null,null,null,null,null,null,null,null,null,"12. (11 meses)"]
["SI/NO","SI_NO_NO APLICA",null,null,null,null,null,null,null,null,null,null,null,null,null,null,null,null,"13.  Ara","12.  Barí",null,null,null,null,null,null,null,null,null,"13. (12 meses)"]
["SI","1. SI",null,null,null,null,null,null,null,null,null,null,null,null,null,null,null,null,"14.  Bora","13.  Ara"]
["NO","2. NO",null,null,null,null,null,null,null,null,null,null,null,null,null,null,null,null,"15.  Cabiyari","14.  Bora"]
[null,"3. NO APLICA",null,null,null,null,null,null,null,null,null,null,null,null,null,null,null,null,"16.  Carapana","15.  Cabiyari"]
[null,null,null,null,null,null,null,null,null,null,null,null,null,null,null,null,null,null,"17.  Carijona","16.  Carapana"]
[null,null,null,null,null,null,null,null,null,null,null,null,null,null,null,null,null,null,"18.  Cocama","17.  Carijona"]
[null,null,null,null,null,null,null,null,null,null,null,null,null,null,null,null,null,null,"19.  Cofán","18.  Cocama"]
[null,null,null,null,null,null,null,null,null,null,null,null,null,null,null,null,null,null,"20.  Cuiba","19.  Cofán"]
[null,null,null,null,null,null,null,null,null,null,null,null,null,null,null,null,null,null,"21.  Curripaco","20.  Cuiba"]
[null,null,null,null,null,null,null,null,null,null,null,null,null,null,null,null,null,null,"22.  Damana","21.  Curripaco"]
[null,null,null,null,null,null,null,null,null,null,null,null,null,null,null,null,null,null,"23.  Desano","22.  Damana"]
[null,null,null,null,null,null,null,null,null,null,null,null,null,null,null,null,null,null,"24.  Embera","23.  Desano"]
[null,null,null,null,null,null,null,null,null,null,null,null,null,null,null,null,null,null,"25.  Ette","24.  Embera"]
[null,null,null,null,null,null,null,null,null,null,null,null,null,null,null,null,null,null,"26.  Naka","25.  Ette"]
[null,null,null,null,null,null,null,null,null,null,null,null,null,null,null,null,null,null,"27.  Hitnu","26.  Naka"]
[null,null,null,null,null,null,null,null,null,null,null,null,null,null,null,null,null,null,"28.  Guayabero","27.  Hitnu"]
[null,null,null,null,null,null,null,null,null,null,null,null,null,null,null,null,null,null,"29.  Ika","28.  Guayabero"]
[null,null,null,null,null,null,null,null,null,null,null,null,null,null,null,null,null,null,"30.  Inga","29.  Ika"]
[null,null,null,null,null,null,null,null,null,null,null,null,null,null,null,null,null,null,"31.  Kakua","30.  Inga"]
[null,null,null,null,null,null,null,null,null,null,null,null,null,null,null,null,null,null,"32.  Kamsá","31.  Kakua"]
[null,null,null,null,null,null,null,null,null,null,null,null,null,null,null,null,null,null,"33.  Kichwa","32.  Kamsá"]
[null,null,null,null,null,null,null,null,null,null,null,null,null,null,null,null,null,null,"34.  Kogui","33.  Kichwa"]
[null,null,null,null,null,null,null,null,null,null,null,null,null,null,null,null,null,null,"35.  Koreguaje","34.  Kogui"]
[null,null,null,null,null,null,null,null,null,null,null,null,null,null,null,null,null,null,"36.  Kubeo","35.  Koreguaje"]
[null,null,null,null,null,null,null,null,null,null,null,null,null,null,null,null,null,null,"37.  Kuna","36.  Kubeo"]
[null,null,null,null,null,null,null,null,null,null,null,null,null,null,null,null,null,null,"38.  Tule","37.  Kuna"]
[null,null,null,null,null,null,null,null,null,null,null,null,null,null,null,null,null,null,"39.  Macuna","38.  Tule"]
[null,null,null,null,null,null,null,null,null,null,null,null,null,null,null,null,null,null,"40.  Miraña","39.  Macuna"]
[null,null,null,null,null,null,null,null,null,null,null,null,null,null,null,null,null,null,"41.  Muinane","40.  Miraña"]
[null,null,null,null,null,null,null,null,null,null,null,null,null,null,null,null,null,null,"42.  Namtrik","41.  Muinane"]
[null,null,null,null,null,null,null,null,null,null,null,null,null,null,null,null,null,null,"43.  Nasa-Yuwe","42.  Namtrik"]
[null,null,null,null,null,null,null,null,null,null,null,null,null,null,null,null,null,null,"44.  Nonuya","43.  Nasa-Yuwe"]
[null,null,null,null,null,null,null,null,null,null,null,null,null,null,null,null,null,null,"45.  Nukak","44.  Nonuya"]
[null,null,null,null,null,null,null,null,null,null,null,null,null,null,null,null,null,null,"46.  Ocaina","45.  Nukak"]
[null,null,null,null,null,null,null,null,null,null,null,null,null,null,null,null,null,null,"47.  Piapoco","46.  Ocaina"]
[null,null,null,null,null,null,null,null,null,null,null,null,null,null,null,null,null,null,"48.  Piaroa","47.  Piapoco"]
[null,null,null,null,null,null,null,null,null,null,null,null,null,null,null,null,null,null,"49.  Piratapuyo","48.  Piaroa"]
[null,null,null,null,null,null,null,null,null,null,null,null,null,null,null,null,null,null,"50.  Pisamira","49.  Piratapuyo"]
[null,null,null,null,null,null,null,null,null,null,null,null,null,null,null,null,null,null,"51.  Puinave","50.  Pisamira"]
[null,null,null,null,null,null,null,null,null,null,null,null,null,null,null,null,null,null,"52.  Sáliba","51.  Puinave"]
[null,null,null,null,null,null,null,null,null,null,null,null,null,null,null,null,null,null,"53.  Sikuani","52.  Sáliba"]
[null,null,null,null,null,null,null,null,null,null,null,null,null,null,null,null,null,null,"54.  Siona","53.  Sikuani"]
[null,null,null,null,null,null,null,null,null,null,null,null,null,null,null,null,null,null,"55.  Siriano","54.  Siona"]
[null,null,null,null,null,null,null,null,null,null,null,null,null,null,null,null,null,null,"56.  Taiwano","55.  Siriano"]
[null,null,null,null,null,null,null,null,null,null,null,null,null,null,null,null,null,null,"57.  Tanimuca","56.  Taiwano"]
[null,null,null,null,null,null,null,null,null,null,null,null,null,null,null,null,null,null,"58.  Tariano","57.  Tanimuca"]
[null,null,null,null,null,null,null,null,null,null,null,null,null,null,null,null,null,null,"59.  Tatuyo","58.  Tariano"]
[null,null,null,null,null,null,null,null,null,null,null,null,null,null,null,null,null,null,"60.  Tikuna","59.  Tatuyo"]
[null,null,null,null,null,null,null,null,null,null,null,null,null,null,null,null,null,null,"61.  Tinigua","60.  Tikuna"]
[null,null,null,null,null,null,null,null,null,null,null,null,null,null,null,null,null,null,"62.  Tucano","61.  Tinigua"]
[null,null,null,null,null,null,null,null,null,null,null,null,null,null,null,null,null,null,"63.  Tucuná","62.  Tucano"]
[null,null,null,null,null,null,null,null,null,null,null,null,null,null,null,null,null,null,"64.  Tuyuca","63.  Tucuná"]
[null,null,null,null,null,null,null,null,null,null,null,null,null,null,null,null,null,null,"65.  Uitoto","64.  Tuyuca"]
[null,null,null,null,null,null,null,null,null,null,null,null,null,null,null,null,null,null,"66.  Uwa","65.  Uitoto"]
[null,null,null,null,null,null,null,null,null,null,null,null,null,null,null,null,null,null,"67.  Wanano","66.  Uwa"]
[null,null,null,null,null,null,null,null,null,null,null,null,null,null,null,null,null,null,"68.  Wayuunaiki","67.  Wanano"]
[null,null,null,null,null,null,null,null,null,null,null,null,null,null,null,null,null,null,"69.  Wounaan","68.  Wayuunaiki"]
[null,null,null,null,null,null,null,null,null,null,null,null,null,null,null,null,null,null,"70.  Yagua","69.  Wounaan"]
[null,null,null,null,null,null,null,null,null,null,null,null,null,null,null,null,null,null,"71.  Yanuro","70.  Yagua"]
[null,null,null,null,null,null,null,null,null,null,null,null,null,null,null,null,null,null,"72.  Yuhup","71.  Yanuro"]
[null,null,null,null,null,null,null,null,null,null,null,null,null,null,null,null,null,null,"73.  Yukpa","72.  Yuhup"]
[null,null,null,null,null,null,null,null,null,null,null,null,null,null,null,null,null,null,"74.  Yuruti","73.  Yukpa"]
[null,null,null,null,null,null,null,null,null,null,null,null,null,null,null,null,null,null,null,"74.  Yuruti"]
[null,null,null,null,null,null,null,null,null,null,null,null,null,null,null,null,null,null,null,"75. Otro"]
[]
[]
[]
[]
[]
[]
[]
[]
["TIPO DOCUMENTO MG","GENERO","ORIENTACIÓN SEXUAL","ESTADO CIVIL","ESCOLARIDAD","ACTIVIDAD","TIPO CONTRATO","TIPO CAMA","HIJOS VIVOS","CUIDADOR PRINCIPAL","SUSTANCIAS","GRUPOS","ROL","AFILIACIÓN","VACUNAS"]
["1. Tarjeta de Identidad","1. Femenino","1. Heterosexual","1. Casada","1. Ninguno","1. Trabajando","1. Empleado con contrato laboral","1.Hamaca","1. Ninguno (0)","1. Padre","1. Cigarrillo","1. Asociación comercial o de comerciantes","1. Representante","1. En trámite","1. Falta de dinero"]
["2. Cédula ciudadanía","2. Masculino","2. Homosexual","2. Unión Marital de Hecho","2. Preescolar","2. Buscando trabajo","2. Independiente","2. Cama","2. Uno (1)","2. Madre","2. Bebidas Alcohólicas","2. Comité de trabajo (vereda, consejo, pueblo)","2. Miembro Junta directiva","2. Falta de dinero","2. No sabe que debe vacunarse"]
["3. Cedula de extranjería","3. Transgénero/trans","3. Bisexual","3. Soltera","3. Básica Primaria ","3. Oficios del hogar","3. No aplica","3. Colchoneta","3. Dos (2)","3. Hermana-o","3. Otras SPA","3. Grupo religioso /espiritual","3. Participante","3. No sabe que debe afiliarse","3. No le interesa "]
["4. Pasaporte","4. Otro","4. Otro","4. Viuda","4. Bachillerato","4. Estudiando",null,"4. Estera","4. Tres (3)","4. Prima- o",null,"4. Asociación o grupo cultural","4. No aplica","4. No le interesa","4. Pertenece a movimiento anti vacunas"]
["5. Permiso especial de permanencia (PEP)","5. No desea responder","5. No desea responder","5. Divorciada/Separada","5. Normalista ","5. Rentista",null,"5. Plancha","5. Cuatro (4)","5. Sobrina- o",null,"5. Asociación (de padres y profesores, comité escolar, por ocupación)",null,"5. No hay entidad cercana","5. No hay entidad cercana."]
["6. Sin Información","6. Menor de 14 años - No aplica","6. Menor de 14 años - No aplica",null,"6. Técnico ","6. Jubilado-a/pensionado-a",null,"6. Otro","6 Más de cinco (5)","6. Nieta - o",null,"6. ONG",null,"6. Otro ","6. Motivos religiosos"]
[null,null,null,null,"7. Tecnológica ","7. Cuidador-a",null,null,null,"7. Cónyuge",null,"7. Asociación de víctimas",null,null,"7. Otro"]
[null,null,null,null,"8. Universitario ","8. Privada de la libertad",null,null,null,"8. Padrastro",null,"8. Grupo de Mujeres"]
[null,null,null,null,"9. Posgrado","9. Sin actividad",null,null,null,"9. Madrastra",null,"9. Otra"]
[null,null,null,null,null,"10. Otro",null,null,null,"10. Hijastra- o",null,"10. No aplica"]
[null,null,null,null,null,null,null,null,null,"11. Abuela- o"]
[null,null,null,null,null,null,null,null,null,"12. Tía - o"]
[null,null,null,null,null,null,null,null,null,"13. Suegra -o"]
[null,null,null,null,null,null,null,null,null,"14. Nuera"]
[null,null,null,null,null,null,null,null,null,"15. Yerno"]
[null,null,null,null,null,null,null,null,null,"16. Cuñada-o"]
[null,null,null,null,null,null,null,null,null,"17. Padrino"]
[null,null,null,null,null,null,null,null,null,"18. Madrina"]
[null,null,null,null,null,null,null,null,null,"19. Familia sustituta/institución de protección"]
[null,null,null,null,null,null,null,null,null,"20. No sabe"]
[null,null,null,null,null,null,null,null,null,"21.Otro"]
[]
[]
[]
[]
["PARENTESCO","TIPO DOCUMENTO INTEGRANTE","UBICACIÓN VIVIENDA","TERRITORIO ÉTNICO","TIPO DE VIVIENDA","TIPO DE TENENCIA","PREPARACIÓN ALIMENTOS","ENERGÍA","SERVICIO SANITARIO","FUENTE DE AGUA","FRECUENCIA","TRATAMIENTO","LAZO AFECTIVO","ACTIVIDAD FAMILIAR","DECISIONES","LIDERAZGO","CORRECCIÓN","QUIEN CORRIGE","EVENTOS","TENIDO EN CUENTA","APOYO","PARENTESCO","ACTIVIDAD PRINCIPAL","TIPO LABORAL","TIEMPO CUIDADOR","TIEMPO SOLO","BENEFICIARIO","TRATAMIENTO AGUA"]
["1. Padre","1. Registro civil","1. Cabecera municipal","1. Resguardo indígena","1. Casa","1. Propia","1. En un cuarto usado solo para cocinar","1. Electricidad","1. Inodoro conectado al alcantarillado","1. Acueducto","1. Nunca","1. Si","1. Padre","1. Pasear","1. Padre","1. Reconocimiento del liderazgo familiar","1. Palmadas, pellizcos, etc.","1. Padre","1. Violencia sexual","1. Ocasionalmente","1. Estado","1. Familiar","1. Trabajando","1. Empleado con contrato laboral","1. Entre una hora a dos diarias","1. Menos de una hora","Niño o Niña","1. Filtro casero"]
["2. Madre","2. Tarjeta de Identidad","2. Centro poblado","2. Territorio colectivo de comunidad negra","2. Cambuche","2. Familiar","2. En un cuarto usado también para dormir","2. Gas natural, conectado a red pública (Gas domiciliario)","2. Inodoro conectado a pozo séptico ","2. Aguatero -carro tanque","2. Todos los días","2. No","2. Madre","2. Ver TV","2. Madre","2. Edad","2. Gritos","2. Madre","2. Violencia psicológica","2. Diario","2. Comunidad","2. Social","2. Buscando trabajo","2. Independiente","2. Entre dos a cuatro horas diarias","2. Entre una y tres horas","Mujer Gestante","2. Filtro OMS"]
["3. Hija-o","3. Cédula ciudadanía","3. Rural disperso","3. No aplica","3. Apartamento","3. En arriendo","3. En una sala- comedor con lavaplatos","3. Gas Propano \"Cilindro\"","3. Inodoro sin conexión","3. Pozo-Aljibe-Jagüey","3. Semanal","3. No sabe ","3. Hija-o","3. Juegos","3. Hermana-o","3. Proveedor-a económico","3. Hablando","3. Hermana-o","3. Violencia física","3. Nunca","3. Familia","3. Comunitario","3. Oficios del hogar","3. No aplica","3. Más de 4 horas diarias ","3. Más de tres horas",null,"3. Agua Hervida"]
["4. Hermana-o","4. Cedula de extranjería",null,null,"4. Vivienda tradicional indígena","4. Ocupador de hecho o poseedor","4. En una sala -comedor sin lavaplatos","4. Petróleo, gasolina, kerosene , alcohol, cocinol","4. Letrina","4. Agua - lluvia","4.Quincenal ",null,"4. Hermana-o","4. Leer","4. Prima- o","4. Otro","4. Diálogo","4. Prima- o","4. Violencia por conflicto armado",null,null,"4. Institucional","4. Estudiando",null,null,"4. No aplica",null,"4. Agua lluvia tratada"]
["5. Prima- o","5. Pasaporte",null,null,"5. Tipo cuarto","5. En concesión","5. En un patio, corredor , enramada, aire libre ","5. Carbón mineral","5. Inodoro con descarga directa a fuentes de agua (bajamar)","5. Río, Quebrada, Manantial","5. Mensual ",null,"5. Prima- o","5. Eventos religiosos","5. Sobrina- o",null,"5. Buen ejemplo","5. Sobrina- o","5. Castigo físico",null,null,null,"5. Rentista",null,null,null,null,"5. Agua embotellada o en bolsa"]
["6. Sobrina- o","6. Permiso especial de permanencia (PEP)",null,null,"6. Rancho","6. Otra.","6. No preparan alimentos en la vivienda","6. Leña, madera, o carbón de leña","6. La vivienda no tiene servicio sanitario","6. Agua embotellada o en bolsa",null,null,"6. Sobrina- o","6. Otra","6. Nieta - o",null,"6. Otro","6. Nieta - o","6. Ninguna",null,null,null,"6. Jubilado-a/pensionado-a",null,null,null,null,"6. Carro Tanque"]
["7. Nieta - o","7. Sin Información",null,null,"7. Finca",null,null,"7. Material de desecho",null,"7. Pila Pública",null,null,"7. Nieta - o","7. Ninguna","7. Cónyuge",null,null,"7. Cónyuge","7. Otra",null,null,null,"7. Cuidador-a",null,null,null,null,"7. Pastillas potabilizadoras de agua"]
["8. Cónyuge",null,null,null,"8. Casa lote",null,null,"8. Ninguno",null,null,null,null,"8. Cónyuge",null,"8. Padrastro",null,null,"8. Padrastro",null,null,null,null,"8. Sin actividad",null,null,null,null,"8. Otro"]
["9. Padrastro",null,null,null,"9. Establecimiento de reclusión",null,null,null,null,null,null,null,"9. Padrastro",null,"9. Madrastra",null,null,"9. Madrastra",null,null,null,null,"9. Privada de la libertad"]
["10. Madrastra",null,null,null,"10. Otra",null,null,null,null,null,null,null,"10. Madrastra",null,"10. Hijastra- o",null,null,"10. Hijastra- o",null,null,null,null,"10. Otro"]
["11. Hijastra- o",null,null,null,null,null,null,null,null,null,null,null,"11. Hijastra- o",null,"11. Abuela- o",null,null,"11. Abuela- o"]
["12. Abuela- o",null,null,null,null,null,null,null,null,null,null,null,"12. Abuela- o",null,"12. Tía - o",null,null,"12. Tía - o"]
["13. Tía - o",null,null,null,null,null,null,null,null,null,null,null,"13. Tía - o",null,"13. Suegra -o",null,null,"13. Suegra -o"]
["14. Suegra -o",null,null,null,null,null,null,null,null,null,null,null,"14. Suegra -o",null,"14. Nuera",null,null,"14. Nuera"]
["15. Nuera",null,null,null,null,null,null,null,null,null,null,null,"15. Nuera",null,"15. Yerno",null,null,"15. Yerno"]
["16. Yerno",null,null,null,null,null,null,null,null,null,null,null,"16. Yerno",null,"16. Cuñada-o",null,null,"16. Cuñada-o"]
["17. Cuñada-o",null,null,null,null,null,null,null,null,null,null,null,"17. Cuñada-o",null,"17. Padrino",null,null,"17. Padrino"]
["18. Padrino",null,null,null,null,null,null,null,null,null,null,null,"18. Padrino",null,"18. Madrina",null,null,"18. Madrina"]
["19. Madrina",null,null,null,null,null,null,null,null,null,null,null,"19. Madrina",null,"19. Familia sustituta/institución de protección",null,null,"19. Familia sustituta/Institución de protección"]
["20. Familia sustituta/institución de protección",null,null,null,null,null,null,null,null,null,null,null,"20. Familia sustituta/institución de protección",null,"20. Usuaria- Mujer gestante",null,null,"20.Otro"]
["21. Otro",null,null,null,null,null,null,null,null,null,null,null,"21. Otro",null,"21.Otro"]

{"sheet":"BD-M1","index":9,"n_rows":1,"n_cols":60,"rows_kept":1,"cut":false,"hidden":false,"merged":[]}
["1. Fecha de diligenciamiento","2. Regional","3. Centro Zonal","4. NIT Entidad ","5. Código CUENTAME UDS","6. Nombre Agente Educativo","Usuario","7. Fecha de nacimiento","8. Edad","9. País de Nacimiento","10. Nacionalidad Principal","10.1 Segunda Nacionalidad","11. Departamento de residencia","12. Municipio de residencia","13. Número celular acudiente","14. Tipo documento de identidad","15. Número de documento","16. Nombres","17. Apellidos","18. Sexo","19. Niña o niño con discapacidad","20. Categoría de discapacidad","21. Grupo étnico con el que se reconoce la familia de la niña o el niño","22. ¿Qué lengua o lenguas utilizan para comunicarse con el niño o la niña? (22.1 Lengua Principal)","22. ¿Qué lengua o lenguas utilizan para comunicarse con el niño o la niña? (22.2 Lengua Secundaria)","22. ¿Qué lengua o lenguas utilizan para comunicarse con el niño o la niña? (22.3 Lengua Terciaria)","22. ¿Qué lengua o lenguas utilizan para comunicarse con el niño o la niña? (22.45 Otra)","23. ¿La niña o el niño duerme en ?","23.1 Si, respondió \"8.Otra\", indique cuál","24. ¿La niña o el niño duerme con adultos en la misma habitación?","25. ¿La niña o el niño duerme con adultos en la misma cama?","26.¿La niña o niño se encuentra afiliado (a) al Sistema General de Seguridad Social en Salud?","27. En caso de no estar afiliado al Sistema General de Seguridad Social en Salud \n¿Cuál es la razón?","27.1 Si la respuesta anterior fue \"Otra\", diligenciar cuál,","28. ¿La niña o niño cuenta con el esquema de vacunación completo, según la edad?","29. En caso de que no contar con el esquema de vacunación completo según la edad de la niña o el niño, ¿Cuál es la razón?","29.1. Si la respuesta anterior fue \"Otra\", diligenciar cuál,","30. Si la niña o el niño es mayor de 6 meses ¿Ha tenido atención en salud bucal?","31. En caso de no contar con la atención en la salud  bucal ¿Cuál es el motivo?","31.1 Si la respuesta anterior fue \"Otro\", diligenciar cuál,","32. ¿La niña o el niño ha recibido valoración de la salud auditiva y comunicativa?","33. En caso de no contar con la atención en la salud  auditiva y comunicativa ¿Cuál es el motivo?","34. Si la niña o niño es mayor de (3) tres años ¿Ha recibido valoración  de la salud visual?","35.¿La niña o niño es alérgico a algún medicamento o alimento?","36. Si la respuesta anterior es SI, indique el medicamento o alimento al cuál es alérgico,","37.La niña o niño ¿cuenta con la valoración integral del desarrollo en salud según la edad? ","38. Si la niña o niño cuenta con valoración integral en salud, indique la fecha de la ultima cita a la que asistió. Formato (dd/mm/aaaa)","39. En caso de que no contar con la valoración integral del desarrollo en salud según la edad de la niña o el niño, ¿Cuál es la razón?","39.1 Si la respuesta anterior fue \"Otro\", diligenciar cuál,","40. ¿La niña o el niño recibe leche materna?","41. Si la respuesta anterior es negativa, ¿cuál es el motivo?","41.1 Si la respuesta anterior fue \"Otro\", describa cuál","42. Es alimentado exclusivamente con leche materna (no se le ofrece ningún otro alimento o bebida, incluyendo agua y/o leche de fórmula) ","43. A qué edad le ofreció alimentos diferentes a la leche materna (incluyendo agua y/o leche de fórmula)","44. Cuál fue el primer alimento que proporcionó diferente a leche materna o de formula","45. ¿La niña o el niño recibió leche materna de forma exclusiva?","46. Si la respuesta anterior es negativa, ¿cuál fue el motivo?","46.1 Si la respuesta anterior fue \"Otro\", describa cuál","47. A qué edad le ofreció alimentos diferentes a la leche materna","48.Cuál fue el primer alimento que proporcionó diferente a leche materna?"]

{"sheet":"BD-M2","index":10,"n_rows":1,"n_cols":80,"rows_kept":1,"cut":false,"hidden":false,"merged":[]}
["1. Fecha de diligenciamiento","2. Regional","3. Centro Zonal","4. NIT Entidad ","5. Código CUENTAME UDS","6. Nombre Agente Educativo","Usuario","7. ¿La usuaria es mayor de 14 años de edad?","8. Nombres","9. Apellidos","10. Tipo documento","11. Número de documento","12. Fecha de nacimiento","13. Edad","14. Sexo","15. Genero","16. Orientación sexual","17. País de Nacimiento","18. Nacionalidad Principal","18.1 Si, tiene segunda nacionalidad, indique","19. Departamento de residencia","20. Municipio de residencia","21. Estado civil","22. Mujer gestante con discapacidad","23. Categoría de discapacidad","24. Grupo étnico con el que se autoreconoce la mujer gestante","25. ¿Cuál es su lengua materna?","26. ¿Sabe leer y escribir?","27. ¿Actualmente estudia?","28. ¿Cuál es su nivel más alto de escolaridad?","29. ¿Cuál es su actividad principal en este momento?","30. ¿Si se encuentra trabajando, qué tipo de situación laboral presenta?","31. Ingreso mensual promedio","32. ¿La mujer gestante dónde duerme?","32.1 Si respondio \"8.Otra\", indique cuál","33. ¿Cuál o cuáles de los siguientes eventos se presentan o se han presentado en  su vida? (1. Violencia sexual)","33. ¿Cuál o cuáles de los siguientes eventos se presentan o se han presentado en  su vida? (2. Violencia psicológica)","33. ¿Cuál o cuáles de los siguientes eventos se presentan o se han presentado en  su vida? (3. Violencia en el conflicto armado)","33. ¿Cuál o cuáles de los siguientes eventos se presentan o se han presentado en  su vida? (4. Violencia economica y patrimonial)","33. ¿Cuál o cuáles de los siguientes eventos se presentan o se han presentado en  su vida? (5. Violencia fisica)","33. ¿Cuál o cuáles de los siguientes eventos se presentan o se han presentado en  su vida? (6. Ninguna)","34. Si en la respuesta anterior seleccionó alguna opción de violencia, ¿la violencia ocurrió al interior del hogar?","35. Si en la respuesta a la pregunta 33 seleccionó alguna opción de violencia, ¿Tiene en curso o ha interpuesto algún tipo de denuncia ante el sector protección o justicia por ese motivo?","36. Si la anterior pregunta respondió SI, ¿En qué estado está o termino el proceso?","37.¿Presenta alguna de las siguientes situaciones de vulnerabilidad?(1. Cabeza de familia)","37.¿Presenta alguna de las siguientes situaciones de vulnerabilidad?(2. Enfermedad terminal o de alto costo)","37.¿Presenta alguna de las siguientes situaciones de vulnerabilidad?(3. Cuidador de otro-a)","37.¿Presenta alguna de las siguientes situaciones de vulnerabilidad?(4. Otra)","37.¿Presenta alguna de las siguientes situaciones de vulnerabilidad?(5. Ninguna)","37.1 Si seleccionó \"4. Otra\", indique cuál","38. Número telefónico de la Mujer Gestante","39. Indique otro número  telefónico de contacto","40. ¿Es su primer embarazo? ","41. ¿Cuántos embarazos ha tenido?","42. ¿A qué edad tuvo su primer embarazo?","43. ¿Cuántos hijos-as nacidos vivos ha tenido?","44. ¿Quién va a ser el cuidador-a principal del niño o niña en gestación?","44.1 Si seleccionó \"4. Otra\", indique cuál","45. Consume usted algún medicamento bajo prescripción médica. \nRecuerde que esto incluye los suplementos de micronutrientes suministrados por la EPS durante la gestación.","46. En caso que la respuesta anterior sea SI, mencione que medicamentos consume. (1. Micronutrientes suministrados durante la gestación)","46. En caso que la respuesta anterior sea SI, mencione que medicamentos consume. (2. Médicamentos para el dolor)","46. En caso que la respuesta anterior sea SI, mencione que medicamentos consume. (3. Médicamentos por enfermedad anterior a la gestación)","47. ¿Cuáles suplementos de micronutrientes le han suministrado durante la gestación? ","48. En caso de no consumir los suplementos de micronutrientes, ¿cuál es la razón?","49. ¿Consume usted, algún medicamento  sin prescripción médica?","50. ¿ Consume usted algún tipo de sustancias psicoactivas?","51. En caso que la respuesta anterior sea SI, mencione que sustancias consume. (1. Cigarrillo)","51. En caso que la respuesta anterior sea SI, mencione que sustancias consume. (2. Bebidas Alcohólicas)","51. En caso que la respuesta anterior sea SI, mencione que sustancias consume. (3. Otras SPA)","52. ¿Asiste  al curso de preparación para la maternidad y la paternidad?","53. Si asiste algún curso o actividades en relación con la gestación, parto o posparto, mencione cuál o cuáles son.","54. ¿La mujer gestante es miembro de algún grupo, organización o asociación?","55. ¿En cuál de estos grupos u organizaciones que están activos y a los que usted pertenence, es en el que participa más?","56. ¿Qué rol tiene dentro del grupo u organización más importante?","57. ¿Se encuentra afiliado (a)  al Sistema General de Seguridad Social en Salud?","58. En caso de no estar afiliado al Sistema General de Seguridad Social en Salud ¿Cuál es la razón?","58.1 Si la respuesta anterior fue \"6. Otro\", diligenciar cuál,","59. ¿Cuenta con el esquema de vacunación completo, según la edad gestacional?","60. Si la respuesta anterior fue NO, ¿Cuál es la razón? ","60.1 Si la respuesta anterior fue \"7. Otro\", diligenciar cuál,"]

{"sheet":"BD-M3","index":11,"n_rows":1,"n_cols":121,"rows_kept":1,"cut":false,"hidden":false,"merged":[]}
["Usuario","1. Tipo documento de identidad","2. Número de documento","3. Número de personas que componen el hogar del usuario(a)","22. Clase de ubicación de la vivienda","23. Territorio étnico","24. Si la respuesta anterior fue Si, a qué territorio étnico pertenece","25. Indique el nombre de la comunidad en la que habita","26. Tipo de Vivienda","26.1. Si respondió \"10.Otra\", indique cuál","27. Tipo de tenencia de la vivienda","27.1 Si respondió \"6.Otra\", indique cuál","28. ¿En dónde preparan los alimentos las personas del hogar?","29. ¿El lugar donde viven cuenta con espacios independientes para dormitorio, cocina y baños?","30. ¿Con qué energía o combustible utilizan principalmente para cocinar?","31. ¿Qué tipo de servicio sanitario (inodoro) tiene la vivienda donde habita el hogar?","32. El grupo familiar del usuario-a tiene acceso a los siguientes servicios domiciliarios (1. Energía)","32. El grupo familiar del usuario-a tiene acceso a los siguientes servicios domiciliarios (2. Acueducto)","32. El grupo familiar del usuario-a tiene acceso a los siguientes servicios domiciliarios (3. Alcantarillado)","32. El grupo familiar del usuario-a tiene acceso a los siguientes servicios domiciliarios (4. Gas Natural)","32. El grupo familiar del usuario-a tiene acceso a los siguientes servicios domiciliarios (5. Telefonía fija)","32. El grupo familiar del usuario-a tiene acceso a los siguientes servicios domiciliarios (6. Todas las anteriores)","33. ¿Cómo eliminan principalmente la basura en este hogar? (1. La recogen los servicios del aseo)","33. ¿Cómo eliminan principalmente la basura en este hogar? (2. La tiran a un río, quebrada, caño o laguna)","33. ¿Cómo eliminan principalmente la basura en este hogar? (3. La tiran a un patio, lote, zanja o baldío)","33. ¿Cómo eliminan principalmente la basura en este hogar? (4. La queman)","33. ¿Cómo eliminan principalmente la basura en este hogar? (5. La entierran)","33. ¿Cómo eliminan principalmente la basura en este hogar? (6. La recoge un servicio informal (zorra, carreta, etc))","33. ¿Cómo eliminan principalmente la basura en este hogar? (7. La reciclan )","33. ¿Cómo eliminan principalmente la basura en este hogar? (8. La elimina de otra forma)","34. La vivienda está ubicada en o cerca de … (1. Área de deslizamiento de tierra)","34. La vivienda está ubicada en o cerca de … (2. Zona propensa a las inundaciones)","34. La vivienda está ubicada en o cerca de … (3. Orilla de río)","34. La vivienda está ubicada en o cerca de … (4. Colina empinada)","34. La vivienda está ubicada en o cerca de … (5. Montaña/pila de basura)","34. La vivienda está ubicada en o cerca de … (6. Área de contaminación industrial)","34. La vivienda está ubicada en o cerca de … (7. Ferrocarril)","34. La vivienda está ubicada en o cerca de … (8. Central eléctrica)","34. La vivienda está ubicada en o cerca de … (9. Paso elevado)","34. La vivienda está ubicada en o cerca de … (10. Ninguna de las anteriores)","34. La vivienda está ubicada en o cerca de … (11. Otra)","34.1 Si seleccionó \"11. Otra\", indique cuál","35. Riesgos de accidentes dentro del hogar para la niña o niño son … (1. Objetos cortantes o punzantes)","35. Riesgos de accidentes dentro del hogar para la niña o niño son … (2. Fármacos)","35. Riesgos de accidentes dentro del hogar para la niña o niño son … (3. Fósforos, encendedores o similares)","35. Riesgos de accidentes dentro del hogar para la niña o niño son … (4. Sustancias tóxicas)","35. Riesgos de accidentes dentro del hogar para la niña o niño son … (5. Escaleras, azoteas o balcones inseguras)","35. Riesgos de accidentes dentro del hogar para la niña o niño son … (6. Depósitos de agua destapados)","35. Riesgos de accidentes dentro del hogar para la niña o niño son … (7. Bolsas de plástico)","35. Riesgos de accidentes dentro del hogar para la niña o niño son … (8. Hacinamiento)","35. Riesgos de accidentes dentro del hogar para la niña o niño son … (9. Quemaduras)","35. Riesgos de accidentes dentro del hogar para la niña o niño son … (10. Ninguno de las anteriores)","35. Riesgos de accidentes dentro del hogar para la niña o niño son … (11. Otro)","35.1 Si seleccionó \"11. Otro\", indique cuál","36. ¿En el grupo familiar la fuente principal para el consumo del agua es?","37. ¿Con qué frecuencia el grupo familiar dispone del agua  para el consumo humano?","38. ¿Al agua que se usa para consumo humano en el hogar, se le realiza algún tratamiento para  que sea apta para el consumo? ","39. Si la respuesta anterior es SI ¿Qué tratamiento usa? ","39.1 Si seleccionó \"8. Otro\", indique cuál","40. ¿Con qué integrante del grupo familiar  el niño, niña o mujer gestante tiene un lazo afectivo más fuerte?","40.1 Si seleccionó \"20. Otro\", indique cuál","41. ¿Qué actividad principal realizan como familia?","41.1 Si seleccionó \"6. Otra\", indique cuál","42. ¿Quién toma las decisiones en la familia del usuario-a?","42.1 Si seleccionó \"21. Otro\", indique cuál","43. ¿Bajo qué criterio principal se fundamenta el liderazgo en la toma de decisiones?","43.1 Si seleccionó \"4. Otro\", indique cuál","44. ¿De qué manera resuelven los conflictos en la familia?","45. Cómo corrigen principalmente en la familia a la niña o el niño? ","45.1 Si seleccionó \"6. Otro\", indique cuál","46. ¿Quién corrige principalmente a la niña o el niño?","46.1 Si seleccionó \"20. Otro\", indique cuál","47. De los siguientes eventos ¿cuáles se han presentado o presentan en el hogar?","47.1 Si seleccionó \"6. Otro\", indique cuál","48. ¿Con qué frecuencia el usuario-a es tenido en cuenta para la toma de decisiones que afectan a la familia?","49. ¿Cuenta con algún tipo de apoyo cuando se encuentra en crisis (económica, afectiva, social, entre otras) el hogar?","50. Si respondió SI, indique ¿Quién?","51. ¿Nombre del  cuidador-a principal del niño o la niña?","52. ¿Cuál es el tipo de parentesco o afinidad con el niño o la niña?","53. ¿Qué edad tiene el cuidador-a principal?","54. ¿Cuál es la actividad principal del cuidador en este momento?","54.1 Si seleccionó \"9. Otro\", indique cuál","55 ¿Si se encuentra trabajando, qué tipo de situación laboral presenta?","56. ¿Cuánto tiempo pasa el cuidador-a con el niño o la niña al día?","57. La niña o el niño queda en algún momento solo-a?","58. Si queda solo-a, ¿Cuánto tiempo queda solo- a al día?","59. ¿Qué actividades realizó con la niña o el niño? (1. Leer un libro )","59. ¿Qué actividades realizó con la niña o el niño? (2. Contarle historias y cuentos)","59. ¿Qué actividades realizó con la niña o el niño? (3. Cantar canciones )","59. ¿Qué actividades realizó con la niña o el niño? (4. Llevarlo-a afuera de la casa )","59. ¿Qué actividades realizó con la niña o el niño? (5. Pasar tiempo con él o ella)","59. ¿Qué actividades realizó con la niña o el niño? (6. Mirando en la  TV o en el celular )","59. ¿Qué actividades realizó con la niña o el niño? (7. Jugar con él/ella)","59. ¿Qué actividades realizó con la niña o el niño? (8. Explorar con él/ella )","59. ¿Qué actividades realizó con la niña o el niño? (9. Baila con él/ella)","59. ¿Qué actividades realizó con la niña o el niño? (10. Ninguna)","60. ¿Quién o quienes realizaron la actividad? (1. Padre)","60. ¿Quién o quienes realizaron la actividad? (2. Madre)","60. ¿Quién o quienes realizaron la actividad? (3. Hermana-o)","60. ¿Quién o quienes realizaron la actividad? (4. Prima- o)","60. ¿Quién o quienes realizaron la actividad? (5. Sobrina- o)","60. ¿Quién o quienes realizaron la actividad? (6. Padrastro)","60. ¿Quién o quienes realizaron la actividad? (7. Madrastra)","60. ¿Quién o quienes realizaron la actividad? (8. Abuela- o)","60. ¿Quién o quienes realizaron la actividad? (9. Tía - o)","60. ¿Quién o quienes realizaron la actividad? (10. Cuñada-o)","60. ¿Quién o quienes realizaron la actividad? (11. Padrino)","60. ¿Quién o quienes realizaron la actividad? (12. Madrina)","60. ¿Quién o quienes realizaron la actividad? (13. Familia sustituta/Institucion de protección)","60. ¿Quién o quienes realizaron la actividad? (14.Otro)","60. ¿Quién o quienes realizaron la actividad? (15. Ninguno)","61. ¿Cuántos libros infantiles  para niñas y niños tiene en el hogar?","62. ¿La niña o el niño tiene juguetes en el hogar?","63. ¿Con qué cosas juega la niña o el niño cuando está en casa?","64. ¿Qué tipo de reconocimientos le dan a la niña o el niño por sus logros? (1. Le da un regalo)","64. ¿Qué tipo de reconocimientos le dan a la niña o el niño por sus logros? (2. Lo dejan salir a jugar)","64. ¿Qué tipo de reconocimientos le dan a la niña o el niño por sus logros? (3. Lo felicitan verbalmente)","64. ¿Qué tipo de reconocimientos le dan a la niña o el niño por sus logros? (4. Otro)","64.1 Si seleccionó \"4. Otro\", indique cuál","65. ¿Cuál o cuáles son las principales normas y límites establecidas en la familia para la  niña y el niño?","66. ¿Cuál o cuáles son los gustos e intereses de la niña o el niño?"]

{"sheet":"BD-M3 Integrantes","index":12,"n_rows":1,"n_cols":22,"rows_kept":1,"cut":false,"hidden":false,"merged":[]}
["No. Codigo CUENTAME UDS","No. Documento Usuario","No.","4. Parentesco","4.1 Si respondió \"20.Otro\", indique cuál","5. Nombres y Apellidos","6. Tipo documento de identidad","7. Número de documento","8. Fecha de nacimiento\n(dd/mm/aaaa)","9. Edad","10. País de Nacimiento","11. Sexo","12. Género","13. Orientación sexual","14. Grupo étnico con el que se autoreconoce","15. ¿Sabe leer y escribir en español?","16. ¿Actualmente estudia?","17. ¿Cuál es su nivel más alto de escolaridad?","18. ¿Cuál es su actividad principal en este momento?","19. ¿Si se encuentra trabajando, qué tipo de situación laboral presenta?","20. Ingreso mensual promedio","21. Observaciones"]

{"sheet":"GRAFICOS","index":13,"n_rows":166,"n_cols":72,"rows_kept":166,"cut":false,"hidden":false,"merged":[[163,0,163,50],[164,0,164,49],[165,0,165,50],[0,0,2,4],[0,41,0,45],[0,46,0,50],[1,41,1,45],[1,46,1,50],[2,41,2,50],[0,5,2,40],[26,25,26,41],[26,42,26,44],[26,18,26,20],[26,1,26,17],[4,0,4,50],[6,1,6,49]]}
[null,null,null,null,null,"PROCESO\nPROMOCIÓN Y PREVENCIÓN\n\nFORMATO FICHA DE CARACTERIZACIÓN PARA LOS SERVICIOS DE ATENCIÓN A LA PRIMERA INFANCIA",null,null,null,null,null,null,null,null,null,null,null,null,null,null,null,null,null,null,null,null,null,null,null,null,null,null,null,null,null,null,null,null,null,null,null,{"$f":"PORTADA!$K$1","v":"F23.MO12.PP"},null,null,null,null,"2021-02-08"]
[null,null,null,null,null,null,null,null,null,null,null,null,null,null,null,null,null,null,null,null,null,null,null,null,null,null,null,null,null,null,null,null,null,null,null,null,null,null,null,null,null,"Versión 2",null,null,null,null,"Página 1 de 1"]
[null,null,null,null,null,null,null,null,null,null,null,null,null,null,null,null,null,null,null,null,null,null,null,null,null,null,null,null,null,null,null,null,null,null,null,null,null,null,null,null,null,"Clasificación de la Información:\nPública"]
[]
[]
[]
[null,"GRÁFICOS"]
[null,null,null,null,null,null,null,null,null,null,null,null,null,null,null,null,null,null,null,null,null,null,null,null,null,null,null,null,null,null,null,null,null,null,null,null,null,null,null,null,null,null,null,null,null,null,null,null,null,null,null,null,null,null,null,null,null,null,null,null,"Básica",null,null,"Discapacidad",null,null,"Atenciones priorizadas Niñas y Niños"]
[null,"a. Caracteristicas básicas",null,null,null,null,null,null,null,null,null,null,null,null,null,null,null,null,null,null,null,null,null,null,null,null,null,null,null,null,null,null,null,null,null,null,null,null,null,null,null,null,null,null,null,null,null,null,null,null,null,null,null,null,null,null,null,null,null,null,"Niñas",{"$f":"COUNTIF('BD-M1'!T:T,\"1. MUJER\")","v":0},null,"Niñas con discapacidad",{"$f":"COUNTIFS('BD-M1'!T:T,\"1. MUJER\",'BD-M1'!U:U,\"SI\")","v":0},null,null,"Documento de Identidad","Afiliación al Sistema General de Salud","Esquema completo de vacunación","Valoración integral en salud","Acceso a libros"]
[null,null,null,null,null,null,null,null,null,null,null,null,null,null,null,null,null,null,null,null,null,null,null,null,null,null,null,null,null,null,null,null,null,null,null,null,null,null,null,null,null,null,null,null,null,null,null,null,null,null,null,null,null,null,null,null,null,null,null,null,"Niños",{"$f":"COUNTIF('BD-M1'!T:T,\"2. HOMBRE\")","v":0},null,"Niños con discapacidad",{"$f":"COUNTIFS('BD-M1'!T:T,\"2. HOMBRE\",'BD-M1'!U:U,\"SI\")","v":0},null,"Registro Civil",{"$f":"COUNTIF('BD-M1'!$P:$P,\"1. REGISTRO CIVIL \")","v":0}]
[null,"Gráfico 1: Distribución de la población",null,null,null,null,null,null,null,null,null,null,null,null,null,null,null,null,null,null,null,null,null,null,null,"Gráfico 2: Distribución de la población con discapacidad",null,null,null,null,null,null,null,null,null,null,null,null,null,null,null,null,null,null,null,null,null,null,null,null,null,null,null,null,null,null,null,null,null,null,"Niñas y Niños Intersexuales",{"$f":"COUNTIF('BD-M1'!T:T,\"3. INTERSEXUAL\")","v":0},null,"Niñas y Niños Intersexuales con discapacidad",{"$f":"COUNTIFS('BD-M1'!T:T,\"3. INTERSEXUAL\",'BD-M1'!U:U,\"SI\")","v":0},null,"Tarjeta de Identidad",{"$f":"COUNTIF('BD-M1'!$P:$P,\"2. TARJETA DE IDENTIDAD\")","v":0}]
[null,null,null,null,null,null,null,null,null,null,null,null,null,null,null,null,null,null,null,null,null,null,null,null,null,null,null,null,null,null,null,null,null,null,null,null,null,null,null,null,null,null,null,null,null,null,null,null,null,null,null,null,null,null,null,null,null,null,null,null,"Mujeres Gestantes",{"$f":"COUNTIF('BD-M2'!G:G,\"MUJER GESTANTE\")","v":0},null,"Mujeres Gestantes con discapacidad",{"$f":"COUNTIF('BD-M2'!X:X,\"SI\")","v":0},null,"Pasaporte",{"$f":"COUNTIF('BD-M1'!$P:$P,\"3. PASAPORTE\")","v":0}]
[null,null,null,null,null,null,null,null,null,null,null,null,null,null,null,null,null,null,null,null,null,null,null,null,null,null,null,null,null,null,null,null,null,null,null,null,null,null,null,null,null,null,null,null,null,null,null,null,null,null,null,null,null,null,null,null,null,null,null,null,null,null,null,null,null,null,"PEP",{"$f":"COUNTIF('BD-M1'!$P:$P,\"4. PERMISO ESPECIAL DE PERMANENCIA (PEP)\")","v":0}]
[null,null,null,null,null,null,null,null,null,null,null,null,null,null,null,null,null,null,null,null,null,null,null,null,null,null,null,null,null,null,null,null,null,null,null,null,null,null,null,null,null,null,null,null,null,null,null,null,null,null,null,null,null,null,null,null,null,null,null,null,null,null,null,null,null,null,"No tiene",{"$f":"COUNTIF('BD-M1'!$P:$P,\"5. NO TIENE\")","v":0}]
[null,null,null,null,null,null,null,null,null,null,null,null,null,null,null,null,null,null,null,null,null,null,null,null,null,null,null,null,null,null,null,null,null,null,null,null,null,null,null,null,null,null,null,null,null,null,null,null,null,null,null,null,null,null,null,null,null,null,null,null,null,null,null,null,null,null,"SI",null,{"$f":"COUNTIF('BD-M1'!$AF:$AF,\"AFILIADO\")","v":0},{"$f":"COUNTIF('BD-M1'!$AI:$AI,\"ESQUEMA_COMPLETO\")","v":0},{"$f":"COUNTIF('BD-M1'!$AT:$AT,\"NO\")","v":0},{"$f":"COUNTIF('BD-M3'!DH:DH,\">0\")","v":0}]
[null,null,null,null,null,null,null,null,null,null,null,null,null,null,null,null,null,null,null,null,null,null,null,null,null,null,null,null,null,null,null,null,null,null,null,null,null,null,null,null,null,null,null,null,null,null,null,null,null,null,null,null,null,null,null,null,null,null,null,null,null,null,null,null,null,null,"NO",null,{"$f":"COUNTIF('BD-M1'!$AF:$AF,\"NO_AFILIADO\")","v":0},{"$f":"COUNTIF('BD-M1'!$AI:$AI,\"ESQUEMA_INCOMPLETO\")","v":0},{"$f":"COUNTIF('BD-M1'!$AT:$AT,\"SI\")","v":0},{"$f":"(BS15+BS16)-BT15","v":0}]
[null,null,null,null,null,null,null,null,null,null,null,null,null,null,null,null,null,null,null,null,null,null,null,null,null,null,null,null,null,null,null,null,null,null,null,null,null,null,null,null,null,null,null,null,null,null,null,null,null,null,null,null,null,null,null,null,null,null,null,null,null,null,null,null,null,null,"TOTAL",{"$f":"SUM(BP10:BP16)","v":0},{"$f":"SUM(BQ10:BQ16)","v":0},{"$f":"SUM(BR10:BR16)","v":0},{"$f":"SUM(BS10:BS16)","v":0},{"$f":"SUM(BT10:BT16)","v":0}]
[]
[null,null,null,null,null,null,null,null,null,null,null,null,null,null,null,null,null,null,null,null,null,null,null,null,null,null,null,null,null,null,null,null,null,null,null,null,null,null,null,null,null,null,null,null,null,null,null,null,null,null,null,null,null,null,null,null,null,null,null,null,null,null,null,null,null,null,"Atenciones priorizadas Niñas y Niños"]
[null,null,null,null,null,null,null,null,null,null,null,null,null,null,null,null,null,null,null,null,null,null,null,null,null,null,null,null,null,null,null,null,null,null,null,null,null,null,null,null,null,null,null,null,null,null,null,null,null,null,null,null,null,null,null,null,null,null,null,null,null,null,null,null,null,null,null,"Documento de Identidad","Afiliación al Sistema General de Salud","Esquema completo de vacunación"]
[null,null,null,null,null,null,null,null,null,null,null,null,null,null,null,null,null,null,null,null,null,null,null,null,null,null,null,null,null,null,null,null,null,null,null,null,null,null,null,null,null,null,null,null,null,null,null,null,null,null,null,null,null,null,null,null,null,null,null,null,null,null,null,null,null,null,"Tarjeta de Identidad",{"$f":"COUNTIF('BD-M2'!$K:$K,\"1. Tarjeta de Identidad\")","v":0}]
[null,null,null,null,null,null,null,null,null,null,null,null,null,null,null,null,null,null,null,null,null,null,null,null,null,null,null,null,null,null,null,null,null,null,null,null,null,null,null,null,null,null,null,null,null,null,null,null,null,null,null,null,null,null,null,null,null,null,null,null,null,null,null,null,null,null,"Cédula ciudadanía",{"$f":"COUNTIF('BD-M2'!$K:$K,\"2. Cédula ciudadanía\")","v":0}]
[null,null,null,null,null,null,null,null,null,null,null,null,null,null,null,null,null,null,null,null,null,null,null,null,null,null,null,null,null,null,null,null,null,null,null,null,null,null,null,null,null,null,null,null,null,null,null,null,null,null,null,null,null,null,null,null,null,null,null,null,null,null,null,null,null,null,"Cedula de extranjería",{"$f":"COUNTIF('BD-M2'!$K:$K,\"3. Cedula de extranjería\")","v":0}]
[null,null,null,null,null,null,null,null,null,null,null,null,null,null,null,null,null,null,null,null,null,null,null,null,null,null,null,null,null,null,null,null,null,null,null,null,null,null,null,null,null,null,null,null,null,null,null,null,null,null,null,null,null,null,null,null,null,null,null,null,null,null,null,null,null,null,"Pasaporte",{"$f":"COUNTIF('BD-M2'!$K:$K,\"4. Pasaporte\")","v":0}]
[null,null,null,null,null,null,null,null,null,null,null,null,null,null,null,null,null,null,null,null,null,null,null,null,null,null,null,null,null,null,null,null,null,null,null,null,null,null,null,null,null,null,null,null,null,null,null,null,null,null,null,null,null,null,null,null,null,null,null,null,null,null,null,null,null,null,"PEP",{"$f":"COUNTIF('BD-M2'!$K:$K,\"5. Permiso especial de permanencia (PEP)\")","v":0}]
[null,null,null,null,null,null,null,null,null,null,null,null,null,null,null,null,null,null,null,null,null,null,null,null,null,null,null,null,null,null,null,null,null,null,null,null,null,null,null,null,null,null,null,null,null,null,null,null,null,null,null,null,null,null,null,null,null,null,null,null,null,null,null,null,null,null,"Sin información",{"$f":"COUNTIF('BD-M2'!$K:$K,\"6. Sin Información\")","v":0}]
[null,"Total población",null,null,null,null,null,null,null,null,null,null,null,null,null,null,null,null,{"$f":"SUM(BJ9:BJ12)","v":0},null,null,null,null,null,null,"Total población con discapacidad",null,null,null,null,null,null,null,null,null,null,null,null,null,null,null,null,{"$f":"SUM(BM9:BM12)","v":0},null,null,null,null,null,null,null,null,null,null,null,null,null,null,null,null,null,null,null,null,null,null,null,"SI",null,{"$f":"COUNTIF('BD-M2'!$BW:$BW,\"SI\")","v":0},{"$f":"COUNTIF('BD-M2'!$BZ:$BZ,\"NO\")","v":0}]
[null,null,null,null,null,null,null,null,null,null,null,null,null,null,null,null,null,null,null,null,null,null,null,null,null,null,null,null,null,null,null,null,null,null,null,null,null,null,null,null,null,null,null,null,null,null,null,null,null,null,null,null,null,null,null,null,null,null,null,null,null,null,null,null,null,null,"NO",null,{"$f":"COUNTIF('BD-M2'!$BW:$BW,\"NO\")","v":0},{"$f":"COUNTIF('BD-M2'!$BZ:$BZ,\"SI\")","v":0}]
[null,null,null,null,null,null,null,null,null,null,null,null,null,null,null,null,null,null,null,null,null,null,null,null,null,null,null,null,null,null,null,null,null,null,null,null,null,null,null,null,null,null,null,null,null,null,null,null,null,null,null,null,null,null,null,null,null,null,null,null,null,null,null,null,null,null,"TOTAL",{"$f":"SUM(BP21:BP28)","v":0},{"$f":"SUM(BQ21:BQ28)","v":0},{"$f":"SUM(BR21:BR28)","v":0}]
[]
[]
[null,"b. Estado de condiciones priorizadas"]
[null,"Gráfico 3: Atenciones priorizadas de niñas y niños"]
[]
[]
[]
[]
[]
[]
[]
[]
[]
[]
[]
[]
[]
[]
[]
[]
[]
[]
[]
[]
[]
[]
[]
[null,"Gráfico 4: Atenciones priorizadas de mujeres gestantes"]
[]
[]
[]
[]
[]
[]
[]
[]
[]
[]
[]
[]
[]
[]
[]
[]
[]
[]
[]
[null,"c. Factores de riesgo"]
[]
[null,"Gráfico 5: Acceso a servicios",null,null,null,null,null,null,null,null,null,null,null,null,null,null,null,null,null,null,null,"Gráfico 6: Riesgos de ubicación de la vivienda",null,null,null,null,null,null,null,null,null,null,null,null,null,null,null,null,null,null,null,null,null,null,null,null,null,null,null,null,null,null,null,null,null,null,null,null,null,null,null,"Acceso a servicios",null,null,"Riesgos ubicación de la vivienda"]
[null,null,null,null,null,null,null,null,null,null,null,null,null,null,null,null,null,null,null,null,null,null,null,null,null,null,null,null,null,null,null,null,null,null,null,null,null,null,null,null,null,null,null,null,null,null,null,null,null,null,null,null,null,null,null,null,null,null,null,null,null,"1. Energía",{"$f":"COUNTIF('BD-M3'!Q:Q,\"VERDADERO\")","v":0},null,"11. Otra",{"$f":"COUNTIF('BD-M3'!AO:AO,\"VERDADERO\")","v":0}]
[null,null,null,null,null,null,null,null,null,null,null,null,null,null,null,null,null,null,null,null,null,null,null,null,null,null,null,null,null,null,null,null,null,null,null,null,null,null,null,null,null,null,null,null,null,null,null,null,null,null,null,null,null,null,null,null,null,null,null,null,null,"2. Acueducto",{"$f":"COUNTIF('BD-M3'!R:R,\"VERDADERO\")","v":0},null,"10. Ninguna de las anteriores",{"$f":"COUNTIF('BD-M3'!AN:AN,\"VERDADERO\")","v":0}]
[null,null,null,null,null,null,null,null,null,null,null,null,null,null,null,null,null,null,null,null,null,null,null,null,null,null,null,null,null,null,null,null,null,null,null,null,null,null,null,null,null,null,null,null,null,null,null,null,null,null,null,null,null,null,null,null,null,null,null,null,null,"3. Alcantarillado",{"$f":"COUNTIF('BD-M3'!S:S,\"VERDADERO\")","v":0},null,"9. Paso elevado",{"$f":"COUNTIF('BD-M3'!AM:AM,\"VERDADERO\")","v":0}]
[null,null,null,null,null,null,null,null,null,null,null,null,null,null,null,null,null,null,null,null,null,null,null,null,null,null,null,null,null,null,null,null,null,null,null,null,null,null,null,null,null,null,null,null,null,null,null,null,null,null,null,null,null,null,null,null,null,null,null,null,null,"4. Gas natural",{"$f":"COUNTIF('BD-M3'!T:T,\"VERDADERO\")","v":0},null,"8. Central eléctrica",{"$f":"COUNTIF('BD-M3'!AL:AL,\"VERDADERO\")","v":0}]
[null,null,null,null,null,null,null,null,null,null,null,null,null,null,null,null,null,null,null,null,null,null,null,null,null,null,null,null,null,null,null,null,null,null,null,null,null,null,null,null,null,null,null,null,null,null,null,null,null,null,null,null,null,null,null,null,null,null,null,null,null,"5. Telefonía fija",{"$f":"COUNTIF('BD-M3'!U:U,\"VERDADERO\")","v":0},null,"7. Ferrocarril",{"$f":"COUNTIF('BD-M3'!AK:AK,\"VERDADERO\")","v":0}]
[null,null,null,null,null,null,null,null,null,null,null,null,null,null,null,null,null,null,null,null,null,null,null,null,null,null,null,null,null,null,null,null,null,null,null,null,null,null,null,null,null,null,null,null,null,null,null,null,null,null,null,null,null,null,null,null,null,null,null,null,null,"6. Todas las anteriores",{"$f":"COUNTIF('BD-M3'!V:V,\"VERDADERO\")","v":0},null,"6. Área de contaminación industrial",{"$f":"COUNTIF('BD-M3'!AJ:AJ,\"VERDADERO\")","v":0}]
[null,null,null,null,null,null,null,null,null,null,null,null,null,null,null,null,null,null,null,null,null,null,null,null,null,null,null,null,null,null,null,null,null,null,null,null,null,null,null,null,null,null,null,null,null,null,null,null,null,null,null,null,null,null,null,null,null,null,null,null,null,null,null,null,"5. Montaña/pila de basura",{"$f":"COUNTIF('BD-M3'!AI:AI,\"VERDADERO\")","v":0}]
[null,null,null,null,null,null,null,null,null,null,null,null,null,null,null,null,null,null,null,null,null,null,null,null,null,null,null,null,null,null,null,null,null,null,null,null,null,null,null,null,null,null,null,null,null,null,null,null,null,null,null,null,null,null,null,null,null,null,null,null,null,null,null,null,"4. Colina empinada",{"$f":"COUNTIF('BD-M3'!AH:AH,\"VERDADERO\")","v":0}]
[null,null,null,null,null,null,null,null,null,null,null,null,null,null,null,null,null,null,null,null,null,null,null,null,null,null,null,null,null,null,null,null,null,null,null,null,null,null,null,null,null,null,null,null,null,null,null,null,null,null,null,null,null,null,null,null,null,null,null,null,null,null,null,null,"3. Orilla de río",{"$f":"COUNTIF('BD-M3'!AG:AG,\"VERDADERO\")","v":0}]
[null,null,null,null,null,null,null,null,null,null,null,null,null,null,null,null,null,null,null,null,null,null,null,null,null,null,null,null,null,null,null,null,null,null,null,null,null,null,null,null,null,null,null,null,null,null,null,null,null,null,null,null,null,null,null,null,null,null,null,null,null,null,null,null,"2. Zona propensa a las inundaciones",{"$f":"COUNTIF('BD-M3'!AF:AF,\"VERDADERO\")","v":0}]
[null,null,null,null,null,null,null,null,null,null,null,null,null,null,null,null,null,null,null,null,null,null,null,null,null,null,null,null,null,null,null,null,null,null,null,null,null,null,null,null,null,null,null,null,null,null,null,null,null,null,null,null,null,null,null,null,null,null,null,null,null,null,null,null,"1. Área de deslizamiento de tierra",{"$f":"COUNTIF('BD-M3'!AE:AE,\"VERDADERO\")","v":0}]
[]
[]
[]
[]
[]
[]
[]
[null,"Gráfico 7: Riesgos dentro de la vivienda",null,null,null,null,null,null,null,null,null,null,null,null,null,null,null,null,null,null,null,null,null,null,null,null,null,null,null,null,null,"Gráfico 8: Eventos de violencia en mujer gestante"]
[null,null,null,null,null,null,null,null,null,null,null,null,null,null,null,null,null,null,null,null,null,null,null,null,null,null,null,null,null,null,null,null,null,null,null,null,null,null,null,null,null,null,null,null,null,null,null,null,null,null,null,null,null,null,null,null,null,null,null,null,null,null,null,null,"Riesgos en el hogar",null,null,"Eventos de violencia de mujer gestante"]
[null,null,null,null,null,null,null,null,null,null,null,null,null,null,null,null,null,null,null,null,null,null,null,null,null,null,null,null,null,null,null,null,null,null,null,null,null,null,null,null,null,null,null,null,null,null,null,null,null,null,null,null,null,null,null,null,null,null,null,null,null,null,null,null,"11. Otro",{"$f":"COUNTIF('BD-M3'!BA:BA,\"VERDADERO\")","v":0},null,"1. Violencia sexual",{"$f":"COUNTIF('BD-M2'!AJ:AJ,\"VERDADERO\")","v":0}]
[null,null,null,null,null,null,null,null,null,null,null,null,null,null,null,null,null,null,null,null,null,null,null,null,null,null,null,null,null,null,null,null,null,null,null,null,null,null,null,null,null,null,null,null,null,null,null,null,null,null,null,null,null,null,null,null,null,null,null,null,null,null,null,null,"10. Ninguno de las anteriores",{"$f":"COUNTIF('BD-M3'!AZ:AZ,\"VERDADERO\")","v":0},null,"2. Violencia psicológica",{"$f":"COUNTIF('BD-M2'!AK:AK,\"VERDADERO\")","v":0}]
[null,null,null,null,null,null,null,null,null,null,null,null,null,null,null,null,null,null,null,null,null,null,null,null,null,null,null,null,null,null,null,null,null,null,null,null,null,null,null,null,null,null,null,null,null,null,null,null,null,null,null,null,null,null,null,null,null,null,null,null,null,null,null,null,"9. Quemaduras",{"$f":"COUNTIF('BD-M3'!AY:AY,\"VERDADERO\")","v":0},null,"3. Violencia en el conflicto armado",{"$f":"COUNTIF('BD-M2'!AL:AL,\"VERDADERO\")","v":0}]
[null,null,null,null,null,null,null,null,null,null,null,null,null,null,null,null,null,null,null,null,null,null,null,null,null,null,null,null,null,null,null,null,null,null,null,null,null,null,null,null,null,null,null,null,null,null,null,null,null,null,null,null,null,null,null,null,null,null,null,null,null,null,null,null,"8. Hacinamiento ",{"$f":"COUNTIF('BD-M3'!AX:AX,\"VERDADERO\")","v":0},null,"4. Violencia económica y patrimonial",{"$f":"COUNTIF('BD-M2'!AM:AM,\"VERDADERO\")","v":0}]
[null,null,null,null,null,null,null,null,null,null,null,null,null,null,null,null,null,null,null,null,null,null,null,null,null,null,null,null,null,null,null,null,null,null,null,null,null,null,null,null,null,null,null,null,null,null,null,null,null,null,null,null,null,null,null,null,null,null,null,null,null,null,null,null,"7. Bolsas de plástico al alcance de la niña o el niño",{"$f":"COUNTIF('BD-M3'!AW:AW,\"VERDADERO\")","v":0},null,"6. Violencia Física",{"$f":"COUNTIF('BD-M2'!AN:AN,\"VERDADERO\")","v":0}]
[null,null,null,null,null,null,null,null,null,null,null,null,null,null,null,null,null,null,null,null,null,null,null,null,null,null,null,null,null,null,null,null,null,null,null,null,null,null,null,null,null,null,null,null,null,null,null,null,null,null,null,null,null,null,null,null,null,null,null,null,null,null,null,null,"6. Depósitos de agua destapados",{"$f":"COUNTIF('BD-M3'!AV:AV,\"VERDADERO\")","v":0},null,"7. Ninguna",{"$f":"COUNTIF('BD-M2'!AO:AO,\"VERDADERO\")","v":0}]
[null,null,null,null,null,null,null,null,null,null,null,null,null,null,null,null,null,null,null,null,null,null,null,null,null,null,null,null,null,null,null,null,null,null,null,null,null,null,null,null,null,null,null,null,null,null,null,null,null,null,null,null,null,null,null,null,null,null,null,null,null,null,null,null,"5. Escaleras, azoteas o balcones inseguras",{"$f":"COUNTIF('BD-M3'!AU:AU,\"VERDADERO\")","v":0}]
[null,null,null,null,null,null,null,null,null,null,null,null,null,null,null,null,null,null,null,null,null,null,null,null,null,null,null,null,null,null,null,null,null,null,null,null,null,null,null,null,null,null,null,null,null,null,null,null,null,null,null,null,null,null,null,null,null,null,null,null,null,null,null,null,"4. Recipientes con sustancias toxicas",{"$f":"COUNTIF('BD-M3'!AT:AT,\"VERDADERO\")","v":0}]
[null,null,null,null,null,null,null,null,null,null,null,null,null,null,null,null,null,null,null,null,null,null,null,null,null,null,null,null,null,null,null,null,null,null,null,null,null,null,null,null,null,null,null,null,null,null,null,null,null,null,null,null,null,null,null,null,null,null,null,null,null,null,null,null,"3. Fósforos- encendedores",{"$f":"COUNTIF('BD-M3'!AS:AS,\"VERDADERO\")","v":0}]
[null,null,null,null,null,null,null,null,null,null,null,null,null,null,null,null,null,null,null,null,null,null,null,null,null,null,null,null,null,null,null,null,null,null,null,null,null,null,null,null,null,null,null,null,null,null,null,null,null,null,null,null,null,null,null,null,null,null,null,null,null,null,null,null,"2. Fármacos",{"$f":"COUNTIF('BD-M3'!AR:AR,\"VERDADERO\")","v":0}]
[null,null,null,null,null,null,null,null,null,null,null,null,null,null,null,null,null,null,null,null,null,null,null,null,null,null,null,null,null,null,null,null,null,null,null,null,null,null,null,null,null,null,null,null,null,null,null,null,null,null,null,null,null,null,null,null,null,null,null,null,null,null,null,null,"1. Objetos cortantes",{"$f":"COUNTIF('BD-M3'!AQ:AQ,\"VERDADERO\")","v":0}]
[]
[]
[]
[]
[]
[]
[null,"Gráfico 9: Formas de corregir a niñas y niños",null,null,null,null,null,null,null,null,null,null,null,null,null,null,null,null,null,null,null,null,null,null,null,null,null,null,null,null,null,"Gráfico 10: Eventos de violencia en niñas y niños"]
[]
[null,null,null,null,null,null,null,null,null,null,null,null,null,null,null,null,null,null,null,null,null,null,null,null,null,null,null,null,null,null,null,null,null,null,null,null,null,null,null,null,null,null,null,null,null,null,null,null,null,null,null,null,null,null,null,null,null,null,null,null,null,null,null,null,"Formas de correción a niñas y niños",null,null,"Eventos de violencia a niñas y niños"]
[null,null,null,null,null,null,null,null,null,null,null,null,null,null,null,null,null,null,null,null,null,null,null,null,null,null,null,null,null,null,null,null,null,null,null,null,null,null,null,null,null,null,null,null,null,null,null,null,null,null,null,null,null,null,null,null,null,null,null,null,null,null,null,null,"6. Otro",{"$f":"COUNTIF('BD-M3'!BQ:BQ,\"6. Otro\")","v":0},null,"1. Violencia sexual",{"$f":"COUNTIF('BD-M3'!BU:BU,\"1. Violencia sexual\")","v":0}]
[null,null,null,null,null,null,null,null,null,null,null,null,null,null,null,null,null,null,null,null,null,null,null,null,null,null,null,null,null,null,null,null,null,null,null,null,null,null,null,null,null,null,null,null,null,null,null,null,null,null,null,null,null,null,null,null,null,null,null,null,null,null,null,null,"5. Buen ejemplo",{"$f":"COUNTIF('BD-M3'!BQ:BQ,\"5. Buen ejemplo\")","v":0},null,"2. Violencia psicológica",{"$f":"COUNTIF('BD-M3'!BU:BU,\"2. Violencia psicológica\")","v":0}]
[null,null,null,null,null,null,null,null,null,null,null,null,null,null,null,null,null,null,null,null,null,null,null,null,null,null,null,null,null,null,null,null,null,null,null,null,null,null,null,null,null,null,null,null,null,null,null,null,null,null,null,null,null,null,null,null,null,null,null,null,null,null,null,null,"4. Diálogo",{"$f":"COUNTIF('BD-M3'!BQ:BQ,\"4. Diálogo\")","v":0},null,"3. Violencia física",{"$f":"COUNTIF('BD-M3'!BU:BU,\"3. Violencia física\")","v":0}]
[null,null,null,null,null,null,null,null,null,null,null,null,null,null,null,null,null,null,null,null,null,null,null,null,null,null,null,null,null,null,null,null,null,null,null,null,null,null,null,null,null,null,null,null,null,null,null,null,null,null,null,null,null,null,null,null,null,null,null,null,null,null,null,null,"3. Hablando",{"$f":"COUNTIF('BD-M3'!BQ:BQ,\"3. Hablando\")","v":0},null,"4. Violencia por conflicto armado",{"$f":"COUNTIF('BD-M3'!BU:BU,\"4. Violencia por conflicto armado\")","v":0}]
[null,null,null,null,null,null,null,null,null,null,null,null,null,null,null,null,null,null,null,null,null,null,null,null,null,null,null,null,null,null,null,null,null,null,null,null,null,null,null,null,null,null,null,null,null,null,null,null,null,null,null,null,null,null,null,null,null,null,null,null,null,null,null,null,"2. Gritos",{"$f":"COUNTIF('BD-M3'!BQ:BQ,\"2. Gritos\")","v":0},null,"5. Castigo físico",{"$f":"COUNTIF('BD-M3'!BU:BU,\"5. Castigo físico\")","v":0}]
[null,null,null,null,null,null,null,null,null,null,null,null,null,null,null,null,null,null,null,null,null,null,null,null,null,null,null,null,null,null,null,null,null,null,null,null,null,null,null,null,null,null,null,null,null,null,null,null,null,null,null,null,null,null,null,null,null,null,null,null,null,null,null,null,"1. Palmadas, pellizcos, etc.",{"$f":"COUNTIF('BD-M3'!BQ:BQ,\"1. Palmadas, pellizcos, etc.\")","v":0},null,"6. Ninguna",{"$f":"COUNTIF('BD-M3'!BU:BU,\"6. Ninguna\")","v":0}]
[null,null,null,null,null,null,null,null,null,null,null,null,null,null,null,null,null,null,null,null,null,null,null,null,null,null,null,null,null,null,null,null,null,null,null,null,null,null,null,null,null,null,null,null,null,null,null,null,null,null,null,null,null,null,null,null,null,null,null,null,null,null,null,null,null,null,null,"7. Otra",{"$f":"COUNTIF('BD-M3'!BU:BU,\"7. Otra\")","v":0}]
[]
[]
[]
[]
[]
[]
[]
[]
[]
[null,"d. Interacciones"]
[]
[null,"Gráfico 11: Actividades que la familia realiza con las niñas y los niños",null,null,null,null,null,null,null,null,null,null,null,null,null,null,null,null,null,null,null,null,null,null,null,null,null,null,null,null,null,null,null,null,null,null,null,null,null,null,null,null,null,null,null,null,null,null,null,null,null,null,null,null,null,null,null,null,null,null,null,null,null,null,"Actividades que la familia realiza con las niñas y los niños"]
[null,null,null,null,null,null,null,null,null,null,null,null,null,null,null,null,null,null,null,null,null,null,null,null,null,null,null,null,null,null,null,null,null,null,null,null,null,null,null,null,null,null,null,null,null,null,null,null,null,null,null,null,null,null,null,null,null,null,null,null,null,null,null,null,"1. Leer un libro ",{"$f":"COUNTIF('BD-M3'!CI:CI,\"VERDADERO\")","v":0}]
[null,null,null,null,null,null,null,null,null,null,null,null,null,null,null,null,null,null,null,null,null,null,null,null,null,null,null,null,null,null,null,null,null,null,null,null,null,null,null,null,null,null,null,null,null,null,null,null,null,null,null,null,null,null,null,null,null,null,null,null,null,null,null,null,"2. Contarle historias y cuentos",{"$f":"COUNTIF('BD-M3'!CJ:CJ,\"VERDADERO\")","v":0}]
[null,null,null,null,null,null,null,null,null,null,null,null,null,null,null,null,null,null,null,null,null,null,null,null,null,null,null,null,null,null,null,null,null,null,null,null,null,null,null,null,null,null,null,null,null,null,null,null,null,null,null,null,null,null,null,null,null,null,null,null,null,null,null,null,"3. Cantar canciones",{"$f":"COUNTIF('BD-M3'!CK:CK,\"VERDADERO\")","v":0}]
[null,null,null,null,null,null,null,null,null,null,null,null,null,null,null,null,null,null,null,null,null,null,null,null,null,null,null,null,null,null,null,null,null,null,null,null,null,null,null,null,null,null,null,null,null,null,null,null,null,null,null,null,null,null,null,null,null,null,null,null,null,null,null,null,"4. Llevarlo-a afuera de la casa",{"$f":"COUNTIF('BD-M3'!CL:CL,\"VERDADERO\")","v":0}]
[null,null,null,null,null,null,null,null,null,null,null,null,null,null,null,null,null,null,null,null,null,null,null,null,null,null,null,null,null,null,null,null,null,null,null,null,null,null,null,null,null,null,null,null,null,null,null,null,null,null,null,null,null,null,null,null,null,null,null,null,null,null,null,null,"5. Pasar tiempo con él o ella",{"$f":"COUNTIF('BD-M3'!CM:CM,\"VERDADERO\")","v":0}]
[null,null,null,null,null,null,null,null,null,null,null,null,null,null,null,null,null,null,null,null,null,null,null,null,null,null,null,null,null,null,null,null,null,null,null,null,null,null,null,null,null,null,null,null,null,null,null,null,null,null,null,null,null,null,null,null,null,null,null,null,null,null,null,null,"6. Mirando en la  TV o en el celular",{"$f":"COUNTIF('BD-M3'!CN:CN,\"VERDADERO\")","v":0}]
[null,null,null,null,null,null,null,null,null,null,null,null,null,null,null,null,null,null,null,null,null,null,null,null,null,null,null,null,null,null,null,null,null,null,null,null,null,null,null,null,null,null,null,null,null,null,null,null,null,null,null,null,null,null,null,null,null,null,null,null,null,null,null,null,"7. Jugar con él/ella",{"$f":"COUNTIF('BD-M3'!CO:CO,\"VERDADERO\")","v":0}]
[null,null,null,null,null,null,null,null,null,null,null,null,null,null,null,null,null,null,null,null,null,null,null,null,null,null,null,null,null,null,null,null,null,null,null,null,null,null,null,null,null,null,null,null,null,null,null,null,null,null,null,null,null,null,null,null,null,null,null,null,null,null,null,null,"8. Explorar con él/ella ",{"$f":"COUNTIF('BD-M3'!CP:CP,\"VERDADERO\")","v":0}]
[null,null,null,null,null,null,null,null,null,null,null,null,null,null,null,null,null,null,null,null,null,null,null,null,null,null,null,null,null,null,null,null,null,null,null,null,null,null,null,null,null,null,null,null,null,null,null,null,null,null,null,null,null,null,null,null,null,null,null,null,null,null,null,null,"9. Baila con él/ella",{"$f":"COUNTIF('BD-M3'!CQ:CQ,\"VERDADERO\")","v":0}]
[null,null,null,null,null,null,null,null,null,null,null,null,null,null,null,null,null,null,null,null,null,null,null,null,null,null,null,null,null,null,null,null,null,null,null,null,null,null,null,null,null,null,null,null,null,null,null,null,null,null,null,null,null,null,null,null,null,null,null,null,null,null,null,null,"10. Ninguna",{"$f":"COUNTIF('BD-M3'!CR:CR,\"VERDADERO\")","v":0}]
[]
[]
[]
[]
[]
[]
[]
[]
[]
[]
[]
[]
[]
[]
[]
["Antes de imprimir este documento… piense en el medio ambiente!"]
["Cualquier copia impresa de este documento se considera como COPIA NO CONTROLADA"]
[" LOS DATOS PROPORCIONADOS SERÁN TRATADOS DE ACUERDO A LA POLÍTICA DE TRATAMIENTO DE DATOS PERSONALES DEL ICBF Y A LA LEY 1581 DE 2012"]